Workbook

Sheet 주거용 건물
A1: 건축물 시가표준액 일람표 본 일람표는 가감산특례 적용 전 건축물 시가표준액을 계산한 표로, 단위는 단위 면적당(㎡) 천원(1000원)이며 천원 이하의 숫자는 버림하였습니다. 문의사항: 한국지방세연구원, 최은철 주임, 02-2071-2716, ecchoi@kilf.re.kr
A2: 건물신축가격기준액구분 | B2: 구조구분 | C2: 용도구분 | D2: 위치구분 | E2: 경과연수구분 | F2: 선택번호 | G2: 2 | H2: 2 | I2: 8 | J2: 3 | K2: 1
F3: 검색 | G3: 건물신축가격기준액구분 | H3: 구조구분 | I3: 용도구분 | J3: 위치구분 | K3: 경과연수구분
A4: ※ "전부" 버튼은 2개 이상 사용하면 동작시간이 길어져 사용을 자제해주시기 바랍니다 (매크로 작동 도중 중단을 원하시면 esc 키를 눌러주시기 바랍니다) | F4: 찾기 | G4: =IF(G2=1,"",INDEX(건물신축가격기준액구분,G2)) -> 주거용 건물 | H4: =IF(H2=1,"",INDEX(구조구분,H2)) -> (통나무조) | I4: =IF(I2=1,"",INDEX(용도구분,I2)) -> (7) 주거용 오피스텔 | J4: =IF(J2=1,"",INDEX(위치구분,J2)) -> 2(개별공시지가 10,000원 초과 30,000이하) | K4: =IF(K2=1,"",INDEX(경과연수구분,K2)) -> 
A5: ※ 10년 이상 오래된 건물이 검색이 안될 경우 '경과연수구분'에 '10년 이상', '20년 이상', '30년 이상', '40년 이상', '50년 이상'을 눌러주시기 바랍니다
A6: 건물신축가격기준액구분 | B6: 건물신축가격기준액 | C6: 구조구분 | D6: 구조지수 | E6: 용도구분 | F6: 용도지수 | G6: 위치구분 | H6: 위치지수 | I6: 경과연수구분 | J6: 경과연수별잔가율 | K6: 시가표준액
A7: 주거용 건물 | B7: 810000 | C7: (통나무조) | D7: 135 | E7: (5) 전업농어가주택, 광산주택 등 기타 주거용건물 | F7: 87 | G7: 1(개별공시지가 10,000원 이하) | H7: 80 | I7: 2023 | J7: =1-(0.017*(2023-$I7)) -> 1 | K7: =ROUNDDOWN(B7*D7/100*F7/100*H7/100*J7/1000,0) -> 761
A8: 주거용 건물 | B8: 810000 | C8: (통나무조) | D8: 135 | E8: (5) 전업농어가주택, 광산주택 등 기타 주거용건물 | F8: 87 | G8: 1(개별공시지가 10,000원 이하) | H8: 80 | I8: 2022 | J8: =1-(0.017*(2023-$I8)) -> 0.983 | K8: 748
A9: 주거용 건물 | B9: 810000 | C9: (통나무조) | D9: 135 | E9: (5) 전업농어가주택, 광산주택 등 기타 주거용건물 | F9: 87 | G9: 1(개별공시지가 10,000원 이하) | H9: 80 | I9: 2021 | J9: 0.966 | K9: 735
A10: 주거용 건물 | B10: 810000 | C10: (통나무조) | D10: 135 | E10: (5) 전업농어가주택, 광산주택 등 기타 주거용건물 | F10: 87 | G10: 1(개별공시지가 10,000원 이하) | H10: 80 | I10: 2020 | J10: 0.949 | K10: 722
A11: 주거용 건물 | B11: 810000 | C11: (통나무조) | D11: 135 | E11: (5) 전업농어가주택, 광산주택 등 기타 주거용건물 | F11: 87 | G11: 1(개별공시지가 10,000원 이하) | H11: 80 | I11: 2019 | J11: 0.932 | K11: 709
A12: 주거용 건물 | B12: 810000 | C12: (통나무조) | D12: 135 | E12: (5) 전업농어가주택, 광산주택 등 기타 주거용건물 | F12: 87 | G12: 1(개별공시지가 10,000원 이하) | H12: 80 | I12: 2018 | J12: 0.915 | K12: 696
A13: 주거용 건물 | B13: 810000 | C13: (통나무조) | D13: 135 | E13: (5) 전업농어가주택, 광산주택 등 기타 주거용건물 | F13: 87 | G13: 1(개별공시지가 10,000원 이하) | H13: 80 | I13: 2017 | J13: 0.898 | K13: 683
A14: 주거용 건물 | B14: 810000 | C14: (통나무조) | D14: 135 | E14: (5) 전업농어가주택, 광산주택 등 기타 주거용건물 | F14: 87 | G14: 1(개별공시지가 10,000원 이하) | H14: 80 | I14: 2016 | J14: 0.881 | K14: 670
A15: 주거용 건물 | B15: 810000 | C15: (통나무조) | D15: 135 | E15: (5) 전업농어가주택, 광산주택 등 기타 주거용건물 | F15: 87 | G15: 1(개별공시지가 10,000원 이하) | H15: 80 | I15: 2015 | J15: 0.864 | K15: 657
A16: 주거용 건물 | B16: 810000 | C16: (통나무조) | D16: 135 | E16: (5) 전업농어가주택, 광산주택 등 기타 주거용건물 | F16: 87 | G16: 1(개별공시지가 10,000원 이하) | H16: 80 | I16: 2014 | J16: 0.847 | K16: 644
A17: 주거용 건물 | B17: 810000 | C17: (통나무조) | D17: 135 | E17: (5) 전업농어가주택, 광산주택 등 기타 주거용건물 | F17: 87 | G17: 1(개별공시지가 10,000원 이하) | H17: 80 | I17: 2013 | J17: 0.83 | K17: 631
A18: 주거용 건물 | B18: 810000 | C18: (통나무조) | D18: 135 | E18: (5) 전업농어가주택, 광산주택 등 기타 주거용건물 | F18: 87 | G18: 1(개별공시지가 10,000원 이하) | H18: 80 | I18: 2012 | J18: 0.813 | K18: 618
A19: 주거용 건물 | B19: 810000 | C19: (통나무조) | D19: 135 | E19: (5) 전업농어가주택, 광산주택 등 기타 주거용건물 | F19: 87 | G19: 1(개별공시지가 10,000원 이하) | H19: 80 | I19: 2011 | J19: 0.796 | K19: 605
A20: 주거용 건물 | B20: 810000 | C20: (통나무조) | D20: 135 | E20: (5) 전업농어가주택, 광산주택 등 기타 주거용건물 | F20: 87 | G20: 1(개별공시지가 10,000원 이하) | H20: 80 | I20: 2010 | J20: 0.779 | K20: 592
A21: 주거용 건물 | B21: 810000 | C21: (통나무조) | D21: 135 | E21: (5) 전업농어가주택, 광산주택 등 기타 주거용건물 | F21: 87 | G21: 1(개별공시지가 10,000원 이하) | H21: 80 | I21: 2009 | J21: 0.762 | K21: 579
A22: 주거용 건물 | B22: 810000 | C22: (통나무조) | D22: 135 | E22: (5) 전업농어가주택, 광산주택 등 기타 주거용건물 | F22: 87 | G22: 1(개별공시지가 10,000원 이하) | H22: 80 | I22: 2008 | J22: 0.745 | K22: 567
A23: 주거용 건물 | B23: 810000 | C23: (통나무조) | D23: 135 | E23: (5) 전업농어가주택, 광산주택 등 기타 주거용건물 | F23: 87 | G23: 1(개별공시지가 10,000원 이하) | H23: 80 | I23: 2007 | J23: 0.728 | K23: 554
A24: 주거용 건물 | B24: 810000 | C24: (통나무조) | D24: 135 | E24: (5) 전업농어가주택, 광산주택 등 기타 주거용건물 | F24: 87 | G24: 1(개별공시지가 10,000원 이하) | H24: 80 | I24: 2006 | J24: 0.711 | K24: 541
A25: 주거용 건물 | B25: 810000 | C25: (통나무조) | D25: 135 | E25: (5) 전업농어가주택, 광산주택 등 기타 주거용건물 | F25: 87 | G25: 1(개별공시지가 10,000원 이하) | H25: 80 | I25: 2005 | J25: 0.694 | K25: 528
A26: 주거용 건물 | B26: 810000 | C26: (통나무조) | D26: 135 | E26: (5) 전업농어가주택, 광산주택 등 기타 주거용건물 | F26: 87 | G26: 1(개별공시지가 10,000원 이하) | H26: 80 | I26: 2004 | J26: 0.677 | K26: 515
A27: 주거용 건물 | B27: 810000 | C27: (통나무조) | D27: 135 | E27: (5) 전업농어가주택, 광산주택 등 기타 주거용건물 | F27: 87 | G27: 1(개별공시지가 10,000원 이하) | H27: 80 | I27: 2003 | J27: 0.66 | K27: 502
A28: 주거용 건물 | B28: 810000 | C28: (통나무조) | D28: 135 | E28: (5) 전업농어가주택, 광산주택 등 기타 주거용건물 | F28: 87 | G28: 1(개별공시지가 10,000원 이하) | H28: 80 | I28: 2002 | J28: 0.643 | K28: 489
A29: 주거용 건물 | B29: 810000 | C29: (통나무조) | D29: 135 | E29: (5) 전업농어가주택, 광산주택 등 기타 주거용건물 | F29: 87 | G29: 1(개별공시지가 10,000원 이하) | H29: 80 | I29: 2001 | J29: 0.626 | K29: 476
A30: 주거용 건물 | B30: 810000 | C30: (통나무조) | D30: 135 | E30: (5) 전업농어가주택, 광산주택 등 기타 주거용건물 | F30: 87 | G30: 1(개별공시지가 10,000원 이하) | H30: 80 | I30: 2000 | J30: 0.609 | K30: 463
A31: 주거용 건물 | B31: 810000 | C31: (통나무조) | D31: 135 | E31: (5) 전업농어가주택, 광산주택 등 기타 주거용건물 | F31: 87 | G31: 1(개별공시지가 10,000원 이하) | H31: 80 | I31: 1999 | J31: 0.592 | K31: 450
A32: 주거용 건물 | B32: 810000 | C32: (통나무조) | D32: 135 | E32: (5) 전업농어가주택, 광산주택 등 기타 주거용건물 | F32: 87 | G32: 1(개별공시지가 10,000원 이하) | H32: 80 | I32: 1998 | J32: 0.575 | K32: 437
A33: 주거용 건물 | B33: 810000 | C33: (통나무조) | D33: 135 | E33: (5) 전업농어가주택, 광산주택 등 기타 주거용건물 | F33: 87 | G33: 1(개별공시지가 10,000원 이하) | H33: 80 | I33: 1997 | J33: 0.558 | K33: 424
A34: 주거용 건물 | B34: 810000 | C34: (통나무조) | D34: 135 | E34: (5) 전업농어가주택, 광산주택 등 기타 주거용건물 | F34: 87 | G34: 1(개별공시지가 10,000원 이하) | H34: 80 | I34: 1996 | J34: 0.541 | K34: 411
A35: 주거용 건물 | B35: 810000 | C35: (통나무조) | D35: 135 | E35: (5) 전업농어가주택, 광산주택 등 기타 주거용건물 | F35: 87 | G35: 1(개별공시지가 10,000원 이하) | H35: 80 | I35: 1995 | J35: 0.524 | K35: 398
A36: 주거용 건물 | B36: 810000 | C36: (통나무조) | D36: 135 | E36: (5) 전업농어가주택, 광산주택 등 기타 주거용건물 | F36: 87 | G36: 1(개별공시지가 10,000원 이하) | H36: 80 | I36: 1994 | J36: 0.507 | K36: 385
A37: 주거용 건물 | B37: 810000 | C37: (통나무조) | D37: 135 | E37: (5) 전업농어가주택, 광산주택 등 기타 주거용건물 | F37: 87 | G37: 1(개별공시지가 10,000원 이하) | H37: 80 | I37: 1993 | J37: 0.49 | K37: 372
A38: 주거용 건물 | B38: 810000 | C38: (통나무조) | D38: 135 | E38: (5) 전업농어가주택, 광산주택 등 기타 주거용건물 | F38: 87 | G38: 1(개별공시지가 10,000원 이하) | H38: 80 | I38: 1992 | J38: 0.473 | K38: 359
A39: 주거용 건물 | B39: 810000 | C39: (통나무조) | D39: 135 | E39: (5) 전업농어가주택, 광산주택 등 기타 주거용건물 | F39: 87 | G39: 1(개별공시지가 10,000원 이하) | H39: 80 | I39: 1991 | J39: 0.456 | K39: 347
A40: 주거용 건물 | B40: 810000 | C40: (통나무조) | D40: 135 | E40: (5) 전업농어가주택, 광산주택 등 기타 주거용건물 | F40: 87 | G40: 1(개별공시지가 10,000원 이하) | H40: 80 | I40: 1990 | J40: 0.439 | K40: 334
A41: 주거용 건물 | B41: 810000 | C41: (통나무조) | D41: 135 | E41: (5) 전업농어가주택, 광산주택 등 기타 주거용건물 | F41: 87 | G41: 1(개별공시지가 10,000원 이하) | H41: 80 | I41: 1989 | J41: 0.422 | K41: 321
A42: 주거용 건물 | B42: 810000 | C42: (통나무조) | D42: 135 | E42: (5) 전업농어가주택, 광산주택 등 기타 주거용건물 | F42: 87 | G42: 1(개별공시지가 10,000원 이하) | H42: 80 | I42: 1988 | J42: 0.405 | K42: 308
A43: 주거용 건물 | B43: 810000 | C43: (통나무조) | D43: 135 | E43: (5) 전업농어가주택, 광산주택 등 기타 주거용건물 | F43: 87 | G43: 1(개별공시지가 10,000원 이하) | H43: 80 | I43: 1987 | J43: 0.388 | K43: 295
A44: 주거용 건물 | B44: 810000 | C44: (통나무조) | D44: 135 | E44: (5) 전업농어가주택, 광산주택 등 기타 주거용건물 | F44: 87 | G44: 1(개별공시지가 10,000원 이하) | H44: 80 | I44: 1986 | J44: 0.371 | K44: 282
A45: 주거용 건물 | B45: 810000 | C45: (통나무조) | D45: 135 | E45: (5) 전업농어가주택, 광산주택 등 기타 주거용건물 | F45: 87 | G45: 1(개별공시지가 10,000원 이하) | H45: 80 | I45: 1985 | J45: 0.354 | K45: 269
A46: 주거용 건물 | B46: 810000 | C46: (통나무조) | D46: 135 | E46: (5) 전업농어가주택, 광산주택 등 기타 주거용건물 | F46: 87 | G46: 1(개별공시지가 10,000원 이하) | H46: 80 | I46: 1984 | J46: 0.337 | K46: 256
A47: 주거용 건물 | B47: 810000 | C47: (통나무조) | D47: 135 | E47: (5) 전업농어가주택, 광산주택 등 기타 주거용건물 | F47: 87 | G47: 1(개별공시지가 10,000원 이하) | H47: 80 | I47: 1983 | J47: 0.32 | K47: 243
A48: 주거용 건물 | B48: 810000 | C48: (통나무조) | D48: 135 | E48: (5) 전업농어가주택, 광산주택 등 기타 주거용건물 | F48: 87 | G48: 1(개별공시지가 10,000원 이하) | H48: 80 | I48: 1982 | J48: 0.303 | K48: 230
A49: 주거용 건물 | B49: 810000 | C49: (통나무조) | D49: 135 | E49: (5) 전업농어가주택, 광산주택 등 기타 주거용건물 | F49: 87 | G49: 1(개별공시지가 10,000원 이하) | H49: 80 | I49: 1981 | J49: 0.286 | K49: 217
A50: 주거용 건물 | B50: 810000 | C50: (통나무조) | D50: 135 | E50: (5) 전업농어가주택, 광산주택 등 기타 주거용건물 | F50: 87 | G50: 1(개별공시지가 10,000원 이하) | H50: 80 | I50: 1980 | J50: 0.269 | K50: 204
A51: 주거용 건물 | B51: 810000 | C51: (통나무조) | D51: 135 | E51: (5) 전업농어가주택, 광산주택 등 기타 주거용건물 | F51: 87 | G51: 1(개별공시지가 10,000원 이하) | H51: 80 | I51: 1979 | J51: 0.252 | K51: 191
A52: 주거용 건물 | B52: 810000 | C52: (통나무조) | D52: 135 | E52: (5) 전업농어가주택, 광산주택 등 기타 주거용건물 | F52: 87 | G52: 1(개별공시지가 10,000원 이하) | H52: 80 | I52: 1978 | J52: 0.235 | K52: 178
A53: 주거용 건물 | B53: 810000 | C53: (통나무조) | D53: 135 | E53: (5) 전업농어가주택, 광산주택 등 기타 주거용건물 | F53: 87 | G53: 1(개별공시지가 10,000원 이하) | H53: 80 | I53: 1977 | J53: 0.218 | K53: 165
A54: 주거용 건물 | B54: 810000 | C54: (통나무조) | D54: 135 | E54: (5) 전업농어가주택, 광산주택 등 기타 주거용건물 | F54: 87 | G54: 1(개별공시지가 10,000원 이하) | H54: 80 | I54: 1976 | J54: 0.201 | K54: 152
A55: 주거용 건물 | B55: 810000 | C55: (통나무조) | D55: 135 | E55: (5) 전업농어가주택, 광산주택 등 기타 주거용건물 | F55: 87 | G55: 1(개별공시지가 10,000원 이하) | H55: 80 | I55: 1975 | J55: 0.184 | K55: 140
A56: 주거용 건물 | B56: 810000 | C56: (통나무조) | D56: 135 | E56: (5) 전업농어가주택, 광산주택 등 기타 주거용건물 | F56: 87 | G56: 1(개별공시지가 10,000원 이하) | H56: 80 | I56: 1974 | J56: 0.167 | K56: 127
A57: 주거용 건물 | B57: 810000 | C57: (통나무조) | D57: 135 | E57: (5) 전업농어가주택, 광산주택 등 기타 주거용건물 | F57: 87 | G57: 1(개별공시지가 10,000원 이하) | H57: 80 | I57: 50년이상 | J57: =1-(0.017*50) -> 0.15 | K57: 114
A58: 주거용 건물 | B58: 810000 | C58: (통나무조) | D58: 135 | E58: (2) 공동주택 : 연립주택, 다세대주택 | F58: 91 | G58: 1(개별공시지가 10,000원 이하) | H58: 80 | I58: 2023 | J58: =1-(0.017*(2023-$I58)) -> 1 | K58: 796
A59: 주거용 건물 | B59: 810000 | C59: (통나무조) | D59: 135 | E59: (2) 공동주택 : 연립주택, 다세대주택 | F59: 91 | G59: 1(개별공시지가 10,000원 이하) | H59: 80 | I59: 2022 | J59: =1-(0.017*(2023-$I59)) -> 0.983 | K59: 782
A60: 주거용 건물 | B60: 810000 | C60: (통나무조) | D60: 135 | E60: (2) 공동주택 : 연립주택, 다세대주택 | F60: 91 | G60: 1(개별공시지가 10,000원 이하) | H60: 80 | I60: 2021 | J60: 0.966 | K60: 769
A61: 주거용 건물 | B61: 810000 | C61: (통나무조) | D61: 135 | E61: (2) 공동주택 : 연립주택, 다세대주택 | F61: 91 | G61: 1(개별공시지가 10,000원 이하) | H61: 80 | I61: 2020 | J61: 0.949 | K61: 755
A62: 주거용 건물 | B62: 810000 | C62: (통나무조) | D62: 135 | E62: (2) 공동주택 : 연립주택, 다세대주택 | F62: 91 | G62: 1(개별공시지가 10,000원 이하) | H62: 80 | I62: 2019 | J62: 0.932 | K62: 741
A63: 주거용 건물 | B63: 810000 | C63: (통나무조) | D63: 135 | E63: (2) 공동주택 : 연립주택, 다세대주택 | F63: 91 | G63: 1(개별공시지가 10,000원 이하) | H63: 80 | I63: 2018 | J63: 0.915 | K63: 728
A64: 주거용 건물 | B64: 810000 | C64: (통나무조) | D64: 135 | E64: (2) 공동주택 : 연립주택, 다세대주택 | F64: 91 | G64: 1(개별공시지가 10,000원 이하) | H64: 80 | I64: 2017 | J64: 0.898 | K64: 714
A65: 주거용 건물 | B65: 810000 | C65: (통나무조) | D65: 135 | E65: (2) 공동주택 : 연립주택, 다세대주택 | F65: 91 | G65: 1(개별공시지가 10,000원 이하) | H65: 80 | I65: 2016 | J65: 0.881 | K65: 701
A66: 주거용 건물 | B66: 810000 | C66: (통나무조) | D66: 135 | E66: (2) 공동주택 : 연립주택, 다세대주택 | F66: 91 | G66: 1(개별공시지가 10,000원 이하) | H66: 80 | I66: 2015 | J66: 0.864 | K66: 687
A67: 주거용 건물 | B67: 810000 | C67: (통나무조) | D67: 135 | E67: (2) 공동주택 : 연립주택, 다세대주택 | F67: 91 | G67: 1(개별공시지가 10,000원 이하) | H67: 80 | I67: 2014 | J67: 0.847 | K67: 674
A68: 주거용 건물 | B68: 810000 | C68: (통나무조) | D68: 135 | E68: (2) 공동주택 : 연립주택, 다세대주택 | F68: 91 | G68: 1(개별공시지가 10,000원 이하) | H68: 80 | I68: 2013 | J68: 0.83 | K68: 660
A69: 주거용 건물 | B69: 810000 | C69: (통나무조) | D69: 135 | E69: (2) 공동주택 : 연립주택, 다세대주택 | F69: 91 | G69: 1(개별공시지가 10,000원 이하) | H69: 80 | I69: 2012 | J69: 0.813 | K69: 647
A70: 주거용 건물 | B70: 810000 | C70: (통나무조) | D70: 135 | E70: (2) 공동주택 : 연립주택, 다세대주택 | F70: 91 | G70: 1(개별공시지가 10,000원 이하) | H70: 80 | I70: 2011 | J70: 0.796 | K70: 633
A71: 주거용 건물 | B71: 810000 | C71: (통나무조) | D71: 135 | E71: (2) 공동주택 : 연립주택, 다세대주택 | F71: 91 | G71: 1(개별공시지가 10,000원 이하) | H71: 80 | I71: 2010 | J71: 0.779 | K71: =ROUNDDOWN(B71*D71/100*F71/100*H71/100*J71/1000,0) -> 620
A72: 주거용 건물 | B72: 810000 | C72: (통나무조) | D72: 135 | E72: (2) 공동주택 : 연립주택, 다세대주택 | F72: 91 | G72: 1(개별공시지가 10,000원 이하) | H72: 80 | I72: 2009 | J72: 0.762 | K72: 606
A73: 주거용 건물 | B73: 810000 | C73: (통나무조) | D73: 135 | E73: (2) 공동주택 : 연립주택, 다세대주택 | F73: 91 | G73: 1(개별공시지가 10,000원 이하) | H73: 80 | I73: 2008 | J73: 0.745 | K73: 593
A74: 주거용 건물 | B74: 810000 | C74: (통나무조) | D74: 135 | E74: (2) 공동주택 : 연립주택, 다세대주택 | F74: 91 | G74: 1(개별공시지가 10,000원 이하) | H74: 80 | I74: 2007 | J74: 0.728 | K74: 579
A75: 주거용 건물 | B75: 810000 | C75: (통나무조) | D75: 135 | E75: (2) 공동주택 : 연립주택, 다세대주택 | F75: 91 | G75: 1(개별공시지가 10,000원 이하) | H75: 80 | I75: 2006 | J75: 0.711 | K75: 566
A76: 주거용 건물 | B76: 810000 | C76: (통나무조) | D76: 135 | E76: (2) 공동주택 : 연립주택, 다세대주택 | F76: 91 | G76: 1(개별공시지가 10,000원 이하) | H76: 80 | I76: 2005 | J76: 0.694 | K76: 552
A77: 주거용 건물 | B77: 810000 | C77: (통나무조) | D77: 135 | E77: (2) 공동주택 : 연립주택, 다세대주택 | F77: 91 | G77: 1(개별공시지가 10,000원 이하) | H77: 80 | I77: 2004 | J77: 0.677 | K77: 538
A78: 주거용 건물 | B78: 810000 | C78: (통나무조) | D78: 135 | E78: (2) 공동주택 : 연립주택, 다세대주택 | F78: 91 | G78: 1(개별공시지가 10,000원 이하) | H78: 80 | I78: 2003 | J78: 0.66 | K78: 525
A79: 주거용 건물 | B79: 810000 | C79: (통나무조) | D79: 135 | E79: (2) 공동주택 : 연립주택, 다세대주택 | F79: 91 | G79: 1(개별공시지가 10,000원 이하) | H79: 80 | I79: 2002 | J79: 0.643 | K79: 511
A80: 주거용 건물 | B80: 810000 | C80: (통나무조) | D80: 135 | E80: (2) 공동주택 : 연립주택, 다세대주택 | F80: 91 | G80: 1(개별공시지가 10,000원 이하) | H80: 80 | I80: 2001 | J80: 0.626 | K80: 498
A81: 주거용 건물 | B81: 810000 | C81: (통나무조) | D81: 135 | E81: (2) 공동주택 : 연립주택, 다세대주택 | F81: 91 | G81: 1(개별공시지가 10,000원 이하) | H81: 80 | I81: 2000 | J81: 0.609 | K81: 484
A82: 주거용 건물 | B82: 810000 | C82: (통나무조) | D82: 135 | E82: (2) 공동주택 : 연립주택, 다세대주택 | F82: 91 | G82: 1(개별공시지가 10,000원 이하) | H82: 80 | I82: 1999 | J82: 0.592 | K82: 471
A83: 주거용 건물 | B83: 810000 | C83: (통나무조) | D83: 135 | E83: (2) 공동주택 : 연립주택, 다세대주택 | F83: 91 | G83: 1(개별공시지가 10,000원 이하) | H83: 80 | I83: 1998 | J83: 0.575 | K83: 457
A84: 주거용 건물 | B84: 810000 | C84: (통나무조) | D84: 135 | E84: (2) 공동주택 : 연립주택, 다세대주택 | F84: 91 | G84: 1(개별공시지가 10,000원 이하) | H84: 80 | I84: 1997 | J84: 0.558 | K84: 444
A85: 주거용 건물 | B85: 810000 | C85: (통나무조) | D85: 135 | E85: (2) 공동주택 : 연립주택, 다세대주택 | F85: 91 | G85: 1(개별공시지가 10,000원 이하) | H85: 80 | I85: 1996 | J85: 0.541 | K85: 430
A86: 주거용 건물 | B86: 810000 | C86: (통나무조) | D86: 135 | E86: (2) 공동주택 : 연립주택, 다세대주택 | F86: 91 | G86: 1(개별공시지가 10,000원 이하) | H86: 80 | I86: 1995 | J86: 0.524 | K86: 417
A87: 주거용 건물 | B87: 810000 | C87: (통나무조) | D87: 135 | E87: (2) 공동주택 : 연립주택, 다세대주택 | F87: 91 | G87: 1(개별공시지가 10,000원 이하) | H87: 80 | I87: 1994 | J87: 0.507 | K87: 403
A88: 주거용 건물 | B88: 810000 | C88: (통나무조) | D88: 135 | E88: (2) 공동주택 : 연립주택, 다세대주택 | F88: 91 | G88: 1(개별공시지가 10,000원 이하) | H88: 80 | I88: 1993 | J88: 0.49 | K88: 390
A89: 주거용 건물 | B89: 810000 | C89: (통나무조) | D89: 135 | E89: (2) 공동주택 : 연립주택, 다세대주택 | F89: 91 | G89: 1(개별공시지가 10,000원 이하) | H89: 80 | I89: 1992 | J89: 0.473 | K89: 376
A90: 주거용 건물 | B90: 810000 | C90: (통나무조) | D90: 135 | E90: (2) 공동주택 : 연립주택, 다세대주택 | F90: 91 | G90: 1(개별공시지가 10,000원 이하) | H90: 80 | I90: 1991 | J90: 0.456 | K90: 363
A91: 주거용 건물 | B91: 810000 | C91: (통나무조) | D91: 135 | E91: (2) 공동주택 : 연립주택, 다세대주택 | F91: 91 | G91: 1(개별공시지가 10,000원 이하) | H91: 80 | I91: 1990 | J91: 0.439 | K91: 349
A92: 주거용 건물 | B92: 810000 | C92: (통나무조) | D92: 135 | E92: (2) 공동주택 : 연립주택, 다세대주택 | F92: 91 | G92: 1(개별공시지가 10,000원 이하) | H92: 80 | I92: 1989 | J92: 0.422 | K92: 335
A93: 주거용 건물 | B93: 810000 | C93: (통나무조) | D93: 135 | E93: (2) 공동주택 : 연립주택, 다세대주택 | F93: 91 | G93: 1(개별공시지가 10,000원 이하) | H93: 80 | I93: 1988 | J93: 0.405 | K93: 322
A94: 주거용 건물 | B94: 810000 | C94: (통나무조) | D94: 135 | E94: (2) 공동주택 : 연립주택, 다세대주택 | F94: 91 | G94: 1(개별공시지가 10,000원 이하) | H94: 80 | I94: 1987 | J94: 0.388 | K94: 308
A95: 주거용 건물 | B95: 810000 | C95: (통나무조) | D95: 135 | E95: (2) 공동주택 : 연립주택, 다세대주택 | F95: 91 | G95: 1(개별공시지가 10,000원 이하) | H95: 80 | I95: 1986 | J95: 0.371 | K95: 295
A96: 주거용 건물 | B96: 810000 | C96: (통나무조) | D96: 135 | E96: (2) 공동주택 : 연립주택, 다세대주택 | F96: 91 | G96: 1(개별공시지가 10,000원 이하) | H96: 80 | I96: 1985 | J96: 0.354 | K96: 281
A97: 주거용 건물 | B97: 810000 | C97: (통나무조) | D97: 135 | E97: (2) 공동주택 : 연립주택, 다세대주택 | F97: 91 | G97: 1(개별공시지가 10,000원 이하) | H97: 80 | I97: 1984 | J97: 0.337 | K97: 268
A98: 주거용 건물 | B98: 810000 | C98: (통나무조) | D98: 135 | E98: (2) 공동주택 : 연립주택, 다세대주택 | F98: 91 | G98: 1(개별공시지가 10,000원 이하) | H98: 80 | I98: 1983 | J98: 0.32 | K98: 254
A99: 주거용 건물 | B99: 810000 | C99: (통나무조) | D99: 135 | E99: (2) 공동주택 : 연립주택, 다세대주택 | F99: 91 | G99: 1(개별공시지가 10,000원 이하) | H99: 80 | I99: 1982 | J99: 0.303 | K99: 241
A100: 주거용 건물 | B100: 810000 | C100: (통나무조) | D100: 135 | E100: (2) 공동주택 : 연립주택, 다세대주택 | F100: 91 | G100: 1(개별공시지가 10,000원 이하) | H100: 80 | I100: 1981 | J100: 0.286 | K100: 227
A101: 주거용 건물 | B101: 810000 | C101: (통나무조) | D101: 135 | E101: (2) 공동주택 : 연립주택, 다세대주택 | F101: 91 | G101: 1(개별공시지가 10,000원 이하) | H101: 80 | I101: 1980 | J101: 0.269 | K101: 214
A102: 주거용 건물 | B102: 810000 | C102: (통나무조) | D102: 135 | E102: (2) 공동주택 : 연립주택, 다세대주택 | F102: 91 | G102: 1(개별공시지가 10,000원 이하) | H102: 80 | I102: 1979 | J102: 0.252 | K102: 200
A103: 주거용 건물 | B103: 810000 | C103: (통나무조) | D103: 135 | E103: (2) 공동주택 : 연립주택, 다세대주택 | F103: 91 | G103: 1(개별공시지가 10,000원 이하) | H103: 80 | I103: 1978 | J103: 0.235 | K103: 187
A104: 주거용 건물 | B104: 810000 | C104: (통나무조) | D104: 135 | E104: (2) 공동주택 : 연립주택, 다세대주택 | F104: 91 | G104: 1(개별공시지가 10,000원 이하) | H104: 80 | I104: 1977 | J104: 0.218 | K104: 173
A105: 주거용 건물 | B105: 810000 | C105: (통나무조) | D105: 135 | E105: (2) 공동주택 : 연립주택, 다세대주택 | F105: 91 | G105: 1(개별공시지가 10,000원 이하) | H105: 80 | I105: 1976 | J105: 0.201 | K105: 160
A106: 주거용 건물 | B106: 810000 | C106: (통나무조) | D106: 135 | E106: (2) 공동주택 : 연립주택, 다세대주택 | F106: 91 | G106: 1(개별공시지가 10,000원 이하) | H106: 80 | I106: 1975 | J106: 0.184 | K106: 146
A107: 주거용 건물 | B107: 810000 | C107: (통나무조) | D107: 135 | E107: (2) 공동주택 : 연립주택, 다세대주택 | F107: 91 | G107: 1(개별공시지가 10,000원 이하) | H107: 80 | I107: 1974 | J107: 0.167 | K107: 132
A108: 주거용 건물 | B108: 810000 | C108: (통나무조) | D108: 135 | E108: (2) 공동주택 : 연립주택, 다세대주택 | F108: 91 | G108: 1(개별공시지가 10,000원 이하) | H108: 80 | I108: 50년이상 | J108: =1-(0.017*50) -> 0.15 | K108: 119
A109: 주거용 건물 | B109: 810000 | C109: (통나무조) | D109: 135 | E109: (3) 단독주택 : 단독주택, 다중주택, 다가구주택 | F109: 91 | G109: 1(개별공시지가 10,000원 이하) | H109: 80 | I109: 2023 | J109: =1-(0.017*(2023-$I109)) -> 1 | K109: 796
A110: 주거용 건물 | B110: 810000 | C110: (통나무조) | D110: 135 | E110: (3) 단독주택 : 단독주택, 다중주택, 다가구주택 | F110: 91 | G110: 1(개별공시지가 10,000원 이하) | H110: 80 | I110: 2022 | J110: =1-(0.017*(2023-$I110)) -> 0.983 | K110: 782
A111: 주거용 건물 | B111: 810000 | C111: (통나무조) | D111: 135 | E111: (3) 단독주택 : 단독주택, 다중주택, 다가구주택 | F111: 91 | G111: 1(개별공시지가 10,000원 이하) | H111: 80 | I111: 2021 | J111: 0.966 | K111: 769
A112: 주거용 건물 | B112: 810000 | C112: (통나무조) | D112: 135 | E112: (3) 단독주택 : 단독주택, 다중주택, 다가구주택 | F112: 91 | G112: 1(개별공시지가 10,000원 이하) | H112: 80 | I112: 2020 | J112: 0.949 | K112: 755
A113: 주거용 건물 | B113: 810000 | C113: (통나무조) | D113: 135 | E113: (3) 단독주택 : 단독주택, 다중주택, 다가구주택 | F113: 91 | G113: 1(개별공시지가 10,000원 이하) | H113: 80 | I113: 2019 | J113: 0.932 | K113: 741
A114: 주거용 건물 | B114: 810000 | C114: (통나무조) | D114: 135 | E114: (3) 단독주택 : 단독주택, 다중주택, 다가구주택 | F114: 91 | G114: 1(개별공시지가 10,000원 이하) | H114: 80 | I114: 2018 | J114: 0.915 | K114: 728
A115: 주거용 건물 | B115: 810000 | C115: (통나무조) | D115: 135 | E115: (3) 단독주택 : 단독주택, 다중주택, 다가구주택 | F115: 91 | G115: 1(개별공시지가 10,000원 이하) | H115: 80 | I115: 2017 | J115: 0.898 | K115: 714
A116: 주거용 건물 | B116: 810000 | C116: (통나무조) | D116: 135 | E116: (3) 단독주택 : 단독주택, 다중주택, 다가구주택 | F116: 91 | G116: 1(개별공시지가 10,000원 이하) | H116: 80 | I116: 2016 | J116: 0.881 | K116: 701
A117: 주거용 건물 | B117: 810000 | C117: (통나무조) | D117: 135 | E117: (3) 단독주택 : 단독주택, 다중주택, 다가구주택 | F117: 91 | G117: 1(개별공시지가 10,000원 이하) | H117: 80 | I117: 2015 | J117: 0.864 | K117: 687
A118: 주거용 건물 | B118: 810000 | C118: (통나무조) | D118: 135 | E118: (3) 단독주택 : 단독주택, 다중주택, 다가구주택 | F118: 91 | G118: 1(개별공시지가 10,000원 이하) | H118: 80 | I118: 2014 | J118: 0.847 | K118: 674
A119: 주거용 건물 | B119: 810000 | C119: (통나무조) | D119: 135 | E119: (3) 단독주택 : 단독주택, 다중주택, 다가구주택 | F119: 91 | G119: 1(개별공시지가 10,000원 이하) | H119: 80 | I119: 2013 | J119: 0.83 | K119: 660
A120: 주거용 건물 | B120: 810000 | C120: (통나무조) | D120: 135 | E120: (3) 단독주택 : 단독주택, 다중주택, 다가구주택 | F120: 91 | G120: 1(개별공시지가 10,000원 이하) | H120: 80 | I120: 2012 | J120: 0.813 | K120: 647
A121: 주거용 건물 | B121: 810000 | C121: (통나무조) | D121: 135 | E121: (3) 단독주택 : 단독주택, 다중주택, 다가구주택 | F121: 91 | G121: 1(개별공시지가 10,000원 이하) | H121: 80 | I121: 2011 | J121: 0.796 | K121: 633
A122: 주거용 건물 | B122: 810000 | C122: (통나무조) | D122: 135 | E122: (3) 단독주택 : 단독주택, 다중주택, 다가구주택 | F122: 91 | G122: 1(개별공시지가 10,000원 이하) | H122: 80 | I122: 2010 | J122: 0.779 | K122: 620
A123: 주거용 건물 | B123: 810000 | C123: (통나무조) | D123: 135 | E123: (3) 단독주택 : 단독주택, 다중주택, 다가구주택 | F123: 91 | G123: 1(개별공시지가 10,000원 이하) | H123: 80 | I123: 2009 | J123: 0.762 | K123: 606
A124: 주거용 건물 | B124: 810000 | C124: (통나무조) | D124: 135 | E124: (3) 단독주택 : 단독주택, 다중주택, 다가구주택 | F124: 91 | G124: 1(개별공시지가 10,000원 이하) | H124: 80 | I124: 2008 | J124: 0.745 | K124: 593
A125: 주거용 건물 | B125: 810000 | C125: (통나무조) | D125: 135 | E125: (3) 단독주택 : 단독주택, 다중주택, 다가구주택 | F125: 91 | G125: 1(개별공시지가 10,000원 이하) | H125: 80 | I125: 2007 | J125: 0.728 | K125: 579
A126: 주거용 건물 | B126: 810000 | C126: (통나무조) | D126: 135 | E126: (3) 단독주택 : 단독주택, 다중주택, 다가구주택 | F126: 91 | G126: 1(개별공시지가 10,000원 이하) | H126: 80 | I126: 2006 | J126: 0.711 | K126: 566
A127: 주거용 건물 | B127: 810000 | C127: (통나무조) | D127: 135 | E127: (3) 단독주택 : 단독주택, 다중주택, 다가구주택 | F127: 91 | G127: 1(개별공시지가 10,000원 이하) | H127: 80 | I127: 2005 | J127: 0.694 | K127: 552
A128: 주거용 건물 | B128: 810000 | C128: (통나무조) | D128: 135 | E128: (3) 단독주택 : 단독주택, 다중주택, 다가구주택 | F128: 91 | G128: 1(개별공시지가 10,000원 이하) | H128: 80 | I128: 2004 | J128: 0.677 | K128: 538
A129: 주거용 건물 | B129: 810000 | C129: (통나무조) | D129: 135 | E129: (3) 단독주택 : 단독주택, 다중주택, 다가구주택 | F129: 91 | G129: 1(개별공시지가 10,000원 이하) | H129: 80 | I129: 2003 | J129: 0.66 | K129: 525
A130: 주거용 건물 | B130: 810000 | C130: (통나무조) | D130: 135 | E130: (3) 단독주택 : 단독주택, 다중주택, 다가구주택 | F130: 91 | G130: 1(개별공시지가 10,000원 이하) | H130: 80 | I130: 2002 | J130: 0.643 | K130: 511
A131: 주거용 건물 | B131: 810000 | C131: (통나무조) | D131: 135 | E131: (3) 단독주택 : 단독주택, 다중주택, 다가구주택 | F131: 91 | G131: 1(개별공시지가 10,000원 이하) | H131: 80 | I131: 2001 | J131: 0.626 | K131: 498
A132: 주거용 건물 | B132: 810000 | C132: (통나무조) | D132: 135 | E132: (3) 단독주택 : 단독주택, 다중주택, 다가구주택 | F132: 91 | G132: 1(개별공시지가 10,000원 이하) | H132: 80 | I132: 2000 | J132: 0.609 | K132: 484
A133: 주거용 건물 | B133: 810000 | C133: (통나무조) | D133: 135 | E133: (3) 단독주택 : 단독주택, 다중주택, 다가구주택 | F133: 91 | G133: 1(개별공시지가 10,000원 이하) | H133: 80 | I133: 1999 | J133: 0.592 | K133: 471
A134: 주거용 건물 | B134: 810000 | C134: (통나무조) | D134: 135 | E134: (3) 단독주택 : 단독주택, 다중주택, 다가구주택 | F134: 91 | G134: 1(개별공시지가 10,000원 이하) | H134: 80 | I134: 1998 | J134: 0.575 | K134: 457
A135: 주거용 건물 | B135: 810000 | C135: (통나무조) | D135: 135 | E135: (3) 단독주택 : 단독주택, 다중주택, 다가구주택 | F135: 91 | G135: 1(개별공시지가 10,000원 이하) | H135: 80 | I135: 1997 | J135: 0.558 | K135: =ROUNDDOWN(B135*D135/100*F135/100*H135/100*J135/1000,0) -> 444
A136: 주거용 건물 | B136: 810000 | C136: (통나무조) | D136: 135 | E136: (3) 단독주택 : 단독주택, 다중주택, 다가구주택 | F136: 91 | G136: 1(개별공시지가 10,000원 이하) | H136: 80 | I136: 1996 | J136: 0.541 | K136: 430
A137: 주거용 건물 | B137: 810000 | C137: (통나무조) | D137: 135 | E137: (3) 단독주택 : 단독주택, 다중주택, 다가구주택 | F137: 91 | G137: 1(개별공시지가 10,000원 이하) | H137: 80 | I137: 1995 | J137: 0.524 | K137: 417
A138: 주거용 건물 | B138: 810000 | C138: (통나무조) | D138: 135 | E138: (3) 단독주택 : 단독주택, 다중주택, 다가구주택 | F138: 91 | G138: 1(개별공시지가 10,000원 이하) | H138: 80 | I138: 1994 | J138: 0.507 | K138: 403
A139: 주거용 건물 | B139: 810000 | C139: (통나무조) | D139: 135 | E139: (3) 단독주택 : 단독주택, 다중주택, 다가구주택 | F139: 91 | G139: 1(개별공시지가 10,000원 이하) | H139: 80 | I139: 1993 | J139: 0.49 | K139: 390
A140: 주거용 건물 | B140: 810000 | C140: (통나무조) | D140: 135 | E140: (3) 단독주택 : 단독주택, 다중주택, 다가구주택 | F140: 91 | G140: 1(개별공시지가 10,000원 이하) | H140: 80 | I140: 1992 | J140: 0.473 | K140: 376
A141: 주거용 건물 | B141: 810000 | C141: (통나무조) | D141: 135 | E141: (3) 단독주택 : 단독주택, 다중주택, 다가구주택 | F141: 91 | G141: 1(개별공시지가 10,000원 이하) | H141: 80 | I141: 1991 | J141: 0.456 | K141: 363
A142: 주거용 건물 | B142: 810000 | C142: (통나무조) | D142: 135 | E142: (3) 단독주택 : 단독주택, 다중주택, 다가구주택 | F142: 91 | G142: 1(개별공시지가 10,000원 이하) | H142: 80 | I142: 1990 | J142: 0.439 | K142: 349
A143: 주거용 건물 | B143: 810000 | C143: (통나무조) | D143: 135 | E143: (3) 단독주택 : 단독주택, 다중주택, 다가구주택 | F143: 91 | G143: 1(개별공시지가 10,000원 이하) | H143: 80 | I143: 1989 | J143: 0.422 | K143: 335
A144: 주거용 건물 | B144: 810000 | C144: (통나무조) | D144: 135 | E144: (3) 단독주택 : 단독주택, 다중주택, 다가구주택 | F144: 91 | G144: 1(개별공시지가 10,000원 이하) | H144: 80 | I144: 1988 | J144: 0.405 | K144: 322
A145: 주거용 건물 | B145: 810000 | C145: (통나무조) | D145: 135 | E145: (3) 단독주택 : 단독주택, 다중주택, 다가구주택 | F145: 91 | G145: 1(개별공시지가 10,000원 이하) | H145: 80 | I145: 1987 | J145: 0.388 | K145: 308
A146: 주거용 건물 | B146: 810000 | C146: (통나무조) | D146: 135 | E146: (3) 단독주택 : 단독주택, 다중주택, 다가구주택 | F146: 91 | G146: 1(개별공시지가 10,000원 이하) | H146: 80 | I146: 1986 | J146: 0.371 | K146: 295
A147: 주거용 건물 | B147: 810000 | C147: (통나무조) | D147: 135 | E147: (3) 단독주택 : 단독주택, 다중주택, 다가구주택 | F147: 91 | G147: 1(개별공시지가 10,000원 이하) | H147: 80 | I147: 1985 | J147: 0.354 | K147: 281
A148: 주거용 건물 | B148: 810000 | C148: (통나무조) | D148: 135 | E148: (3) 단독주택 : 단독주택, 다중주택, 다가구주택 | F148: 91 | G148: 1(개별공시지가 10,000원 이하) | H148: 80 | I148: 1984 | J148: 0.337 | K148: 268
A149: 주거용 건물 | B149: 810000 | C149: (통나무조) | D149: 135 | E149: (3) 단독주택 : 단독주택, 다중주택, 다가구주택 | F149: 91 | G149: 1(개별공시지가 10,000원 이하) | H149: 80 | I149: 1983 | J149: 0.32 | K149: 254
A150: 주거용 건물 | B150: 810000 | C150: (통나무조) | D150: 135 | E150: (3) 단독주택 : 단독주택, 다중주택, 다가구주택 | F150: 91 | G150: 1(개별공시지가 10,000원 이하) | H150: 80 | I150: 1982 | J150: 0.303 | K150: 241
A151: 주거용 건물 | B151: 810000 | C151: (통나무조) | D151: 135 | E151: (3) 단독주택 : 단독주택, 다중주택, 다가구주택 | F151: 91 | G151: 1(개별공시지가 10,000원 이하) | H151: 80 | I151: 1981 | J151: 0.286 | K151: 227
A152: 주거용 건물 | B152: 810000 | C152: (통나무조) | D152: 135 | E152: (3) 단독주택 : 단독주택, 다중주택, 다가구주택 | F152: 91 | G152: 1(개별공시지가 10,000원 이하) | H152: 80 | I152: 1980 | J152: 0.269 | K152: 214
A153: 주거용 건물 | B153: 810000 | C153: (통나무조) | D153: 135 | E153: (3) 단독주택 : 단독주택, 다중주택, 다가구주택 | F153: 91 | G153: 1(개별공시지가 10,000원 이하) | H153: 80 | I153: 1979 | J153: 0.252 | K153: 200
A154: 주거용 건물 | B154: 810000 | C154: (통나무조) | D154: 135 | E154: (3) 단독주택 : 단독주택, 다중주택, 다가구주택 | F154: 91 | G154: 1(개별공시지가 10,000원 이하) | H154: 80 | I154: 1978 | J154: 0.235 | K154: 187
A155: 주거용 건물 | B155: 810000 | C155: (통나무조) | D155: 135 | E155: (3) 단독주택 : 단독주택, 다중주택, 다가구주택 | F155: 91 | G155: 1(개별공시지가 10,000원 이하) | H155: 80 | I155: 1977 | J155: 0.218 | K155: 173
A156: 주거용 건물 | B156: 810000 | C156: (통나무조) | D156: 135 | E156: (3) 단독주택 : 단독주택, 다중주택, 다가구주택 | F156: 91 | G156: 1(개별공시지가 10,000원 이하) | H156: 80 | I156: 1976 | J156: 0.201 | K156: 160
A157: 주거용 건물 | B157: 810000 | C157: (통나무조) | D157: 135 | E157: (3) 단독주택 : 단독주택, 다중주택, 다가구주택 | F157: 91 | G157: 1(개별공시지가 10,000원 이하) | H157: 80 | I157: 1975 | J157: 0.184 | K157: 146
A158: 주거용 건물 | B158: 810000 | C158: (통나무조) | D158: 135 | E158: (3) 단독주택 : 단독주택, 다중주택, 다가구주택 | F158: 91 | G158: 1(개별공시지가 10,000원 이하) | H158: 80 | I158: 1974 | J158: 0.167 | K158: 132
A159: 주거용 건물 | B159: 810000 | C159: (통나무조) | D159: 135 | E159: (3) 단독주택 : 단독주택, 다중주택, 다가구주택 | F159: 91 | G159: 1(개별공시지가 10,000원 이하) | H159: 80 | I159: 50년이상 | J159: =1-(0.017*50) -> 0.15 | K159: 119
A160: 주거용 건물 | B160: 810000 | C160: (통나무조) | D160: 135 | E160: (4) 도시형 생활주택 : 소형주택, 단지형 연립주택, 단지형 다세대주택 | F160: 91 | G160: 1(개별공시지가 10,000원 이하) | H160: 80 | I160: 2023 | J160: =1-(0.017*(2023-$I160)) -> 1 | K160: 796
A161: 주거용 건물 | B161: 810000 | C161: (통나무조) | D161: 135 | E161: (4) 도시형 생활주택 : 소형주택, 단지형 연립주택, 단지형 다세대주택 | F161: 91 | G161: 1(개별공시지가 10,000원 이하) | H161: 80 | I161: 2022 | J161: =1-(0.017*(2023-$I161)) -> 0.983 | K161: 782
A162: 주거용 건물 | B162: 810000 | C162: (통나무조) | D162: 135 | E162: (4) 도시형 생활주택 : 소형주택, 단지형 연립주택, 단지형 다세대주택 | F162: 91 | G162: 1(개별공시지가 10,000원 이하) | H162: 80 | I162: 2021 | J162: 0.966 | K162: 769
A163: 주거용 건물 | B163: 810000 | C163: (통나무조) | D163: 135 | E163: (4) 도시형 생활주택 : 소형주택, 단지형 연립주택, 단지형 다세대주택 | F163: 91 | G163: 1(개별공시지가 10,000원 이하) | H163: 80 | I163: 2020 | J163: 0.949 | K163: 755
A164: 주거용 건물 | B164: 810000 | C164: (통나무조) | D164: 135 | E164: (4) 도시형 생활주택 : 소형주택, 단지형 연립주택, 단지형 다세대주택 | F164: 91 | G164: 1(개별공시지가 10,000원 이하) | H164: 80 | I164: 2019 | J164: 0.932 | K164: 741
A165: 주거용 건물 | B165: 810000 | C165: (통나무조) | D165: 135 | E165: (4) 도시형 생활주택 : 소형주택, 단지형 연립주택, 단지형 다세대주택 | F165: 91 | G165: 1(개별공시지가 10,000원 이하) | H165: 80 | I165: 2018 | J165: 0.915 | K165: 728
A166: 주거용 건물 | B166: 810000 | C166: (통나무조) | D166: 135 | E166: (4) 도시형 생활주택 : 소형주택, 단지형 연립주택, 단지형 다세대주택 | F166: 91 | G166: 1(개별공시지가 10,000원 이하) | H166: 80 | I166: 2017 | J166: 0.898 | K166: 714
A167: 주거용 건물 | B167: 810000 | C167: (통나무조) | D167: 135 | E167: (4) 도시형 생활주택 : 소형주택, 단지형 연립주택, 단지형 다세대주택 | F167: 91 | G167: 1(개별공시지가 10,000원 이하) | H167: 80 | I167: 2016 | J167: 0.881 | K167: 701
A168: 주거용 건물 | B168: 810000 | C168: (통나무조) | D168: 135 | E168: (4) 도시형 생활주택 : 소형주택, 단지형 연립주택, 단지형 다세대주택 | F168: 91 | G168: 1(개별공시지가 10,000원 이하) | H168: 80 | I168: 2015 | J168: 0.864 | K168: 687
A169: 주거용 건물 | B169: 810000 | C169: (통나무조) | D169: 135 | E169: (4) 도시형 생활주택 : 소형주택, 단지형 연립주택, 단지형 다세대주택 | F169: 91 | G169: 1(개별공시지가 10,000원 이하) | H169: 80 | I169: 2014 | J169: 0.847 | K169: 674
A170: 주거용 건물 | B170: 810000 | C170: (통나무조) | D170: 135 | E170: (4) 도시형 생활주택 : 소형주택, 단지형 연립주택, 단지형 다세대주택 | F170: 91 | G170: 1(개별공시지가 10,000원 이하) | H170: 80 | I170: 2013 | J170: 0.83 | K170: 660
A171: 주거용 건물 | B171: 810000 | C171: (통나무조) | D171: 135 | E171: (4) 도시형 생활주택 : 소형주택, 단지형 연립주택, 단지형 다세대주택 | F171: 91 | G171: 1(개별공시지가 10,000원 이하) | H171: 80 | I171: 2012 | J171: 0.813 | K171: 647
A172: 주거용 건물 | B172: 810000 | C172: (통나무조) | D172: 135 | E172: (4) 도시형 생활주택 : 소형주택, 단지형 연립주택, 단지형 다세대주택 | F172: 91 | G172: 1(개별공시지가 10,000원 이하) | H172: 80 | I172: 2011 | J172: 0.796 | K172: 633
A173: 주거용 건물 | B173: 810000 | C173: (통나무조) | D173: 135 | E173: (4) 도시형 생활주택 : 소형주택, 단지형 연립주택, 단지형 다세대주택 | F173: 91 | G173: 1(개별공시지가 10,000원 이하) | H173: 80 | I173: 2010 | J173: 0.779 | K173: 620
A174: 주거용 건물 | B174: 810000 | C174: (통나무조) | D174: 135 | E174: (4) 도시형 생활주택 : 소형주택, 단지형 연립주택, 단지형 다세대주택 | F174: 91 | G174: 1(개별공시지가 10,000원 이하) | H174: 80 | I174: 2009 | J174: 0.762 | K174: 606
A175: 주거용 건물 | B175: 810000 | C175: (통나무조) | D175: 135 | E175: (4) 도시형 생활주택 : 소형주택, 단지형 연립주택, 단지형 다세대주택 | F175: 91 | G175: 1(개별공시지가 10,000원 이하) | H175: 80 | I175: 2008 | J175: 0.745 | K175: 593
A176: 주거용 건물 | B176: 810000 | C176: (통나무조) | D176: 135 | E176: (4) 도시형 생활주택 : 소형주택, 단지형 연립주택, 단지형 다세대주택 | F176: 91 | G176: 1(개별공시지가 10,000원 이하) | H176: 80 | I176: 2007 | J176: 0.728 | K176: 579
A177: 주거용 건물 | B177: 810000 | C177: (통나무조) | D177: 135 | E177: (4) 도시형 생활주택 : 소형주택, 단지형 연립주택, 단지형 다세대주택 | F177: 91 | G177: 1(개별공시지가 10,000원 이하) | H177: 80 | I177: 2006 | J177: 0.711 | K177: 566
A178: 주거용 건물 | B178: 810000 | C178: (통나무조) | D178: 135 | E178: (4) 도시형 생활주택 : 소형주택, 단지형 연립주택, 단지형 다세대주택 | F178: 91 | G178: 1(개별공시지가 10,000원 이하) | H178: 80 | I178: 2005 | J178: 0.694 | K178: 552
A179: 주거용 건물 | B179: 810000 | C179: (통나무조) | D179: 135 | E179: (4) 도시형 생활주택 : 소형주택, 단지형 연립주택, 단지형 다세대주택 | F179: 91 | G179: 1(개별공시지가 10,000원 이하) | H179: 80 | I179: 2004 | J179: 0.677 | K179: 538
A180: 주거용 건물 | B180: 810000 | C180: (통나무조) | D180: 135 | E180: (4) 도시형 생활주택 : 소형주택, 단지형 연립주택, 단지형 다세대주택 | F180: 91 | G180: 1(개별공시지가 10,000원 이하) | H180: 80 | I180: 2003 | J180: 0.66 | K180: 525
A181: 주거용 건물 | B181: 810000 | C181: (통나무조) | D181: 135 | E181: (4) 도시형 생활주택 : 소형주택, 단지형 연립주택, 단지형 다세대주택 | F181: 91 | G181: 1(개별공시지가 10,000원 이하) | H181: 80 | I181: 2002 | J181: 0.643 | K181: 511
A182: 주거용 건물 | B182: 810000 | C182: (통나무조) | D182: 135 | E182: (4) 도시형 생활주택 : 소형주택, 단지형 연립주택, 단지형 다세대주택 | F182: 91 | G182: 1(개별공시지가 10,000원 이하) | H182: 80 | I182: 2001 | J182: 0.626 | K182: 498
A183: 주거용 건물 | B183: 810000 | C183: (통나무조) | D183: 135 | E183: (4) 도시형 생활주택 : 소형주택, 단지형 연립주택, 단지형 다세대주택 | F183: 91 | G183: 1(개별공시지가 10,000원 이하) | H183: 80 | I183: 2000 | J183: 0.609 | K183: 484
A184: 주거용 건물 | B184: 810000 | C184: (통나무조) | D184: 135 | E184: (4) 도시형 생활주택 : 소형주택, 단지형 연립주택, 단지형 다세대주택 | F184: 91 | G184: 1(개별공시지가 10,000원 이하) | H184: 80 | I184: 1999 | J184: 0.592 | K184: 471
A185: 주거용 건물 | B185: 810000 | C185: (통나무조) | D185: 135 | E185: (4) 도시형 생활주택 : 소형주택, 단지형 연립주택, 단지형 다세대주택 | F185: 91 | G185: 1(개별공시지가 10,000원 이하) | H185: 80 | I185: 1998 | J185: 0.575 | K185: 457
A186: 주거용 건물 | B186: 810000 | C186: (통나무조) | D186: 135 | E186: (4) 도시형 생활주택 : 소형주택, 단지형 연립주택, 단지형 다세대주택 | F186: 91 | G186: 1(개별공시지가 10,000원 이하) | H186: 80 | I186: 1997 | J186: 0.558 | K186: 444
A187: 주거용 건물 | B187: 810000 | C187: (통나무조) | D187: 135 | E187: (4) 도시형 생활주택 : 소형주택, 단지형 연립주택, 단지형 다세대주택 | F187: 91 | G187: 1(개별공시지가 10,000원 이하) | H187: 80 | I187: 1996 | J187: 0.541 | K187: 430
A188: 주거용 건물 | B188: 810000 | C188: (통나무조) | D188: 135 | E188: (4) 도시형 생활주택 : 소형주택, 단지형 연립주택, 단지형 다세대주택 | F188: 91 | G188: 1(개별공시지가 10,000원 이하) | H188: 80 | I188: 1995 | J188: 0.524 | K188: 417
A189: 주거용 건물 | B189: 810000 | C189: (통나무조) | D189: 135 | E189: (4) 도시형 생활주택 : 소형주택, 단지형 연립주택, 단지형 다세대주택 | F189: 91 | G189: 1(개별공시지가 10,000원 이하) | H189: 80 | I189: 1994 | J189: 0.507 | K189: 403
A190: 주거용 건물 | B190: 810000 | C190: (통나무조) | D190: 135 | E190: (4) 도시형 생활주택 : 소형주택, 단지형 연립주택, 단지형 다세대주택 | F190: 91 | G190: 1(개별공시지가 10,000원 이하) | H190: 80 | I190: 1993 | J190: 0.49 | K190: 390
A191: 주거용 건물 | B191: 810000 | C191: (통나무조) | D191: 135 | E191: (4) 도시형 생활주택 : 소형주택, 단지형 연립주택, 단지형 다세대주택 | F191: 91 | G191: 1(개별공시지가 10,000원 이하) | H191: 80 | I191: 1992 | J191: 0.473 | K191: 376
A192: 주거용 건물 | B192: 810000 | C192: (통나무조) | D192: 135 | E192: (4) 도시형 생활주택 : 소형주택, 단지형 연립주택, 단지형 다세대주택 | F192: 91 | G192: 1(개별공시지가 10,000원 이하) | H192: 80 | I192: 1991 | J192: 0.456 | K192: 363
A193: 주거용 건물 | B193: 810000 | C193: (통나무조) | D193: 135 | E193: (4) 도시형 생활주택 : 소형주택, 단지형 연립주택, 단지형 다세대주택 | F193: 91 | G193: 1(개별공시지가 10,000원 이하) | H193: 80 | I193: 1990 | J193: 0.439 | K193: 349
A194: 주거용 건물 | B194: 810000 | C194: (통나무조) | D194: 135 | E194: (4) 도시형 생활주택 : 소형주택, 단지형 연립주택, 단지형 다세대주택 | F194: 91 | G194: 1(개별공시지가 10,000원 이하) | H194: 80 | I194: 1989 | J194: 0.422 | K194: 335
A195: 주거용 건물 | B195: 810000 | C195: (통나무조) | D195: 135 | E195: (4) 도시형 생활주택 : 소형주택, 단지형 연립주택, 단지형 다세대주택 | F195: 91 | G195: 1(개별공시지가 10,000원 이하) | H195: 80 | I195: 1988 | J195: 0.405 | K195: 322
A196: 주거용 건물 | B196: 810000 | C196: (통나무조) | D196: 135 | E196: (4) 도시형 생활주택 : 소형주택, 단지형 연립주택, 단지형 다세대주택 | F196: 91 | G196: 1(개별공시지가 10,000원 이하) | H196: 80 | I196: 1987 | J196: 0.388 | K196: 308
A197: 주거용 건물 | B197: 810000 | C197: (통나무조) | D197: 135 | E197: (4) 도시형 생활주택 : 소형주택, 단지형 연립주택, 단지형 다세대주택 | F197: 91 | G197: 1(개별공시지가 10,000원 이하) | H197: 80 | I197: 1986 | J197: 0.371 | K197: 295
A198: 주거용 건물 | B198: 810000 | C198: (통나무조) | D198: 135 | E198: (4) 도시형 생활주택 : 소형주택, 단지형 연립주택, 단지형 다세대주택 | F198: 91 | G198: 1(개별공시지가 10,000원 이하) | H198: 80 | I198: 1985 | J198: 0.354 | K198: 281
A199: 주거용 건물 | B199: 810000 | C199: (통나무조) | D199: 135 | E199: (4) 도시형 생활주택 : 소형주택, 단지형 연립주택, 단지형 다세대주택 | F199: 91 | G199: 1(개별공시지가 10,000원 이하) | H199: 80 | I199: 1984 | J199: 0.337 | K199: =ROUNDDOWN(B199*D199/100*F199/100*H199/100*J199/1000,0) -> 268
A200: 주거용 건물 | B200: 810000 | C200: (통나무조) | D200: 135 | E200: (4) 도시형 생활주택 : 소형주택, 단지형 연립주택, 단지형 다세대주택 | F200: 91 | G200: 1(개별공시지가 10,000원 이하) | H200: 80 | I200: 1983 | J200: 0.32 | K200: 254
... 4292 more rows

Sheet 상업용 건물
A1: 건축물 시가표준액 일람표 본 일람표는 가감산특례 적용 전 건축물 시가표준액을 계산한 표로, 단위는 단위 면적당(㎡) 천원(1000원)이며 천원 이하의 숫자는 버림하였습니다. 문의사항: 한국지방세연구원, 최은철 주임, 02-2071-2716, ecchoi@kilf.re.kr
A2: 건물신축가격기준액구분 | B2: 구조구분 | C2: 용도구분 | D2: 위치구분 | E2: 경과연수구분 | F2: 선택번호 | G2: 2 | H2: 15 | I2: 2 | J2: 4 | K2: 1
F3: 검색 | G3: 건물신축가격기준액구분 | H3: 구조구분 | I3: 용도구분 | J3: 위치구분 | K3: 경과연수구분
A4: ※ "전부" 버튼은 2개 이상 사용하면 동작시간이 길어져 사용을 자제해주시기 바랍니다 (매크로 작동 도중 중단을 원하시면 esc 키를 눌러주시기 바랍니다) | F4: 찾기 | G4: =IF(G2=1,"",INDEX(건물신축가격기준액구분,G2)) -> 상업용 건물 | H4: =IF(H2=1,"",INDEX(구조구분,H2)) -> (컨테이너건물) | I4: =IF(I2=1,"",INDEX(용도구분,I2)) -> (1) 상점(슈퍼마켓과 일용품 소매점 등),일반음식점, 휴게음식점, 제과점, 기원, 서점,이용원, 미용원, 세탁소,의원, 치과의원, 한의원, 침술원, 접골원, 조산원, 산후조리원 및 안마원,각종 사무실용 건물(금융업소, 사무소, 부동산중개사무소, 결혼상담소, 소개업소, 출판사 등),사진관, 표구점, 학원(무도학원제외), 장의사, 동물병원, 독서실, 총포판매소등,다중생활시설,안마시술소, 노래연습장,자동차매매장, 운전학원, 정비학원,청소년게임제공업의 시설, 일반게임제공업의시설, 인터넷컴퓨터게임시설제공업의시설, 복합유통게임제,공업의시설,일반 야영장,위에 열거되지 않은 기타 판매 및 영업시설 | J4: =IF(J2=1,"",INDEX(위치구분,J2)) -> 3(개별공시지가 30,000원 초과 50,000 이하) | K4: =IF(K2=1,"",INDEX(경과연수구분,K2)) -> 
A5: ※ 10년 이상 오래된 건물이 검색이 안될 경우 '경과연수구분'에 '10년 이상', '20년 이상', '30년 이상', '40년 이상', '50년 이상'을 눌러주시기 바랍니다
A6: 건물신축가격기준액구분 | B6: 건물신축가격기준액 | C6: 구조구분 | D6: 구조지수 | E6: 용도구분 | F6: 용도지수 | G6: 위치구분 | H6: 위치지수 | I6: 경과연수구분 | J6: 경과연수별잔가율 | K6: 시가표준액
A7: 상업용 건물 | B7: 800000 | C7: (통나무조) | D7: 135 | E7: (20) 주차전용빌딩 | F7: 62 | G7: 1(개별공시지가 10,000원 이하) | H7: 80 | I7: 2023 | J7: =1-(0.017*(2023-$I7)) -> 1 | K7: =ROUNDDOWN(B7*D7/100*F7/100*H7/100*J7/1000,0) -> 535
A8: 상업용 건물 | B8: 800000 | C8: (통나무조) | D8: 135 | E8: (20) 주차전용빌딩 | F8: 62 | G8: 1(개별공시지가 10,000원 이하) | H8: 80 | I8: 2022 | J8: =1-(0.017*(2023-$I8)) -> 0.983 | K8: 526
A9: 상업용 건물 | B9: 800000 | C9: (통나무조) | D9: 135 | E9: (20) 주차전용빌딩 | F9: 62 | G9: 1(개별공시지가 10,000원 이하) | H9: 80 | I9: 2021 | J9: 0.966 | K9: 517
A10: 상업용 건물 | B10: 800000 | C10: (통나무조) | D10: 135 | E10: (20) 주차전용빌딩 | F10: 62 | G10: 1(개별공시지가 10,000원 이하) | H10: 80 | I10: 2020 | J10: 0.949 | K10: 508
A11: 상업용 건물 | B11: 800000 | C11: (통나무조) | D11: 135 | E11: (20) 주차전용빌딩 | F11: 62 | G11: 1(개별공시지가 10,000원 이하) | H11: 80 | I11: 2019 | J11: 0.932 | K11: 499
A12: 상업용 건물 | B12: 800000 | C12: (통나무조) | D12: 135 | E12: (20) 주차전용빌딩 | F12: 62 | G12: 1(개별공시지가 10,000원 이하) | H12: 80 | I12: 2018 | J12: 0.915 | K12: 490
A13: 상업용 건물 | B13: 800000 | C13: (통나무조) | D13: 135 | E13: (20) 주차전용빌딩 | F13: 62 | G13: 1(개별공시지가 10,000원 이하) | H13: 80 | I13: 2017 | J13: 0.898 | K13: 481
A14: 상업용 건물 | B14: 800000 | C14: (통나무조) | D14: 135 | E14: (20) 주차전용빌딩 | F14: 62 | G14: 1(개별공시지가 10,000원 이하) | H14: 80 | I14: 2016 | J14: 0.881 | K14: 471
A15: 상업용 건물 | B15: 800000 | C15: (통나무조) | D15: 135 | E15: (20) 주차전용빌딩 | F15: 62 | G15: 1(개별공시지가 10,000원 이하) | H15: 80 | I15: 2015 | J15: 0.864 | K15: 462
A16: 상업용 건물 | B16: 800000 | C16: (통나무조) | D16: 135 | E16: (20) 주차전용빌딩 | F16: 62 | G16: 1(개별공시지가 10,000원 이하) | H16: 80 | I16: 2014 | J16: 0.847 | K16: 453
A17: 상업용 건물 | B17: 800000 | C17: (통나무조) | D17: 135 | E17: (20) 주차전용빌딩 | F17: 62 | G17: 1(개별공시지가 10,000원 이하) | H17: 80 | I17: 2013 | J17: 0.83 | K17: 444
A18: 상업용 건물 | B18: 800000 | C18: (통나무조) | D18: 135 | E18: (20) 주차전용빌딩 | F18: 62 | G18: 1(개별공시지가 10,000원 이하) | H18: 80 | I18: 2012 | J18: 0.813 | K18: 435
A19: 상업용 건물 | B19: 800000 | C19: (통나무조) | D19: 135 | E19: (20) 주차전용빌딩 | F19: 62 | G19: 1(개별공시지가 10,000원 이하) | H19: 80 | I19: 2011 | J19: 0.796 | K19: 426
A20: 상업용 건물 | B20: 800000 | C20: (통나무조) | D20: 135 | E20: (20) 주차전용빌딩 | F20: 62 | G20: 1(개별공시지가 10,000원 이하) | H20: 80 | I20: 2010 | J20: 0.779 | K20: 417
A21: 상업용 건물 | B21: 800000 | C21: (통나무조) | D21: 135 | E21: (20) 주차전용빌딩 | F21: 62 | G21: 1(개별공시지가 10,000원 이하) | H21: 80 | I21: 2009 | J21: 0.762 | K21: 408
A22: 상업용 건물 | B22: 800000 | C22: (통나무조) | D22: 135 | E22: (20) 주차전용빌딩 | F22: 62 | G22: 1(개별공시지가 10,000원 이하) | H22: 80 | I22: 2008 | J22: 0.745 | K22: 399
A23: 상업용 건물 | B23: 800000 | C23: (통나무조) | D23: 135 | E23: (20) 주차전용빌딩 | F23: 62 | G23: 1(개별공시지가 10,000원 이하) | H23: 80 | I23: 2007 | J23: 0.728 | K23: 389
A24: 상업용 건물 | B24: 800000 | C24: (통나무조) | D24: 135 | E24: (20) 주차전용빌딩 | F24: 62 | G24: 1(개별공시지가 10,000원 이하) | H24: 80 | I24: 2006 | J24: 0.711 | K24: 380
A25: 상업용 건물 | B25: 800000 | C25: (통나무조) | D25: 135 | E25: (20) 주차전용빌딩 | F25: 62 | G25: 1(개별공시지가 10,000원 이하) | H25: 80 | I25: 2005 | J25: 0.694 | K25: 371
A26: 상업용 건물 | B26: 800000 | C26: (통나무조) | D26: 135 | E26: (20) 주차전용빌딩 | F26: 62 | G26: 1(개별공시지가 10,000원 이하) | H26: 80 | I26: 2004 | J26: 0.677 | K26: 362
A27: 상업용 건물 | B27: 800000 | C27: (통나무조) | D27: 135 | E27: (20) 주차전용빌딩 | F27: 62 | G27: 1(개별공시지가 10,000원 이하) | H27: 80 | I27: 2003 | J27: 0.66 | K27: 353
A28: 상업용 건물 | B28: 800000 | C28: (통나무조) | D28: 135 | E28: (20) 주차전용빌딩 | F28: 62 | G28: 1(개별공시지가 10,000원 이하) | H28: 80 | I28: 2002 | J28: 0.643 | K28: 344
A29: 상업용 건물 | B29: 800000 | C29: (통나무조) | D29: 135 | E29: (20) 주차전용빌딩 | F29: 62 | G29: 1(개별공시지가 10,000원 이하) | H29: 80 | I29: 2001 | J29: 0.626 | K29: 335
A30: 상업용 건물 | B30: 800000 | C30: (통나무조) | D30: 135 | E30: (20) 주차전용빌딩 | F30: 62 | G30: 1(개별공시지가 10,000원 이하) | H30: 80 | I30: 2000 | J30: 0.609 | K30: 326
A31: 상업용 건물 | B31: 800000 | C31: (통나무조) | D31: 135 | E31: (20) 주차전용빌딩 | F31: 62 | G31: 1(개별공시지가 10,000원 이하) | H31: 80 | I31: 1999 | J31: 0.592 | K31: 317
A32: 상업용 건물 | B32: 800000 | C32: (통나무조) | D32: 135 | E32: (20) 주차전용빌딩 | F32: 62 | G32: 1(개별공시지가 10,000원 이하) | H32: 80 | I32: 1998 | J32: 0.575 | K32: 308
A33: 상업용 건물 | B33: 800000 | C33: (통나무조) | D33: 135 | E33: (20) 주차전용빌딩 | F33: 62 | G33: 1(개별공시지가 10,000원 이하) | H33: 80 | I33: 1997 | J33: 0.558 | K33: 298
A34: 상업용 건물 | B34: 800000 | C34: (통나무조) | D34: 135 | E34: (20) 주차전용빌딩 | F34: 62 | G34: 1(개별공시지가 10,000원 이하) | H34: 80 | I34: 1996 | J34: 0.541 | K34: 289
A35: 상업용 건물 | B35: 800000 | C35: (통나무조) | D35: 135 | E35: (20) 주차전용빌딩 | F35: 62 | G35: 1(개별공시지가 10,000원 이하) | H35: 80 | I35: 1995 | J35: 0.524 | K35: 280
A36: 상업용 건물 | B36: 800000 | C36: (통나무조) | D36: 135 | E36: (20) 주차전용빌딩 | F36: 62 | G36: 1(개별공시지가 10,000원 이하) | H36: 80 | I36: 1994 | J36: 0.507 | K36: 271
A37: 상업용 건물 | B37: 800000 | C37: (통나무조) | D37: 135 | E37: (20) 주차전용빌딩 | F37: 62 | G37: 1(개별공시지가 10,000원 이하) | H37: 80 | I37: 1993 | J37: 0.49 | K37: 262
A38: 상업용 건물 | B38: 800000 | C38: (통나무조) | D38: 135 | E38: (20) 주차전용빌딩 | F38: 62 | G38: 1(개별공시지가 10,000원 이하) | H38: 80 | I38: 1992 | J38: 0.473 | K38: 253
A39: 상업용 건물 | B39: 800000 | C39: (통나무조) | D39: 135 | E39: (20) 주차전용빌딩 | F39: 62 | G39: 1(개별공시지가 10,000원 이하) | H39: 80 | I39: 1991 | J39: 0.456 | K39: 244
A40: 상업용 건물 | B40: 800000 | C40: (통나무조) | D40: 135 | E40: (20) 주차전용빌딩 | F40: 62 | G40: 1(개별공시지가 10,000원 이하) | H40: 80 | I40: 1990 | J40: 0.439 | K40: 235
A41: 상업용 건물 | B41: 800000 | C41: (통나무조) | D41: 135 | E41: (20) 주차전용빌딩 | F41: 62 | G41: 1(개별공시지가 10,000원 이하) | H41: 80 | I41: 1989 | J41: 0.422 | K41: 226
A42: 상업용 건물 | B42: 800000 | C42: (통나무조) | D42: 135 | E42: (20) 주차전용빌딩 | F42: 62 | G42: 1(개별공시지가 10,000원 이하) | H42: 80 | I42: 1988 | J42: 0.405 | K42: 216
A43: 상업용 건물 | B43: 800000 | C43: (통나무조) | D43: 135 | E43: (20) 주차전용빌딩 | F43: 62 | G43: 1(개별공시지가 10,000원 이하) | H43: 80 | I43: 1987 | J43: 0.388 | K43: 207
A44: 상업용 건물 | B44: 800000 | C44: (통나무조) | D44: 135 | E44: (20) 주차전용빌딩 | F44: 62 | G44: 1(개별공시지가 10,000원 이하) | H44: 80 | I44: 1986 | J44: 0.371 | K44: 198
A45: 상업용 건물 | B45: 800000 | C45: (통나무조) | D45: 135 | E45: (20) 주차전용빌딩 | F45: 62 | G45: 1(개별공시지가 10,000원 이하) | H45: 80 | I45: 1985 | J45: 0.354 | K45: 189
A46: 상업용 건물 | B46: 800000 | C46: (통나무조) | D46: 135 | E46: (20) 주차전용빌딩 | F46: 62 | G46: 1(개별공시지가 10,000원 이하) | H46: 80 | I46: 1984 | J46: 0.337 | K46: 180
A47: 상업용 건물 | B47: 800000 | C47: (통나무조) | D47: 135 | E47: (20) 주차전용빌딩 | F47: 62 | G47: 1(개별공시지가 10,000원 이하) | H47: 80 | I47: 1983 | J47: 0.32 | K47: 171
A48: 상업용 건물 | B48: 800000 | C48: (통나무조) | D48: 135 | E48: (20) 주차전용빌딩 | F48: 62 | G48: 1(개별공시지가 10,000원 이하) | H48: 80 | I48: 1982 | J48: 0.303 | K48: 162
A49: 상업용 건물 | B49: 800000 | C49: (통나무조) | D49: 135 | E49: (20) 주차전용빌딩 | F49: 62 | G49: 1(개별공시지가 10,000원 이하) | H49: 80 | I49: 1981 | J49: 0.286 | K49: 153
A50: 상업용 건물 | B50: 800000 | C50: (통나무조) | D50: 135 | E50: (20) 주차전용빌딩 | F50: 62 | G50: 1(개별공시지가 10,000원 이하) | H50: 80 | I50: 1980 | J50: 0.269 | K50: 144
A51: 상업용 건물 | B51: 800000 | C51: (통나무조) | D51: 135 | E51: (20) 주차전용빌딩 | F51: 62 | G51: 1(개별공시지가 10,000원 이하) | H51: 80 | I51: 1979 | J51: 0.252 | K51: 134
A52: 상업용 건물 | B52: 800000 | C52: (통나무조) | D52: 135 | E52: (20) 주차전용빌딩 | F52: 62 | G52: 1(개별공시지가 10,000원 이하) | H52: 80 | I52: 1978 | J52: 0.235 | K52: 125
A53: 상업용 건물 | B53: 800000 | C53: (통나무조) | D53: 135 | E53: (20) 주차전용빌딩 | F53: 62 | G53: 1(개별공시지가 10,000원 이하) | H53: 80 | I53: 1977 | J53: 0.218 | K53: 116
A54: 상업용 건물 | B54: 800000 | C54: (통나무조) | D54: 135 | E54: (20) 주차전용빌딩 | F54: 62 | G54: 1(개별공시지가 10,000원 이하) | H54: 80 | I54: 1976 | J54: 0.201 | K54: 107
A55: 상업용 건물 | B55: 800000 | C55: (통나무조) | D55: 135 | E55: (20) 주차전용빌딩 | F55: 62 | G55: 1(개별공시지가 10,000원 이하) | H55: 80 | I55: 1975 | J55: 0.184 | K55: 98
A56: 상업용 건물 | B56: 800000 | C56: (통나무조) | D56: 135 | E56: (20) 주차전용빌딩 | F56: 62 | G56: 1(개별공시지가 10,000원 이하) | H56: 80 | I56: 1974 | J56: 0.167 | K56: 89
A57: 상업용 건물 | B57: 800000 | C57: (통나무조) | D57: 135 | E57: (20) 주차전용빌딩 | F57: 62 | G57: 1(개별공시지가 10,000원 이하) | H57: 80 | I57: 50년이상 | J57: =1-(0.017*50) -> 0.15 | K57: 80
A58: 상업용 건물 | B58: 800000 | C58: (통나무조) | D58: 135 | E58: (19) 주차장 | F58: 71 | G58: 1(개별공시지가 10,000원 이하) | H58: 80 | I58: 2023 | J58: =1-(0.017*(2023-$I58)) -> 1 | K58: 613
A59: 상업용 건물 | B59: 800000 | C59: (통나무조) | D59: 135 | E59: (19) 주차장 | F59: 71 | G59: 1(개별공시지가 10,000원 이하) | H59: 80 | I59: 2022 | J59: 0.983 | K59: 603
A60: 상업용 건물 | B60: 800000 | C60: (통나무조) | D60: 135 | E60: (19) 주차장 | F60: 71 | G60: 1(개별공시지가 10,000원 이하) | H60: 80 | I60: 2021 | J60: 0.966 | K60: 592
A61: 상업용 건물 | B61: 800000 | C61: (통나무조) | D61: 135 | E61: (19) 주차장 | F61: 71 | G61: 1(개별공시지가 10,000원 이하) | H61: 80 | I61: 2020 | J61: 0.949 | K61: 582
A62: 상업용 건물 | B62: 800000 | C62: (통나무조) | D62: 135 | E62: (19) 주차장 | F62: 71 | G62: 1(개별공시지가 10,000원 이하) | H62: 80 | I62: 2019 | J62: 0.932 | K62: 571
A63: 상업용 건물 | B63: 800000 | C63: (통나무조) | D63: 135 | E63: (19) 주차장 | F63: 71 | G63: 1(개별공시지가 10,000원 이하) | H63: 80 | I63: 2018 | J63: 0.915 | K63: 561
A64: 상업용 건물 | B64: 800000 | C64: (통나무조) | D64: 135 | E64: (19) 주차장 | F64: 71 | G64: 1(개별공시지가 10,000원 이하) | H64: 80 | I64: 2017 | J64: 0.898 | K64: 550
A65: 상업용 건물 | B65: 800000 | C65: (통나무조) | D65: 135 | E65: (19) 주차장 | F65: 71 | G65: 1(개별공시지가 10,000원 이하) | H65: 80 | I65: 2016 | J65: 0.881 | K65: 540
A66: 상업용 건물 | B66: 800000 | C66: (통나무조) | D66: 135 | E66: (19) 주차장 | F66: 71 | G66: 1(개별공시지가 10,000원 이하) | H66: 80 | I66: 2015 | J66: 0.864 | K66: 530
A67: 상업용 건물 | B67: 800000 | C67: (통나무조) | D67: 135 | E67: (19) 주차장 | F67: 71 | G67: 1(개별공시지가 10,000원 이하) | H67: 80 | I67: 2014 | J67: 0.847 | K67: 519
A68: 상업용 건물 | B68: 800000 | C68: (통나무조) | D68: 135 | E68: (19) 주차장 | F68: 71 | G68: 1(개별공시지가 10,000원 이하) | H68: 80 | I68: 2013 | J68: 0.83 | K68: 509
A69: 상업용 건물 | B69: 800000 | C69: (통나무조) | D69: 135 | E69: (19) 주차장 | F69: 71 | G69: 1(개별공시지가 10,000원 이하) | H69: 80 | I69: 2012 | J69: 0.813 | K69: 498
A70: 상업용 건물 | B70: 800000 | C70: (통나무조) | D70: 135 | E70: (19) 주차장 | F70: 71 | G70: 1(개별공시지가 10,000원 이하) | H70: 80 | I70: 2011 | J70: 0.796 | K70: 488
A71: 상업용 건물 | B71: 800000 | C71: (통나무조) | D71: 135 | E71: (19) 주차장 | F71: 71 | G71: 1(개별공시지가 10,000원 이하) | H71: 80 | I71: 2010 | J71: 0.779 | K71: =ROUNDDOWN(B71*D71/100*F71/100*H71/100*J71/1000,0) -> 477
A72: 상업용 건물 | B72: 800000 | C72: (통나무조) | D72: 135 | E72: (19) 주차장 | F72: 71 | G72: 1(개별공시지가 10,000원 이하) | H72: 80 | I72: 2009 | J72: =1-(0.017*(2023-$I72)) -> 0.762 | K72: 467
A73: 상업용 건물 | B73: 800000 | C73: (통나무조) | D73: 135 | E73: (19) 주차장 | F73: 71 | G73: 1(개별공시지가 10,000원 이하) | H73: 80 | I73: 2008 | J73: 0.745 | K73: 457
A74: 상업용 건물 | B74: 800000 | C74: (통나무조) | D74: 135 | E74: (19) 주차장 | F74: 71 | G74: 1(개별공시지가 10,000원 이하) | H74: 80 | I74: 2007 | J74: 0.728 | K74: 446
A75: 상업용 건물 | B75: 800000 | C75: (통나무조) | D75: 135 | E75: (19) 주차장 | F75: 71 | G75: 1(개별공시지가 10,000원 이하) | H75: 80 | I75: 2006 | J75: 0.711 | K75: 436
A76: 상업용 건물 | B76: 800000 | C76: (통나무조) | D76: 135 | E76: (19) 주차장 | F76: 71 | G76: 1(개별공시지가 10,000원 이하) | H76: 80 | I76: 2005 | J76: 0.694 | K76: 425
A77: 상업용 건물 | B77: 800000 | C77: (통나무조) | D77: 135 | E77: (19) 주차장 | F77: 71 | G77: 1(개별공시지가 10,000원 이하) | H77: 80 | I77: 2004 | J77: 0.677 | K77: 415
A78: 상업용 건물 | B78: 800000 | C78: (통나무조) | D78: 135 | E78: (19) 주차장 | F78: 71 | G78: 1(개별공시지가 10,000원 이하) | H78: 80 | I78: 2003 | J78: 0.66 | K78: 404
A79: 상업용 건물 | B79: 800000 | C79: (통나무조) | D79: 135 | E79: (19) 주차장 | F79: 71 | G79: 1(개별공시지가 10,000원 이하) | H79: 80 | I79: 2002 | J79: 0.643 | K79: 394
A80: 상업용 건물 | B80: 800000 | C80: (통나무조) | D80: 135 | E80: (19) 주차장 | F80: 71 | G80: 1(개별공시지가 10,000원 이하) | H80: 80 | I80: 2001 | J80: 0.626 | K80: 384
A81: 상업용 건물 | B81: 800000 | C81: (통나무조) | D81: 135 | E81: (19) 주차장 | F81: 71 | G81: 1(개별공시지가 10,000원 이하) | H81: 80 | I81: 2000 | J81: 0.609 | K81: 373
A82: 상업용 건물 | B82: 800000 | C82: (통나무조) | D82: 135 | E82: (19) 주차장 | F82: 71 | G82: 1(개별공시지가 10,000원 이하) | H82: 80 | I82: 1999 | J82: 0.592 | K82: 363
A83: 상업용 건물 | B83: 800000 | C83: (통나무조) | D83: 135 | E83: (19) 주차장 | F83: 71 | G83: 1(개별공시지가 10,000원 이하) | H83: 80 | I83: 1998 | J83: 0.575 | K83: 352
A84: 상업용 건물 | B84: 800000 | C84: (통나무조) | D84: 135 | E84: (19) 주차장 | F84: 71 | G84: 1(개별공시지가 10,000원 이하) | H84: 80 | I84: 1997 | J84: 0.558 | K84: 342
A85: 상업용 건물 | B85: 800000 | C85: (통나무조) | D85: 135 | E85: (19) 주차장 | F85: 71 | G85: 1(개별공시지가 10,000원 이하) | H85: 80 | I85: 1996 | J85: 0.541 | K85: 331
A86: 상업용 건물 | B86: 800000 | C86: (통나무조) | D86: 135 | E86: (19) 주차장 | F86: 71 | G86: 1(개별공시지가 10,000원 이하) | H86: 80 | I86: 1995 | J86: 0.524 | K86: 321
A87: 상업용 건물 | B87: 800000 | C87: (통나무조) | D87: 135 | E87: (19) 주차장 | F87: 71 | G87: 1(개별공시지가 10,000원 이하) | H87: 80 | I87: 1994 | J87: 0.507 | K87: 311
A88: 상업용 건물 | B88: 800000 | C88: (통나무조) | D88: 135 | E88: (19) 주차장 | F88: 71 | G88: 1(개별공시지가 10,000원 이하) | H88: 80 | I88: 1993 | J88: 0.49 | K88: 300
A89: 상업용 건물 | B89: 800000 | C89: (통나무조) | D89: 135 | E89: (19) 주차장 | F89: 71 | G89: 1(개별공시지가 10,000원 이하) | H89: 80 | I89: 1992 | J89: 0.473 | K89: 290
A90: 상업용 건물 | B90: 800000 | C90: (통나무조) | D90: 135 | E90: (19) 주차장 | F90: 71 | G90: 1(개별공시지가 10,000원 이하) | H90: 80 | I90: 1991 | J90: 0.456 | K90: 279
A91: 상업용 건물 | B91: 800000 | C91: (통나무조) | D91: 135 | E91: (19) 주차장 | F91: 71 | G91: 1(개별공시지가 10,000원 이하) | H91: 80 | I91: 1990 | J91: 0.439 | K91: 269
A92: 상업용 건물 | B92: 800000 | C92: (통나무조) | D92: 135 | E92: (19) 주차장 | F92: 71 | G92: 1(개별공시지가 10,000원 이하) | H92: 80 | I92: 1989 | J92: 0.422 | K92: 258
A93: 상업용 건물 | B93: 800000 | C93: (통나무조) | D93: 135 | E93: (19) 주차장 | F93: 71 | G93: 1(개별공시지가 10,000원 이하) | H93: 80 | I93: 1988 | J93: 0.405 | K93: 248
A94: 상업용 건물 | B94: 800000 | C94: (통나무조) | D94: 135 | E94: (19) 주차장 | F94: 71 | G94: 1(개별공시지가 10,000원 이하) | H94: 80 | I94: 1987 | J94: 0.388 | K94: 238
A95: 상업용 건물 | B95: 800000 | C95: (통나무조) | D95: 135 | E95: (19) 주차장 | F95: 71 | G95: 1(개별공시지가 10,000원 이하) | H95: 80 | I95: 1986 | J95: 0.371 | K95: 227
A96: 상업용 건물 | B96: 800000 | C96: (통나무조) | D96: 135 | E96: (19) 주차장 | F96: 71 | G96: 1(개별공시지가 10,000원 이하) | H96: 80 | I96: 1985 | J96: 0.354 | K96: 217
A97: 상업용 건물 | B97: 800000 | C97: (통나무조) | D97: 135 | E97: (19) 주차장 | F97: 71 | G97: 1(개별공시지가 10,000원 이하) | H97: 80 | I97: 1984 | J97: 0.337 | K97: 206
A98: 상업용 건물 | B98: 800000 | C98: (통나무조) | D98: 135 | E98: (19) 주차장 | F98: 71 | G98: 1(개별공시지가 10,000원 이하) | H98: 80 | I98: 1983 | J98: 0.32 | K98: 196
A99: 상업용 건물 | B99: 800000 | C99: (통나무조) | D99: 135 | E99: (19) 주차장 | F99: 71 | G99: 1(개별공시지가 10,000원 이하) | H99: 80 | I99: 1982 | J99: 0.303 | K99: 185
A100: 상업용 건물 | B100: 800000 | C100: (통나무조) | D100: 135 | E100: (19) 주차장 | F100: 71 | G100: 1(개별공시지가 10,000원 이하) | H100: 80 | I100: 1981 | J100: 0.286 | K100: 175
A101: 상업용 건물 | B101: 800000 | C101: (통나무조) | D101: 135 | E101: (19) 주차장 | F101: 71 | G101: 1(개별공시지가 10,000원 이하) | H101: 80 | I101: 1980 | J101: 0.269 | K101: 165
A102: 상업용 건물 | B102: 800000 | C102: (통나무조) | D102: 135 | E102: (19) 주차장 | F102: 71 | G102: 1(개별공시지가 10,000원 이하) | H102: 80 | I102: 1979 | J102: 0.252 | K102: 154
A103: 상업용 건물 | B103: 800000 | C103: (통나무조) | D103: 135 | E103: (19) 주차장 | F103: 71 | G103: 1(개별공시지가 10,000원 이하) | H103: 80 | I103: 1978 | J103: 0.235 | K103: 144
A104: 상업용 건물 | B104: 800000 | C104: (통나무조) | D104: 135 | E104: (19) 주차장 | F104: 71 | G104: 1(개별공시지가 10,000원 이하) | H104: 80 | I104: 1977 | J104: 0.218 | K104: 133
A105: 상업용 건물 | B105: 800000 | C105: (통나무조) | D105: 135 | E105: (19) 주차장 | F105: 71 | G105: 1(개별공시지가 10,000원 이하) | H105: 80 | I105: 1976 | J105: 0.201 | K105: 123
A106: 상업용 건물 | B106: 800000 | C106: (통나무조) | D106: 135 | E106: (19) 주차장 | F106: 71 | G106: 1(개별공시지가 10,000원 이하) | H106: 80 | I106: 1975 | J106: 0.184 | K106: 112
A107: 상업용 건물 | B107: 800000 | C107: (통나무조) | D107: 135 | E107: (19) 주차장 | F107: 71 | G107: 1(개별공시지가 10,000원 이하) | H107: 80 | I107: 1974 | J107: 0.167 | K107: 102
A108: 상업용 건물 | B108: 800000 | C108: (통나무조) | D108: 135 | E108: (19) 주차장 | F108: 71 | G108: 1(개별공시지가 10,000원 이하) | H108: 80 | I108: 50년이상 | J108: =1-(0.017*50) -> 0.15 | K108: 92
A109: 상업용 건물 | B109: 800000 | C109: (통나무조) | D109: 135 | E109: (21) 세차장, 폐차장, 검사장, 정비공장, 차고 및 주기장 | F109: 71 | G109: 1(개별공시지가 10,000원 이하) | H109: 80 | I109: 2023 | J109: =1-(0.017*(2023-$I109)) -> 1 | K109: 613
A110: 상업용 건물 | B110: 800000 | C110: (통나무조) | D110: 135 | E110: (21) 세차장, 폐차장, 검사장, 정비공장, 차고 및 주기장 | F110: 71 | G110: 1(개별공시지가 10,000원 이하) | H110: 80 | I110: 2022 | J110: =1-(0.017*(2023-$I110)) -> 0.983 | K110: 603
A111: 상업용 건물 | B111: 800000 | C111: (통나무조) | D111: 135 | E111: (21) 세차장, 폐차장, 검사장, 정비공장, 차고 및 주기장 | F111: 71 | G111: 1(개별공시지가 10,000원 이하) | H111: 80 | I111: 2021 | J111: 0.966 | K111: 592
A112: 상업용 건물 | B112: 800000 | C112: (통나무조) | D112: 135 | E112: (21) 세차장, 폐차장, 검사장, 정비공장, 차고 및 주기장 | F112: 71 | G112: 1(개별공시지가 10,000원 이하) | H112: 80 | I112: 2020 | J112: 0.949 | K112: 582
A113: 상업용 건물 | B113: 800000 | C113: (통나무조) | D113: 135 | E113: (21) 세차장, 폐차장, 검사장, 정비공장, 차고 및 주기장 | F113: 71 | G113: 1(개별공시지가 10,000원 이하) | H113: 80 | I113: 2019 | J113: 0.932 | K113: 571
A114: 상업용 건물 | B114: 800000 | C114: (통나무조) | D114: 135 | E114: (21) 세차장, 폐차장, 검사장, 정비공장, 차고 및 주기장 | F114: 71 | G114: 1(개별공시지가 10,000원 이하) | H114: 80 | I114: 2018 | J114: 0.915 | K114: 561
A115: 상업용 건물 | B115: 800000 | C115: (통나무조) | D115: 135 | E115: (21) 세차장, 폐차장, 검사장, 정비공장, 차고 및 주기장 | F115: 71 | G115: 1(개별공시지가 10,000원 이하) | H115: 80 | I115: 2017 | J115: 0.898 | K115: 550
A116: 상업용 건물 | B116: 800000 | C116: (통나무조) | D116: 135 | E116: (21) 세차장, 폐차장, 검사장, 정비공장, 차고 및 주기장 | F116: 71 | G116: 1(개별공시지가 10,000원 이하) | H116: 80 | I116: 2016 | J116: 0.881 | K116: 540
A117: 상업용 건물 | B117: 800000 | C117: (통나무조) | D117: 135 | E117: (21) 세차장, 폐차장, 검사장, 정비공장, 차고 및 주기장 | F117: 71 | G117: 1(개별공시지가 10,000원 이하) | H117: 80 | I117: 2015 | J117: 0.864 | K117: 530
A118: 상업용 건물 | B118: 800000 | C118: (통나무조) | D118: 135 | E118: (21) 세차장, 폐차장, 검사장, 정비공장, 차고 및 주기장 | F118: 71 | G118: 1(개별공시지가 10,000원 이하) | H118: 80 | I118: 2014 | J118: 0.847 | K118: 519
A119: 상업용 건물 | B119: 800000 | C119: (통나무조) | D119: 135 | E119: (21) 세차장, 폐차장, 검사장, 정비공장, 차고 및 주기장 | F119: 71 | G119: 1(개별공시지가 10,000원 이하) | H119: 80 | I119: 2013 | J119: 0.83 | K119: 509
A120: 상업용 건물 | B120: 800000 | C120: (통나무조) | D120: 135 | E120: (21) 세차장, 폐차장, 검사장, 정비공장, 차고 및 주기장 | F120: 71 | G120: 1(개별공시지가 10,000원 이하) | H120: 80 | I120: 2012 | J120: 0.813 | K120: 498
A121: 상업용 건물 | B121: 800000 | C121: (통나무조) | D121: 135 | E121: (21) 세차장, 폐차장, 검사장, 정비공장, 차고 및 주기장 | F121: 71 | G121: 1(개별공시지가 10,000원 이하) | H121: 80 | I121: 2011 | J121: 0.796 | K121: 488
A122: 상업용 건물 | B122: 800000 | C122: (통나무조) | D122: 135 | E122: (21) 세차장, 폐차장, 검사장, 정비공장, 차고 및 주기장 | F122: 71 | G122: 1(개별공시지가 10,000원 이하) | H122: 80 | I122: 2010 | J122: 0.779 | K122: 477
A123: 상업용 건물 | B123: 800000 | C123: (통나무조) | D123: 135 | E123: (21) 세차장, 폐차장, 검사장, 정비공장, 차고 및 주기장 | F123: 71 | G123: 1(개별공시지가 10,000원 이하) | H123: 80 | I123: 2009 | J123: 0.762 | K123: 467
A124: 상업용 건물 | B124: 800000 | C124: (통나무조) | D124: 135 | E124: (21) 세차장, 폐차장, 검사장, 정비공장, 차고 및 주기장 | F124: 71 | G124: 1(개별공시지가 10,000원 이하) | H124: 80 | I124: 2008 | J124: 0.745 | K124: 457
A125: 상업용 건물 | B125: 800000 | C125: (통나무조) | D125: 135 | E125: (21) 세차장, 폐차장, 검사장, 정비공장, 차고 및 주기장 | F125: 71 | G125: 1(개별공시지가 10,000원 이하) | H125: 80 | I125: 2007 | J125: 0.728 | K125: 446
A126: 상업용 건물 | B126: 800000 | C126: (통나무조) | D126: 135 | E126: (21) 세차장, 폐차장, 검사장, 정비공장, 차고 및 주기장 | F126: 71 | G126: 1(개별공시지가 10,000원 이하) | H126: 80 | I126: 2006 | J126: 0.711 | K126: 436
A127: 상업용 건물 | B127: 800000 | C127: (통나무조) | D127: 135 | E127: (21) 세차장, 폐차장, 검사장, 정비공장, 차고 및 주기장 | F127: 71 | G127: 1(개별공시지가 10,000원 이하) | H127: 80 | I127: 2005 | J127: 0.694 | K127: 425
A128: 상업용 건물 | B128: 800000 | C128: (통나무조) | D128: 135 | E128: (21) 세차장, 폐차장, 검사장, 정비공장, 차고 및 주기장 | F128: 71 | G128: 1(개별공시지가 10,000원 이하) | H128: 80 | I128: 2004 | J128: 0.677 | K128: 415
A129: 상업용 건물 | B129: 800000 | C129: (통나무조) | D129: 135 | E129: (21) 세차장, 폐차장, 검사장, 정비공장, 차고 및 주기장 | F129: 71 | G129: 1(개별공시지가 10,000원 이하) | H129: 80 | I129: 2003 | J129: 0.66 | K129: 404
A130: 상업용 건물 | B130: 800000 | C130: (통나무조) | D130: 135 | E130: (21) 세차장, 폐차장, 검사장, 정비공장, 차고 및 주기장 | F130: 71 | G130: 1(개별공시지가 10,000원 이하) | H130: 80 | I130: 2002 | J130: 0.643 | K130: 394
A131: 상업용 건물 | B131: 800000 | C131: (통나무조) | D131: 135 | E131: (21) 세차장, 폐차장, 검사장, 정비공장, 차고 및 주기장 | F131: 71 | G131: 1(개별공시지가 10,000원 이하) | H131: 80 | I131: 2001 | J131: 0.626 | K131: 384
A132: 상업용 건물 | B132: 800000 | C132: (통나무조) | D132: 135 | E132: (21) 세차장, 폐차장, 검사장, 정비공장, 차고 및 주기장 | F132: 71 | G132: 1(개별공시지가 10,000원 이하) | H132: 80 | I132: 2000 | J132: 0.609 | K132: 373
A133: 상업용 건물 | B133: 800000 | C133: (통나무조) | D133: 135 | E133: (21) 세차장, 폐차장, 검사장, 정비공장, 차고 및 주기장 | F133: 71 | G133: 1(개별공시지가 10,000원 이하) | H133: 80 | I133: 1999 | J133: 0.592 | K133: 363
A134: 상업용 건물 | B134: 800000 | C134: (통나무조) | D134: 135 | E134: (21) 세차장, 폐차장, 검사장, 정비공장, 차고 및 주기장 | F134: 71 | G134: 1(개별공시지가 10,000원 이하) | H134: 80 | I134: 1998 | J134: 0.575 | K134: 352
A135: 상업용 건물 | B135: 800000 | C135: (통나무조) | D135: 135 | E135: (21) 세차장, 폐차장, 검사장, 정비공장, 차고 및 주기장 | F135: 71 | G135: 1(개별공시지가 10,000원 이하) | H135: 80 | I135: 1997 | J135: 0.558 | K135: =ROUNDDOWN(B135*D135/100*F135/100*H135/100*J135/1000,0) -> 342
A136: 상업용 건물 | B136: 800000 | C136: (통나무조) | D136: 135 | E136: (21) 세차장, 폐차장, 검사장, 정비공장, 차고 및 주기장 | F136: 71 | G136: 1(개별공시지가 10,000원 이하) | H136: 80 | I136: 1996 | J136: 0.541 | K136: 331
A137: 상업용 건물 | B137: 800000 | C137: (통나무조) | D137: 135 | E137: (21) 세차장, 폐차장, 검사장, 정비공장, 차고 및 주기장 | F137: 71 | G137: 1(개별공시지가 10,000원 이하) | H137: 80 | I137: 1995 | J137: 0.524 | K137: 321
A138: 상업용 건물 | B138: 800000 | C138: (통나무조) | D138: 135 | E138: (21) 세차장, 폐차장, 검사장, 정비공장, 차고 및 주기장 | F138: 71 | G138: 1(개별공시지가 10,000원 이하) | H138: 80 | I138: 1994 | J138: 0.507 | K138: 311
A139: 상업용 건물 | B139: 800000 | C139: (통나무조) | D139: 135 | E139: (21) 세차장, 폐차장, 검사장, 정비공장, 차고 및 주기장 | F139: 71 | G139: 1(개별공시지가 10,000원 이하) | H139: 80 | I139: 1993 | J139: 0.49 | K139: 300
A140: 상업용 건물 | B140: 800000 | C140: (통나무조) | D140: 135 | E140: (21) 세차장, 폐차장, 검사장, 정비공장, 차고 및 주기장 | F140: 71 | G140: 1(개별공시지가 10,000원 이하) | H140: 80 | I140: 1992 | J140: 0.473 | K140: 290
A141: 상업용 건물 | B141: 800000 | C141: (통나무조) | D141: 135 | E141: (21) 세차장, 폐차장, 검사장, 정비공장, 차고 및 주기장 | F141: 71 | G141: 1(개별공시지가 10,000원 이하) | H141: 80 | I141: 1991 | J141: 0.456 | K141: 279
A142: 상업용 건물 | B142: 800000 | C142: (통나무조) | D142: 135 | E142: (21) 세차장, 폐차장, 검사장, 정비공장, 차고 및 주기장 | F142: 71 | G142: 1(개별공시지가 10,000원 이하) | H142: 80 | I142: 1990 | J142: 0.439 | K142: 269
A143: 상업용 건물 | B143: 800000 | C143: (통나무조) | D143: 135 | E143: (21) 세차장, 폐차장, 검사장, 정비공장, 차고 및 주기장 | F143: 71 | G143: 1(개별공시지가 10,000원 이하) | H143: 80 | I143: 1989 | J143: 0.422 | K143: 258
A144: 상업용 건물 | B144: 800000 | C144: (통나무조) | D144: 135 | E144: (21) 세차장, 폐차장, 검사장, 정비공장, 차고 및 주기장 | F144: 71 | G144: 1(개별공시지가 10,000원 이하) | H144: 80 | I144: 1988 | J144: 0.405 | K144: 248
A145: 상업용 건물 | B145: 800000 | C145: (통나무조) | D145: 135 | E145: (21) 세차장, 폐차장, 검사장, 정비공장, 차고 및 주기장 | F145: 71 | G145: 1(개별공시지가 10,000원 이하) | H145: 80 | I145: 1987 | J145: 0.388 | K145: 238
A146: 상업용 건물 | B146: 800000 | C146: (통나무조) | D146: 135 | E146: (21) 세차장, 폐차장, 검사장, 정비공장, 차고 및 주기장 | F146: 71 | G146: 1(개별공시지가 10,000원 이하) | H146: 80 | I146: 1986 | J146: 0.371 | K146: 227
A147: 상업용 건물 | B147: 800000 | C147: (통나무조) | D147: 135 | E147: (21) 세차장, 폐차장, 검사장, 정비공장, 차고 및 주기장 | F147: 71 | G147: 1(개별공시지가 10,000원 이하) | H147: 80 | I147: 1985 | J147: 0.354 | K147: 217
A148: 상업용 건물 | B148: 800000 | C148: (통나무조) | D148: 135 | E148: (21) 세차장, 폐차장, 검사장, 정비공장, 차고 및 주기장 | F148: 71 | G148: 1(개별공시지가 10,000원 이하) | H148: 80 | I148: 1984 | J148: 0.337 | K148: 206
A149: 상업용 건물 | B149: 800000 | C149: (통나무조) | D149: 135 | E149: (21) 세차장, 폐차장, 검사장, 정비공장, 차고 및 주기장 | F149: 71 | G149: 1(개별공시지가 10,000원 이하) | H149: 80 | I149: 1983 | J149: 0.32 | K149: 196
A150: 상업용 건물 | B150: 800000 | C150: (통나무조) | D150: 135 | E150: (21) 세차장, 폐차장, 검사장, 정비공장, 차고 및 주기장 | F150: 71 | G150: 1(개별공시지가 10,000원 이하) | H150: 80 | I150: 1982 | J150: 0.303 | K150: 185
A151: 상업용 건물 | B151: 800000 | C151: (통나무조) | D151: 135 | E151: (21) 세차장, 폐차장, 검사장, 정비공장, 차고 및 주기장 | F151: 71 | G151: 1(개별공시지가 10,000원 이하) | H151: 80 | I151: 1981 | J151: 0.286 | K151: 175
A152: 상업용 건물 | B152: 800000 | C152: (통나무조) | D152: 135 | E152: (21) 세차장, 폐차장, 검사장, 정비공장, 차고 및 주기장 | F152: 71 | G152: 1(개별공시지가 10,000원 이하) | H152: 80 | I152: 1980 | J152: 0.269 | K152: 165
A153: 상업용 건물 | B153: 800000 | C153: (통나무조) | D153: 135 | E153: (21) 세차장, 폐차장, 검사장, 정비공장, 차고 및 주기장 | F153: 71 | G153: 1(개별공시지가 10,000원 이하) | H153: 80 | I153: 1979 | J153: 0.252 | K153: 154
A154: 상업용 건물 | B154: 800000 | C154: (통나무조) | D154: 135 | E154: (21) 세차장, 폐차장, 검사장, 정비공장, 차고 및 주기장 | F154: 71 | G154: 1(개별공시지가 10,000원 이하) | H154: 80 | I154: 1978 | J154: 0.235 | K154: 144
A155: 상업용 건물 | B155: 800000 | C155: (통나무조) | D155: 135 | E155: (21) 세차장, 폐차장, 검사장, 정비공장, 차고 및 주기장 | F155: 71 | G155: 1(개별공시지가 10,000원 이하) | H155: 80 | I155: 1977 | J155: 0.218 | K155: 133
A156: 상업용 건물 | B156: 800000 | C156: (통나무조) | D156: 135 | E156: (21) 세차장, 폐차장, 검사장, 정비공장, 차고 및 주기장 | F156: 71 | G156: 1(개별공시지가 10,000원 이하) | H156: 80 | I156: 1976 | J156: 0.201 | K156: 123
A157: 상업용 건물 | B157: 800000 | C157: (통나무조) | D157: 135 | E157: (21) 세차장, 폐차장, 검사장, 정비공장, 차고 및 주기장 | F157: 71 | G157: 1(개별공시지가 10,000원 이하) | H157: 80 | I157: 1975 | J157: 0.184 | K157: 112
A158: 상업용 건물 | B158: 800000 | C158: (통나무조) | D158: 135 | E158: (21) 세차장, 폐차장, 검사장, 정비공장, 차고 및 주기장 | F158: 71 | G158: 1(개별공시지가 10,000원 이하) | H158: 80 | I158: 1974 | J158: 0.167 | K158: 102
A159: 상업용 건물 | B159: 800000 | C159: (통나무조) | D159: 135 | E159: (21) 세차장, 폐차장, 검사장, 정비공장, 차고 및 주기장 | F159: 71 | G159: 1(개별공시지가 10,000원 이하) | H159: 80 | I159: 50년이상 | J159: =1-(0.017*50) -> 0.15 | K159: 92
A160: 상업용 건물 | B160: 800000 | C160: (통나무조) | D160: 135 | E160: (2) 제조업소, 수리점 등으로서 바닥면적 합계가 500㎡미만인 것 | F160: 96 | G160: 1(개별공시지가 10,000원 이하) | H160: 80 | I160: 2023 | J160: =1-(0.017*(2023-$I160)) -> 1 | K160: 829
A161: 상업용 건물 | B161: 800000 | C161: (통나무조) | D161: 135 | E161: (2) 제조업소, 수리점 등으로서 바닥면적 합계가 500㎡미만인 것 | F161: 96 | G161: 1(개별공시지가 10,000원 이하) | H161: 80 | I161: 2022 | J161: =1-(0.017*(2023-$I161)) -> 0.983 | K161: 815
A162: 상업용 건물 | B162: 800000 | C162: (통나무조) | D162: 135 | E162: (2) 제조업소, 수리점 등으로서 바닥면적 합계가 500㎡미만인 것 | F162: 96 | G162: 1(개별공시지가 10,000원 이하) | H162: 80 | I162: 2021 | J162: 0.966 | K162: 801
A163: 상업용 건물 | B163: 800000 | C163: (통나무조) | D163: 135 | E163: (2) 제조업소, 수리점 등으로서 바닥면적 합계가 500㎡미만인 것 | F163: 96 | G163: 1(개별공시지가 10,000원 이하) | H163: 80 | I163: 2020 | J163: 0.949 | K163: 787
A164: 상업용 건물 | B164: 800000 | C164: (통나무조) | D164: 135 | E164: (2) 제조업소, 수리점 등으로서 바닥면적 합계가 500㎡미만인 것 | F164: 96 | G164: 1(개별공시지가 10,000원 이하) | H164: 80 | I164: 2019 | J164: 0.932 | K164: 773
A165: 상업용 건물 | B165: 800000 | C165: (통나무조) | D165: 135 | E165: (2) 제조업소, 수리점 등으로서 바닥면적 합계가 500㎡미만인 것 | F165: 96 | G165: 1(개별공시지가 10,000원 이하) | H165: 80 | I165: 2018 | J165: 0.915 | K165: 758
A166: 상업용 건물 | B166: 800000 | C166: (통나무조) | D166: 135 | E166: (2) 제조업소, 수리점 등으로서 바닥면적 합계가 500㎡미만인 것 | F166: 96 | G166: 1(개별공시지가 10,000원 이하) | H166: 80 | I166: 2017 | J166: 0.898 | K166: 744
A167: 상업용 건물 | B167: 800000 | C167: (통나무조) | D167: 135 | E167: (2) 제조업소, 수리점 등으로서 바닥면적 합계가 500㎡미만인 것 | F167: 96 | G167: 1(개별공시지가 10,000원 이하) | H167: 80 | I167: 2016 | J167: 0.881 | K167: 730
A168: 상업용 건물 | B168: 800000 | C168: (통나무조) | D168: 135 | E168: (2) 제조업소, 수리점 등으로서 바닥면적 합계가 500㎡미만인 것 | F168: 96 | G168: 1(개별공시지가 10,000원 이하) | H168: 80 | I168: 2015 | J168: 0.864 | K168: 716
A169: 상업용 건물 | B169: 800000 | C169: (통나무조) | D169: 135 | E169: (2) 제조업소, 수리점 등으로서 바닥면적 합계가 500㎡미만인 것 | F169: 96 | G169: 1(개별공시지가 10,000원 이하) | H169: 80 | I169: 2014 | J169: 0.847 | K169: 702
A170: 상업용 건물 | B170: 800000 | C170: (통나무조) | D170: 135 | E170: (2) 제조업소, 수리점 등으로서 바닥면적 합계가 500㎡미만인 것 | F170: 96 | G170: 1(개별공시지가 10,000원 이하) | H170: 80 | I170: 2013 | J170: 0.83 | K170: 688
A171: 상업용 건물 | B171: 800000 | C171: (통나무조) | D171: 135 | E171: (2) 제조업소, 수리점 등으로서 바닥면적 합계가 500㎡미만인 것 | F171: 96 | G171: 1(개별공시지가 10,000원 이하) | H171: 80 | I171: 2012 | J171: 0.813 | K171: 674
A172: 상업용 건물 | B172: 800000 | C172: (통나무조) | D172: 135 | E172: (2) 제조업소, 수리점 등으로서 바닥면적 합계가 500㎡미만인 것 | F172: 96 | G172: 1(개별공시지가 10,000원 이하) | H172: 80 | I172: 2011 | J172: 0.796 | K172: 660
A173: 상업용 건물 | B173: 800000 | C173: (통나무조) | D173: 135 | E173: (2) 제조업소, 수리점 등으로서 바닥면적 합계가 500㎡미만인 것 | F173: 96 | G173: 1(개별공시지가 10,000원 이하) | H173: 80 | I173: 2010 | J173: 0.779 | K173: 646
A174: 상업용 건물 | B174: 800000 | C174: (통나무조) | D174: 135 | E174: (2) 제조업소, 수리점 등으로서 바닥면적 합계가 500㎡미만인 것 | F174: 96 | G174: 1(개별공시지가 10,000원 이하) | H174: 80 | I174: 2009 | J174: 0.762 | K174: 632
A175: 상업용 건물 | B175: 800000 | C175: (통나무조) | D175: 135 | E175: (2) 제조업소, 수리점 등으로서 바닥면적 합계가 500㎡미만인 것 | F175: 96 | G175: 1(개별공시지가 10,000원 이하) | H175: 80 | I175: 2008 | J175: 0.745 | K175: 617
A176: 상업용 건물 | B176: 800000 | C176: (통나무조) | D176: 135 | E176: (2) 제조업소, 수리점 등으로서 바닥면적 합계가 500㎡미만인 것 | F176: 96 | G176: 1(개별공시지가 10,000원 이하) | H176: 80 | I176: 2007 | J176: 0.728 | K176: 603
A177: 상업용 건물 | B177: 800000 | C177: (통나무조) | D177: 135 | E177: (2) 제조업소, 수리점 등으로서 바닥면적 합계가 500㎡미만인 것 | F177: 96 | G177: 1(개별공시지가 10,000원 이하) | H177: 80 | I177: 2006 | J177: 0.711 | K177: 589
A178: 상업용 건물 | B178: 800000 | C178: (통나무조) | D178: 135 | E178: (2) 제조업소, 수리점 등으로서 바닥면적 합계가 500㎡미만인 것 | F178: 96 | G178: 1(개별공시지가 10,000원 이하) | H178: 80 | I178: 2005 | J178: 0.694 | K178: 575
A179: 상업용 건물 | B179: 800000 | C179: (통나무조) | D179: 135 | E179: (2) 제조업소, 수리점 등으로서 바닥면적 합계가 500㎡미만인 것 | F179: 96 | G179: 1(개별공시지가 10,000원 이하) | H179: 80 | I179: 2004 | J179: 0.677 | K179: 561
A180: 상업용 건물 | B180: 800000 | C180: (통나무조) | D180: 135 | E180: (2) 제조업소, 수리점 등으로서 바닥면적 합계가 500㎡미만인 것 | F180: 96 | G180: 1(개별공시지가 10,000원 이하) | H180: 80 | I180: 2003 | J180: 0.66 | K180: 547
A181: 상업용 건물 | B181: 800000 | C181: (통나무조) | D181: 135 | E181: (2) 제조업소, 수리점 등으로서 바닥면적 합계가 500㎡미만인 것 | F181: 96 | G181: 1(개별공시지가 10,000원 이하) | H181: 80 | I181: 2002 | J181: 0.643 | K181: 533
A182: 상업용 건물 | B182: 800000 | C182: (통나무조) | D182: 135 | E182: (2) 제조업소, 수리점 등으로서 바닥면적 합계가 500㎡미만인 것 | F182: 96 | G182: 1(개별공시지가 10,000원 이하) | H182: 80 | I182: 2001 | J182: 0.626 | K182: 519
A183: 상업용 건물 | B183: 800000 | C183: (통나무조) | D183: 135 | E183: (2) 제조업소, 수리점 등으로서 바닥면적 합계가 500㎡미만인 것 | F183: 96 | G183: 1(개별공시지가 10,000원 이하) | H183: 80 | I183: 2000 | J183: 0.609 | K183: 505
A184: 상업용 건물 | B184: 800000 | C184: (통나무조) | D184: 135 | E184: (2) 제조업소, 수리점 등으로서 바닥면적 합계가 500㎡미만인 것 | F184: 96 | G184: 1(개별공시지가 10,000원 이하) | H184: 80 | I184: 1999 | J184: 0.592 | K184: 491
A185: 상업용 건물 | B185: 800000 | C185: (통나무조) | D185: 135 | E185: (2) 제조업소, 수리점 등으로서 바닥면적 합계가 500㎡미만인 것 | F185: 96 | G185: 1(개별공시지가 10,000원 이하) | H185: 80 | I185: 1998 | J185: 0.575 | K185: 476
A186: 상업용 건물 | B186: 800000 | C186: (통나무조) | D186: 135 | E186: (2) 제조업소, 수리점 등으로서 바닥면적 합계가 500㎡미만인 것 | F186: 96 | G186: 1(개별공시지가 10,000원 이하) | H186: 80 | I186: 1997 | J186: 0.558 | K186: 462
A187: 상업용 건물 | B187: 800000 | C187: (통나무조) | D187: 135 | E187: (2) 제조업소, 수리점 등으로서 바닥면적 합계가 500㎡미만인 것 | F187: 96 | G187: 1(개별공시지가 10,000원 이하) | H187: 80 | I187: 1996 | J187: 0.541 | K187: 448
A188: 상업용 건물 | B188: 800000 | C188: (통나무조) | D188: 135 | E188: (2) 제조업소, 수리점 등으로서 바닥면적 합계가 500㎡미만인 것 | F188: 96 | G188: 1(개별공시지가 10,000원 이하) | H188: 80 | I188: 1995 | J188: 0.524 | K188: 434
A189: 상업용 건물 | B189: 800000 | C189: (통나무조) | D189: 135 | E189: (2) 제조업소, 수리점 등으로서 바닥면적 합계가 500㎡미만인 것 | F189: 96 | G189: 1(개별공시지가 10,000원 이하) | H189: 80 | I189: 1994 | J189: 0.507 | K189: 420
A190: 상업용 건물 | B190: 800000 | C190: (통나무조) | D190: 135 | E190: (2) 제조업소, 수리점 등으로서 바닥면적 합계가 500㎡미만인 것 | F190: 96 | G190: 1(개별공시지가 10,000원 이하) | H190: 80 | I190: 1993 | J190: 0.49 | K190: 406
A191: 상업용 건물 | B191: 800000 | C191: (통나무조) | D191: 135 | E191: (2) 제조업소, 수리점 등으로서 바닥면적 합계가 500㎡미만인 것 | F191: 96 | G191: 1(개별공시지가 10,000원 이하) | H191: 80 | I191: 1992 | J191: 0.473 | K191: 392
A192: 상업용 건물 | B192: 800000 | C192: (통나무조) | D192: 135 | E192: (2) 제조업소, 수리점 등으로서 바닥면적 합계가 500㎡미만인 것 | F192: 96 | G192: 1(개별공시지가 10,000원 이하) | H192: 80 | I192: 1991 | J192: 0.456 | K192: 378
A193: 상업용 건물 | B193: 800000 | C193: (통나무조) | D193: 135 | E193: (2) 제조업소, 수리점 등으로서 바닥면적 합계가 500㎡미만인 것 | F193: 96 | G193: 1(개별공시지가 10,000원 이하) | H193: 80 | I193: 1990 | J193: 0.439 | K193: 364
A194: 상업용 건물 | B194: 800000 | C194: (통나무조) | D194: 135 | E194: (2) 제조업소, 수리점 등으로서 바닥면적 합계가 500㎡미만인 것 | F194: 96 | G194: 1(개별공시지가 10,000원 이하) | H194: 80 | I194: 1989 | J194: 0.422 | K194: 350
A195: 상업용 건물 | B195: 800000 | C195: (통나무조) | D195: 135 | E195: (2) 제조업소, 수리점 등으로서 바닥면적 합계가 500㎡미만인 것 | F195: 96 | G195: 1(개별공시지가 10,000원 이하) | H195: 80 | I195: 1988 | J195: 0.405 | K195: 335
A196: 상업용 건물 | B196: 800000 | C196: (통나무조) | D196: 135 | E196: (2) 제조업소, 수리점 등으로서 바닥면적 합계가 500㎡미만인 것 | F196: 96 | G196: 1(개별공시지가 10,000원 이하) | H196: 80 | I196: 1987 | J196: 0.388 | K196: 321
A197: 상업용 건물 | B197: 800000 | C197: (통나무조) | D197: 135 | E197: (2) 제조업소, 수리점 등으로서 바닥면적 합계가 500㎡미만인 것 | F197: 96 | G197: 1(개별공시지가 10,000원 이하) | H197: 80 | I197: 1986 | J197: 0.371 | K197: 307
A198: 상업용 건물 | B198: 800000 | C198: (통나무조) | D198: 135 | E198: (2) 제조업소, 수리점 등으로서 바닥면적 합계가 500㎡미만인 것 | F198: 96 | G198: 1(개별공시지가 10,000원 이하) | H198: 80 | I198: 1985 | J198: 0.354 | K198: 293
A199: 상업용 건물 | B199: 800000 | C199: (통나무조) | D199: 135 | E199: (2) 제조업소, 수리점 등으로서 바닥면적 합계가 500㎡미만인 것 | F199: 96 | G199: 1(개별공시지가 10,000원 이하) | H199: 80 | I199: 1984 | J199: 0.337 | K199: =ROUNDDOWN(B199*D199/100*F199/100*H199/100*J199/1000,0) -> 279
A200: 상업용 건물 | B200: 800000 | C200: (통나무조) | D200: 135 | E200: (2) 제조업소, 수리점 등으로서 바닥면적 합계가 500㎡미만인 것 | F200: 96 | G200: 1(개별공시지가 10,000원 이하) | H200: 80 | I200: 1983 | J200: 0.32 | K200: 265
... 4292 more rows

Sheet 공업용 건물
A1: 건축물 시가표준액 일람표 본 일람표는 가감산특례 적용 전 건축물 시가표준액을 계산한 표로, 단위는 단위 면적당(㎡) 천원(1000원)이며 천원 이하의 숫자는 버림하였습니다. 문의사항: 한국지방세연구원, 최은철 주임, 02-2071-2716, ecchoi@kilf.re.kr
A2: 건물신축가격기준액구분 | B2: 구조구분 | C2: 용도구분 | D2: 위치구분 | E2: 경과연수구분 | F2: 선택번호 | G2: 2 | H2: 16 | I2: 2 | J2: 4 | K2: 1
F3: 검색 | G3: 건물신축가격기준액구분 | H3: 구조구분 | I3: 용도구분 | J3: 위치구분 | K3: 경과연수구분
A4: ※ "전부" 버튼은 2개 이상 사용하면 동작시간이 길어져 사용을 자제해주시기 바랍니다 (매크로 작동 도중 중단을 원하시면 esc 키를 눌러주시기 바랍니다) | F4: 찾기 | G4: =IF(G2=1,"",INDEX(건물신축가격기준액구분,G2)) -> 공업용 건물 | H4: =IF(H2=1,"",INDEX(구조구분,H2)) -> (철파이프조) | I4: =IF(I2=1,"",INDEX(용도구분,I2)) -> (1) 공장(기타 물품의 제조·가공·수리에 계속적으로 이용되는 건축물로서 자동차관련시설, 자원순환 관련 시설 등으로 따로 분류되지 아니한 것) | J4: =IF(J2=1,"",INDEX(위치구분,J2)) -> 3(개별공시지가 30,000원 초과 50,000 이하) | K4: =IF(K2=1,"",INDEX(경과연수구분,K2)) -> 
A5: ※ 10년 이상 오래된 건물이 검색이 안될 경우 '경과연수구분'에 '10년 이상', '20년 이상', '30년 이상', '40년 이상', '50년 이상'을 눌러주시기 바랍니다
A6: 건물신축가격기준액구분 | B6: 건물신축가격기준액 | C6: 구조구분 | D6: 구조지수 | E6: 용도구분 | F6: 용도지수 | G6: 위치구분 | H6: 위치지수 | I6: 경과연수구분 | J6: 경과연수별잔가율 | K6: 시가표준액
A7: 공업용 건물 | B7: 790000 | C7: (통나무조) | D7: 135 | E7: (1) 공장(기타 물품의 제조·가공·수리에 계속적으로 이용되는 건축물로서 자동차관련시설, 자원순환 관련 시설 등으로 따로 분류되지 아니한 것) | F7: 80 | G7: 1(개별공시지가 10,000원 이하) | H7: 80 | I7: 2023 | J7: =1-(0.017*(2023-$I7)) -> 1 | K7: =ROUNDDOWN(B7*D7/100*F7/100*H7/100*J7/1000,0) -> 682
A8: 공업용 건물 | B8: 790000 | C8: (통나무조) | D8: 135 | E8: (1) 공장(기타 물품의 제조·가공·수리에 계속적으로 이용되는 건축물로서 자동차관련시설, 자원순환 관련 시설 등으로 따로 분류되지 아니한 것) | F8: 80 | G8: 1(개별공시지가 10,000원 이하) | H8: 80 | I8: 2022 | J8: =1-(0.017*(2023-$I8)) -> 0.983 | K8: 670
A9: 공업용 건물 | B9: 790000 | C9: (통나무조) | D9: 135 | E9: (1) 공장(기타 물품의 제조·가공·수리에 계속적으로 이용되는 건축물로서 자동차관련시설, 자원순환 관련 시설 등으로 따로 분류되지 아니한 것) | F9: 80 | G9: 1(개별공시지가 10,000원 이하) | H9: 80 | I9: 2021 | J9: 0.966 | K9: 659
A10: 공업용 건물 | B10: 790000 | C10: (통나무조) | D10: 135 | E10: (1) 공장(기타 물품의 제조·가공·수리에 계속적으로 이용되는 건축물로서 자동차관련시설, 자원순환 관련 시설 등으로 따로 분류되지 아니한 것) | F10: 80 | G10: 1(개별공시지가 10,000원 이하) | H10: 80 | I10: 2020 | J10: 0.949 | K10: 647
A11: 공업용 건물 | B11: 790000 | C11: (통나무조) | D11: 135 | E11: (1) 공장(기타 물품의 제조·가공·수리에 계속적으로 이용되는 건축물로서 자동차관련시설, 자원순환 관련 시설 등으로 따로 분류되지 아니한 것) | F11: 80 | G11: 1(개별공시지가 10,000원 이하) | H11: 80 | I11: 2019 | J11: 0.932 | K11: 636
A12: 공업용 건물 | B12: 790000 | C12: (통나무조) | D12: 135 | E12: (1) 공장(기타 물품의 제조·가공·수리에 계속적으로 이용되는 건축물로서 자동차관련시설, 자원순환 관련 시설 등으로 따로 분류되지 아니한 것) | F12: 80 | G12: 1(개별공시지가 10,000원 이하) | H12: 80 | I12: 2018 | J12: 0.915 | K12: 624
A13: 공업용 건물 | B13: 790000 | C13: (통나무조) | D13: 135 | E13: (1) 공장(기타 물품의 제조·가공·수리에 계속적으로 이용되는 건축물로서 자동차관련시설, 자원순환 관련 시설 등으로 따로 분류되지 아니한 것) | F13: 80 | G13: 1(개별공시지가 10,000원 이하) | H13: 80 | I13: 2017 | J13: 0.898 | K13: 612
A14: 공업용 건물 | B14: 790000 | C14: (통나무조) | D14: 135 | E14: (1) 공장(기타 물품의 제조·가공·수리에 계속적으로 이용되는 건축물로서 자동차관련시설, 자원순환 관련 시설 등으로 따로 분류되지 아니한 것) | F14: 80 | G14: 1(개별공시지가 10,000원 이하) | H14: 80 | I14: 2016 | J14: 0.881 | K14: 601
A15: 공업용 건물 | B15: 790000 | C15: (통나무조) | D15: 135 | E15: (1) 공장(기타 물품의 제조·가공·수리에 계속적으로 이용되는 건축물로서 자동차관련시설, 자원순환 관련 시설 등으로 따로 분류되지 아니한 것) | F15: 80 | G15: 1(개별공시지가 10,000원 이하) | H15: 80 | I15: 2015 | J15: 0.864 | K15: 589
A16: 공업용 건물 | B16: 790000 | C16: (통나무조) | D16: 135 | E16: (1) 공장(기타 물품의 제조·가공·수리에 계속적으로 이용되는 건축물로서 자동차관련시설, 자원순환 관련 시설 등으로 따로 분류되지 아니한 것) | F16: 80 | G16: 1(개별공시지가 10,000원 이하) | H16: 80 | I16: 2014 | J16: 0.847 | K16: 578
A17: 공업용 건물 | B17: 790000 | C17: (통나무조) | D17: 135 | E17: (1) 공장(기타 물품의 제조·가공·수리에 계속적으로 이용되는 건축물로서 자동차관련시설, 자원순환 관련 시설 등으로 따로 분류되지 아니한 것) | F17: 80 | G17: 1(개별공시지가 10,000원 이하) | H17: 80 | I17: 2013 | J17: 0.83 | K17: 566
A18: 공업용 건물 | B18: 790000 | C18: (통나무조) | D18: 135 | E18: (1) 공장(기타 물품의 제조·가공·수리에 계속적으로 이용되는 건축물로서 자동차관련시설, 자원순환 관련 시설 등으로 따로 분류되지 아니한 것) | F18: 80 | G18: 1(개별공시지가 10,000원 이하) | H18: 80 | I18: 2012 | J18: 0.813 | K18: 554
A19: 공업용 건물 | B19: 790000 | C19: (통나무조) | D19: 135 | E19: (1) 공장(기타 물품의 제조·가공·수리에 계속적으로 이용되는 건축물로서 자동차관련시설, 자원순환 관련 시설 등으로 따로 분류되지 아니한 것) | F19: 80 | G19: 1(개별공시지가 10,000원 이하) | H19: 80 | I19: 2011 | J19: 0.796 | K19: 543
A20: 공업용 건물 | B20: 790000 | C20: (통나무조) | D20: 135 | E20: (1) 공장(기타 물품의 제조·가공·수리에 계속적으로 이용되는 건축물로서 자동차관련시설, 자원순환 관련 시설 등으로 따로 분류되지 아니한 것) | F20: 80 | G20: 1(개별공시지가 10,000원 이하) | H20: 80 | I20: 2010 | J20: 0.779 | K20: 531
A21: 공업용 건물 | B21: 790000 | C21: (통나무조) | D21: 135 | E21: (1) 공장(기타 물품의 제조·가공·수리에 계속적으로 이용되는 건축물로서 자동차관련시설, 자원순환 관련 시설 등으로 따로 분류되지 아니한 것) | F21: 80 | G21: 1(개별공시지가 10,000원 이하) | H21: 80 | I21: 2009 | J21: 0.762 | K21: 520
A22: 공업용 건물 | B22: 790000 | C22: (통나무조) | D22: 135 | E22: (1) 공장(기타 물품의 제조·가공·수리에 계속적으로 이용되는 건축물로서 자동차관련시설, 자원순환 관련 시설 등으로 따로 분류되지 아니한 것) | F22: 80 | G22: 1(개별공시지가 10,000원 이하) | H22: 80 | I22: 2008 | J22: 0.745 | K22: 508
A23: 공업용 건물 | B23: 790000 | C23: (통나무조) | D23: 135 | E23: (1) 공장(기타 물품의 제조·가공·수리에 계속적으로 이용되는 건축물로서 자동차관련시설, 자원순환 관련 시설 등으로 따로 분류되지 아니한 것) | F23: 80 | G23: 1(개별공시지가 10,000원 이하) | H23: 80 | I23: 2007 | J23: 0.728 | K23: 496
A24: 공업용 건물 | B24: 790000 | C24: (통나무조) | D24: 135 | E24: (1) 공장(기타 물품의 제조·가공·수리에 계속적으로 이용되는 건축물로서 자동차관련시설, 자원순환 관련 시설 등으로 따로 분류되지 아니한 것) | F24: 80 | G24: 1(개별공시지가 10,000원 이하) | H24: 80 | I24: 2006 | J24: 0.711 | K24: 485
A25: 공업용 건물 | B25: 790000 | C25: (통나무조) | D25: 135 | E25: (1) 공장(기타 물품의 제조·가공·수리에 계속적으로 이용되는 건축물로서 자동차관련시설, 자원순환 관련 시설 등으로 따로 분류되지 아니한 것) | F25: 80 | G25: 1(개별공시지가 10,000원 이하) | H25: 80 | I25: 2005 | J25: 0.694 | K25: 473
A26: 공업용 건물 | B26: 790000 | C26: (통나무조) | D26: 135 | E26: (1) 공장(기타 물품의 제조·가공·수리에 계속적으로 이용되는 건축물로서 자동차관련시설, 자원순환 관련 시설 등으로 따로 분류되지 아니한 것) | F26: 80 | G26: 1(개별공시지가 10,000원 이하) | H26: 80 | I26: 2004 | J26: 0.677 | K26: 462
A27: 공업용 건물 | B27: 790000 | C27: (통나무조) | D27: 135 | E27: (1) 공장(기타 물품의 제조·가공·수리에 계속적으로 이용되는 건축물로서 자동차관련시설, 자원순환 관련 시설 등으로 따로 분류되지 아니한 것) | F27: 80 | G27: 1(개별공시지가 10,000원 이하) | H27: 80 | I27: 2003 | J27: 0.66 | K27: 450
A28: 공업용 건물 | B28: 790000 | C28: (통나무조) | D28: 135 | E28: (1) 공장(기타 물품의 제조·가공·수리에 계속적으로 이용되는 건축물로서 자동차관련시설, 자원순환 관련 시설 등으로 따로 분류되지 아니한 것) | F28: 80 | G28: 1(개별공시지가 10,000원 이하) | H28: 80 | I28: 2002 | J28: 0.643 | K28: 438
A29: 공업용 건물 | B29: 790000 | C29: (통나무조) | D29: 135 | E29: (1) 공장(기타 물품의 제조·가공·수리에 계속적으로 이용되는 건축물로서 자동차관련시설, 자원순환 관련 시설 등으로 따로 분류되지 아니한 것) | F29: 80 | G29: 1(개별공시지가 10,000원 이하) | H29: 80 | I29: 2001 | J29: 0.626 | K29: 427
A30: 공업용 건물 | B30: 790000 | C30: (통나무조) | D30: 135 | E30: (1) 공장(기타 물품의 제조·가공·수리에 계속적으로 이용되는 건축물로서 자동차관련시설, 자원순환 관련 시설 등으로 따로 분류되지 아니한 것) | F30: 80 | G30: 1(개별공시지가 10,000원 이하) | H30: 80 | I30: 2000 | J30: 0.609 | K30: 415
A31: 공업용 건물 | B31: 790000 | C31: (통나무조) | D31: 135 | E31: (1) 공장(기타 물품의 제조·가공·수리에 계속적으로 이용되는 건축물로서 자동차관련시설, 자원순환 관련 시설 등으로 따로 분류되지 아니한 것) | F31: 80 | G31: 1(개별공시지가 10,000원 이하) | H31: 80 | I31: 1999 | J31: 0.592 | K31: 404
A32: 공업용 건물 | B32: 790000 | C32: (통나무조) | D32: 135 | E32: (1) 공장(기타 물품의 제조·가공·수리에 계속적으로 이용되는 건축물로서 자동차관련시설, 자원순환 관련 시설 등으로 따로 분류되지 아니한 것) | F32: 80 | G32: 1(개별공시지가 10,000원 이하) | H32: 80 | I32: 1998 | J32: 0.575 | K32: 392
A33: 공업용 건물 | B33: 790000 | C33: (통나무조) | D33: 135 | E33: (1) 공장(기타 물품의 제조·가공·수리에 계속적으로 이용되는 건축물로서 자동차관련시설, 자원순환 관련 시설 등으로 따로 분류되지 아니한 것) | F33: 80 | G33: 1(개별공시지가 10,000원 이하) | H33: 80 | I33: 1997 | J33: 0.558 | K33: 380
A34: 공업용 건물 | B34: 790000 | C34: (통나무조) | D34: 135 | E34: (1) 공장(기타 물품의 제조·가공·수리에 계속적으로 이용되는 건축물로서 자동차관련시설, 자원순환 관련 시설 등으로 따로 분류되지 아니한 것) | F34: 80 | G34: 1(개별공시지가 10,000원 이하) | H34: 80 | I34: 1996 | J34: 0.541 | K34: 369
A35: 공업용 건물 | B35: 790000 | C35: (통나무조) | D35: 135 | E35: (1) 공장(기타 물품의 제조·가공·수리에 계속적으로 이용되는 건축물로서 자동차관련시설, 자원순환 관련 시설 등으로 따로 분류되지 아니한 것) | F35: 80 | G35: 1(개별공시지가 10,000원 이하) | H35: 80 | I35: 1995 | J35: 0.524 | K35: 357
A36: 공업용 건물 | B36: 790000 | C36: (통나무조) | D36: 135 | E36: (1) 공장(기타 물품의 제조·가공·수리에 계속적으로 이용되는 건축물로서 자동차관련시설, 자원순환 관련 시설 등으로 따로 분류되지 아니한 것) | F36: 80 | G36: 1(개별공시지가 10,000원 이하) | H36: 80 | I36: 1994 | J36: 0.507 | K36: 346
A37: 공업용 건물 | B37: 790000 | C37: (통나무조) | D37: 135 | E37: (1) 공장(기타 물품의 제조·가공·수리에 계속적으로 이용되는 건축물로서 자동차관련시설, 자원순환 관련 시설 등으로 따로 분류되지 아니한 것) | F37: 80 | G37: 1(개별공시지가 10,000원 이하) | H37: 80 | I37: 1993 | J37: 0.49 | K37: 334
A38: 공업용 건물 | B38: 790000 | C38: (통나무조) | D38: 135 | E38: (1) 공장(기타 물품의 제조·가공·수리에 계속적으로 이용되는 건축물로서 자동차관련시설, 자원순환 관련 시설 등으로 따로 분류되지 아니한 것) | F38: 80 | G38: 1(개별공시지가 10,000원 이하) | H38: 80 | I38: 1992 | J38: 0.473 | K38: 322
A39: 공업용 건물 | B39: 790000 | C39: (통나무조) | D39: 135 | E39: (1) 공장(기타 물품의 제조·가공·수리에 계속적으로 이용되는 건축물로서 자동차관련시설, 자원순환 관련 시설 등으로 따로 분류되지 아니한 것) | F39: 80 | G39: 1(개별공시지가 10,000원 이하) | H39: 80 | I39: 1991 | J39: 0.456 | K39: 311
A40: 공업용 건물 | B40: 790000 | C40: (통나무조) | D40: 135 | E40: (1) 공장(기타 물품의 제조·가공·수리에 계속적으로 이용되는 건축물로서 자동차관련시설, 자원순환 관련 시설 등으로 따로 분류되지 아니한 것) | F40: 80 | G40: 1(개별공시지가 10,000원 이하) | H40: 80 | I40: 1990 | J40: 0.439 | K40: 299
A41: 공업용 건물 | B41: 790000 | C41: (통나무조) | D41: 135 | E41: (1) 공장(기타 물품의 제조·가공·수리에 계속적으로 이용되는 건축물로서 자동차관련시설, 자원순환 관련 시설 등으로 따로 분류되지 아니한 것) | F41: 80 | G41: 1(개별공시지가 10,000원 이하) | H41: 80 | I41: 1989 | J41: 0.422 | K41: 288
A42: 공업용 건물 | B42: 790000 | C42: (통나무조) | D42: 135 | E42: (1) 공장(기타 물품의 제조·가공·수리에 계속적으로 이용되는 건축물로서 자동차관련시설, 자원순환 관련 시설 등으로 따로 분류되지 아니한 것) | F42: 80 | G42: 1(개별공시지가 10,000원 이하) | H42: 80 | I42: 1988 | J42: 0.405 | K42: 276
A43: 공업용 건물 | B43: 790000 | C43: (통나무조) | D43: 135 | E43: (1) 공장(기타 물품의 제조·가공·수리에 계속적으로 이용되는 건축물로서 자동차관련시설, 자원순환 관련 시설 등으로 따로 분류되지 아니한 것) | F43: 80 | G43: 1(개별공시지가 10,000원 이하) | H43: 80 | I43: 1987 | J43: 0.388 | K43: 264
A44: 공업용 건물 | B44: 790000 | C44: (통나무조) | D44: 135 | E44: (1) 공장(기타 물품의 제조·가공·수리에 계속적으로 이용되는 건축물로서 자동차관련시설, 자원순환 관련 시설 등으로 따로 분류되지 아니한 것) | F44: 80 | G44: 1(개별공시지가 10,000원 이하) | H44: 80 | I44: 1986 | J44: 0.371 | K44: 253
A45: 공업용 건물 | B45: 790000 | C45: (통나무조) | D45: 135 | E45: (1) 공장(기타 물품의 제조·가공·수리에 계속적으로 이용되는 건축물로서 자동차관련시설, 자원순환 관련 시설 등으로 따로 분류되지 아니한 것) | F45: 80 | G45: 1(개별공시지가 10,000원 이하) | H45: 80 | I45: 1985 | J45: 0.354 | K45: 241
A46: 공업용 건물 | B46: 790000 | C46: (통나무조) | D46: 135 | E46: (1) 공장(기타 물품의 제조·가공·수리에 계속적으로 이용되는 건축물로서 자동차관련시설, 자원순환 관련 시설 등으로 따로 분류되지 아니한 것) | F46: 80 | G46: 1(개별공시지가 10,000원 이하) | H46: 80 | I46: 1984 | J46: 0.337 | K46: 230
A47: 공업용 건물 | B47: 790000 | C47: (통나무조) | D47: 135 | E47: (1) 공장(기타 물품의 제조·가공·수리에 계속적으로 이용되는 건축물로서 자동차관련시설, 자원순환 관련 시설 등으로 따로 분류되지 아니한 것) | F47: 80 | G47: 1(개별공시지가 10,000원 이하) | H47: 80 | I47: 1983 | J47: 0.32 | K47: 218
A48: 공업용 건물 | B48: 790000 | C48: (통나무조) | D48: 135 | E48: (1) 공장(기타 물품의 제조·가공·수리에 계속적으로 이용되는 건축물로서 자동차관련시설, 자원순환 관련 시설 등으로 따로 분류되지 아니한 것) | F48: 80 | G48: 1(개별공시지가 10,000원 이하) | H48: 80 | I48: 1982 | J48: 0.303 | K48: 206
A49: 공업용 건물 | B49: 790000 | C49: (통나무조) | D49: 135 | E49: (1) 공장(기타 물품의 제조·가공·수리에 계속적으로 이용되는 건축물로서 자동차관련시설, 자원순환 관련 시설 등으로 따로 분류되지 아니한 것) | F49: 80 | G49: 1(개별공시지가 10,000원 이하) | H49: 80 | I49: 1981 | J49: 0.286 | K49: 195
A50: 공업용 건물 | B50: 790000 | C50: (통나무조) | D50: 135 | E50: (1) 공장(기타 물품의 제조·가공·수리에 계속적으로 이용되는 건축물로서 자동차관련시설, 자원순환 관련 시설 등으로 따로 분류되지 아니한 것) | F50: 80 | G50: 1(개별공시지가 10,000원 이하) | H50: 80 | I50: 1980 | J50: 0.269 | K50: 183
A51: 공업용 건물 | B51: 790000 | C51: (통나무조) | D51: 135 | E51: (1) 공장(기타 물품의 제조·가공·수리에 계속적으로 이용되는 건축물로서 자동차관련시설, 자원순환 관련 시설 등으로 따로 분류되지 아니한 것) | F51: 80 | G51: 1(개별공시지가 10,000원 이하) | H51: 80 | I51: 1979 | J51: 0.252 | K51: 172
A52: 공업용 건물 | B52: 790000 | C52: (통나무조) | D52: 135 | E52: (1) 공장(기타 물품의 제조·가공·수리에 계속적으로 이용되는 건축물로서 자동차관련시설, 자원순환 관련 시설 등으로 따로 분류되지 아니한 것) | F52: 80 | G52: 1(개별공시지가 10,000원 이하) | H52: 80 | I52: 1978 | J52: 0.235 | K52: 160
A53: 공업용 건물 | B53: 790000 | C53: (통나무조) | D53: 135 | E53: (1) 공장(기타 물품의 제조·가공·수리에 계속적으로 이용되는 건축물로서 자동차관련시설, 자원순환 관련 시설 등으로 따로 분류되지 아니한 것) | F53: 80 | G53: 1(개별공시지가 10,000원 이하) | H53: 80 | I53: 1977 | J53: 0.218 | K53: 148
A54: 공업용 건물 | B54: 790000 | C54: (통나무조) | D54: 135 | E54: (1) 공장(기타 물품의 제조·가공·수리에 계속적으로 이용되는 건축물로서 자동차관련시설, 자원순환 관련 시설 등으로 따로 분류되지 아니한 것) | F54: 80 | G54: 1(개별공시지가 10,000원 이하) | H54: 80 | I54: 1976 | J54: 0.201 | K54: 137
A55: 공업용 건물 | B55: 790000 | C55: (통나무조) | D55: 135 | E55: (1) 공장(기타 물품의 제조·가공·수리에 계속적으로 이용되는 건축물로서 자동차관련시설, 자원순환 관련 시설 등으로 따로 분류되지 아니한 것) | F55: 80 | G55: 1(개별공시지가 10,000원 이하) | H55: 80 | I55: 1975 | J55: 0.184 | K55: 125
A56: 공업용 건물 | B56: 790000 | C56: (통나무조) | D56: 135 | E56: (1) 공장(기타 물품의 제조·가공·수리에 계속적으로 이용되는 건축물로서 자동차관련시설, 자원순환 관련 시설 등으로 따로 분류되지 아니한 것) | F56: 80 | G56: 1(개별공시지가 10,000원 이하) | H56: 80 | I56: 1974 | J56: 0.167 | K56: 113
A57: 공업용 건물 | B57: 790000 | C57: (통나무조) | D57: 135 | E57: (1) 공장(기타 물품의 제조·가공·수리에 계속적으로 이용되는 건축물로서 자동차관련시설, 자원순환 관련 시설 등으로 따로 분류되지 아니한 것) | F57: 80 | G57: 1(개별공시지가 10,000원 이하) | H57: 80 | I57: 50년 이상 | J57: =1-(0.017*(50)) -> 0.15 | K57: 102
A58: 공업용 건물 | B58: 790000 | C58: (통나무조) | D58: 135 | E58: (2) 공장사무실 | F58: 80 | G58: 1(개별공시지가 10,000원 이하) | H58: 80 | I58: 2023 | J58: =1-(0.017*(2023-$I58)) -> 1 | K58: 682
A59: 공업용 건물 | B59: 790000 | C59: (통나무조) | D59: 135 | E59: (2) 공장사무실 | F59: 80 | G59: 1(개별공시지가 10,000원 이하) | H59: 80 | I59: 2022 | J59: 0.983 | K59: 670
A60: 공업용 건물 | B60: 790000 | C60: (통나무조) | D60: 135 | E60: (2) 공장사무실 | F60: 80 | G60: 1(개별공시지가 10,000원 이하) | H60: 80 | I60: 2021 | J60: 0.966 | K60: 659
A61: 공업용 건물 | B61: 790000 | C61: (통나무조) | D61: 135 | E61: (2) 공장사무실 | F61: 80 | G61: 1(개별공시지가 10,000원 이하) | H61: 80 | I61: 2020 | J61: 0.949 | K61: 647
A62: 공업용 건물 | B62: 790000 | C62: (통나무조) | D62: 135 | E62: (2) 공장사무실 | F62: 80 | G62: 1(개별공시지가 10,000원 이하) | H62: 80 | I62: 2019 | J62: 0.932 | K62: 636
A63: 공업용 건물 | B63: 790000 | C63: (통나무조) | D63: 135 | E63: (2) 공장사무실 | F63: 80 | G63: 1(개별공시지가 10,000원 이하) | H63: 80 | I63: 2018 | J63: 0.915 | K63: 624
A64: 공업용 건물 | B64: 790000 | C64: (통나무조) | D64: 135 | E64: (2) 공장사무실 | F64: 80 | G64: 1(개별공시지가 10,000원 이하) | H64: 80 | I64: 2017 | J64: 0.898 | K64: 612
A65: 공업용 건물 | B65: 790000 | C65: (통나무조) | D65: 135 | E65: (2) 공장사무실 | F65: 80 | G65: 1(개별공시지가 10,000원 이하) | H65: 80 | I65: 2016 | J65: 0.881 | K65: 601
A66: 공업용 건물 | B66: 790000 | C66: (통나무조) | D66: 135 | E66: (2) 공장사무실 | F66: 80 | G66: 1(개별공시지가 10,000원 이하) | H66: 80 | I66: 2015 | J66: 0.864 | K66: 589
A67: 공업용 건물 | B67: 790000 | C67: (통나무조) | D67: 135 | E67: (2) 공장사무실 | F67: 80 | G67: 1(개별공시지가 10,000원 이하) | H67: 80 | I67: 2014 | J67: 0.847 | K67: 578
A68: 공업용 건물 | B68: 790000 | C68: (통나무조) | D68: 135 | E68: (2) 공장사무실 | F68: 80 | G68: 1(개별공시지가 10,000원 이하) | H68: 80 | I68: 2013 | J68: 0.83 | K68: 566
A69: 공업용 건물 | B69: 790000 | C69: (통나무조) | D69: 135 | E69: (2) 공장사무실 | F69: 80 | G69: 1(개별공시지가 10,000원 이하) | H69: 80 | I69: 2012 | J69: 0.813 | K69: 554
A70: 공업용 건물 | B70: 790000 | C70: (통나무조) | D70: 135 | E70: (2) 공장사무실 | F70: 80 | G70: 1(개별공시지가 10,000원 이하) | H70: 80 | I70: 2011 | J70: 0.796 | K70: 543
A71: 공업용 건물 | B71: 790000 | C71: (통나무조) | D71: 135 | E71: (2) 공장사무실 | F71: 80 | G71: 1(개별공시지가 10,000원 이하) | H71: 80 | I71: 2010 | J71: 0.779 | K71: =ROUNDDOWN(B71*D71/100*F71/100*H71/100*J71/1000,0) -> 531
A72: 공업용 건물 | B72: 790000 | C72: (통나무조) | D72: 135 | E72: (2) 공장사무실 | F72: 80 | G72: 1(개별공시지가 10,000원 이하) | H72: 80 | I72: 2009 | J72: =1-(0.017*(2023-$I72)) -> 0.762 | K72: 520
A73: 공업용 건물 | B73: 790000 | C73: (통나무조) | D73: 135 | E73: (2) 공장사무실 | F73: 80 | G73: 1(개별공시지가 10,000원 이하) | H73: 80 | I73: 2008 | J73: 0.745 | K73: 508
A74: 공업용 건물 | B74: 790000 | C74: (통나무조) | D74: 135 | E74: (2) 공장사무실 | F74: 80 | G74: 1(개별공시지가 10,000원 이하) | H74: 80 | I74: 2007 | J74: 0.728 | K74: 496
A75: 공업용 건물 | B75: 790000 | C75: (통나무조) | D75: 135 | E75: (2) 공장사무실 | F75: 80 | G75: 1(개별공시지가 10,000원 이하) | H75: 80 | I75: 2006 | J75: 0.711 | K75: 485
A76: 공업용 건물 | B76: 790000 | C76: (통나무조) | D76: 135 | E76: (2) 공장사무실 | F76: 80 | G76: 1(개별공시지가 10,000원 이하) | H76: 80 | I76: 2005 | J76: 0.694 | K76: 473
A77: 공업용 건물 | B77: 790000 | C77: (통나무조) | D77: 135 | E77: (2) 공장사무실 | F77: 80 | G77: 1(개별공시지가 10,000원 이하) | H77: 80 | I77: 2004 | J77: 0.677 | K77: 462
A78: 공업용 건물 | B78: 790000 | C78: (통나무조) | D78: 135 | E78: (2) 공장사무실 | F78: 80 | G78: 1(개별공시지가 10,000원 이하) | H78: 80 | I78: 2003 | J78: 0.66 | K78: 450
A79: 공업용 건물 | B79: 790000 | C79: (통나무조) | D79: 135 | E79: (2) 공장사무실 | F79: 80 | G79: 1(개별공시지가 10,000원 이하) | H79: 80 | I79: 2002 | J79: 0.643 | K79: 438
A80: 공업용 건물 | B80: 790000 | C80: (통나무조) | D80: 135 | E80: (2) 공장사무실 | F80: 80 | G80: 1(개별공시지가 10,000원 이하) | H80: 80 | I80: 2001 | J80: 0.626 | K80: 427
A81: 공업용 건물 | B81: 790000 | C81: (통나무조) | D81: 135 | E81: (2) 공장사무실 | F81: 80 | G81: 1(개별공시지가 10,000원 이하) | H81: 80 | I81: 2000 | J81: 0.609 | K81: 415
A82: 공업용 건물 | B82: 790000 | C82: (통나무조) | D82: 135 | E82: (2) 공장사무실 | F82: 80 | G82: 1(개별공시지가 10,000원 이하) | H82: 80 | I82: 1999 | J82: 0.592 | K82: 404
A83: 공업용 건물 | B83: 790000 | C83: (통나무조) | D83: 135 | E83: (2) 공장사무실 | F83: 80 | G83: 1(개별공시지가 10,000원 이하) | H83: 80 | I83: 1998 | J83: 0.575 | K83: 392
A84: 공업용 건물 | B84: 790000 | C84: (통나무조) | D84: 135 | E84: (2) 공장사무실 | F84: 80 | G84: 1(개별공시지가 10,000원 이하) | H84: 80 | I84: 1997 | J84: 0.558 | K84: 380
A85: 공업용 건물 | B85: 790000 | C85: (통나무조) | D85: 135 | E85: (2) 공장사무실 | F85: 80 | G85: 1(개별공시지가 10,000원 이하) | H85: 80 | I85: 1996 | J85: 0.541 | K85: 369
A86: 공업용 건물 | B86: 790000 | C86: (통나무조) | D86: 135 | E86: (2) 공장사무실 | F86: 80 | G86: 1(개별공시지가 10,000원 이하) | H86: 80 | I86: 1995 | J86: 0.524 | K86: 357
A87: 공업용 건물 | B87: 790000 | C87: (통나무조) | D87: 135 | E87: (2) 공장사무실 | F87: 80 | G87: 1(개별공시지가 10,000원 이하) | H87: 80 | I87: 1994 | J87: 0.507 | K87: 346
A88: 공업용 건물 | B88: 790000 | C88: (통나무조) | D88: 135 | E88: (2) 공장사무실 | F88: 80 | G88: 1(개별공시지가 10,000원 이하) | H88: 80 | I88: 1993 | J88: 0.49 | K88: 334
A89: 공업용 건물 | B89: 790000 | C89: (통나무조) | D89: 135 | E89: (2) 공장사무실 | F89: 80 | G89: 1(개별공시지가 10,000원 이하) | H89: 80 | I89: 1992 | J89: 0.473 | K89: 322
A90: 공업용 건물 | B90: 790000 | C90: (통나무조) | D90: 135 | E90: (2) 공장사무실 | F90: 80 | G90: 1(개별공시지가 10,000원 이하) | H90: 80 | I90: 1991 | J90: 0.456 | K90: 311
A91: 공업용 건물 | B91: 790000 | C91: (통나무조) | D91: 135 | E91: (2) 공장사무실 | F91: 80 | G91: 1(개별공시지가 10,000원 이하) | H91: 80 | I91: 1990 | J91: 0.439 | K91: 299
A92: 공업용 건물 | B92: 790000 | C92: (통나무조) | D92: 135 | E92: (2) 공장사무실 | F92: 80 | G92: 1(개별공시지가 10,000원 이하) | H92: 80 | I92: 1989 | J92: 0.422 | K92: 288
A93: 공업용 건물 | B93: 790000 | C93: (통나무조) | D93: 135 | E93: (2) 공장사무실 | F93: 80 | G93: 1(개별공시지가 10,000원 이하) | H93: 80 | I93: 1988 | J93: 0.405 | K93: 276
A94: 공업용 건물 | B94: 790000 | C94: (통나무조) | D94: 135 | E94: (2) 공장사무실 | F94: 80 | G94: 1(개별공시지가 10,000원 이하) | H94: 80 | I94: 1987 | J94: 0.388 | K94: 264
A95: 공업용 건물 | B95: 790000 | C95: (통나무조) | D95: 135 | E95: (2) 공장사무실 | F95: 80 | G95: 1(개별공시지가 10,000원 이하) | H95: 80 | I95: 1986 | J95: 0.371 | K95: 253
A96: 공업용 건물 | B96: 790000 | C96: (통나무조) | D96: 135 | E96: (2) 공장사무실 | F96: 80 | G96: 1(개별공시지가 10,000원 이하) | H96: 80 | I96: 1985 | J96: 0.354 | K96: 241
A97: 공업용 건물 | B97: 790000 | C97: (통나무조) | D97: 135 | E97: (2) 공장사무실 | F97: 80 | G97: 1(개별공시지가 10,000원 이하) | H97: 80 | I97: 1984 | J97: 0.337 | K97: 230
A98: 공업용 건물 | B98: 790000 | C98: (통나무조) | D98: 135 | E98: (2) 공장사무실 | F98: 80 | G98: 1(개별공시지가 10,000원 이하) | H98: 80 | I98: 1983 | J98: 0.32 | K98: 218
A99: 공업용 건물 | B99: 790000 | C99: (통나무조) | D99: 135 | E99: (2) 공장사무실 | F99: 80 | G99: 1(개별공시지가 10,000원 이하) | H99: 80 | I99: 1982 | J99: 0.303 | K99: 206
A100: 공업용 건물 | B100: 790000 | C100: (통나무조) | D100: 135 | E100: (2) 공장사무실 | F100: 80 | G100: 1(개별공시지가 10,000원 이하) | H100: 80 | I100: 1981 | J100: 0.286 | K100: 195
A101: 공업용 건물 | B101: 790000 | C101: (통나무조) | D101: 135 | E101: (2) 공장사무실 | F101: 80 | G101: 1(개별공시지가 10,000원 이하) | H101: 80 | I101: 1980 | J101: 0.269 | K101: 183
A102: 공업용 건물 | B102: 790000 | C102: (통나무조) | D102: 135 | E102: (2) 공장사무실 | F102: 80 | G102: 1(개별공시지가 10,000원 이하) | H102: 80 | I102: 1979 | J102: 0.252 | K102: 172
A103: 공업용 건물 | B103: 790000 | C103: (통나무조) | D103: 135 | E103: (2) 공장사무실 | F103: 80 | G103: 1(개별공시지가 10,000원 이하) | H103: 80 | I103: 1978 | J103: 0.235 | K103: 160
A104: 공업용 건물 | B104: 790000 | C104: (통나무조) | D104: 135 | E104: (2) 공장사무실 | F104: 80 | G104: 1(개별공시지가 10,000원 이하) | H104: 80 | I104: 1977 | J104: 0.218 | K104: 148
A105: 공업용 건물 | B105: 790000 | C105: (통나무조) | D105: 135 | E105: (2) 공장사무실 | F105: 80 | G105: 1(개별공시지가 10,000원 이하) | H105: 80 | I105: 1976 | J105: 0.201 | K105: 137
A106: 공업용 건물 | B106: 790000 | C106: (통나무조) | D106: 135 | E106: (2) 공장사무실 | F106: 80 | G106: 1(개별공시지가 10,000원 이하) | H106: 80 | I106: 1975 | J106: 0.184 | K106: 125
A107: 공업용 건물 | B107: 790000 | C107: (통나무조) | D107: 135 | E107: (2) 공장사무실 | F107: 80 | G107: 1(개별공시지가 10,000원 이하) | H107: 80 | I107: 1974 | J107: 0.167 | K107: 113
A108: 공업용 건물 | B108: 790000 | C108: (통나무조) | D108: 135 | E108: (2) 공장사무실 | F108: 80 | G108: 1(개별공시지가 10,000원 이하) | H108: 80 | I108: 50년 이상 | J108: =1-(0.017*(50)) -> 0.15 | K108: 102
A109: 공업용 건물 | B109: 790000 | C109: (통나무조) | D109: 135 | E109: (6) 창고(냉동․냉장창고, 주거용 창고, 사무실용 창고 및 전업농어가주택 창고 제외) | F109: 80 | G109: 1(개별공시지가 10,000원 이하) | H109: 80 | I109: 2023 | J109: =1-(0.017*(2023-$I109)) -> 1 | K109: 682
A110: 공업용 건물 | B110: 790000 | C110: (통나무조) | D110: 135 | E110: (6) 창고(냉동․냉장창고, 주거용 창고, 사무실용 창고 및 전업농어가주택 창고 제외) | F110: 80 | G110: 1(개별공시지가 10,000원 이하) | H110: 80 | I110: 2022 | J110: =1-(0.017*(2023-$I110)) -> 0.983 | K110: 670
A111: 공업용 건물 | B111: 790000 | C111: (통나무조) | D111: 135 | E111: (6) 창고(냉동․냉장창고, 주거용 창고, 사무실용 창고 및 전업농어가주택 창고 제외) | F111: 80 | G111: 1(개별공시지가 10,000원 이하) | H111: 80 | I111: 2021 | J111: 0.966 | K111: 659
A112: 공업용 건물 | B112: 790000 | C112: (통나무조) | D112: 135 | E112: (6) 창고(냉동․냉장창고, 주거용 창고, 사무실용 창고 및 전업농어가주택 창고 제외) | F112: 80 | G112: 1(개별공시지가 10,000원 이하) | H112: 80 | I112: 2020 | J112: 0.949 | K112: 647
A113: 공업용 건물 | B113: 790000 | C113: (통나무조) | D113: 135 | E113: (6) 창고(냉동․냉장창고, 주거용 창고, 사무실용 창고 및 전업농어가주택 창고 제외) | F113: 80 | G113: 1(개별공시지가 10,000원 이하) | H113: 80 | I113: 2019 | J113: 0.932 | K113: 636
A114: 공업용 건물 | B114: 790000 | C114: (통나무조) | D114: 135 | E114: (6) 창고(냉동․냉장창고, 주거용 창고, 사무실용 창고 및 전업농어가주택 창고 제외) | F114: 80 | G114: 1(개별공시지가 10,000원 이하) | H114: 80 | I114: 2018 | J114: 0.915 | K114: 624
A115: 공업용 건물 | B115: 790000 | C115: (통나무조) | D115: 135 | E115: (6) 창고(냉동․냉장창고, 주거용 창고, 사무실용 창고 및 전업농어가주택 창고 제외) | F115: 80 | G115: 1(개별공시지가 10,000원 이하) | H115: 80 | I115: 2017 | J115: 0.898 | K115: 612
A116: 공업용 건물 | B116: 790000 | C116: (통나무조) | D116: 135 | E116: (6) 창고(냉동․냉장창고, 주거용 창고, 사무실용 창고 및 전업농어가주택 창고 제외) | F116: 80 | G116: 1(개별공시지가 10,000원 이하) | H116: 80 | I116: 2016 | J116: 0.881 | K116: 601
A117: 공업용 건물 | B117: 790000 | C117: (통나무조) | D117: 135 | E117: (6) 창고(냉동․냉장창고, 주거용 창고, 사무실용 창고 및 전업농어가주택 창고 제외) | F117: 80 | G117: 1(개별공시지가 10,000원 이하) | H117: 80 | I117: 2015 | J117: 0.864 | K117: 589
A118: 공업용 건물 | B118: 790000 | C118: (통나무조) | D118: 135 | E118: (6) 창고(냉동․냉장창고, 주거용 창고, 사무실용 창고 및 전업농어가주택 창고 제외) | F118: 80 | G118: 1(개별공시지가 10,000원 이하) | H118: 80 | I118: 2014 | J118: 0.847 | K118: 578
A119: 공업용 건물 | B119: 790000 | C119: (통나무조) | D119: 135 | E119: (6) 창고(냉동․냉장창고, 주거용 창고, 사무실용 창고 및 전업농어가주택 창고 제외) | F119: 80 | G119: 1(개별공시지가 10,000원 이하) | H119: 80 | I119: 2013 | J119: 0.83 | K119: 566
A120: 공업용 건물 | B120: 790000 | C120: (통나무조) | D120: 135 | E120: (6) 창고(냉동․냉장창고, 주거용 창고, 사무실용 창고 및 전업농어가주택 창고 제외) | F120: 80 | G120: 1(개별공시지가 10,000원 이하) | H120: 80 | I120: 2012 | J120: 0.813 | K120: 554
A121: 공업용 건물 | B121: 790000 | C121: (통나무조) | D121: 135 | E121: (6) 창고(냉동․냉장창고, 주거용 창고, 사무실용 창고 및 전업농어가주택 창고 제외) | F121: 80 | G121: 1(개별공시지가 10,000원 이하) | H121: 80 | I121: 2011 | J121: 0.796 | K121: 543
A122: 공업용 건물 | B122: 790000 | C122: (통나무조) | D122: 135 | E122: (6) 창고(냉동․냉장창고, 주거용 창고, 사무실용 창고 및 전업농어가주택 창고 제외) | F122: 80 | G122: 1(개별공시지가 10,000원 이하) | H122: 80 | I122: 2010 | J122: 0.779 | K122: 531
A123: 공업용 건물 | B123: 790000 | C123: (통나무조) | D123: 135 | E123: (6) 창고(냉동․냉장창고, 주거용 창고, 사무실용 창고 및 전업농어가주택 창고 제외) | F123: 80 | G123: 1(개별공시지가 10,000원 이하) | H123: 80 | I123: 2009 | J123: 0.762 | K123: 520
A124: 공업용 건물 | B124: 790000 | C124: (통나무조) | D124: 135 | E124: (6) 창고(냉동․냉장창고, 주거용 창고, 사무실용 창고 및 전업농어가주택 창고 제외) | F124: 80 | G124: 1(개별공시지가 10,000원 이하) | H124: 80 | I124: 2008 | J124: 0.745 | K124: 508
A125: 공업용 건물 | B125: 790000 | C125: (통나무조) | D125: 135 | E125: (6) 창고(냉동․냉장창고, 주거용 창고, 사무실용 창고 및 전업농어가주택 창고 제외) | F125: 80 | G125: 1(개별공시지가 10,000원 이하) | H125: 80 | I125: 2007 | J125: 0.728 | K125: 496
A126: 공업용 건물 | B126: 790000 | C126: (통나무조) | D126: 135 | E126: (6) 창고(냉동․냉장창고, 주거용 창고, 사무실용 창고 및 전업농어가주택 창고 제외) | F126: 80 | G126: 1(개별공시지가 10,000원 이하) | H126: 80 | I126: 2006 | J126: 0.711 | K126: 485
A127: 공업용 건물 | B127: 790000 | C127: (통나무조) | D127: 135 | E127: (6) 창고(냉동․냉장창고, 주거용 창고, 사무실용 창고 및 전업농어가주택 창고 제외) | F127: 80 | G127: 1(개별공시지가 10,000원 이하) | H127: 80 | I127: 2005 | J127: 0.694 | K127: 473
A128: 공업용 건물 | B128: 790000 | C128: (통나무조) | D128: 135 | E128: (6) 창고(냉동․냉장창고, 주거용 창고, 사무실용 창고 및 전업농어가주택 창고 제외) | F128: 80 | G128: 1(개별공시지가 10,000원 이하) | H128: 80 | I128: 2004 | J128: 0.677 | K128: 462
A129: 공업용 건물 | B129: 790000 | C129: (통나무조) | D129: 135 | E129: (6) 창고(냉동․냉장창고, 주거용 창고, 사무실용 창고 및 전업농어가주택 창고 제외) | F129: 80 | G129: 1(개별공시지가 10,000원 이하) | H129: 80 | I129: 2003 | J129: 0.66 | K129: 450
A130: 공업용 건물 | B130: 790000 | C130: (통나무조) | D130: 135 | E130: (6) 창고(냉동․냉장창고, 주거용 창고, 사무실용 창고 및 전업농어가주택 창고 제외) | F130: 80 | G130: 1(개별공시지가 10,000원 이하) | H130: 80 | I130: 2002 | J130: 0.643 | K130: 438
A131: 공업용 건물 | B131: 790000 | C131: (통나무조) | D131: 135 | E131: (6) 창고(냉동․냉장창고, 주거용 창고, 사무실용 창고 및 전업농어가주택 창고 제외) | F131: 80 | G131: 1(개별공시지가 10,000원 이하) | H131: 80 | I131: 2001 | J131: 0.626 | K131: 427
A132: 공업용 건물 | B132: 790000 | C132: (통나무조) | D132: 135 | E132: (6) 창고(냉동․냉장창고, 주거용 창고, 사무실용 창고 및 전업농어가주택 창고 제외) | F132: 80 | G132: 1(개별공시지가 10,000원 이하) | H132: 80 | I132: 2000 | J132: 0.609 | K132: 415
A133: 공업용 건물 | B133: 790000 | C133: (통나무조) | D133: 135 | E133: (6) 창고(냉동․냉장창고, 주거용 창고, 사무실용 창고 및 전업농어가주택 창고 제외) | F133: 80 | G133: 1(개별공시지가 10,000원 이하) | H133: 80 | I133: 1999 | J133: 0.592 | K133: 404
A134: 공업용 건물 | B134: 790000 | C134: (통나무조) | D134: 135 | E134: (6) 창고(냉동․냉장창고, 주거용 창고, 사무실용 창고 및 전업농어가주택 창고 제외) | F134: 80 | G134: 1(개별공시지가 10,000원 이하) | H134: 80 | I134: 1998 | J134: 0.575 | K134: 392
A135: 공업용 건물 | B135: 790000 | C135: (통나무조) | D135: 135 | E135: (6) 창고(냉동․냉장창고, 주거용 창고, 사무실용 창고 및 전업농어가주택 창고 제외) | F135: 80 | G135: 1(개별공시지가 10,000원 이하) | H135: 80 | I135: 1997 | J135: 0.558 | K135: =ROUNDDOWN(B135*D135/100*F135/100*H135/100*J135/1000,0) -> 380
A136: 공업용 건물 | B136: 790000 | C136: (통나무조) | D136: 135 | E136: (6) 창고(냉동․냉장창고, 주거용 창고, 사무실용 창고 및 전업농어가주택 창고 제외) | F136: 80 | G136: 1(개별공시지가 10,000원 이하) | H136: 80 | I136: 1996 | J136: 0.541 | K136: 369
A137: 공업용 건물 | B137: 790000 | C137: (통나무조) | D137: 135 | E137: (6) 창고(냉동․냉장창고, 주거용 창고, 사무실용 창고 및 전업농어가주택 창고 제외) | F137: 80 | G137: 1(개별공시지가 10,000원 이하) | H137: 80 | I137: 1995 | J137: 0.524 | K137: 357
A138: 공업용 건물 | B138: 790000 | C138: (통나무조) | D138: 135 | E138: (6) 창고(냉동․냉장창고, 주거용 창고, 사무실용 창고 및 전업농어가주택 창고 제외) | F138: 80 | G138: 1(개별공시지가 10,000원 이하) | H138: 80 | I138: 1994 | J138: 0.507 | K138: 346
A139: 공업용 건물 | B139: 790000 | C139: (통나무조) | D139: 135 | E139: (6) 창고(냉동․냉장창고, 주거용 창고, 사무실용 창고 및 전업농어가주택 창고 제외) | F139: 80 | G139: 1(개별공시지가 10,000원 이하) | H139: 80 | I139: 1993 | J139: 0.49 | K139: 334
A140: 공업용 건물 | B140: 790000 | C140: (통나무조) | D140: 135 | E140: (6) 창고(냉동․냉장창고, 주거용 창고, 사무실용 창고 및 전업농어가주택 창고 제외) | F140: 80 | G140: 1(개별공시지가 10,000원 이하) | H140: 80 | I140: 1992 | J140: 0.473 | K140: 322
A141: 공업용 건물 | B141: 790000 | C141: (통나무조) | D141: 135 | E141: (6) 창고(냉동․냉장창고, 주거용 창고, 사무실용 창고 및 전업농어가주택 창고 제외) | F141: 80 | G141: 1(개별공시지가 10,000원 이하) | H141: 80 | I141: 1991 | J141: 0.456 | K141: 311
A142: 공업용 건물 | B142: 790000 | C142: (통나무조) | D142: 135 | E142: (6) 창고(냉동․냉장창고, 주거용 창고, 사무실용 창고 및 전업농어가주택 창고 제외) | F142: 80 | G142: 1(개별공시지가 10,000원 이하) | H142: 80 | I142: 1990 | J142: 0.439 | K142: 299
A143: 공업용 건물 | B143: 790000 | C143: (통나무조) | D143: 135 | E143: (6) 창고(냉동․냉장창고, 주거용 창고, 사무실용 창고 및 전업농어가주택 창고 제외) | F143: 80 | G143: 1(개별공시지가 10,000원 이하) | H143: 80 | I143: 1989 | J143: 0.422 | K143: 288
A144: 공업용 건물 | B144: 790000 | C144: (통나무조) | D144: 135 | E144: (6) 창고(냉동․냉장창고, 주거용 창고, 사무실용 창고 및 전업농어가주택 창고 제외) | F144: 80 | G144: 1(개별공시지가 10,000원 이하) | H144: 80 | I144: 1988 | J144: 0.405 | K144: 276
A145: 공업용 건물 | B145: 790000 | C145: (통나무조) | D145: 135 | E145: (6) 창고(냉동․냉장창고, 주거용 창고, 사무실용 창고 및 전업농어가주택 창고 제외) | F145: 80 | G145: 1(개별공시지가 10,000원 이하) | H145: 80 | I145: 1987 | J145: 0.388 | K145: 264
A146: 공업용 건물 | B146: 790000 | C146: (통나무조) | D146: 135 | E146: (6) 창고(냉동․냉장창고, 주거용 창고, 사무실용 창고 및 전업농어가주택 창고 제외) | F146: 80 | G146: 1(개별공시지가 10,000원 이하) | H146: 80 | I146: 1986 | J146: 0.371 | K146: 253
A147: 공업용 건물 | B147: 790000 | C147: (통나무조) | D147: 135 | E147: (6) 창고(냉동․냉장창고, 주거용 창고, 사무실용 창고 및 전업농어가주택 창고 제외) | F147: 80 | G147: 1(개별공시지가 10,000원 이하) | H147: 80 | I147: 1985 | J147: 0.354 | K147: 241
A148: 공업용 건물 | B148: 790000 | C148: (통나무조) | D148: 135 | E148: (6) 창고(냉동․냉장창고, 주거용 창고, 사무실용 창고 및 전업농어가주택 창고 제외) | F148: 80 | G148: 1(개별공시지가 10,000원 이하) | H148: 80 | I148: 1984 | J148: 0.337 | K148: 230
A149: 공업용 건물 | B149: 790000 | C149: (통나무조) | D149: 135 | E149: (6) 창고(냉동․냉장창고, 주거용 창고, 사무실용 창고 및 전업농어가주택 창고 제외) | F149: 80 | G149: 1(개별공시지가 10,000원 이하) | H149: 80 | I149: 1983 | J149: 0.32 | K149: 218
A150: 공업용 건물 | B150: 790000 | C150: (통나무조) | D150: 135 | E150: (6) 창고(냉동․냉장창고, 주거용 창고, 사무실용 창고 및 전업농어가주택 창고 제외) | F150: 80 | G150: 1(개별공시지가 10,000원 이하) | H150: 80 | I150: 1982 | J150: 0.303 | K150: 206
A151: 공업용 건물 | B151: 790000 | C151: (통나무조) | D151: 135 | E151: (6) 창고(냉동․냉장창고, 주거용 창고, 사무실용 창고 및 전업농어가주택 창고 제외) | F151: 80 | G151: 1(개별공시지가 10,000원 이하) | H151: 80 | I151: 1981 | J151: 0.286 | K151: 195
A152: 공업용 건물 | B152: 790000 | C152: (통나무조) | D152: 135 | E152: (6) 창고(냉동․냉장창고, 주거용 창고, 사무실용 창고 및 전업농어가주택 창고 제외) | F152: 80 | G152: 1(개별공시지가 10,000원 이하) | H152: 80 | I152: 1980 | J152: 0.269 | K152: 183
A153: 공업용 건물 | B153: 790000 | C153: (통나무조) | D153: 135 | E153: (6) 창고(냉동․냉장창고, 주거용 창고, 사무실용 창고 및 전업농어가주택 창고 제외) | F153: 80 | G153: 1(개별공시지가 10,000원 이하) | H153: 80 | I153: 1979 | J153: 0.252 | K153: 172
A154: 공업용 건물 | B154: 790000 | C154: (통나무조) | D154: 135 | E154: (6) 창고(냉동․냉장창고, 주거용 창고, 사무실용 창고 및 전업농어가주택 창고 제외) | F154: 80 | G154: 1(개별공시지가 10,000원 이하) | H154: 80 | I154: 1978 | J154: 0.235 | K154: 160
A155: 공업용 건물 | B155: 790000 | C155: (통나무조) | D155: 135 | E155: (6) 창고(냉동․냉장창고, 주거용 창고, 사무실용 창고 및 전업농어가주택 창고 제외) | F155: 80 | G155: 1(개별공시지가 10,000원 이하) | H155: 80 | I155: 1977 | J155: 0.218 | K155: 148
A156: 공업용 건물 | B156: 790000 | C156: (통나무조) | D156: 135 | E156: (6) 창고(냉동․냉장창고, 주거용 창고, 사무실용 창고 및 전업농어가주택 창고 제외) | F156: 80 | G156: 1(개별공시지가 10,000원 이하) | H156: 80 | I156: 1976 | J156: 0.201 | K156: 137
A157: 공업용 건물 | B157: 790000 | C157: (통나무조) | D157: 135 | E157: (6) 창고(냉동․냉장창고, 주거용 창고, 사무실용 창고 및 전업농어가주택 창고 제외) | F157: 80 | G157: 1(개별공시지가 10,000원 이하) | H157: 80 | I157: 1975 | J157: 0.184 | K157: 125
A158: 공업용 건물 | B158: 790000 | C158: (통나무조) | D158: 135 | E158: (6) 창고(냉동․냉장창고, 주거용 창고, 사무실용 창고 및 전업농어가주택 창고 제외) | F158: 80 | G158: 1(개별공시지가 10,000원 이하) | H158: 80 | I158: 1974 | J158: 0.167 | K158: 113
A159: 공업용 건물 | B159: 790000 | C159: (통나무조) | D159: 135 | E159: (6) 창고(냉동․냉장창고, 주거용 창고, 사무실용 창고 및 전업농어가주택 창고 제외) | F159: 80 | G159: 1(개별공시지가 10,000원 이하) | H159: 80 | I159: 50년 이상 | J159: =1-(0.017*(50)) -> 0.15 | K159: 102
A160: 공업용 건물 | B160: 790000 | C160: (통나무조) | D160: 135 | E160: (8) 하수 등 처리시설, 고물상, 폐기물 재활용 시설, 폐기물 처분시설 및 폐기물 감량화시설 | F160: 80 | G160: 1(개별공시지가 10,000원 이하) | H160: 80 | I160: 2023 | J160: =1-(0.017*(2023-$I160)) -> 1 | K160: 682
A161: 공업용 건물 | B161: 790000 | C161: (통나무조) | D161: 135 | E161: (8) 하수 등 처리시설, 고물상, 폐기물 재활용 시설, 폐기물 처분시설 및 폐기물 감량화시설 | F161: 80 | G161: 1(개별공시지가 10,000원 이하) | H161: 80 | I161: 2022 | J161: 0.983 | K161: 670
A162: 공업용 건물 | B162: 790000 | C162: (통나무조) | D162: 135 | E162: (8) 하수 등 처리시설, 고물상, 폐기물 재활용 시설, 폐기물 처분시설 및 폐기물 감량화시설 | F162: 80 | G162: 1(개별공시지가 10,000원 이하) | H162: 80 | I162: 2021 | J162: 0.966 | K162: 659
A163: 공업용 건물 | B163: 790000 | C163: (통나무조) | D163: 135 | E163: (8) 하수 등 처리시설, 고물상, 폐기물 재활용 시설, 폐기물 처분시설 및 폐기물 감량화시설 | F163: 80 | G163: 1(개별공시지가 10,000원 이하) | H163: 80 | I163: 2020 | J163: 0.949 | K163: 647
A164: 공업용 건물 | B164: 790000 | C164: (통나무조) | D164: 135 | E164: (8) 하수 등 처리시설, 고물상, 폐기물 재활용 시설, 폐기물 처분시설 및 폐기물 감량화시설 | F164: 80 | G164: 1(개별공시지가 10,000원 이하) | H164: 80 | I164: 2019 | J164: 0.932 | K164: 636
A165: 공업용 건물 | B165: 790000 | C165: (통나무조) | D165: 135 | E165: (8) 하수 등 처리시설, 고물상, 폐기물 재활용 시설, 폐기물 처분시설 및 폐기물 감량화시설 | F165: 80 | G165: 1(개별공시지가 10,000원 이하) | H165: 80 | I165: 2018 | J165: 0.915 | K165: 624
A166: 공업용 건물 | B166: 790000 | C166: (통나무조) | D166: 135 | E166: (8) 하수 등 처리시설, 고물상, 폐기물 재활용 시설, 폐기물 처분시설 및 폐기물 감량화시설 | F166: 80 | G166: 1(개별공시지가 10,000원 이하) | H166: 80 | I166: 2017 | J166: 0.898 | K166: 612
A167: 공업용 건물 | B167: 790000 | C167: (통나무조) | D167: 135 | E167: (8) 하수 등 처리시설, 고물상, 폐기물 재활용 시설, 폐기물 처분시설 및 폐기물 감량화시설 | F167: 80 | G167: 1(개별공시지가 10,000원 이하) | H167: 80 | I167: 2016 | J167: 0.881 | K167: 601
A168: 공업용 건물 | B168: 790000 | C168: (통나무조) | D168: 135 | E168: (8) 하수 등 처리시설, 고물상, 폐기물 재활용 시설, 폐기물 처분시설 및 폐기물 감량화시설 | F168: 80 | G168: 1(개별공시지가 10,000원 이하) | H168: 80 | I168: 2015 | J168: 0.864 | K168: 589
A169: 공업용 건물 | B169: 790000 | C169: (통나무조) | D169: 135 | E169: (8) 하수 등 처리시설, 고물상, 폐기물 재활용 시설, 폐기물 처분시설 및 폐기물 감량화시설 | F169: 80 | G169: 1(개별공시지가 10,000원 이하) | H169: 80 | I169: 2014 | J169: 0.847 | K169: 578
A170: 공업용 건물 | B170: 790000 | C170: (통나무조) | D170: 135 | E170: (8) 하수 등 처리시설, 고물상, 폐기물 재활용 시설, 폐기물 처분시설 및 폐기물 감량화시설 | F170: 80 | G170: 1(개별공시지가 10,000원 이하) | H170: 80 | I170: 2013 | J170: 0.83 | K170: 566
A171: 공업용 건물 | B171: 790000 | C171: (통나무조) | D171: 135 | E171: (8) 하수 등 처리시설, 고물상, 폐기물 재활용 시설, 폐기물 처분시설 및 폐기물 감량화시설 | F171: 80 | G171: 1(개별공시지가 10,000원 이하) | H171: 80 | I171: 2012 | J171: 0.813 | K171: 554
A172: 공업용 건물 | B172: 790000 | C172: (통나무조) | D172: 135 | E172: (8) 하수 등 처리시설, 고물상, 폐기물 재활용 시설, 폐기물 처분시설 및 폐기물 감량화시설 | F172: 80 | G172: 1(개별공시지가 10,000원 이하) | H172: 80 | I172: 2011 | J172: 0.796 | K172: 543
A173: 공업용 건물 | B173: 790000 | C173: (통나무조) | D173: 135 | E173: (8) 하수 등 처리시설, 고물상, 폐기물 재활용 시설, 폐기물 처분시설 및 폐기물 감량화시설 | F173: 80 | G173: 1(개별공시지가 10,000원 이하) | H173: 80 | I173: 2010 | J173: 0.779 | K173: 531
A174: 공업용 건물 | B174: 790000 | C174: (통나무조) | D174: 135 | E174: (8) 하수 등 처리시설, 고물상, 폐기물 재활용 시설, 폐기물 처분시설 및 폐기물 감량화시설 | F174: 80 | G174: 1(개별공시지가 10,000원 이하) | H174: 80 | I174: 2009 | J174: =1-(0.017*(2023-$I174)) -> 0.762 | K174: 520
A175: 공업용 건물 | B175: 790000 | C175: (통나무조) | D175: 135 | E175: (8) 하수 등 처리시설, 고물상, 폐기물 재활용 시설, 폐기물 처분시설 및 폐기물 감량화시설 | F175: 80 | G175: 1(개별공시지가 10,000원 이하) | H175: 80 | I175: 2008 | J175: 0.745 | K175: 508
A176: 공업용 건물 | B176: 790000 | C176: (통나무조) | D176: 135 | E176: (8) 하수 등 처리시설, 고물상, 폐기물 재활용 시설, 폐기물 처분시설 및 폐기물 감량화시설 | F176: 80 | G176: 1(개별공시지가 10,000원 이하) | H176: 80 | I176: 2007 | J176: 0.728 | K176: 496
A177: 공업용 건물 | B177: 790000 | C177: (통나무조) | D177: 135 | E177: (8) 하수 등 처리시설, 고물상, 폐기물 재활용 시설, 폐기물 처분시설 및 폐기물 감량화시설 | F177: 80 | G177: 1(개별공시지가 10,000원 이하) | H177: 80 | I177: 2006 | J177: 0.711 | K177: 485
A178: 공업용 건물 | B178: 790000 | C178: (통나무조) | D178: 135 | E178: (8) 하수 등 처리시설, 고물상, 폐기물 재활용 시설, 폐기물 처분시설 및 폐기물 감량화시설 | F178: 80 | G178: 1(개별공시지가 10,000원 이하) | H178: 80 | I178: 2005 | J178: 0.694 | K178: 473
A179: 공업용 건물 | B179: 790000 | C179: (통나무조) | D179: 135 | E179: (8) 하수 등 처리시설, 고물상, 폐기물 재활용 시설, 폐기물 처분시설 및 폐기물 감량화시설 | F179: 80 | G179: 1(개별공시지가 10,000원 이하) | H179: 80 | I179: 2004 | J179: 0.677 | K179: 462
A180: 공업용 건물 | B180: 790000 | C180: (통나무조) | D180: 135 | E180: (8) 하수 등 처리시설, 고물상, 폐기물 재활용 시설, 폐기물 처분시설 및 폐기물 감량화시설 | F180: 80 | G180: 1(개별공시지가 10,000원 이하) | H180: 80 | I180: 2003 | J180: 0.66 | K180: 450
A181: 공업용 건물 | B181: 790000 | C181: (통나무조) | D181: 135 | E181: (8) 하수 등 처리시설, 고물상, 폐기물 재활용 시설, 폐기물 처분시설 및 폐기물 감량화시설 | F181: 80 | G181: 1(개별공시지가 10,000원 이하) | H181: 80 | I181: 2002 | J181: 0.643 | K181: 438
A182: 공업용 건물 | B182: 790000 | C182: (통나무조) | D182: 135 | E182: (8) 하수 등 처리시설, 고물상, 폐기물 재활용 시설, 폐기물 처분시설 및 폐기물 감량화시설 | F182: 80 | G182: 1(개별공시지가 10,000원 이하) | H182: 80 | I182: 2001 | J182: 0.626 | K182: 427
A183: 공업용 건물 | B183: 790000 | C183: (통나무조) | D183: 135 | E183: (8) 하수 등 처리시설, 고물상, 폐기물 재활용 시설, 폐기물 처분시설 및 폐기물 감량화시설 | F183: 80 | G183: 1(개별공시지가 10,000원 이하) | H183: 80 | I183: 2000 | J183: 0.609 | K183: 415
A184: 공업용 건물 | B184: 790000 | C184: (통나무조) | D184: 135 | E184: (8) 하수 등 처리시설, 고물상, 폐기물 재활용 시설, 폐기물 처분시설 및 폐기물 감량화시설 | F184: 80 | G184: 1(개별공시지가 10,000원 이하) | H184: 80 | I184: 1999 | J184: 0.592 | K184: 404
A185: 공업용 건물 | B185: 790000 | C185: (통나무조) | D185: 135 | E185: (8) 하수 등 처리시설, 고물상, 폐기물 재활용 시설, 폐기물 처분시설 및 폐기물 감량화시설 | F185: 80 | G185: 1(개별공시지가 10,000원 이하) | H185: 80 | I185: 1998 | J185: 0.575 | K185: 392
A186: 공업용 건물 | B186: 790000 | C186: (통나무조) | D186: 135 | E186: (8) 하수 등 처리시설, 고물상, 폐기물 재활용 시설, 폐기물 처분시설 및 폐기물 감량화시설 | F186: 80 | G186: 1(개별공시지가 10,000원 이하) | H186: 80 | I186: 1997 | J186: 0.558 | K186: 380
A187: 공업용 건물 | B187: 790000 | C187: (통나무조) | D187: 135 | E187: (8) 하수 등 처리시설, 고물상, 폐기물 재활용 시설, 폐기물 처분시설 및 폐기물 감량화시설 | F187: 80 | G187: 1(개별공시지가 10,000원 이하) | H187: 80 | I187: 1996 | J187: 0.541 | K187: 369
A188: 공업용 건물 | B188: 790000 | C188: (통나무조) | D188: 135 | E188: (8) 하수 등 처리시설, 고물상, 폐기물 재활용 시설, 폐기물 처분시설 및 폐기물 감량화시설 | F188: 80 | G188: 1(개별공시지가 10,000원 이하) | H188: 80 | I188: 1995 | J188: 0.524 | K188: 357
A189: 공업용 건물 | B189: 790000 | C189: (통나무조) | D189: 135 | E189: (8) 하수 등 처리시설, 고물상, 폐기물 재활용 시설, 폐기물 처분시설 및 폐기물 감량화시설 | F189: 80 | G189: 1(개별공시지가 10,000원 이하) | H189: 80 | I189: 1994 | J189: 0.507 | K189: 346
A190: 공업용 건물 | B190: 790000 | C190: (통나무조) | D190: 135 | E190: (8) 하수 등 처리시설, 고물상, 폐기물 재활용 시설, 폐기물 처분시설 및 폐기물 감량화시설 | F190: 80 | G190: 1(개별공시지가 10,000원 이하) | H190: 80 | I190: 1993 | J190: 0.49 | K190: 334
A191: 공업용 건물 | B191: 790000 | C191: (통나무조) | D191: 135 | E191: (8) 하수 등 처리시설, 고물상, 폐기물 재활용 시설, 폐기물 처분시설 및 폐기물 감량화시설 | F191: 80 | G191: 1(개별공시지가 10,000원 이하) | H191: 80 | I191: 1992 | J191: 0.473 | K191: 322
A192: 공업용 건물 | B192: 790000 | C192: (통나무조) | D192: 135 | E192: (8) 하수 등 처리시설, 고물상, 폐기물 재활용 시설, 폐기물 처분시설 및 폐기물 감량화시설 | F192: 80 | G192: 1(개별공시지가 10,000원 이하) | H192: 80 | I192: 1991 | J192: 0.456 | K192: 311
A193: 공업용 건물 | B193: 790000 | C193: (통나무조) | D193: 135 | E193: (8) 하수 등 처리시설, 고물상, 폐기물 재활용 시설, 폐기물 처분시설 및 폐기물 감량화시설 | F193: 80 | G193: 1(개별공시지가 10,000원 이하) | H193: 80 | I193: 1990 | J193: 0.439 | K193: 299
A194: 공업용 건물 | B194: 790000 | C194: (통나무조) | D194: 135 | E194: (8) 하수 등 처리시설, 고물상, 폐기물 재활용 시설, 폐기물 처분시설 및 폐기물 감량화시설 | F194: 80 | G194: 1(개별공시지가 10,000원 이하) | H194: 80 | I194: 1989 | J194: 0.422 | K194: 288
A195: 공업용 건물 | B195: 790000 | C195: (통나무조) | D195: 135 | E195: (8) 하수 등 처리시설, 고물상, 폐기물 재활용 시설, 폐기물 처분시설 및 폐기물 감량화시설 | F195: 80 | G195: 1(개별공시지가 10,000원 이하) | H195: 80 | I195: 1988 | J195: 0.405 | K195: 276
A196: 공업용 건물 | B196: 790000 | C196: (통나무조) | D196: 135 | E196: (8) 하수 등 처리시설, 고물상, 폐기물 재활용 시설, 폐기물 처분시설 및 폐기물 감량화시설 | F196: 80 | G196: 1(개별공시지가 10,000원 이하) | H196: 80 | I196: 1987 | J196: 0.388 | K196: 264
A197: 공업용 건물 | B197: 790000 | C197: (통나무조) | D197: 135 | E197: (8) 하수 등 처리시설, 고물상, 폐기물 재활용 시설, 폐기물 처분시설 및 폐기물 감량화시설 | F197: 80 | G197: 1(개별공시지가 10,000원 이하) | H197: 80 | I197: 1986 | J197: 0.371 | K197: 253
A198: 공업용 건물 | B198: 790000 | C198: (통나무조) | D198: 135 | E198: (8) 하수 등 처리시설, 고물상, 폐기물 재활용 시설, 폐기물 처분시설 및 폐기물 감량화시설 | F198: 80 | G198: 1(개별공시지가 10,000원 이하) | H198: 80 | I198: 1985 | J198: 0.354 | K198: 241
A199: 공업용 건물 | B199: 790000 | C199: (통나무조) | D199: 135 | E199: (8) 하수 등 처리시설, 고물상, 폐기물 재활용 시설, 폐기물 처분시설 및 폐기물 감량화시설 | F199: 80 | G199: 1(개별공시지가 10,000원 이하) | H199: 80 | I199: 1984 | J199: 0.337 | K199: =ROUNDDOWN(B199*D199/100*F199/100*H199/100*J199/1000,0) -> 230
A200: 공업용 건물 | B200: 790000 | C200: (통나무조) | D200: 135 | E200: (8) 하수 등 처리시설, 고물상, 폐기물 재활용 시설, 폐기물 처분시설 및 폐기물 감량화시설 | F200: 80 | G200: 1(개별공시지가 10,000원 이하) | H200: 80 | I200: 1983 | J200: 0.32 | K200: 218
... 4292 more rows

Sheet 농수산용 건물
A1: 건축물 시가표준액 일람표 본 일람표는 가감산특례 적용 전 건축물 시가표준액을 계산한 표로, 단위는 단위 면적당(㎡) 천원(1000원)이며 천원 이하의 숫자는 버림하였습니다. 문의사항: 한국지방세연구원, 최은철 주임, 02-2071-2716, ecchoi@kilf.re.kr
A2: 건물신축가격기준액구분 | B2: 구조구분 | C2: 용도구분 | D2: 위치구분 | E2: 경과연수구분 | F2: 선택번호 | G2: 2 | H2: 2 | I2: 2 | J2: 1 | K2: 1
F3: 검색 | G3: 건물신축가격기준액구분 | H3: 구조구분 | I3: 용도구분 | J3: 위치구분 | K3: 경과연수구분
A4: ※ "전부" 버튼은 2개 이상 사용하면 동작시간이 길어져 사용을 자제해주시기 바랍니다 (매크로 작동 도중 중단을 원하시면 esc 키를 눌러주시기 바랍니다) | F4: 찾기 | G4: =IF(G2=1,"",INDEX(건물신축가격기준액구분,G2)) -> 농수산용 건물 | H4: =IF(H2=1,"",INDEX(구조구분,H2)) -> (통나무조) | I4: =IF(I2=1,"",INDEX(용도구분,I2)) -> (1) 가축용운동시설, 인공수정센터, 관리사, 동물검역소, 실험동물사육시설, 양수장, 경주용마사, 도축장, 도계장 | J4: =IF(J2=1,"",INDEX(위치구분,J2)) ->  | K4: =IF(K2=1,"",INDEX(경과연수구분,K2)) -> 
A5: ※ 10년 이상 오래된 건물이 검색이 안될 경우 '경과연수구분'에 '10년 이상', '20년 이상', '30년 이상', '40년 이상', '50년 이상'을 눌러주시기 바랍니다
A6: 건물신축가격기준액구분 | B6: 건물신축가격기준액 | C6: 구조구분 | D6: 구조지수 | E6: 용도구분 | F6: 용도지수 | G6: 위치구분 | H6: 위치지수 | I6: 경과연수구분 | J6: 경과연수별잔가율 | K6: 시가표준액
A7: 농수산용 건물 | B7: 600000 | C7: (통나무조) | D7: 135 | E7: (2) 축사(양잠․양봉 및 부화장 포함), 가축시설(퇴비장, 가축용창고, 가축시장) | F7: 37 | G7: 1(개별공시지가 10,000원 이하) | H7: 80 | I7: 2023 | J7: =1-(0.017*(2023-$I7)) -> 1 | K7: =ROUNDDOWN(B7*D7/100*F7/100*H7/100*J7/1000,0) -> 239
A8: 농수산용 건물 | B8: 600000 | C8: (통나무조) | D8: 135 | E8: (2) 축사(양잠․양봉 및 부화장 포함), 가축시설(퇴비장, 가축용창고, 가축시장) | F8: 37 | G8: 1(개별공시지가 10,000원 이하) | H8: 80 | I8: 2022 | J8: =1-(0.017*(2023-$I8)) -> 0.983 | K8: 235
A9: 농수산용 건물 | B9: 600000 | C9: (통나무조) | D9: 135 | E9: (2) 축사(양잠․양봉 및 부화장 포함), 가축시설(퇴비장, 가축용창고, 가축시장) | F9: 37 | G9: 1(개별공시지가 10,000원 이하) | H9: 80 | I9: 2021 | J9: 0.966 | K9: 231
A10: 농수산용 건물 | B10: 600000 | C10: (통나무조) | D10: 135 | E10: (2) 축사(양잠․양봉 및 부화장 포함), 가축시설(퇴비장, 가축용창고, 가축시장) | F10: 37 | G10: 1(개별공시지가 10,000원 이하) | H10: 80 | I10: 2020 | J10: 0.949 | K10: 227
A11: 농수산용 건물 | B11: 600000 | C11: (통나무조) | D11: 135 | E11: (2) 축사(양잠․양봉 및 부화장 포함), 가축시설(퇴비장, 가축용창고, 가축시장) | F11: 37 | G11: 1(개별공시지가 10,000원 이하) | H11: 80 | I11: 2019 | J11: 0.932 | K11: 223
A12: 농수산용 건물 | B12: 600000 | C12: (통나무조) | D12: 135 | E12: (2) 축사(양잠․양봉 및 부화장 포함), 가축시설(퇴비장, 가축용창고, 가축시장) | F12: 37 | G12: 1(개별공시지가 10,000원 이하) | H12: 80 | I12: 2018 | J12: 0.915 | K12: 219
A13: 농수산용 건물 | B13: 600000 | C13: (통나무조) | D13: 135 | E13: (2) 축사(양잠․양봉 및 부화장 포함), 가축시설(퇴비장, 가축용창고, 가축시장) | F13: 37 | G13: 1(개별공시지가 10,000원 이하) | H13: 80 | I13: 2017 | J13: 0.898 | K13: 215
A14: 농수산용 건물 | B14: 600000 | C14: (통나무조) | D14: 135 | E14: (2) 축사(양잠․양봉 및 부화장 포함), 가축시설(퇴비장, 가축용창고, 가축시장) | F14: 37 | G14: 1(개별공시지가 10,000원 이하) | H14: 80 | I14: 2016 | J14: 0.881 | K14: 211
A15: 농수산용 건물 | B15: 600000 | C15: (통나무조) | D15: 135 | E15: (2) 축사(양잠․양봉 및 부화장 포함), 가축시설(퇴비장, 가축용창고, 가축시장) | F15: 37 | G15: 1(개별공시지가 10,000원 이하) | H15: 80 | I15: 2015 | J15: 0.864 | K15: 207
A16: 농수산용 건물 | B16: 600000 | C16: (통나무조) | D16: 135 | E16: (2) 축사(양잠․양봉 및 부화장 포함), 가축시설(퇴비장, 가축용창고, 가축시장) | F16: 37 | G16: 1(개별공시지가 10,000원 이하) | H16: 80 | I16: 2014 | J16: 0.847 | K16: 203
A17: 농수산용 건물 | B17: 600000 | C17: (통나무조) | D17: 135 | E17: (2) 축사(양잠․양봉 및 부화장 포함), 가축시설(퇴비장, 가축용창고, 가축시장) | F17: 37 | G17: 1(개별공시지가 10,000원 이하) | H17: 80 | I17: 2013 | J17: 0.83 | K17: 199
A18: 농수산용 건물 | B18: 600000 | C18: (통나무조) | D18: 135 | E18: (2) 축사(양잠․양봉 및 부화장 포함), 가축시설(퇴비장, 가축용창고, 가축시장) | F18: 37 | G18: 1(개별공시지가 10,000원 이하) | H18: 80 | I18: 2012 | J18: 0.813 | K18: 194
A19: 농수산용 건물 | B19: 600000 | C19: (통나무조) | D19: 135 | E19: (2) 축사(양잠․양봉 및 부화장 포함), 가축시설(퇴비장, 가축용창고, 가축시장) | F19: 37 | G19: 1(개별공시지가 10,000원 이하) | H19: 80 | I19: 2011 | J19: 0.796 | K19: 190
A20: 농수산용 건물 | B20: 600000 | C20: (통나무조) | D20: 135 | E20: (2) 축사(양잠․양봉 및 부화장 포함), 가축시설(퇴비장, 가축용창고, 가축시장) | F20: 37 | G20: 1(개별공시지가 10,000원 이하) | H20: 80 | I20: 2010 | J20: 0.779 | K20: 186
A21: 농수산용 건물 | B21: 600000 | C21: (통나무조) | D21: 135 | E21: (2) 축사(양잠․양봉 및 부화장 포함), 가축시설(퇴비장, 가축용창고, 가축시장) | F21: 37 | G21: 1(개별공시지가 10,000원 이하) | H21: 80 | I21: 2009 | J21: 0.762 | K21: 182
A22: 농수산용 건물 | B22: 600000 | C22: (통나무조) | D22: 135 | E22: (2) 축사(양잠․양봉 및 부화장 포함), 가축시설(퇴비장, 가축용창고, 가축시장) | F22: 37 | G22: 1(개별공시지가 10,000원 이하) | H22: 80 | I22: 2008 | J22: 0.745 | K22: 178
A23: 농수산용 건물 | B23: 600000 | C23: (통나무조) | D23: 135 | E23: (2) 축사(양잠․양봉 및 부화장 포함), 가축시설(퇴비장, 가축용창고, 가축시장) | F23: 37 | G23: 1(개별공시지가 10,000원 이하) | H23: 80 | I23: 2007 | J23: 0.728 | K23: 174
A24: 농수산용 건물 | B24: 600000 | C24: (통나무조) | D24: 135 | E24: (2) 축사(양잠․양봉 및 부화장 포함), 가축시설(퇴비장, 가축용창고, 가축시장) | F24: 37 | G24: 1(개별공시지가 10,000원 이하) | H24: 80 | I24: 2006 | J24: 0.711 | K24: 170
A25: 농수산용 건물 | B25: 600000 | C25: (통나무조) | D25: 135 | E25: (2) 축사(양잠․양봉 및 부화장 포함), 가축시설(퇴비장, 가축용창고, 가축시장) | F25: 37 | G25: 1(개별공시지가 10,000원 이하) | H25: 80 | I25: 2005 | J25: 0.694 | K25: 166
A26: 농수산용 건물 | B26: 600000 | C26: (통나무조) | D26: 135 | E26: (2) 축사(양잠․양봉 및 부화장 포함), 가축시설(퇴비장, 가축용창고, 가축시장) | F26: 37 | G26: 1(개별공시지가 10,000원 이하) | H26: 80 | I26: 2004 | J26: 0.677 | K26: 162
A27: 농수산용 건물 | B27: 600000 | C27: (통나무조) | D27: 135 | E27: (2) 축사(양잠․양봉 및 부화장 포함), 가축시설(퇴비장, 가축용창고, 가축시장) | F27: 37 | G27: 1(개별공시지가 10,000원 이하) | H27: 80 | I27: 2003 | J27: 0.66 | K27: 158
A28: 농수산용 건물 | B28: 600000 | C28: (통나무조) | D28: 135 | E28: (2) 축사(양잠․양봉 및 부화장 포함), 가축시설(퇴비장, 가축용창고, 가축시장) | F28: 37 | G28: 1(개별공시지가 10,000원 이하) | H28: 80 | I28: 2002 | J28: 0.643 | K28: 154
A29: 농수산용 건물 | B29: 600000 | C29: (통나무조) | D29: 135 | E29: (2) 축사(양잠․양봉 및 부화장 포함), 가축시설(퇴비장, 가축용창고, 가축시장) | F29: 37 | G29: 1(개별공시지가 10,000원 이하) | H29: 80 | I29: 2001 | J29: 0.626 | K29: 150
A30: 농수산용 건물 | B30: 600000 | C30: (통나무조) | D30: 135 | E30: (2) 축사(양잠․양봉 및 부화장 포함), 가축시설(퇴비장, 가축용창고, 가축시장) | F30: 37 | G30: 1(개별공시지가 10,000원 이하) | H30: 80 | I30: 2000 | J30: 0.609 | K30: 146
A31: 농수산용 건물 | B31: 600000 | C31: (통나무조) | D31: 135 | E31: (2) 축사(양잠․양봉 및 부화장 포함), 가축시설(퇴비장, 가축용창고, 가축시장) | F31: 37 | G31: 1(개별공시지가 10,000원 이하) | H31: 80 | I31: 1999 | J31: 0.592 | K31: 141
A32: 농수산용 건물 | B32: 600000 | C32: (통나무조) | D32: 135 | E32: (2) 축사(양잠․양봉 및 부화장 포함), 가축시설(퇴비장, 가축용창고, 가축시장) | F32: 37 | G32: 1(개별공시지가 10,000원 이하) | H32: 80 | I32: 1998 | J32: 0.575 | K32: 137
A33: 농수산용 건물 | B33: 600000 | C33: (통나무조) | D33: 135 | E33: (2) 축사(양잠․양봉 및 부화장 포함), 가축시설(퇴비장, 가축용창고, 가축시장) | F33: 37 | G33: 1(개별공시지가 10,000원 이하) | H33: 80 | I33: 1997 | J33: 0.558 | K33: 133
A34: 농수산용 건물 | B34: 600000 | C34: (통나무조) | D34: 135 | E34: (2) 축사(양잠․양봉 및 부화장 포함), 가축시설(퇴비장, 가축용창고, 가축시장) | F34: 37 | G34: 1(개별공시지가 10,000원 이하) | H34: 80 | I34: 1996 | J34: 0.541 | K34: 129
A35: 농수산용 건물 | B35: 600000 | C35: (통나무조) | D35: 135 | E35: (2) 축사(양잠․양봉 및 부화장 포함), 가축시설(퇴비장, 가축용창고, 가축시장) | F35: 37 | G35: 1(개별공시지가 10,000원 이하) | H35: 80 | I35: 1995 | J35: 0.524 | K35: 125
A36: 농수산용 건물 | B36: 600000 | C36: (통나무조) | D36: 135 | E36: (2) 축사(양잠․양봉 및 부화장 포함), 가축시설(퇴비장, 가축용창고, 가축시장) | F36: 37 | G36: 1(개별공시지가 10,000원 이하) | H36: 80 | I36: 1994 | J36: 0.507 | K36: 121
A37: 농수산용 건물 | B37: 600000 | C37: (통나무조) | D37: 135 | E37: (2) 축사(양잠․양봉 및 부화장 포함), 가축시설(퇴비장, 가축용창고, 가축시장) | F37: 37 | G37: 1(개별공시지가 10,000원 이하) | H37: 80 | I37: 1993 | J37: 0.49 | K37: 117
A38: 농수산용 건물 | B38: 600000 | C38: (통나무조) | D38: 135 | E38: (2) 축사(양잠․양봉 및 부화장 포함), 가축시설(퇴비장, 가축용창고, 가축시장) | F38: 37 | G38: 1(개별공시지가 10,000원 이하) | H38: 80 | I38: 1992 | J38: 0.473 | K38: 113
A39: 농수산용 건물 | B39: 600000 | C39: (통나무조) | D39: 135 | E39: (2) 축사(양잠․양봉 및 부화장 포함), 가축시설(퇴비장, 가축용창고, 가축시장) | F39: 37 | G39: 1(개별공시지가 10,000원 이하) | H39: 80 | I39: 1991 | J39: 0.456 | K39: 109
A40: 농수산용 건물 | B40: 600000 | C40: (통나무조) | D40: 135 | E40: (2) 축사(양잠․양봉 및 부화장 포함), 가축시설(퇴비장, 가축용창고, 가축시장) | F40: 37 | G40: 1(개별공시지가 10,000원 이하) | H40: 80 | I40: 1990 | J40: 0.439 | K40: 105
A41: 농수산용 건물 | B41: 600000 | C41: (통나무조) | D41: 135 | E41: (2) 축사(양잠․양봉 및 부화장 포함), 가축시설(퇴비장, 가축용창고, 가축시장) | F41: 37 | G41: 1(개별공시지가 10,000원 이하) | H41: 80 | I41: 1989 | J41: 0.422 | K41: 101
A42: 농수산용 건물 | B42: 600000 | C42: (통나무조) | D42: 135 | E42: (2) 축사(양잠․양봉 및 부화장 포함), 가축시설(퇴비장, 가축용창고, 가축시장) | F42: 37 | G42: 1(개별공시지가 10,000원 이하) | H42: 80 | I42: 1988 | J42: 0.405 | K42: 97
A43: 농수산용 건물 | B43: 600000 | C43: (통나무조) | D43: 135 | E43: (2) 축사(양잠․양봉 및 부화장 포함), 가축시설(퇴비장, 가축용창고, 가축시장) | F43: 37 | G43: 1(개별공시지가 10,000원 이하) | H43: 80 | I43: 1987 | J43: 0.388 | K43: 93
A44: 농수산용 건물 | B44: 600000 | C44: (통나무조) | D44: 135 | E44: (2) 축사(양잠․양봉 및 부화장 포함), 가축시설(퇴비장, 가축용창고, 가축시장) | F44: 37 | G44: 1(개별공시지가 10,000원 이하) | H44: 80 | I44: 1986 | J44: 0.371 | K44: 88
A45: 농수산용 건물 | B45: 600000 | C45: (통나무조) | D45: 135 | E45: (2) 축사(양잠․양봉 및 부화장 포함), 가축시설(퇴비장, 가축용창고, 가축시장) | F45: 37 | G45: 1(개별공시지가 10,000원 이하) | H45: 80 | I45: 1985 | J45: 0.354 | K45: 84
A46: 농수산용 건물 | B46: 600000 | C46: (통나무조) | D46: 135 | E46: (2) 축사(양잠․양봉 및 부화장 포함), 가축시설(퇴비장, 가축용창고, 가축시장) | F46: 37 | G46: 1(개별공시지가 10,000원 이하) | H46: 80 | I46: 1984 | J46: 0.337 | K46: 80
A47: 농수산용 건물 | B47: 600000 | C47: (통나무조) | D47: 135 | E47: (2) 축사(양잠․양봉 및 부화장 포함), 가축시설(퇴비장, 가축용창고, 가축시장) | F47: 37 | G47: 1(개별공시지가 10,000원 이하) | H47: 80 | I47: 1983 | J47: 0.32 | K47: 76
A48: 농수산용 건물 | B48: 600000 | C48: (통나무조) | D48: 135 | E48: (2) 축사(양잠․양봉 및 부화장 포함), 가축시설(퇴비장, 가축용창고, 가축시장) | F48: 37 | G48: 1(개별공시지가 10,000원 이하) | H48: 80 | I48: 1982 | J48: 0.303 | K48: 72
A49: 농수산용 건물 | B49: 600000 | C49: (통나무조) | D49: 135 | E49: (2) 축사(양잠․양봉 및 부화장 포함), 가축시설(퇴비장, 가축용창고, 가축시장) | F49: 37 | G49: 1(개별공시지가 10,000원 이하) | H49: 80 | I49: 1981 | J49: 0.286 | K49: 68
A50: 농수산용 건물 | B50: 600000 | C50: (통나무조) | D50: 135 | E50: (2) 축사(양잠․양봉 및 부화장 포함), 가축시설(퇴비장, 가축용창고, 가축시장) | F50: 37 | G50: 1(개별공시지가 10,000원 이하) | H50: 80 | I50: 1980 | J50: 0.269 | K50: 64
A51: 농수산용 건물 | B51: 600000 | C51: (통나무조) | D51: 135 | E51: (2) 축사(양잠․양봉 및 부화장 포함), 가축시설(퇴비장, 가축용창고, 가축시장) | F51: 37 | G51: 1(개별공시지가 10,000원 이하) | H51: 80 | I51: 1979 | J51: 0.252 | K51: 60
A52: 농수산용 건물 | B52: 600000 | C52: (통나무조) | D52: 135 | E52: (2) 축사(양잠․양봉 및 부화장 포함), 가축시설(퇴비장, 가축용창고, 가축시장) | F52: 37 | G52: 1(개별공시지가 10,000원 이하) | H52: 80 | I52: 1978 | J52: 0.235 | K52: 56
A53: 농수산용 건물 | B53: 600000 | C53: (통나무조) | D53: 135 | E53: (2) 축사(양잠․양봉 및 부화장 포함), 가축시설(퇴비장, 가축용창고, 가축시장) | F53: 37 | G53: 1(개별공시지가 10,000원 이하) | H53: 80 | I53: 1977 | J53: 0.218 | K53: 52
A54: 농수산용 건물 | B54: 600000 | C54: (통나무조) | D54: 135 | E54: (2) 축사(양잠․양봉 및 부화장 포함), 가축시설(퇴비장, 가축용창고, 가축시장) | F54: 37 | G54: 1(개별공시지가 10,000원 이하) | H54: 80 | I54: 1976 | J54: 0.201 | K54: 48
A55: 농수산용 건물 | B55: 600000 | C55: (통나무조) | D55: 135 | E55: (2) 축사(양잠․양봉 및 부화장 포함), 가축시설(퇴비장, 가축용창고, 가축시장) | F55: 37 | G55: 1(개별공시지가 10,000원 이하) | H55: 80 | I55: 1975 | J55: 0.184 | K55: 44
A56: 농수산용 건물 | B56: 600000 | C56: (통나무조) | D56: 135 | E56: (2) 축사(양잠․양봉 및 부화장 포함), 가축시설(퇴비장, 가축용창고, 가축시장) | F56: 37 | G56: 1(개별공시지가 10,000원 이하) | H56: 80 | I56: 1974 | J56: 0.167 | K56: 40
A57: 농수산용 건물 | B57: 600000 | C57: (통나무조) | D57: 135 | E57: (2) 축사(양잠․양봉 및 부화장 포함), 가축시설(퇴비장, 가축용창고, 가축시장) | F57: 37 | G57: 1(개별공시지가 10,000원 이하) | H57: 80 | I57: 50년이상 | J57: =1-(0.017*50) -> 0.15 | K57: 35
A58: 농수산용 건물 | B58: 600000 | C58: (통나무조) | D58: 135 | E58: (4) 육상양식장(양어시설 및 부화장 포함) | F58: 37 | G58: 1(개별공시지가 10,000원 이하) | H58: 80 | I58: 2023 | J58: =1-(0.017*(2023-$I58)) -> 1 | K58: 239
A59: 농수산용 건물 | B59: 600000 | C59: (통나무조) | D59: 135 | E59: (4) 육상양식장(양어시설 및 부화장 포함) | F59: 37 | G59: 1(개별공시지가 10,000원 이하) | H59: 80 | I59: 2022 | J59: 0.983 | K59: 235
A60: 농수산용 건물 | B60: 600000 | C60: (통나무조) | D60: 135 | E60: (4) 육상양식장(양어시설 및 부화장 포함) | F60: 37 | G60: 1(개별공시지가 10,000원 이하) | H60: 80 | I60: 2021 | J60: 0.966 | K60: 231
A61: 농수산용 건물 | B61: 600000 | C61: (통나무조) | D61: 135 | E61: (4) 육상양식장(양어시설 및 부화장 포함) | F61: 37 | G61: 1(개별공시지가 10,000원 이하) | H61: 80 | I61: 2020 | J61: 0.949 | K61: 227
A62: 농수산용 건물 | B62: 600000 | C62: (통나무조) | D62: 135 | E62: (4) 육상양식장(양어시설 및 부화장 포함) | F62: 37 | G62: 1(개별공시지가 10,000원 이하) | H62: 80 | I62: 2019 | J62: 0.932 | K62: 223
A63: 농수산용 건물 | B63: 600000 | C63: (통나무조) | D63: 135 | E63: (4) 육상양식장(양어시설 및 부화장 포함) | F63: 37 | G63: 1(개별공시지가 10,000원 이하) | H63: 80 | I63: 2018 | J63: 0.915 | K63: 219
A64: 농수산용 건물 | B64: 600000 | C64: (통나무조) | D64: 135 | E64: (4) 육상양식장(양어시설 및 부화장 포함) | F64: 37 | G64: 1(개별공시지가 10,000원 이하) | H64: 80 | I64: 2017 | J64: 0.898 | K64: 215
A65: 농수산용 건물 | B65: 600000 | C65: (통나무조) | D65: 135 | E65: (4) 육상양식장(양어시설 및 부화장 포함) | F65: 37 | G65: 1(개별공시지가 10,000원 이하) | H65: 80 | I65: 2016 | J65: 0.881 | K65: 211
A66: 농수산용 건물 | B66: 600000 | C66: (통나무조) | D66: 135 | E66: (4) 육상양식장(양어시설 및 부화장 포함) | F66: 37 | G66: 1(개별공시지가 10,000원 이하) | H66: 80 | I66: 2015 | J66: 0.864 | K66: 207
A67: 농수산용 건물 | B67: 600000 | C67: (통나무조) | D67: 135 | E67: (4) 육상양식장(양어시설 및 부화장 포함) | F67: 37 | G67: 1(개별공시지가 10,000원 이하) | H67: 80 | I67: 2014 | J67: 0.847 | K67: 203
A68: 농수산용 건물 | B68: 600000 | C68: (통나무조) | D68: 135 | E68: (4) 육상양식장(양어시설 및 부화장 포함) | F68: 37 | G68: 1(개별공시지가 10,000원 이하) | H68: 80 | I68: 2013 | J68: 0.83 | K68: 199
A69: 농수산용 건물 | B69: 600000 | C69: (통나무조) | D69: 135 | E69: (4) 육상양식장(양어시설 및 부화장 포함) | F69: 37 | G69: 1(개별공시지가 10,000원 이하) | H69: 80 | I69: 2012 | J69: 0.813 | K69: 194
A70: 농수산용 건물 | B70: 600000 | C70: (통나무조) | D70: 135 | E70: (4) 육상양식장(양어시설 및 부화장 포함) | F70: 37 | G70: 1(개별공시지가 10,000원 이하) | H70: 80 | I70: 2011 | J70: 0.796 | K70: 190
A71: 농수산용 건물 | B71: 600000 | C71: (통나무조) | D71: 135 | E71: (4) 육상양식장(양어시설 및 부화장 포함) | F71: 37 | G71: 1(개별공시지가 10,000원 이하) | H71: 80 | I71: 2010 | J71: 0.779 | K71: =ROUNDDOWN(B71*D71/100*F71/100*H71/100*J71/1000,0) -> 186
A72: 농수산용 건물 | B72: 600000 | C72: (통나무조) | D72: 135 | E72: (4) 육상양식장(양어시설 및 부화장 포함) | F72: 37 | G72: 1(개별공시지가 10,000원 이하) | H72: 80 | I72: 2009 | J72: 0.762 | K72: 182
A73: 농수산용 건물 | B73: 600000 | C73: (통나무조) | D73: 135 | E73: (4) 육상양식장(양어시설 및 부화장 포함) | F73: 37 | G73: 1(개별공시지가 10,000원 이하) | H73: 80 | I73: 2008 | J73: 0.745 | K73: 178
A74: 농수산용 건물 | B74: 600000 | C74: (통나무조) | D74: 135 | E74: (4) 육상양식장(양어시설 및 부화장 포함) | F74: 37 | G74: 1(개별공시지가 10,000원 이하) | H74: 80 | I74: 2007 | J74: 0.728 | K74: 174
A75: 농수산용 건물 | B75: 600000 | C75: (통나무조) | D75: 135 | E75: (4) 육상양식장(양어시설 및 부화장 포함) | F75: 37 | G75: 1(개별공시지가 10,000원 이하) | H75: 80 | I75: 2006 | J75: 0.711 | K75: 170
A76: 농수산용 건물 | B76: 600000 | C76: (통나무조) | D76: 135 | E76: (4) 육상양식장(양어시설 및 부화장 포함) | F76: 37 | G76: 1(개별공시지가 10,000원 이하) | H76: 80 | I76: 2005 | J76: 0.694 | K76: 166
A77: 농수산용 건물 | B77: 600000 | C77: (통나무조) | D77: 135 | E77: (4) 육상양식장(양어시설 및 부화장 포함) | F77: 37 | G77: 1(개별공시지가 10,000원 이하) | H77: 80 | I77: 2004 | J77: 0.677 | K77: 162
A78: 농수산용 건물 | B78: 600000 | C78: (통나무조) | D78: 135 | E78: (4) 육상양식장(양어시설 및 부화장 포함) | F78: 37 | G78: 1(개별공시지가 10,000원 이하) | H78: 80 | I78: 2003 | J78: 0.66 | K78: 158
A79: 농수산용 건물 | B79: 600000 | C79: (통나무조) | D79: 135 | E79: (4) 육상양식장(양어시설 및 부화장 포함) | F79: 37 | G79: 1(개별공시지가 10,000원 이하) | H79: 80 | I79: 2002 | J79: 0.643 | K79: 154
A80: 농수산용 건물 | B80: 600000 | C80: (통나무조) | D80: 135 | E80: (4) 육상양식장(양어시설 및 부화장 포함) | F80: 37 | G80: 1(개별공시지가 10,000원 이하) | H80: 80 | I80: 2001 | J80: 0.626 | K80: 150
A81: 농수산용 건물 | B81: 600000 | C81: (통나무조) | D81: 135 | E81: (4) 육상양식장(양어시설 및 부화장 포함) | F81: 37 | G81: 1(개별공시지가 10,000원 이하) | H81: 80 | I81: 2000 | J81: 0.609 | K81: 146
A82: 농수산용 건물 | B82: 600000 | C82: (통나무조) | D82: 135 | E82: (4) 육상양식장(양어시설 및 부화장 포함) | F82: 37 | G82: 1(개별공시지가 10,000원 이하) | H82: 80 | I82: 1999 | J82: 0.592 | K82: 141
A83: 농수산용 건물 | B83: 600000 | C83: (통나무조) | D83: 135 | E83: (4) 육상양식장(양어시설 및 부화장 포함) | F83: 37 | G83: 1(개별공시지가 10,000원 이하) | H83: 80 | I83: 1998 | J83: 0.575 | K83: 137
A84: 농수산용 건물 | B84: 600000 | C84: (통나무조) | D84: 135 | E84: (4) 육상양식장(양어시설 및 부화장 포함) | F84: 37 | G84: 1(개별공시지가 10,000원 이하) | H84: 80 | I84: 1997 | J84: 0.558 | K84: 133
A85: 농수산용 건물 | B85: 600000 | C85: (통나무조) | D85: 135 | E85: (4) 육상양식장(양어시설 및 부화장 포함) | F85: 37 | G85: 1(개별공시지가 10,000원 이하) | H85: 80 | I85: 1996 | J85: 0.541 | K85: 129
A86: 농수산용 건물 | B86: 600000 | C86: (통나무조) | D86: 135 | E86: (4) 육상양식장(양어시설 및 부화장 포함) | F86: 37 | G86: 1(개별공시지가 10,000원 이하) | H86: 80 | I86: 1995 | J86: 0.524 | K86: 125
A87: 농수산용 건물 | B87: 600000 | C87: (통나무조) | D87: 135 | E87: (4) 육상양식장(양어시설 및 부화장 포함) | F87: 37 | G87: 1(개별공시지가 10,000원 이하) | H87: 80 | I87: 1994 | J87: 0.507 | K87: 121
A88: 농수산용 건물 | B88: 600000 | C88: (통나무조) | D88: 135 | E88: (4) 육상양식장(양어시설 및 부화장 포함) | F88: 37 | G88: 1(개별공시지가 10,000원 이하) | H88: 80 | I88: 1993 | J88: 0.49 | K88: 117
A89: 농수산용 건물 | B89: 600000 | C89: (통나무조) | D89: 135 | E89: (4) 육상양식장(양어시설 및 부화장 포함) | F89: 37 | G89: 1(개별공시지가 10,000원 이하) | H89: 80 | I89: 1992 | J89: 0.473 | K89: 113
A90: 농수산용 건물 | B90: 600000 | C90: (통나무조) | D90: 135 | E90: (4) 육상양식장(양어시설 및 부화장 포함) | F90: 37 | G90: 1(개별공시지가 10,000원 이하) | H90: 80 | I90: 1991 | J90: 0.456 | K90: 109
A91: 농수산용 건물 | B91: 600000 | C91: (통나무조) | D91: 135 | E91: (4) 육상양식장(양어시설 및 부화장 포함) | F91: 37 | G91: 1(개별공시지가 10,000원 이하) | H91: 80 | I91: 1990 | J91: 0.439 | K91: 105
A92: 농수산용 건물 | B92: 600000 | C92: (통나무조) | D92: 135 | E92: (4) 육상양식장(양어시설 및 부화장 포함) | F92: 37 | G92: 1(개별공시지가 10,000원 이하) | H92: 80 | I92: 1989 | J92: 0.422 | K92: 101
A93: 농수산용 건물 | B93: 600000 | C93: (통나무조) | D93: 135 | E93: (4) 육상양식장(양어시설 및 부화장 포함) | F93: 37 | G93: 1(개별공시지가 10,000원 이하) | H93: 80 | I93: 1988 | J93: 0.405 | K93: 97
A94: 농수산용 건물 | B94: 600000 | C94: (통나무조) | D94: 135 | E94: (4) 육상양식장(양어시설 및 부화장 포함) | F94: 37 | G94: 1(개별공시지가 10,000원 이하) | H94: 80 | I94: 1987 | J94: 0.388 | K94: 93
A95: 농수산용 건물 | B95: 600000 | C95: (통나무조) | D95: 135 | E95: (4) 육상양식장(양어시설 및 부화장 포함) | F95: 37 | G95: 1(개별공시지가 10,000원 이하) | H95: 80 | I95: 1986 | J95: 0.371 | K95: 88
A96: 농수산용 건물 | B96: 600000 | C96: (통나무조) | D96: 135 | E96: (4) 육상양식장(양어시설 및 부화장 포함) | F96: 37 | G96: 1(개별공시지가 10,000원 이하) | H96: 80 | I96: 1985 | J96: 0.354 | K96: 84
A97: 농수산용 건물 | B97: 600000 | C97: (통나무조) | D97: 135 | E97: (4) 육상양식장(양어시설 및 부화장 포함) | F97: 37 | G97: 1(개별공시지가 10,000원 이하) | H97: 80 | I97: 1984 | J97: 0.337 | K97: 80
A98: 농수산용 건물 | B98: 600000 | C98: (통나무조) | D98: 135 | E98: (4) 육상양식장(양어시설 및 부화장 포함) | F98: 37 | G98: 1(개별공시지가 10,000원 이하) | H98: 80 | I98: 1983 | J98: 0.32 | K98: 76
A99: 농수산용 건물 | B99: 600000 | C99: (통나무조) | D99: 135 | E99: (4) 육상양식장(양어시설 및 부화장 포함) | F99: 37 | G99: 1(개별공시지가 10,000원 이하) | H99: 80 | I99: 1982 | J99: 0.303 | K99: 72
A100: 농수산용 건물 | B100: 600000 | C100: (통나무조) | D100: 135 | E100: (4) 육상양식장(양어시설 및 부화장 포함) | F100: 37 | G100: 1(개별공시지가 10,000원 이하) | H100: 80 | I100: 1981 | J100: 0.286 | K100: 68
A101: 농수산용 건물 | B101: 600000 | C101: (통나무조) | D101: 135 | E101: (4) 육상양식장(양어시설 및 부화장 포함) | F101: 37 | G101: 1(개별공시지가 10,000원 이하) | H101: 80 | I101: 1980 | J101: 0.269 | K101: 64
A102: 농수산용 건물 | B102: 600000 | C102: (통나무조) | D102: 135 | E102: (4) 육상양식장(양어시설 및 부화장 포함) | F102: 37 | G102: 1(개별공시지가 10,000원 이하) | H102: 80 | I102: 1979 | J102: 0.252 | K102: 60
A103: 농수산용 건물 | B103: 600000 | C103: (통나무조) | D103: 135 | E103: (4) 육상양식장(양어시설 및 부화장 포함) | F103: 37 | G103: 1(개별공시지가 10,000원 이하) | H103: 80 | I103: 1978 | J103: 0.235 | K103: 56
A104: 농수산용 건물 | B104: 600000 | C104: (통나무조) | D104: 135 | E104: (4) 육상양식장(양어시설 및 부화장 포함) | F104: 37 | G104: 1(개별공시지가 10,000원 이하) | H104: 80 | I104: 1977 | J104: 0.218 | K104: 52
A105: 농수산용 건물 | B105: 600000 | C105: (통나무조) | D105: 135 | E105: (4) 육상양식장(양어시설 및 부화장 포함) | F105: 37 | G105: 1(개별공시지가 10,000원 이하) | H105: 80 | I105: 1976 | J105: 0.201 | K105: 48
A106: 농수산용 건물 | B106: 600000 | C106: (통나무조) | D106: 135 | E106: (4) 육상양식장(양어시설 및 부화장 포함) | F106: 37 | G106: 1(개별공시지가 10,000원 이하) | H106: 80 | I106: 1975 | J106: 0.184 | K106: 44
A107: 농수산용 건물 | B107: 600000 | C107: (통나무조) | D107: 135 | E107: (4) 육상양식장(양어시설 및 부화장 포함) | F107: 37 | G107: 1(개별공시지가 10,000원 이하) | H107: 80 | I107: 1974 | J107: 0.167 | K107: 40
A108: 농수산용 건물 | B108: 600000 | C108: (통나무조) | D108: 135 | E108: (4) 육상양식장(양어시설 및 부화장 포함) | F108: 37 | G108: 1(개별공시지가 10,000원 이하) | H108: 80 | I108: 50년이상 | J108: =1-(0.017*50) -> 0.15 | K108: 35
A109: 농수산용 건물 | B109: 600000 | C109: (통나무조) | D109: 135 | E109: (5) 작물재배사, 종묘배양시설, 건조장, 화초 및 분재 등의 온실, 기타 식물관련시설(동․식물원 제외) | F109: 37 | G109: 1(개별공시지가 10,000원 이하) | H109: 80 | I109: 2023 | J109: =1-(0.017*(2023-$I109)) -> 1 | K109: 239
A110: 농수산용 건물 | B110: 600000 | C110: (통나무조) | D110: 135 | E110: (5) 작물재배사, 종묘배양시설, 건조장, 화초 및 분재 등의 온실, 기타 식물관련시설(동․식물원 제외) | F110: 37 | G110: 1(개별공시지가 10,000원 이하) | H110: 80 | I110: 2022 | J110: 0.983 | K110: 235
A111: 농수산용 건물 | B111: 600000 | C111: (통나무조) | D111: 135 | E111: (5) 작물재배사, 종묘배양시설, 건조장, 화초 및 분재 등의 온실, 기타 식물관련시설(동․식물원 제외) | F111: 37 | G111: 1(개별공시지가 10,000원 이하) | H111: 80 | I111: 2021 | J111: 0.966 | K111: 231
A112: 농수산용 건물 | B112: 600000 | C112: (통나무조) | D112: 135 | E112: (5) 작물재배사, 종묘배양시설, 건조장, 화초 및 분재 등의 온실, 기타 식물관련시설(동․식물원 제외) | F112: 37 | G112: 1(개별공시지가 10,000원 이하) | H112: 80 | I112: 2020 | J112: 0.949 | K112: 227
A113: 농수산용 건물 | B113: 600000 | C113: (통나무조) | D113: 135 | E113: (5) 작물재배사, 종묘배양시설, 건조장, 화초 및 분재 등의 온실, 기타 식물관련시설(동․식물원 제외) | F113: 37 | G113: 1(개별공시지가 10,000원 이하) | H113: 80 | I113: 2019 | J113: 0.932 | K113: 223
A114: 농수산용 건물 | B114: 600000 | C114: (통나무조) | D114: 135 | E114: (5) 작물재배사, 종묘배양시설, 건조장, 화초 및 분재 등의 온실, 기타 식물관련시설(동․식물원 제외) | F114: 37 | G114: 1(개별공시지가 10,000원 이하) | H114: 80 | I114: 2018 | J114: 0.915 | K114: 219
A115: 농수산용 건물 | B115: 600000 | C115: (통나무조) | D115: 135 | E115: (5) 작물재배사, 종묘배양시설, 건조장, 화초 및 분재 등의 온실, 기타 식물관련시설(동․식물원 제외) | F115: 37 | G115: 1(개별공시지가 10,000원 이하) | H115: 80 | I115: 2017 | J115: 0.898 | K115: 215
A116: 농수산용 건물 | B116: 600000 | C116: (통나무조) | D116: 135 | E116: (5) 작물재배사, 종묘배양시설, 건조장, 화초 및 분재 등의 온실, 기타 식물관련시설(동․식물원 제외) | F116: 37 | G116: 1(개별공시지가 10,000원 이하) | H116: 80 | I116: 2016 | J116: 0.881 | K116: 211
A117: 농수산용 건물 | B117: 600000 | C117: (통나무조) | D117: 135 | E117: (5) 작물재배사, 종묘배양시설, 건조장, 화초 및 분재 등의 온실, 기타 식물관련시설(동․식물원 제외) | F117: 37 | G117: 1(개별공시지가 10,000원 이하) | H117: 80 | I117: 2015 | J117: 0.864 | K117: 207
A118: 농수산용 건물 | B118: 600000 | C118: (통나무조) | D118: 135 | E118: (5) 작물재배사, 종묘배양시설, 건조장, 화초 및 분재 등의 온실, 기타 식물관련시설(동․식물원 제외) | F118: 37 | G118: 1(개별공시지가 10,000원 이하) | H118: 80 | I118: 2014 | J118: 0.847 | K118: 203
A119: 농수산용 건물 | B119: 600000 | C119: (통나무조) | D119: 135 | E119: (5) 작물재배사, 종묘배양시설, 건조장, 화초 및 분재 등의 온실, 기타 식물관련시설(동․식물원 제외) | F119: 37 | G119: 1(개별공시지가 10,000원 이하) | H119: 80 | I119: 2013 | J119: 0.83 | K119: 199
A120: 농수산용 건물 | B120: 600000 | C120: (통나무조) | D120: 135 | E120: (5) 작물재배사, 종묘배양시설, 건조장, 화초 및 분재 등의 온실, 기타 식물관련시설(동․식물원 제외) | F120: 37 | G120: 1(개별공시지가 10,000원 이하) | H120: 80 | I120: 2012 | J120: 0.813 | K120: 194
A121: 농수산용 건물 | B121: 600000 | C121: (통나무조) | D121: 135 | E121: (5) 작물재배사, 종묘배양시설, 건조장, 화초 및 분재 등의 온실, 기타 식물관련시설(동․식물원 제외) | F121: 37 | G121: 1(개별공시지가 10,000원 이하) | H121: 80 | I121: 2011 | J121: 0.796 | K121: 190
A122: 농수산용 건물 | B122: 600000 | C122: (통나무조) | D122: 135 | E122: (5) 작물재배사, 종묘배양시설, 건조장, 화초 및 분재 등의 온실, 기타 식물관련시설(동․식물원 제외) | F122: 37 | G122: 1(개별공시지가 10,000원 이하) | H122: 80 | I122: 2010 | J122: =1-(0.017*(2023-$I122)) -> 0.779 | K122: 186
A123: 농수산용 건물 | B123: 600000 | C123: (통나무조) | D123: 135 | E123: (5) 작물재배사, 종묘배양시설, 건조장, 화초 및 분재 등의 온실, 기타 식물관련시설(동․식물원 제외) | F123: 37 | G123: 1(개별공시지가 10,000원 이하) | H123: 80 | I123: 2009 | J123: 0.762 | K123: 182
A124: 농수산용 건물 | B124: 600000 | C124: (통나무조) | D124: 135 | E124: (5) 작물재배사, 종묘배양시설, 건조장, 화초 및 분재 등의 온실, 기타 식물관련시설(동․식물원 제외) | F124: 37 | G124: 1(개별공시지가 10,000원 이하) | H124: 80 | I124: 2008 | J124: 0.745 | K124: 178
A125: 농수산용 건물 | B125: 600000 | C125: (통나무조) | D125: 135 | E125: (5) 작물재배사, 종묘배양시설, 건조장, 화초 및 분재 등의 온실, 기타 식물관련시설(동․식물원 제외) | F125: 37 | G125: 1(개별공시지가 10,000원 이하) | H125: 80 | I125: 2007 | J125: 0.728 | K125: 174
A126: 농수산용 건물 | B126: 600000 | C126: (통나무조) | D126: 135 | E126: (5) 작물재배사, 종묘배양시설, 건조장, 화초 및 분재 등의 온실, 기타 식물관련시설(동․식물원 제외) | F126: 37 | G126: 1(개별공시지가 10,000원 이하) | H126: 80 | I126: 2006 | J126: 0.711 | K126: 170
A127: 농수산용 건물 | B127: 600000 | C127: (통나무조) | D127: 135 | E127: (5) 작물재배사, 종묘배양시설, 건조장, 화초 및 분재 등의 온실, 기타 식물관련시설(동․식물원 제외) | F127: 37 | G127: 1(개별공시지가 10,000원 이하) | H127: 80 | I127: 2005 | J127: 0.694 | K127: 166
A128: 농수산용 건물 | B128: 600000 | C128: (통나무조) | D128: 135 | E128: (5) 작물재배사, 종묘배양시설, 건조장, 화초 및 분재 등의 온실, 기타 식물관련시설(동․식물원 제외) | F128: 37 | G128: 1(개별공시지가 10,000원 이하) | H128: 80 | I128: 2004 | J128: 0.677 | K128: 162
A129: 농수산용 건물 | B129: 600000 | C129: (통나무조) | D129: 135 | E129: (5) 작물재배사, 종묘배양시설, 건조장, 화초 및 분재 등의 온실, 기타 식물관련시설(동․식물원 제외) | F129: 37 | G129: 1(개별공시지가 10,000원 이하) | H129: 80 | I129: 2003 | J129: 0.66 | K129: 158
A130: 농수산용 건물 | B130: 600000 | C130: (통나무조) | D130: 135 | E130: (5) 작물재배사, 종묘배양시설, 건조장, 화초 및 분재 등의 온실, 기타 식물관련시설(동․식물원 제외) | F130: 37 | G130: 1(개별공시지가 10,000원 이하) | H130: 80 | I130: 2002 | J130: 0.643 | K130: 154
A131: 농수산용 건물 | B131: 600000 | C131: (통나무조) | D131: 135 | E131: (5) 작물재배사, 종묘배양시설, 건조장, 화초 및 분재 등의 온실, 기타 식물관련시설(동․식물원 제외) | F131: 37 | G131: 1(개별공시지가 10,000원 이하) | H131: 80 | I131: 2001 | J131: 0.626 | K131: 150
A132: 농수산용 건물 | B132: 600000 | C132: (통나무조) | D132: 135 | E132: (5) 작물재배사, 종묘배양시설, 건조장, 화초 및 분재 등의 온실, 기타 식물관련시설(동․식물원 제외) | F132: 37 | G132: 1(개별공시지가 10,000원 이하) | H132: 80 | I132: 2000 | J132: 0.609 | K132: 146
A133: 농수산용 건물 | B133: 600000 | C133: (통나무조) | D133: 135 | E133: (5) 작물재배사, 종묘배양시설, 건조장, 화초 및 분재 등의 온실, 기타 식물관련시설(동․식물원 제외) | F133: 37 | G133: 1(개별공시지가 10,000원 이하) | H133: 80 | I133: 1999 | J133: 0.592 | K133: 141
A134: 농수산용 건물 | B134: 600000 | C134: (통나무조) | D134: 135 | E134: (5) 작물재배사, 종묘배양시설, 건조장, 화초 및 분재 등의 온실, 기타 식물관련시설(동․식물원 제외) | F134: 37 | G134: 1(개별공시지가 10,000원 이하) | H134: 80 | I134: 1998 | J134: 0.575 | K134: 137
A135: 농수산용 건물 | B135: 600000 | C135: (통나무조) | D135: 135 | E135: (5) 작물재배사, 종묘배양시설, 건조장, 화초 및 분재 등의 온실, 기타 식물관련시설(동․식물원 제외) | F135: 37 | G135: 1(개별공시지가 10,000원 이하) | H135: 80 | I135: 1997 | J135: 0.558 | K135: =ROUNDDOWN(B135*D135/100*F135/100*H135/100*J135/1000,0) -> 133
A136: 농수산용 건물 | B136: 600000 | C136: (통나무조) | D136: 135 | E136: (5) 작물재배사, 종묘배양시설, 건조장, 화초 및 분재 등의 온실, 기타 식물관련시설(동․식물원 제외) | F136: 37 | G136: 1(개별공시지가 10,000원 이하) | H136: 80 | I136: 1996 | J136: 0.541 | K136: 129
A137: 농수산용 건물 | B137: 600000 | C137: (통나무조) | D137: 135 | E137: (5) 작물재배사, 종묘배양시설, 건조장, 화초 및 분재 등의 온실, 기타 식물관련시설(동․식물원 제외) | F137: 37 | G137: 1(개별공시지가 10,000원 이하) | H137: 80 | I137: 1995 | J137: 0.524 | K137: 125
A138: 농수산용 건물 | B138: 600000 | C138: (통나무조) | D138: 135 | E138: (5) 작물재배사, 종묘배양시설, 건조장, 화초 및 분재 등의 온실, 기타 식물관련시설(동․식물원 제외) | F138: 37 | G138: 1(개별공시지가 10,000원 이하) | H138: 80 | I138: 1994 | J138: 0.507 | K138: 121
A139: 농수산용 건물 | B139: 600000 | C139: (통나무조) | D139: 135 | E139: (5) 작물재배사, 종묘배양시설, 건조장, 화초 및 분재 등의 온실, 기타 식물관련시설(동․식물원 제외) | F139: 37 | G139: 1(개별공시지가 10,000원 이하) | H139: 80 | I139: 1993 | J139: 0.49 | K139: 117
A140: 농수산용 건물 | B140: 600000 | C140: (통나무조) | D140: 135 | E140: (5) 작물재배사, 종묘배양시설, 건조장, 화초 및 분재 등의 온실, 기타 식물관련시설(동․식물원 제외) | F140: 37 | G140: 1(개별공시지가 10,000원 이하) | H140: 80 | I140: 1992 | J140: 0.473 | K140: 113
A141: 농수산용 건물 | B141: 600000 | C141: (통나무조) | D141: 135 | E141: (5) 작물재배사, 종묘배양시설, 건조장, 화초 및 분재 등의 온실, 기타 식물관련시설(동․식물원 제외) | F141: 37 | G141: 1(개별공시지가 10,000원 이하) | H141: 80 | I141: 1991 | J141: 0.456 | K141: 109
A142: 농수산용 건물 | B142: 600000 | C142: (통나무조) | D142: 135 | E142: (5) 작물재배사, 종묘배양시설, 건조장, 화초 및 분재 등의 온실, 기타 식물관련시설(동․식물원 제외) | F142: 37 | G142: 1(개별공시지가 10,000원 이하) | H142: 80 | I142: 1990 | J142: 0.439 | K142: 105
A143: 농수산용 건물 | B143: 600000 | C143: (통나무조) | D143: 135 | E143: (5) 작물재배사, 종묘배양시설, 건조장, 화초 및 분재 등의 온실, 기타 식물관련시설(동․식물원 제외) | F143: 37 | G143: 1(개별공시지가 10,000원 이하) | H143: 80 | I143: 1989 | J143: 0.422 | K143: 101
A144: 농수산용 건물 | B144: 600000 | C144: (통나무조) | D144: 135 | E144: (5) 작물재배사, 종묘배양시설, 건조장, 화초 및 분재 등의 온실, 기타 식물관련시설(동․식물원 제외) | F144: 37 | G144: 1(개별공시지가 10,000원 이하) | H144: 80 | I144: 1988 | J144: 0.405 | K144: 97
A145: 농수산용 건물 | B145: 600000 | C145: (통나무조) | D145: 135 | E145: (5) 작물재배사, 종묘배양시설, 건조장, 화초 및 분재 등의 온실, 기타 식물관련시설(동․식물원 제외) | F145: 37 | G145: 1(개별공시지가 10,000원 이하) | H145: 80 | I145: 1987 | J145: 0.388 | K145: 93
A146: 농수산용 건물 | B146: 600000 | C146: (통나무조) | D146: 135 | E146: (5) 작물재배사, 종묘배양시설, 건조장, 화초 및 분재 등의 온실, 기타 식물관련시설(동․식물원 제외) | F146: 37 | G146: 1(개별공시지가 10,000원 이하) | H146: 80 | I146: 1986 | J146: 0.371 | K146: 88
A147: 농수산용 건물 | B147: 600000 | C147: (통나무조) | D147: 135 | E147: (5) 작물재배사, 종묘배양시설, 건조장, 화초 및 분재 등의 온실, 기타 식물관련시설(동․식물원 제외) | F147: 37 | G147: 1(개별공시지가 10,000원 이하) | H147: 80 | I147: 1985 | J147: 0.354 | K147: 84
A148: 농수산용 건물 | B148: 600000 | C148: (통나무조) | D148: 135 | E148: (5) 작물재배사, 종묘배양시설, 건조장, 화초 및 분재 등의 온실, 기타 식물관련시설(동․식물원 제외) | F148: 37 | G148: 1(개별공시지가 10,000원 이하) | H148: 80 | I148: 1984 | J148: 0.337 | K148: 80
A149: 농수산용 건물 | B149: 600000 | C149: (통나무조) | D149: 135 | E149: (5) 작물재배사, 종묘배양시설, 건조장, 화초 및 분재 등의 온실, 기타 식물관련시설(동․식물원 제외) | F149: 37 | G149: 1(개별공시지가 10,000원 이하) | H149: 80 | I149: 1983 | J149: 0.32 | K149: 76
A150: 농수산용 건물 | B150: 600000 | C150: (통나무조) | D150: 135 | E150: (5) 작물재배사, 종묘배양시설, 건조장, 화초 및 분재 등의 온실, 기타 식물관련시설(동․식물원 제외) | F150: 37 | G150: 1(개별공시지가 10,000원 이하) | H150: 80 | I150: 1982 | J150: 0.303 | K150: 72
A151: 농수산용 건물 | B151: 600000 | C151: (통나무조) | D151: 135 | E151: (5) 작물재배사, 종묘배양시설, 건조장, 화초 및 분재 등의 온실, 기타 식물관련시설(동․식물원 제외) | F151: 37 | G151: 1(개별공시지가 10,000원 이하) | H151: 80 | I151: 1981 | J151: 0.286 | K151: 68
A152: 농수산용 건물 | B152: 600000 | C152: (통나무조) | D152: 135 | E152: (5) 작물재배사, 종묘배양시설, 건조장, 화초 및 분재 등의 온실, 기타 식물관련시설(동․식물원 제외) | F152: 37 | G152: 1(개별공시지가 10,000원 이하) | H152: 80 | I152: 1980 | J152: 0.269 | K152: 64
A153: 농수산용 건물 | B153: 600000 | C153: (통나무조) | D153: 135 | E153: (5) 작물재배사, 종묘배양시설, 건조장, 화초 및 분재 등의 온실, 기타 식물관련시설(동․식물원 제외) | F153: 37 | G153: 1(개별공시지가 10,000원 이하) | H153: 80 | I153: 1979 | J153: 0.252 | K153: 60
A154: 농수산용 건물 | B154: 600000 | C154: (통나무조) | D154: 135 | E154: (5) 작물재배사, 종묘배양시설, 건조장, 화초 및 분재 등의 온실, 기타 식물관련시설(동․식물원 제외) | F154: 37 | G154: 1(개별공시지가 10,000원 이하) | H154: 80 | I154: 1978 | J154: 0.235 | K154: 56
A155: 농수산용 건물 | B155: 600000 | C155: (통나무조) | D155: 135 | E155: (5) 작물재배사, 종묘배양시설, 건조장, 화초 및 분재 등의 온실, 기타 식물관련시설(동․식물원 제외) | F155: 37 | G155: 1(개별공시지가 10,000원 이하) | H155: 80 | I155: 1977 | J155: 0.218 | K155: 52
A156: 농수산용 건물 | B156: 600000 | C156: (통나무조) | D156: 135 | E156: (5) 작물재배사, 종묘배양시설, 건조장, 화초 및 분재 등의 온실, 기타 식물관련시설(동․식물원 제외) | F156: 37 | G156: 1(개별공시지가 10,000원 이하) | H156: 80 | I156: 1976 | J156: 0.201 | K156: 48
A157: 농수산용 건물 | B157: 600000 | C157: (통나무조) | D157: 135 | E157: (5) 작물재배사, 종묘배양시설, 건조장, 화초 및 분재 등의 온실, 기타 식물관련시설(동․식물원 제외) | F157: 37 | G157: 1(개별공시지가 10,000원 이하) | H157: 80 | I157: 1975 | J157: 0.184 | K157: 44
A158: 농수산용 건물 | B158: 600000 | C158: (통나무조) | D158: 135 | E158: (5) 작물재배사, 종묘배양시설, 건조장, 화초 및 분재 등의 온실, 기타 식물관련시설(동․식물원 제외) | F158: 37 | G158: 1(개별공시지가 10,000원 이하) | H158: 80 | I158: 1974 | J158: 0.167 | K158: 40
A159: 농수산용 건물 | B159: 600000 | C159: (통나무조) | D159: 135 | E159: (5) 작물재배사, 종묘배양시설, 건조장, 화초 및 분재 등의 온실, 기타 식물관련시설(동․식물원 제외) | F159: 37 | G159: 1(개별공시지가 10,000원 이하) | H159: 80 | I159: 50년이상 | J159: =1-(0.017*50) -> 0.15 | K159: 35
A160: 농수산용 건물 | B160: 600000 | C160: (통나무조) | D160: 135 | E160: (6) 전업농어가 창고 | F160: 49 | G160: 1(개별공시지가 10,000원 이하) | H160: 80 | I160: 2023 | J160: =1-(0.017*(2023-$I160)) -> 1 | K160: 317
A161: 농수산용 건물 | B161: 600000 | C161: (통나무조) | D161: 135 | E161: (6) 전업농어가 창고 | F161: 49 | G161: 1(개별공시지가 10,000원 이하) | H161: 80 | I161: 2022 | J161: 0.983 | K161: 312
A162: 농수산용 건물 | B162: 600000 | C162: (통나무조) | D162: 135 | E162: (6) 전업농어가 창고 | F162: 49 | G162: 1(개별공시지가 10,000원 이하) | H162: 80 | I162: 2021 | J162: 0.966 | K162: 306
A163: 농수산용 건물 | B163: 600000 | C163: (통나무조) | D163: 135 | E163: (6) 전업농어가 창고 | F163: 49 | G163: 1(개별공시지가 10,000원 이하) | H163: 80 | I163: 2020 | J163: 0.949 | K163: 301
A164: 농수산용 건물 | B164: 600000 | C164: (통나무조) | D164: 135 | E164: (6) 전업농어가 창고 | F164: 49 | G164: 1(개별공시지가 10,000원 이하) | H164: 80 | I164: 2019 | J164: 0.932 | K164: 295
A165: 농수산용 건물 | B165: 600000 | C165: (통나무조) | D165: 135 | E165: (6) 전업농어가 창고 | F165: 49 | G165: 1(개별공시지가 10,000원 이하) | H165: 80 | I165: 2018 | J165: 0.915 | K165: 290
A166: 농수산용 건물 | B166: 600000 | C166: (통나무조) | D166: 135 | E166: (6) 전업농어가 창고 | F166: 49 | G166: 1(개별공시지가 10,000원 이하) | H166: 80 | I166: 2017 | J166: 0.898 | K166: 285
A167: 농수산용 건물 | B167: 600000 | C167: (통나무조) | D167: 135 | E167: (6) 전업농어가 창고 | F167: 49 | G167: 1(개별공시지가 10,000원 이하) | H167: 80 | I167: 2016 | J167: 0.881 | K167: 279
A168: 농수산용 건물 | B168: 600000 | C168: (통나무조) | D168: 135 | E168: (6) 전업농어가 창고 | F168: 49 | G168: 1(개별공시지가 10,000원 이하) | H168: 80 | I168: 2015 | J168: 0.864 | K168: 274
A169: 농수산용 건물 | B169: 600000 | C169: (통나무조) | D169: 135 | E169: (6) 전업농어가 창고 | F169: 49 | G169: 1(개별공시지가 10,000원 이하) | H169: 80 | I169: 2014 | J169: 0.847 | K169: 268
A170: 농수산용 건물 | B170: 600000 | C170: (통나무조) | D170: 135 | E170: (6) 전업농어가 창고 | F170: 49 | G170: 1(개별공시지가 10,000원 이하) | H170: 80 | I170: 2013 | J170: 0.83 | K170: 263
A171: 농수산용 건물 | B171: 600000 | C171: (통나무조) | D171: 135 | E171: (6) 전업농어가 창고 | F171: 49 | G171: 1(개별공시지가 10,000원 이하) | H171: 80 | I171: 2012 | J171: 0.813 | K171: 258
A172: 농수산용 건물 | B172: 600000 | C172: (통나무조) | D172: 135 | E172: (6) 전업농어가 창고 | F172: 49 | G172: 1(개별공시지가 10,000원 이하) | H172: 80 | I172: 2011 | J172: 0.796 | K172: 252
A173: 농수산용 건물 | B173: 600000 | C173: (통나무조) | D173: 135 | E173: (6) 전업농어가 창고 | F173: 49 | G173: 1(개별공시지가 10,000원 이하) | H173: 80 | I173: 2010 | J173: 0.779 | K173: 247
A174: 농수산용 건물 | B174: 600000 | C174: (통나무조) | D174: 135 | E174: (6) 전업농어가 창고 | F174: 49 | G174: 1(개별공시지가 10,000원 이하) | H174: 80 | I174: 2009 | J174: 0.762 | K174: 241
A175: 농수산용 건물 | B175: 600000 | C175: (통나무조) | D175: 135 | E175: (6) 전업농어가 창고 | F175: 49 | G175: 1(개별공시지가 10,000원 이하) | H175: 80 | I175: 2008 | J175: 0.745 | K175: 236
A176: 농수산용 건물 | B176: 600000 | C176: (통나무조) | D176: 135 | E176: (6) 전업농어가 창고 | F176: 49 | G176: 1(개별공시지가 10,000원 이하) | H176: 80 | I176: 2007 | J176: 0.728 | K176: 231
A177: 농수산용 건물 | B177: 600000 | C177: (통나무조) | D177: 135 | E177: (6) 전업농어가 창고 | F177: 49 | G177: 1(개별공시지가 10,000원 이하) | H177: 80 | I177: 2006 | J177: 0.711 | K177: 225
A178: 농수산용 건물 | B178: 600000 | C178: (통나무조) | D178: 135 | E178: (6) 전업농어가 창고 | F178: 49 | G178: 1(개별공시지가 10,000원 이하) | H178: 80 | I178: 2005 | J178: 0.694 | K178: 220
A179: 농수산용 건물 | B179: 600000 | C179: (통나무조) | D179: 135 | E179: (6) 전업농어가 창고 | F179: 49 | G179: 1(개별공시지가 10,000원 이하) | H179: 80 | I179: 2004 | J179: 0.677 | K179: 214
A180: 농수산용 건물 | B180: 600000 | C180: (통나무조) | D180: 135 | E180: (6) 전업농어가 창고 | F180: 49 | G180: 1(개별공시지가 10,000원 이하) | H180: 80 | I180: 2003 | J180: 0.66 | K180: 209
A181: 농수산용 건물 | B181: 600000 | C181: (통나무조) | D181: 135 | E181: (6) 전업농어가 창고 | F181: 49 | G181: 1(개별공시지가 10,000원 이하) | H181: 80 | I181: 2002 | J181: 0.643 | K181: 204
A182: 농수산용 건물 | B182: 600000 | C182: (통나무조) | D182: 135 | E182: (6) 전업농어가 창고 | F182: 49 | G182: 1(개별공시지가 10,000원 이하) | H182: 80 | I182: 2001 | J182: 0.626 | K182: 198
A183: 농수산용 건물 | B183: 600000 | C183: (통나무조) | D183: 135 | E183: (6) 전업농어가 창고 | F183: 49 | G183: 1(개별공시지가 10,000원 이하) | H183: 80 | I183: 2000 | J183: 0.609 | K183: 193
A184: 농수산용 건물 | B184: 600000 | C184: (통나무조) | D184: 135 | E184: (6) 전업농어가 창고 | F184: 49 | G184: 1(개별공시지가 10,000원 이하) | H184: 80 | I184: 1999 | J184: 0.592 | K184: 187
A185: 농수산용 건물 | B185: 600000 | C185: (통나무조) | D185: 135 | E185: (6) 전업농어가 창고 | F185: 49 | G185: 1(개별공시지가 10,000원 이하) | H185: 80 | I185: 1998 | J185: 0.575 | K185: 182
A186: 농수산용 건물 | B186: 600000 | C186: (통나무조) | D186: 135 | E186: (6) 전업농어가 창고 | F186: 49 | G186: 1(개별공시지가 10,000원 이하) | H186: 80 | I186: 1997 | J186: =1-(0.017*(2023-$I186)) -> 0.558 | K186: 177
A187: 농수산용 건물 | B187: 600000 | C187: (통나무조) | D187: 135 | E187: (6) 전업농어가 창고 | F187: 49 | G187: 1(개별공시지가 10,000원 이하) | H187: 80 | I187: 1996 | J187: 0.541 | K187: 171
A188: 농수산용 건물 | B188: 600000 | C188: (통나무조) | D188: 135 | E188: (6) 전업농어가 창고 | F188: 49 | G188: 1(개별공시지가 10,000원 이하) | H188: 80 | I188: 1995 | J188: 0.524 | K188: 166
A189: 농수산용 건물 | B189: 600000 | C189: (통나무조) | D189: 135 | E189: (6) 전업농어가 창고 | F189: 49 | G189: 1(개별공시지가 10,000원 이하) | H189: 80 | I189: 1994 | J189: 0.507 | K189: 160
A190: 농수산용 건물 | B190: 600000 | C190: (통나무조) | D190: 135 | E190: (6) 전업농어가 창고 | F190: 49 | G190: 1(개별공시지가 10,000원 이하) | H190: 80 | I190: 1993 | J190: 0.49 | K190: 155
A191: 농수산용 건물 | B191: 600000 | C191: (통나무조) | D191: 135 | E191: (6) 전업농어가 창고 | F191: 49 | G191: 1(개별공시지가 10,000원 이하) | H191: 80 | I191: 1992 | J191: 0.473 | K191: 150
A192: 농수산용 건물 | B192: 600000 | C192: (통나무조) | D192: 135 | E192: (6) 전업농어가 창고 | F192: 49 | G192: 1(개별공시지가 10,000원 이하) | H192: 80 | I192: 1991 | J192: 0.456 | K192: 144
A193: 농수산용 건물 | B193: 600000 | C193: (통나무조) | D193: 135 | E193: (6) 전업농어가 창고 | F193: 49 | G193: 1(개별공시지가 10,000원 이하) | H193: 80 | I193: 1990 | J193: 0.439 | K193: 139
A194: 농수산용 건물 | B194: 600000 | C194: (통나무조) | D194: 135 | E194: (6) 전업농어가 창고 | F194: 49 | G194: 1(개별공시지가 10,000원 이하) | H194: 80 | I194: 1989 | J194: 0.422 | K194: 133
A195: 농수산용 건물 | B195: 600000 | C195: (통나무조) | D195: 135 | E195: (6) 전업농어가 창고 | F195: 49 | G195: 1(개별공시지가 10,000원 이하) | H195: 80 | I195: 1988 | J195: 0.405 | K195: 128
A196: 농수산용 건물 | B196: 600000 | C196: (통나무조) | D196: 135 | E196: (6) 전업농어가 창고 | F196: 49 | G196: 1(개별공시지가 10,000원 이하) | H196: 80 | I196: 1987 | J196: 0.388 | K196: 123
A197: 농수산용 건물 | B197: 600000 | C197: (통나무조) | D197: 135 | E197: (6) 전업농어가 창고 | F197: 49 | G197: 1(개별공시지가 10,000원 이하) | H197: 80 | I197: 1986 | J197: 0.371 | K197: 117
A198: 농수산용 건물 | B198: 600000 | C198: (통나무조) | D198: 135 | E198: (6) 전업농어가 창고 | F198: 49 | G198: 1(개별공시지가 10,000원 이하) | H198: 80 | I198: 1985 | J198: 0.354 | K198: 112
A199: 농수산용 건물 | B199: 600000 | C199: (통나무조) | D199: 135 | E199: (6) 전업농어가 창고 | F199: 49 | G199: 1(개별공시지가 10,000원 이하) | H199: 80 | I199: 1984 | J199: 0.337 | K199: =ROUNDDOWN(B199*D199/100*F199/100*H199/100*J199/1000,0) -> 107
A200: 농수산용 건물 | B200: 600000 | C200: (통나무조) | D200: 135 | E200: (6) 전업농어가 창고 | F200: 49 | G200: 1(개별공시지가 10,000원 이하) | H200: 80 | I200: 1983 | J200: 0.32 | K200: 101
... 4292 more rows

Sheet 사회문화용 건물
A1: 건축물 시가표준액 일람표 본 일람표는 가감산특례 적용 전 건축물 시가표준액을 계산한 표로, 단위는 단위 면적당(㎡) 천원(1000원)이며 천원 이하의 숫자는 버림하였습니다. 문의사항: 한국지방세연구원, 최은철 주임, 02-2071-2716, ecchoi@kilf.re.kr
A2: 건물신축가격기준액구분 | B2: 구조구분 | C2: 용도구분 | D2: 위치구분 | E2: 경과연수구분 | F2: 선택번호 | G2: 2 | H2: 16 | I2: 3 | J2: 3 | K2: 1
F3: 검색 | G3: 건물신축가격기준액구분 | H3: 구조구분 | I3: 용도구분 | J3: 위치구분 | K3: 경과연수구분
A4: ※ "전부" 버튼은 2개 이상 사용하면 동작시간이 길어져 사용을 자제해주시기 바랍니다 (매크로 작동 도중 중단을 원하시면 esc 키를 눌러주시기 바랍니다) | F4: 찾기 | G4: =IF(G2=1,"",INDEX(건물신축가격기준액구분,G2)) -> 사회문화용 건물 | H4: =IF(H2=1,"",INDEX(구조구분,H2)) -> (철파이프조) | I4: =IF(I2=1,"",INDEX(용도구분,I2)) -> (2) 대형수족관 | J4: =IF(J2=1,"",INDEX(위치구분,J2)) -> 2(개별공시지가 10,000원 초과 30,000이하) | K4: =IF(K2=1,"",INDEX(경과연수구분,K2)) -> 
A5: ※ 10년 이상 오래된 건물이 검색이 안될 경우 '경과연수구분'에 '10년 이상', '20년 이상', '30년 이상', '40년 이상', '50년 이상'을 눌러주시기 바랍니다
A6: 건물신축가격기준액구분 | B6: 건물신축가격기준액 | C6: 구조구분 | D6: 구조지수 | E6: 용도구분 | F6: 용도지수 | G6: 위치구분 | H6: 위치지수 | I6: 경과연수구분 | J6: 경과연수별잔가율 | K6: 시가표준액
A7: 사회문화용 건물 | B7: 810000 | C7: (통나무조) | D7: 135 | E7: (10) 고아원, 노인주거복지시설(양로원 등) 및 경로당,용도번호 Ⅴ-9을 제외한 기타 이와 유사한 시설 | F7: 54 | G7: 1(개별공시지가 10,000원 이하) | H7: 80 | I7: 2023 | J7: =1-(0.017*(2023-$I7)) -> 1 | K7: =ROUNDDOWN(B7*D7/100*F7/100*H7/100*J7/1000,0) -> 472
A8: 사회문화용 건물 | B8: 810000 | C8: (통나무조) | D8: 135 | E8: (10) 고아원, 노인주거복지시설(양로원 등) 및 경로당,용도번호 Ⅴ-9을 제외한 기타 이와 유사한 시설 | F8: 54 | G8: 1(개별공시지가 10,000원 이하) | H8: 80 | I8: 2022 | J8: =1-(0.017*(2023-$I8)) -> 0.983 | K8: =ROUNDDOWN(B8*D8/100*F8/100*H8/100*J8/1000,0) -> 464
A9: 사회문화용 건물 | B9: 810000 | C9: (통나무조) | D9: 135 | E9: (10) 고아원, 노인주거복지시설(양로원 등) 및 경로당,용도번호 Ⅴ-9을 제외한 기타 이와 유사한 시설 | F9: 54 | G9: 1(개별공시지가 10,000원 이하) | H9: 80 | I9: 2021 | J9: 0.966 | K9: 456
A10: 사회문화용 건물 | B10: 810000 | C10: (통나무조) | D10: 135 | E10: (10) 고아원, 노인주거복지시설(양로원 등) 및 경로당,용도번호 Ⅴ-9을 제외한 기타 이와 유사한 시설 | F10: 54 | G10: 1(개별공시지가 10,000원 이하) | H10: 80 | I10: 2020 | J10: 0.949 | K10: 448
A11: 사회문화용 건물 | B11: 810000 | C11: (통나무조) | D11: 135 | E11: (10) 고아원, 노인주거복지시설(양로원 등) 및 경로당,용도번호 Ⅴ-9을 제외한 기타 이와 유사한 시설 | F11: 54 | G11: 1(개별공시지가 10,000원 이하) | H11: 80 | I11: 2019 | J11: 0.932 | K11: 440
A12: 사회문화용 건물 | B12: 810000 | C12: (통나무조) | D12: 135 | E12: (10) 고아원, 노인주거복지시설(양로원 등) 및 경로당,용도번호 Ⅴ-9을 제외한 기타 이와 유사한 시설 | F12: 54 | G12: 1(개별공시지가 10,000원 이하) | H12: 80 | I12: 2018 | J12: 0.915 | K12: 432
A13: 사회문화용 건물 | B13: 810000 | C13: (통나무조) | D13: 135 | E13: (10) 고아원, 노인주거복지시설(양로원 등) 및 경로당,용도번호 Ⅴ-9을 제외한 기타 이와 유사한 시설 | F13: 54 | G13: 1(개별공시지가 10,000원 이하) | H13: 80 | I13: 2017 | J13: 0.898 | K13: 424
A14: 사회문화용 건물 | B14: 810000 | C14: (통나무조) | D14: 135 | E14: (10) 고아원, 노인주거복지시설(양로원 등) 및 경로당,용도번호 Ⅴ-9을 제외한 기타 이와 유사한 시설 | F14: 54 | G14: 1(개별공시지가 10,000원 이하) | H14: 80 | I14: 2016 | J14: 0.881 | K14: 416
A15: 사회문화용 건물 | B15: 810000 | C15: (통나무조) | D15: 135 | E15: (10) 고아원, 노인주거복지시설(양로원 등) 및 경로당,용도번호 Ⅴ-9을 제외한 기타 이와 유사한 시설 | F15: 54 | G15: 1(개별공시지가 10,000원 이하) | H15: 80 | I15: 2015 | J15: 0.864 | K15: 408
A16: 사회문화용 건물 | B16: 810000 | C16: (통나무조) | D16: 135 | E16: (10) 고아원, 노인주거복지시설(양로원 등) 및 경로당,용도번호 Ⅴ-9을 제외한 기타 이와 유사한 시설 | F16: 54 | G16: 1(개별공시지가 10,000원 이하) | H16: 80 | I16: 2014 | J16: 0.847 | K16: 400
A17: 사회문화용 건물 | B17: 810000 | C17: (통나무조) | D17: 135 | E17: (10) 고아원, 노인주거복지시설(양로원 등) 및 경로당,용도번호 Ⅴ-9을 제외한 기타 이와 유사한 시설 | F17: 54 | G17: 1(개별공시지가 10,000원 이하) | H17: 80 | I17: 2013 | J17: 0.83 | K17: 392
A18: 사회문화용 건물 | B18: 810000 | C18: (통나무조) | D18: 135 | E18: (10) 고아원, 노인주거복지시설(양로원 등) 및 경로당,용도번호 Ⅴ-9을 제외한 기타 이와 유사한 시설 | F18: 54 | G18: 1(개별공시지가 10,000원 이하) | H18: 80 | I18: 2012 | J18: 0.813 | K18: 384
A19: 사회문화용 건물 | B19: 810000 | C19: (통나무조) | D19: 135 | E19: (10) 고아원, 노인주거복지시설(양로원 등) 및 경로당,용도번호 Ⅴ-9을 제외한 기타 이와 유사한 시설 | F19: 54 | G19: 1(개별공시지가 10,000원 이하) | H19: 80 | I19: 2011 | J19: 0.796 | K19: 376
A20: 사회문화용 건물 | B20: 810000 | C20: (통나무조) | D20: 135 | E20: (10) 고아원, 노인주거복지시설(양로원 등) 및 경로당,용도번호 Ⅴ-9을 제외한 기타 이와 유사한 시설 | F20: 54 | G20: 1(개별공시지가 10,000원 이하) | H20: 80 | I20: 2010 | J20: 0.779 | K20: 367
A21: 사회문화용 건물 | B21: 810000 | C21: (통나무조) | D21: 135 | E21: (10) 고아원, 노인주거복지시설(양로원 등) 및 경로당,용도번호 Ⅴ-9을 제외한 기타 이와 유사한 시설 | F21: 54 | G21: 1(개별공시지가 10,000원 이하) | H21: 80 | I21: 2009 | J21: 0.762 | K21: 359
A22: 사회문화용 건물 | B22: 810000 | C22: (통나무조) | D22: 135 | E22: (10) 고아원, 노인주거복지시설(양로원 등) 및 경로당,용도번호 Ⅴ-9을 제외한 기타 이와 유사한 시설 | F22: 54 | G22: 1(개별공시지가 10,000원 이하) | H22: 80 | I22: 2008 | J22: 0.745 | K22: 351
A23: 사회문화용 건물 | B23: 810000 | C23: (통나무조) | D23: 135 | E23: (10) 고아원, 노인주거복지시설(양로원 등) 및 경로당,용도번호 Ⅴ-9을 제외한 기타 이와 유사한 시설 | F23: 54 | G23: 1(개별공시지가 10,000원 이하) | H23: 80 | I23: 2007 | J23: 0.728 | K23: 343
A24: 사회문화용 건물 | B24: 810000 | C24: (통나무조) | D24: 135 | E24: (10) 고아원, 노인주거복지시설(양로원 등) 및 경로당,용도번호 Ⅴ-9을 제외한 기타 이와 유사한 시설 | F24: 54 | G24: 1(개별공시지가 10,000원 이하) | H24: 80 | I24: 2006 | J24: 0.711 | K24: 335
A25: 사회문화용 건물 | B25: 810000 | C25: (통나무조) | D25: 135 | E25: (10) 고아원, 노인주거복지시설(양로원 등) 및 경로당,용도번호 Ⅴ-9을 제외한 기타 이와 유사한 시설 | F25: 54 | G25: 1(개별공시지가 10,000원 이하) | H25: 80 | I25: 2005 | J25: 0.694 | K25: 327
A26: 사회문화용 건물 | B26: 810000 | C26: (통나무조) | D26: 135 | E26: (10) 고아원, 노인주거복지시설(양로원 등) 및 경로당,용도번호 Ⅴ-9을 제외한 기타 이와 유사한 시설 | F26: 54 | G26: 1(개별공시지가 10,000원 이하) | H26: 80 | I26: 2004 | J26: 0.677 | K26: 319
A27: 사회문화용 건물 | B27: 810000 | C27: (통나무조) | D27: 135 | E27: (10) 고아원, 노인주거복지시설(양로원 등) 및 경로당,용도번호 Ⅴ-9을 제외한 기타 이와 유사한 시설 | F27: 54 | G27: 1(개별공시지가 10,000원 이하) | H27: 80 | I27: 2003 | J27: 0.66 | K27: 311
A28: 사회문화용 건물 | B28: 810000 | C28: (통나무조) | D28: 135 | E28: (10) 고아원, 노인주거복지시설(양로원 등) 및 경로당,용도번호 Ⅴ-9을 제외한 기타 이와 유사한 시설 | F28: 54 | G28: 1(개별공시지가 10,000원 이하) | H28: 80 | I28: 2002 | J28: 0.643 | K28: 303
A29: 사회문화용 건물 | B29: 810000 | C29: (통나무조) | D29: 135 | E29: (10) 고아원, 노인주거복지시설(양로원 등) 및 경로당,용도번호 Ⅴ-9을 제외한 기타 이와 유사한 시설 | F29: 54 | G29: 1(개별공시지가 10,000원 이하) | H29: 80 | I29: 2001 | J29: 0.626 | K29: 295
A30: 사회문화용 건물 | B30: 810000 | C30: (통나무조) | D30: 135 | E30: (10) 고아원, 노인주거복지시설(양로원 등) 및 경로당,용도번호 Ⅴ-9을 제외한 기타 이와 유사한 시설 | F30: 54 | G30: 1(개별공시지가 10,000원 이하) | H30: 80 | I30: 2000 | J30: 0.609 | K30: 287
A31: 사회문화용 건물 | B31: 810000 | C31: (통나무조) | D31: 135 | E31: (10) 고아원, 노인주거복지시설(양로원 등) 및 경로당,용도번호 Ⅴ-9을 제외한 기타 이와 유사한 시설 | F31: 54 | G31: 1(개별공시지가 10,000원 이하) | H31: 80 | I31: 1999 | J31: 0.592 | K31: 279
A32: 사회문화용 건물 | B32: 810000 | C32: (통나무조) | D32: 135 | E32: (10) 고아원, 노인주거복지시설(양로원 등) 및 경로당,용도번호 Ⅴ-9을 제외한 기타 이와 유사한 시설 | F32: 54 | G32: 1(개별공시지가 10,000원 이하) | H32: 80 | I32: 1998 | J32: 0.575 | K32: 271
A33: 사회문화용 건물 | B33: 810000 | C33: (통나무조) | D33: 135 | E33: (10) 고아원, 노인주거복지시설(양로원 등) 및 경로당,용도번호 Ⅴ-9을 제외한 기타 이와 유사한 시설 | F33: 54 | G33: 1(개별공시지가 10,000원 이하) | H33: 80 | I33: 1997 | J33: 0.558 | K33: 263
A34: 사회문화용 건물 | B34: 810000 | C34: (통나무조) | D34: 135 | E34: (10) 고아원, 노인주거복지시설(양로원 등) 및 경로당,용도번호 Ⅴ-9을 제외한 기타 이와 유사한 시설 | F34: 54 | G34: 1(개별공시지가 10,000원 이하) | H34: 80 | I34: 1996 | J34: 0.541 | K34: 255
A35: 사회문화용 건물 | B35: 810000 | C35: (통나무조) | D35: 135 | E35: (10) 고아원, 노인주거복지시설(양로원 등) 및 경로당,용도번호 Ⅴ-9을 제외한 기타 이와 유사한 시설 | F35: 54 | G35: 1(개별공시지가 10,000원 이하) | H35: 80 | I35: 1995 | J35: 0.524 | K35: 247
A36: 사회문화용 건물 | B36: 810000 | C36: (통나무조) | D36: 135 | E36: (10) 고아원, 노인주거복지시설(양로원 등) 및 경로당,용도번호 Ⅴ-9을 제외한 기타 이와 유사한 시설 | F36: 54 | G36: 1(개별공시지가 10,000원 이하) | H36: 80 | I36: 1994 | J36: 0.507 | K36: 239
A37: 사회문화용 건물 | B37: 810000 | C37: (통나무조) | D37: 135 | E37: (10) 고아원, 노인주거복지시설(양로원 등) 및 경로당,용도번호 Ⅴ-9을 제외한 기타 이와 유사한 시설 | F37: 54 | G37: 1(개별공시지가 10,000원 이하) | H37: 80 | I37: 1993 | J37: 0.49 | K37: 231
A38: 사회문화용 건물 | B38: 810000 | C38: (통나무조) | D38: 135 | E38: (10) 고아원, 노인주거복지시설(양로원 등) 및 경로당,용도번호 Ⅴ-9을 제외한 기타 이와 유사한 시설 | F38: 54 | G38: 1(개별공시지가 10,000원 이하) | H38: 80 | I38: 1992 | J38: 0.473 | K38: 223
A39: 사회문화용 건물 | B39: 810000 | C39: (통나무조) | D39: 135 | E39: (10) 고아원, 노인주거복지시설(양로원 등) 및 경로당,용도번호 Ⅴ-9을 제외한 기타 이와 유사한 시설 | F39: 54 | G39: 1(개별공시지가 10,000원 이하) | H39: 80 | I39: 1991 | J39: 0.456 | K39: 215
A40: 사회문화용 건물 | B40: 810000 | C40: (통나무조) | D40: 135 | E40: (10) 고아원, 노인주거복지시설(양로원 등) 및 경로당,용도번호 Ⅴ-9을 제외한 기타 이와 유사한 시설 | F40: 54 | G40: 1(개별공시지가 10,000원 이하) | H40: 80 | I40: 1990 | J40: 0.439 | K40: 207
A41: 사회문화용 건물 | B41: 810000 | C41: (통나무조) | D41: 135 | E41: (10) 고아원, 노인주거복지시설(양로원 등) 및 경로당,용도번호 Ⅴ-9을 제외한 기타 이와 유사한 시설 | F41: 54 | G41: 1(개별공시지가 10,000원 이하) | H41: 80 | I41: 1989 | J41: 0.422 | K41: 199
A42: 사회문화용 건물 | B42: 810000 | C42: (통나무조) | D42: 135 | E42: (10) 고아원, 노인주거복지시설(양로원 등) 및 경로당,용도번호 Ⅴ-9을 제외한 기타 이와 유사한 시설 | F42: 54 | G42: 1(개별공시지가 10,000원 이하) | H42: 80 | I42: 1988 | J42: 0.405 | K42: 191
A43: 사회문화용 건물 | B43: 810000 | C43: (통나무조) | D43: 135 | E43: (10) 고아원, 노인주거복지시설(양로원 등) 및 경로당,용도번호 Ⅴ-9을 제외한 기타 이와 유사한 시설 | F43: 54 | G43: 1(개별공시지가 10,000원 이하) | H43: 80 | I43: 1987 | J43: 0.388 | K43: 183
A44: 사회문화용 건물 | B44: 810000 | C44: (통나무조) | D44: 135 | E44: (10) 고아원, 노인주거복지시설(양로원 등) 및 경로당,용도번호 Ⅴ-9을 제외한 기타 이와 유사한 시설 | F44: 54 | G44: 1(개별공시지가 10,000원 이하) | H44: 80 | I44: 1986 | J44: 0.371 | K44: 175
A45: 사회문화용 건물 | B45: 810000 | C45: (통나무조) | D45: 135 | E45: (10) 고아원, 노인주거복지시설(양로원 등) 및 경로당,용도번호 Ⅴ-9을 제외한 기타 이와 유사한 시설 | F45: 54 | G45: 1(개별공시지가 10,000원 이하) | H45: 80 | I45: 1985 | J45: 0.354 | K45: 167
A46: 사회문화용 건물 | B46: 810000 | C46: (통나무조) | D46: 135 | E46: (10) 고아원, 노인주거복지시설(양로원 등) 및 경로당,용도번호 Ⅴ-9을 제외한 기타 이와 유사한 시설 | F46: 54 | G46: 1(개별공시지가 10,000원 이하) | H46: 80 | I46: 1984 | J46: 0.337 | K46: 159
A47: 사회문화용 건물 | B47: 810000 | C47: (통나무조) | D47: 135 | E47: (10) 고아원, 노인주거복지시설(양로원 등) 및 경로당,용도번호 Ⅴ-9을 제외한 기타 이와 유사한 시설 | F47: 54 | G47: 1(개별공시지가 10,000원 이하) | H47: 80 | I47: 1983 | J47: 0.32 | K47: 151
A48: 사회문화용 건물 | B48: 810000 | C48: (통나무조) | D48: 135 | E48: (10) 고아원, 노인주거복지시설(양로원 등) 및 경로당,용도번호 Ⅴ-9을 제외한 기타 이와 유사한 시설 | F48: 54 | G48: 1(개별공시지가 10,000원 이하) | H48: 80 | I48: 1982 | J48: 0.303 | K48: 143
A49: 사회문화용 건물 | B49: 810000 | C49: (통나무조) | D49: 135 | E49: (10) 고아원, 노인주거복지시설(양로원 등) 및 경로당,용도번호 Ⅴ-9을 제외한 기타 이와 유사한 시설 | F49: 54 | G49: 1(개별공시지가 10,000원 이하) | H49: 80 | I49: 1981 | J49: 0.286 | K49: 135
A50: 사회문화용 건물 | B50: 810000 | C50: (통나무조) | D50: 135 | E50: (10) 고아원, 노인주거복지시설(양로원 등) 및 경로당,용도번호 Ⅴ-9을 제외한 기타 이와 유사한 시설 | F50: 54 | G50: 1(개별공시지가 10,000원 이하) | H50: 80 | I50: 1980 | J50: 0.269 | K50: 127
A51: 사회문화용 건물 | B51: 810000 | C51: (통나무조) | D51: 135 | E51: (10) 고아원, 노인주거복지시설(양로원 등) 및 경로당,용도번호 Ⅴ-9을 제외한 기타 이와 유사한 시설 | F51: 54 | G51: 1(개별공시지가 10,000원 이하) | H51: 80 | I51: 1979 | J51: 0.252 | K51: 119
A52: 사회문화용 건물 | B52: 810000 | C52: (통나무조) | D52: 135 | E52: (10) 고아원, 노인주거복지시설(양로원 등) 및 경로당,용도번호 Ⅴ-9을 제외한 기타 이와 유사한 시설 | F52: 54 | G52: 1(개별공시지가 10,000원 이하) | H52: 80 | I52: 1978 | J52: 0.235 | K52: 111
A53: 사회문화용 건물 | B53: 810000 | C53: (통나무조) | D53: 135 | E53: (10) 고아원, 노인주거복지시설(양로원 등) 및 경로당,용도번호 Ⅴ-9을 제외한 기타 이와 유사한 시설 | F53: 54 | G53: 1(개별공시지가 10,000원 이하) | H53: 80 | I53: 1977 | J53: 0.218 | K53: 102
A54: 사회문화용 건물 | B54: 810000 | C54: (통나무조) | D54: 135 | E54: (10) 고아원, 노인주거복지시설(양로원 등) 및 경로당,용도번호 Ⅴ-9을 제외한 기타 이와 유사한 시설 | F54: 54 | G54: 1(개별공시지가 10,000원 이하) | H54: 80 | I54: 1976 | J54: 0.201 | K54: 94
A55: 사회문화용 건물 | B55: 810000 | C55: (통나무조) | D55: 135 | E55: (10) 고아원, 노인주거복지시설(양로원 등) 및 경로당,용도번호 Ⅴ-9을 제외한 기타 이와 유사한 시설 | F55: 54 | G55: 1(개별공시지가 10,000원 이하) | H55: 80 | I55: 1975 | J55: 0.184 | K55: 86
A56: 사회문화용 건물 | B56: 810000 | C56: (통나무조) | D56: 135 | E56: (10) 고아원, 노인주거복지시설(양로원 등) 및 경로당,용도번호 Ⅴ-9을 제외한 기타 이와 유사한 시설 | F56: 54 | G56: 1(개별공시지가 10,000원 이하) | H56: 80 | I56: 1974 | J56: 0.167 | K56: 78
A57: 사회문화용 건물 | B57: 810000 | C57: (통나무조) | D57: 135 | E57: (10) 고아원, 노인주거복지시설(양로원 등) 및 경로당,용도번호 Ⅴ-9을 제외한 기타 이와 유사한 시설 | F57: 54 | G57: 1(개별공시지가 10,000원 이하) | H57: 80 | I57: 50년이상 | J57: =1-(0.017*(50)) -> 0.15 | K57: 70
A58: 사회문화용 건물 | B58: 810000 | C58: (통나무조) | D58: 135 | E58: (5) 사우(재실, 정각 포함) | F58: 71 | G58: 1(개별공시지가 10,000원 이하) | H58: 80 | I58: 2023 | J58: 1 | K58: 621
A59: 사회문화용 건물 | B59: 810000 | C59: (통나무조) | D59: 135 | E59: (5) 사우(재실, 정각 포함) | F59: 71 | G59: 1(개별공시지가 10,000원 이하) | H59: 80 | I59: 2022 | J59: 0.983 | K59: 610
A60: 사회문화용 건물 | B60: 810000 | C60: (통나무조) | D60: 135 | E60: (5) 사우(재실, 정각 포함) | F60: 71 | G60: 1(개별공시지가 10,000원 이하) | H60: 80 | I60: 2021 | J60: 0.966 | K60: 599
A61: 사회문화용 건물 | B61: 810000 | C61: (통나무조) | D61: 135 | E61: (5) 사우(재실, 정각 포함) | F61: 71 | G61: 1(개별공시지가 10,000원 이하) | H61: 80 | I61: 2020 | J61: 0.949 | K61: 589
A62: 사회문화용 건물 | B62: 810000 | C62: (통나무조) | D62: 135 | E62: (5) 사우(재실, 정각 포함) | F62: 71 | G62: 1(개별공시지가 10,000원 이하) | H62: 80 | I62: 2019 | J62: 0.932 | K62: 578
A63: 사회문화용 건물 | B63: 810000 | C63: (통나무조) | D63: 135 | E63: (5) 사우(재실, 정각 포함) | F63: 71 | G63: 1(개별공시지가 10,000원 이하) | H63: 80 | I63: 2018 | J63: 0.915 | K63: 568
A64: 사회문화용 건물 | B64: 810000 | C64: (통나무조) | D64: 135 | E64: (5) 사우(재실, 정각 포함) | F64: 71 | G64: 1(개별공시지가 10,000원 이하) | H64: 80 | I64: 2017 | J64: 0.898 | K64: 557
A65: 사회문화용 건물 | B65: 810000 | C65: (통나무조) | D65: 135 | E65: (5) 사우(재실, 정각 포함) | F65: 71 | G65: 1(개별공시지가 10,000원 이하) | H65: 80 | I65: 2016 | J65: 0.881 | K65: 547
A66: 사회문화용 건물 | B66: 810000 | C66: (통나무조) | D66: 135 | E66: (5) 사우(재실, 정각 포함) | F66: 71 | G66: 1(개별공시지가 10,000원 이하) | H66: 80 | I66: 2015 | J66: 0.864 | K66: 536
A67: 사회문화용 건물 | B67: 810000 | C67: (통나무조) | D67: 135 | E67: (5) 사우(재실, 정각 포함) | F67: 71 | G67: 1(개별공시지가 10,000원 이하) | H67: 80 | I67: 2014 | J67: 0.847 | K67: 526
A68: 사회문화용 건물 | B68: 810000 | C68: (통나무조) | D68: 135 | E68: (5) 사우(재실, 정각 포함) | F68: 71 | G68: 1(개별공시지가 10,000원 이하) | H68: 80 | I68: 2013 | J68: 0.83 | K68: 515
A69: 사회문화용 건물 | B69: 810000 | C69: (통나무조) | D69: 135 | E69: (5) 사우(재실, 정각 포함) | F69: 71 | G69: 1(개별공시지가 10,000원 이하) | H69: 80 | I69: 2012 | J69: 0.813 | K69: 504
A70: 사회문화용 건물 | B70: 810000 | C70: (통나무조) | D70: 135 | E70: (5) 사우(재실, 정각 포함) | F70: 71 | G70: 1(개별공시지가 10,000원 이하) | H70: 80 | I70: 2011 | J70: 0.796 | K70: 494
A71: 사회문화용 건물 | B71: 810000 | C71: (통나무조) | D71: 135 | E71: (5) 사우(재실, 정각 포함) | F71: 71 | G71: 1(개별공시지가 10,000원 이하) | H71: 80 | I71: 2010 | J71: 0.779 | K71: 483
A72: 사회문화용 건물 | B72: 810000 | C72: (통나무조) | D72: 135 | E72: (5) 사우(재실, 정각 포함) | F72: 71 | G72: 1(개별공시지가 10,000원 이하) | H72: 80 | I72: 2009 | J72: =1-(0.017*(2023-$I72)) -> 0.762 | K72: =ROUNDDOWN(B72*D72/100*F72/100*H72/100*J72/1000,0) -> 473
A73: 사회문화용 건물 | B73: 810000 | C73: (통나무조) | D73: 135 | E73: (5) 사우(재실, 정각 포함) | F73: 71 | G73: 1(개별공시지가 10,000원 이하) | H73: 80 | I73: 2008 | J73: 0.745 | K73: 462
A74: 사회문화용 건물 | B74: 810000 | C74: (통나무조) | D74: 135 | E74: (5) 사우(재실, 정각 포함) | F74: 71 | G74: 1(개별공시지가 10,000원 이하) | H74: 80 | I74: 2007 | J74: 0.728 | K74: 452
A75: 사회문화용 건물 | B75: 810000 | C75: (통나무조) | D75: 135 | E75: (5) 사우(재실, 정각 포함) | F75: 71 | G75: 1(개별공시지가 10,000원 이하) | H75: 80 | I75: 2006 | J75: 0.711 | K75: 441
A76: 사회문화용 건물 | B76: 810000 | C76: (통나무조) | D76: 135 | E76: (5) 사우(재실, 정각 포함) | F76: 71 | G76: 1(개별공시지가 10,000원 이하) | H76: 80 | I76: 2005 | J76: 0.694 | K76: 431
A77: 사회문화용 건물 | B77: 810000 | C77: (통나무조) | D77: 135 | E77: (5) 사우(재실, 정각 포함) | F77: 71 | G77: 1(개별공시지가 10,000원 이하) | H77: 80 | I77: 2004 | J77: 0.677 | K77: 420
A78: 사회문화용 건물 | B78: 810000 | C78: (통나무조) | D78: 135 | E78: (5) 사우(재실, 정각 포함) | F78: 71 | G78: 1(개별공시지가 10,000원 이하) | H78: 80 | I78: 2003 | J78: 0.66 | K78: 409
A79: 사회문화용 건물 | B79: 810000 | C79: (통나무조) | D79: 135 | E79: (5) 사우(재실, 정각 포함) | F79: 71 | G79: 1(개별공시지가 10,000원 이하) | H79: 80 | I79: 2002 | J79: 0.643 | K79: 399
A80: 사회문화용 건물 | B80: 810000 | C80: (통나무조) | D80: 135 | E80: (5) 사우(재실, 정각 포함) | F80: 71 | G80: 1(개별공시지가 10,000원 이하) | H80: 80 | I80: 2001 | J80: 0.626 | K80: 388
A81: 사회문화용 건물 | B81: 810000 | C81: (통나무조) | D81: 135 | E81: (5) 사우(재실, 정각 포함) | F81: 71 | G81: 1(개별공시지가 10,000원 이하) | H81: 80 | I81: 2000 | J81: 0.609 | K81: 378
A82: 사회문화용 건물 | B82: 810000 | C82: (통나무조) | D82: 135 | E82: (5) 사우(재실, 정각 포함) | F82: 71 | G82: 1(개별공시지가 10,000원 이하) | H82: 80 | I82: 1999 | J82: 0.592 | K82: 367
A83: 사회문화용 건물 | B83: 810000 | C83: (통나무조) | D83: 135 | E83: (5) 사우(재실, 정각 포함) | F83: 71 | G83: 1(개별공시지가 10,000원 이하) | H83: 80 | I83: 1998 | J83: 0.575 | K83: 357
A84: 사회문화용 건물 | B84: 810000 | C84: (통나무조) | D84: 135 | E84: (5) 사우(재실, 정각 포함) | F84: 71 | G84: 1(개별공시지가 10,000원 이하) | H84: 80 | I84: 1997 | J84: 0.558 | K84: 346
A85: 사회문화용 건물 | B85: 810000 | C85: (통나무조) | D85: 135 | E85: (5) 사우(재실, 정각 포함) | F85: 71 | G85: 1(개별공시지가 10,000원 이하) | H85: 80 | I85: 1996 | J85: 0.541 | K85: 336
A86: 사회문화용 건물 | B86: 810000 | C86: (통나무조) | D86: 135 | E86: (5) 사우(재실, 정각 포함) | F86: 71 | G86: 1(개별공시지가 10,000원 이하) | H86: 80 | I86: 1995 | J86: 0.524 | K86: 325
A87: 사회문화용 건물 | B87: 810000 | C87: (통나무조) | D87: 135 | E87: (5) 사우(재실, 정각 포함) | F87: 71 | G87: 1(개별공시지가 10,000원 이하) | H87: 80 | I87: 1994 | J87: 0.507 | K87: 314
A88: 사회문화용 건물 | B88: 810000 | C88: (통나무조) | D88: 135 | E88: (5) 사우(재실, 정각 포함) | F88: 71 | G88: 1(개별공시지가 10,000원 이하) | H88: 80 | I88: 1993 | J88: 0.49 | K88: 304
A89: 사회문화용 건물 | B89: 810000 | C89: (통나무조) | D89: 135 | E89: (5) 사우(재실, 정각 포함) | F89: 71 | G89: 1(개별공시지가 10,000원 이하) | H89: 80 | I89: 1992 | J89: 0.473 | K89: 293
A90: 사회문화용 건물 | B90: 810000 | C90: (통나무조) | D90: 135 | E90: (5) 사우(재실, 정각 포함) | F90: 71 | G90: 1(개별공시지가 10,000원 이하) | H90: 80 | I90: 1991 | J90: 0.456 | K90: 283
A91: 사회문화용 건물 | B91: 810000 | C91: (통나무조) | D91: 135 | E91: (5) 사우(재실, 정각 포함) | F91: 71 | G91: 1(개별공시지가 10,000원 이하) | H91: 80 | I91: 1990 | J91: 0.439 | K91: 272
A92: 사회문화용 건물 | B92: 810000 | C92: (통나무조) | D92: 135 | E92: (5) 사우(재실, 정각 포함) | F92: 71 | G92: 1(개별공시지가 10,000원 이하) | H92: 80 | I92: 1989 | J92: 0.422 | K92: 262
A93: 사회문화용 건물 | B93: 810000 | C93: (통나무조) | D93: 135 | E93: (5) 사우(재실, 정각 포함) | F93: 71 | G93: 1(개별공시지가 10,000원 이하) | H93: 80 | I93: 1988 | J93: 0.405 | K93: 251
A94: 사회문화용 건물 | B94: 810000 | C94: (통나무조) | D94: 135 | E94: (5) 사우(재실, 정각 포함) | F94: 71 | G94: 1(개별공시지가 10,000원 이하) | H94: 80 | I94: 1987 | J94: 0.388 | K94: 240
A95: 사회문화용 건물 | B95: 810000 | C95: (통나무조) | D95: 135 | E95: (5) 사우(재실, 정각 포함) | F95: 71 | G95: 1(개별공시지가 10,000원 이하) | H95: 80 | I95: 1986 | J95: 0.371 | K95: 230
A96: 사회문화용 건물 | B96: 810000 | C96: (통나무조) | D96: 135 | E96: (5) 사우(재실, 정각 포함) | F96: 71 | G96: 1(개별공시지가 10,000원 이하) | H96: 80 | I96: 1985 | J96: 0.354 | K96: 219
A97: 사회문화용 건물 | B97: 810000 | C97: (통나무조) | D97: 135 | E97: (5) 사우(재실, 정각 포함) | F97: 71 | G97: 1(개별공시지가 10,000원 이하) | H97: 80 | I97: 1984 | J97: 0.337 | K97: 209
A98: 사회문화용 건물 | B98: 810000 | C98: (통나무조) | D98: 135 | E98: (5) 사우(재실, 정각 포함) | F98: 71 | G98: 1(개별공시지가 10,000원 이하) | H98: 80 | I98: 1983 | J98: 0.32 | K98: 198
A99: 사회문화용 건물 | B99: 810000 | C99: (통나무조) | D99: 135 | E99: (5) 사우(재실, 정각 포함) | F99: 71 | G99: 1(개별공시지가 10,000원 이하) | H99: 80 | I99: 1982 | J99: 0.303 | K99: 188
A100: 사회문화용 건물 | B100: 810000 | C100: (통나무조) | D100: 135 | E100: (5) 사우(재실, 정각 포함) | F100: 71 | G100: 1(개별공시지가 10,000원 이하) | H100: 80 | I100: 1981 | J100: 0.286 | K100: 177
A101: 사회문화용 건물 | B101: 810000 | C101: (통나무조) | D101: 135 | E101: (5) 사우(재실, 정각 포함) | F101: 71 | G101: 1(개별공시지가 10,000원 이하) | H101: 80 | I101: 1980 | J101: 0.269 | K101: 167
A102: 사회문화용 건물 | B102: 810000 | C102: (통나무조) | D102: 135 | E102: (5) 사우(재실, 정각 포함) | F102: 71 | G102: 1(개별공시지가 10,000원 이하) | H102: 80 | I102: 1979 | J102: 0.252 | K102: 156
A103: 사회문화용 건물 | B103: 810000 | C103: (통나무조) | D103: 135 | E103: (5) 사우(재실, 정각 포함) | F103: 71 | G103: 1(개별공시지가 10,000원 이하) | H103: 80 | I103: 1978 | J103: 0.235 | K103: 145
A104: 사회문화용 건물 | B104: 810000 | C104: (통나무조) | D104: 135 | E104: (5) 사우(재실, 정각 포함) | F104: 71 | G104: 1(개별공시지가 10,000원 이하) | H104: 80 | I104: 1977 | J104: 0.218 | K104: 135
A105: 사회문화용 건물 | B105: 810000 | C105: (통나무조) | D105: 135 | E105: (5) 사우(재실, 정각 포함) | F105: 71 | G105: 1(개별공시지가 10,000원 이하) | H105: 80 | I105: 1976 | J105: 0.201 | K105: 124
A106: 사회문화용 건물 | B106: 810000 | C106: (통나무조) | D106: 135 | E106: (5) 사우(재실, 정각 포함) | F106: 71 | G106: 1(개별공시지가 10,000원 이하) | H106: 80 | I106: 1975 | J106: 0.184 | K106: 114
A107: 사회문화용 건물 | B107: 810000 | C107: (통나무조) | D107: 135 | E107: (5) 사우(재실, 정각 포함) | F107: 71 | G107: 1(개별공시지가 10,000원 이하) | H107: 80 | I107: 1974 | J107: 0.167 | K107: 103
A108: 사회문화용 건물 | B108: 810000 | C108: (통나무조) | D108: 135 | E108: (5) 사우(재실, 정각 포함) | F108: 71 | G108: 1(개별공시지가 10,000원 이하) | H108: 80 | I108: 50년이상 | J108: =1-(0.017*(50)) -> 0.15 | K108: 93
A109: 사회문화용 건물 | B109: 810000 | C109: (통나무조) | D109: 135 | E109: (3) 동물원, 식물원, 그 외 수족관 | F109: 80 | G109: 1(개별공시지가 10,000원 이하) | H109: 80 | I109: 2023 | J109: =1-(0.017*(2023-$I109)) -> 1 | K109: 699
A110: 사회문화용 건물 | B110: 810000 | C110: (통나무조) | D110: 135 | E110: (3) 동물원, 식물원, 그 외 수족관 | F110: 80 | G110: 1(개별공시지가 10,000원 이하) | H110: 80 | I110: 2022 | J110: 0.983 | K110: 687
A111: 사회문화용 건물 | B111: 810000 | C111: (통나무조) | D111: 135 | E111: (3) 동물원, 식물원, 그 외 수족관 | F111: 80 | G111: 1(개별공시지가 10,000원 이하) | H111: 80 | I111: 2021 | J111: 0.966 | K111: 676
A112: 사회문화용 건물 | B112: 810000 | C112: (통나무조) | D112: 135 | E112: (3) 동물원, 식물원, 그 외 수족관 | F112: 80 | G112: 1(개별공시지가 10,000원 이하) | H112: 80 | I112: 2020 | J112: 0.949 | K112: 664
A113: 사회문화용 건물 | B113: 810000 | C113: (통나무조) | D113: 135 | E113: (3) 동물원, 식물원, 그 외 수족관 | F113: 80 | G113: 1(개별공시지가 10,000원 이하) | H113: 80 | I113: 2019 | J113: 0.932 | K113: 652
A114: 사회문화용 건물 | B114: 810000 | C114: (통나무조) | D114: 135 | E114: (3) 동물원, 식물원, 그 외 수족관 | F114: 80 | G114: 1(개별공시지가 10,000원 이하) | H114: 80 | I114: 2018 | J114: 0.915 | K114: 640
A115: 사회문화용 건물 | B115: 810000 | C115: (통나무조) | D115: 135 | E115: (3) 동물원, 식물원, 그 외 수족관 | F115: 80 | G115: 1(개별공시지가 10,000원 이하) | H115: 80 | I115: 2017 | J115: 0.898 | K115: 628
A116: 사회문화용 건물 | B116: 810000 | C116: (통나무조) | D116: 135 | E116: (3) 동물원, 식물원, 그 외 수족관 | F116: 80 | G116: 1(개별공시지가 10,000원 이하) | H116: 80 | I116: 2016 | J116: 0.881 | K116: 616
A117: 사회문화용 건물 | B117: 810000 | C117: (통나무조) | D117: 135 | E117: (3) 동물원, 식물원, 그 외 수족관 | F117: 80 | G117: 1(개별공시지가 10,000원 이하) | H117: 80 | I117: 2015 | J117: 0.864 | K117: 604
A118: 사회문화용 건물 | B118: 810000 | C118: (통나무조) | D118: 135 | E118: (3) 동물원, 식물원, 그 외 수족관 | F118: 80 | G118: 1(개별공시지가 10,000원 이하) | H118: 80 | I118: 2014 | J118: 0.847 | K118: 592
A119: 사회문화용 건물 | B119: 810000 | C119: (통나무조) | D119: 135 | E119: (3) 동물원, 식물원, 그 외 수족관 | F119: 80 | G119: 1(개별공시지가 10,000원 이하) | H119: 80 | I119: 2013 | J119: 0.83 | K119: 580
A120: 사회문화용 건물 | B120: 810000 | C120: (통나무조) | D120: 135 | E120: (3) 동물원, 식물원, 그 외 수족관 | F120: 80 | G120: 1(개별공시지가 10,000원 이하) | H120: 80 | I120: 2012 | J120: 0.813 | K120: 568
A121: 사회문화용 건물 | B121: 810000 | C121: (통나무조) | D121: 135 | E121: (3) 동물원, 식물원, 그 외 수족관 | F121: 80 | G121: 1(개별공시지가 10,000원 이하) | H121: 80 | I121: 2011 | J121: 0.796 | K121: 557
A122: 사회문화용 건물 | B122: 810000 | C122: (통나무조) | D122: 135 | E122: (3) 동물원, 식물원, 그 외 수족관 | F122: 80 | G122: 1(개별공시지가 10,000원 이하) | H122: 80 | I122: 2010 | J122: 0.779 | K122: 545
A123: 사회문화용 건물 | B123: 810000 | C123: (통나무조) | D123: 135 | E123: (3) 동물원, 식물원, 그 외 수족관 | F123: 80 | G123: 1(개별공시지가 10,000원 이하) | H123: 80 | I123: 2009 | J123: 0.762 | K123: 533
A124: 사회문화용 건물 | B124: 810000 | C124: (통나무조) | D124: 135 | E124: (3) 동물원, 식물원, 그 외 수족관 | F124: 80 | G124: 1(개별공시지가 10,000원 이하) | H124: 80 | I124: 2008 | J124: 0.745 | K124: 521
A125: 사회문화용 건물 | B125: 810000 | C125: (통나무조) | D125: 135 | E125: (3) 동물원, 식물원, 그 외 수족관 | F125: 80 | G125: 1(개별공시지가 10,000원 이하) | H125: 80 | I125: 2007 | J125: 0.728 | K125: 509
A126: 사회문화용 건물 | B126: 810000 | C126: (통나무조) | D126: 135 | E126: (3) 동물원, 식물원, 그 외 수족관 | F126: 80 | G126: 1(개별공시지가 10,000원 이하) | H126: 80 | I126: 2006 | J126: 0.711 | K126: 497
A127: 사회문화용 건물 | B127: 810000 | C127: (통나무조) | D127: 135 | E127: (3) 동물원, 식물원, 그 외 수족관 | F127: 80 | G127: 1(개별공시지가 10,000원 이하) | H127: 80 | I127: 2005 | J127: 0.694 | K127: 485
A128: 사회문화용 건물 | B128: 810000 | C128: (통나무조) | D128: 135 | E128: (3) 동물원, 식물원, 그 외 수족관 | F128: 80 | G128: 1(개별공시지가 10,000원 이하) | H128: 80 | I128: 2004 | J128: 0.677 | K128: 473
A129: 사회문화용 건물 | B129: 810000 | C129: (통나무조) | D129: 135 | E129: (3) 동물원, 식물원, 그 외 수족관 | F129: 80 | G129: 1(개별공시지가 10,000원 이하) | H129: 80 | I129: 2003 | J129: 0.66 | K129: 461
A130: 사회문화용 건물 | B130: 810000 | C130: (통나무조) | D130: 135 | E130: (3) 동물원, 식물원, 그 외 수족관 | F130: 80 | G130: 1(개별공시지가 10,000원 이하) | H130: 80 | I130: 2002 | J130: 0.643 | K130: 449
A131: 사회문화용 건물 | B131: 810000 | C131: (통나무조) | D131: 135 | E131: (3) 동물원, 식물원, 그 외 수족관 | F131: 80 | G131: 1(개별공시지가 10,000원 이하) | H131: 80 | I131: 2001 | J131: 0.626 | K131: 438
A132: 사회문화용 건물 | B132: 810000 | C132: (통나무조) | D132: 135 | E132: (3) 동물원, 식물원, 그 외 수족관 | F132: 80 | G132: 1(개별공시지가 10,000원 이하) | H132: 80 | I132: 2000 | J132: 0.609 | K132: 426
A133: 사회문화용 건물 | B133: 810000 | C133: (통나무조) | D133: 135 | E133: (3) 동물원, 식물원, 그 외 수족관 | F133: 80 | G133: 1(개별공시지가 10,000원 이하) | H133: 80 | I133: 1999 | J133: 0.592 | K133: 414
A134: 사회문화용 건물 | B134: 810000 | C134: (통나무조) | D134: 135 | E134: (3) 동물원, 식물원, 그 외 수족관 | F134: 80 | G134: 1(개별공시지가 10,000원 이하) | H134: 80 | I134: 1998 | J134: 0.575 | K134: 402
A135: 사회문화용 건물 | B135: 810000 | C135: (통나무조) | D135: 135 | E135: (3) 동물원, 식물원, 그 외 수족관 | F135: 80 | G135: 1(개별공시지가 10,000원 이하) | H135: 80 | I135: 1997 | J135: 0.558 | K135: 390
A136: 사회문화용 건물 | B136: 810000 | C136: (통나무조) | D136: 135 | E136: (3) 동물원, 식물원, 그 외 수족관 | F136: 80 | G136: 1(개별공시지가 10,000원 이하) | H136: 80 | I136: 1996 | J136: 0.541 | K136: =ROUNDDOWN(B136*D136/100*F136/100*H136/100*J136/1000,0) -> 378
A137: 사회문화용 건물 | B137: 810000 | C137: (통나무조) | D137: 135 | E137: (3) 동물원, 식물원, 그 외 수족관 | F137: 80 | G137: 1(개별공시지가 10,000원 이하) | H137: 80 | I137: 1995 | J137: 0.524 | K137: 366
A138: 사회문화용 건물 | B138: 810000 | C138: (통나무조) | D138: 135 | E138: (3) 동물원, 식물원, 그 외 수족관 | F138: 80 | G138: 1(개별공시지가 10,000원 이하) | H138: 80 | I138: 1994 | J138: 0.507 | K138: 354
A139: 사회문화용 건물 | B139: 810000 | C139: (통나무조) | D139: 135 | E139: (3) 동물원, 식물원, 그 외 수족관 | F139: 80 | G139: 1(개별공시지가 10,000원 이하) | H139: 80 | I139: 1993 | J139: 0.49 | K139: 342
A140: 사회문화용 건물 | B140: 810000 | C140: (통나무조) | D140: 135 | E140: (3) 동물원, 식물원, 그 외 수족관 | F140: 80 | G140: 1(개별공시지가 10,000원 이하) | H140: 80 | I140: 1992 | J140: 0.473 | K140: 331
A141: 사회문화용 건물 | B141: 810000 | C141: (통나무조) | D141: 135 | E141: (3) 동물원, 식물원, 그 외 수족관 | F141: 80 | G141: 1(개별공시지가 10,000원 이하) | H141: 80 | I141: 1991 | J141: 0.456 | K141: 319
A142: 사회문화용 건물 | B142: 810000 | C142: (통나무조) | D142: 135 | E142: (3) 동물원, 식물원, 그 외 수족관 | F142: 80 | G142: 1(개별공시지가 10,000원 이하) | H142: 80 | I142: 1990 | J142: 0.439 | K142: 307
A143: 사회문화용 건물 | B143: 810000 | C143: (통나무조) | D143: 135 | E143: (3) 동물원, 식물원, 그 외 수족관 | F143: 80 | G143: 1(개별공시지가 10,000원 이하) | H143: 80 | I143: 1989 | J143: 0.422 | K143: 295
A144: 사회문화용 건물 | B144: 810000 | C144: (통나무조) | D144: 135 | E144: (3) 동물원, 식물원, 그 외 수족관 | F144: 80 | G144: 1(개별공시지가 10,000원 이하) | H144: 80 | I144: 1988 | J144: 0.405 | K144: 283
A145: 사회문화용 건물 | B145: 810000 | C145: (통나무조) | D145: 135 | E145: (3) 동물원, 식물원, 그 외 수족관 | F145: 80 | G145: 1(개별공시지가 10,000원 이하) | H145: 80 | I145: 1987 | J145: 0.388 | K145: 271
A146: 사회문화용 건물 | B146: 810000 | C146: (통나무조) | D146: 135 | E146: (3) 동물원, 식물원, 그 외 수족관 | F146: 80 | G146: 1(개별공시지가 10,000원 이하) | H146: 80 | I146: 1986 | J146: 0.371 | K146: 259
A147: 사회문화용 건물 | B147: 810000 | C147: (통나무조) | D147: 135 | E147: (3) 동물원, 식물원, 그 외 수족관 | F147: 80 | G147: 1(개별공시지가 10,000원 이하) | H147: 80 | I147: 1985 | J147: 0.354 | K147: 247
A148: 사회문화용 건물 | B148: 810000 | C148: (통나무조) | D148: 135 | E148: (3) 동물원, 식물원, 그 외 수족관 | F148: 80 | G148: 1(개별공시지가 10,000원 이하) | H148: 80 | I148: 1984 | J148: 0.337 | K148: 235
A149: 사회문화용 건물 | B149: 810000 | C149: (통나무조) | D149: 135 | E149: (3) 동물원, 식물원, 그 외 수족관 | F149: 80 | G149: 1(개별공시지가 10,000원 이하) | H149: 80 | I149: 1983 | J149: 0.32 | K149: 223
A150: 사회문화용 건물 | B150: 810000 | C150: (통나무조) | D150: 135 | E150: (3) 동물원, 식물원, 그 외 수족관 | F150: 80 | G150: 1(개별공시지가 10,000원 이하) | H150: 80 | I150: 1982 | J150: 0.303 | K150: 212
A151: 사회문화용 건물 | B151: 810000 | C151: (통나무조) | D151: 135 | E151: (3) 동물원, 식물원, 그 외 수족관 | F151: 80 | G151: 1(개별공시지가 10,000원 이하) | H151: 80 | I151: 1981 | J151: 0.286 | K151: 200
A152: 사회문화용 건물 | B152: 810000 | C152: (통나무조) | D152: 135 | E152: (3) 동물원, 식물원, 그 외 수족관 | F152: 80 | G152: 1(개별공시지가 10,000원 이하) | H152: 80 | I152: 1980 | J152: 0.269 | K152: 188
A153: 사회문화용 건물 | B153: 810000 | C153: (통나무조) | D153: 135 | E153: (3) 동물원, 식물원, 그 외 수족관 | F153: 80 | G153: 1(개별공시지가 10,000원 이하) | H153: 80 | I153: 1979 | J153: 0.252 | K153: 176
A154: 사회문화용 건물 | B154: 810000 | C154: (통나무조) | D154: 135 | E154: (3) 동물원, 식물원, 그 외 수족관 | F154: 80 | G154: 1(개별공시지가 10,000원 이하) | H154: 80 | I154: 1978 | J154: 0.235 | K154: 164
A155: 사회문화용 건물 | B155: 810000 | C155: (통나무조) | D155: 135 | E155: (3) 동물원, 식물원, 그 외 수족관 | F155: 80 | G155: 1(개별공시지가 10,000원 이하) | H155: 80 | I155: 1977 | J155: 0.218 | K155: 152
A156: 사회문화용 건물 | B156: 810000 | C156: (통나무조) | D156: 135 | E156: (3) 동물원, 식물원, 그 외 수족관 | F156: 80 | G156: 1(개별공시지가 10,000원 이하) | H156: 80 | I156: 1976 | J156: 0.201 | K156: 140
A157: 사회문화용 건물 | B157: 810000 | C157: (통나무조) | D157: 135 | E157: (3) 동물원, 식물원, 그 외 수족관 | F157: 80 | G157: 1(개별공시지가 10,000원 이하) | H157: 80 | I157: 1975 | J157: 0.184 | K157: 128
A158: 사회문화용 건물 | B158: 810000 | C158: (통나무조) | D158: 135 | E158: (3) 동물원, 식물원, 그 외 수족관 | F158: 80 | G158: 1(개별공시지가 10,000원 이하) | H158: 80 | I158: 1974 | J158: 0.167 | K158: 116
A159: 사회문화용 건물 | B159: 810000 | C159: (통나무조) | D159: 135 | E159: (3) 동물원, 식물원, 그 외 수족관 | F159: 80 | G159: 1(개별공시지가 10,000원 이하) | H159: 80 | I159: 50년이상 | J159: =1-(0.017*(50)) -> 0.15 | K159: 104
A160: 사회문화용 건물 | B160: 810000 | C160: (통나무조) | D160: 135 | E160: (2) 대형수족관 | F160: 89 | G160: 1(개별공시지가 10,000원 이하) | H160: 80 | I160: 2023 | J160: 1 | K160: 778
A161: 사회문화용 건물 | B161: 810000 | C161: (통나무조) | D161: 135 | E161: (2) 대형수족관 | F161: 89 | G161: 1(개별공시지가 10,000원 이하) | H161: 80 | I161: 2022 | J161: 0.983 | K161: 765
A162: 사회문화용 건물 | B162: 810000 | C162: (통나무조) | D162: 135 | E162: (2) 대형수족관 | F162: 89 | G162: 1(개별공시지가 10,000원 이하) | H162: 80 | I162: 2021 | J162: 0.966 | K162: 752
A163: 사회문화용 건물 | B163: 810000 | C163: (통나무조) | D163: 135 | E163: (2) 대형수족관 | F163: 89 | G163: 1(개별공시지가 10,000원 이하) | H163: 80 | I163: 2020 | J163: 0.949 | K163: 738
A164: 사회문화용 건물 | B164: 810000 | C164: (통나무조) | D164: 135 | E164: (2) 대형수족관 | F164: 89 | G164: 1(개별공시지가 10,000원 이하) | H164: 80 | I164: 2019 | J164: 0.932 | K164: 725
A165: 사회문화용 건물 | B165: 810000 | C165: (통나무조) | D165: 135 | E165: (2) 대형수족관 | F165: 89 | G165: 1(개별공시지가 10,000원 이하) | H165: 80 | I165: 2018 | J165: 0.915 | K165: 712
A166: 사회문화용 건물 | B166: 810000 | C166: (통나무조) | D166: 135 | E166: (2) 대형수족관 | F166: 89 | G166: 1(개별공시지가 10,000원 이하) | H166: 80 | I166: 2017 | J166: 0.898 | K166: 699
A167: 사회문화용 건물 | B167: 810000 | C167: (통나무조) | D167: 135 | E167: (2) 대형수족관 | F167: 89 | G167: 1(개별공시지가 10,000원 이하) | H167: 80 | I167: 2016 | J167: 0.881 | K167: 685
A168: 사회문화용 건물 | B168: 810000 | C168: (통나무조) | D168: 135 | E168: (2) 대형수족관 | F168: 89 | G168: 1(개별공시지가 10,000원 이하) | H168: 80 | I168: 2015 | J168: 0.864 | K168: 672
A169: 사회문화용 건물 | B169: 810000 | C169: (통나무조) | D169: 135 | E169: (2) 대형수족관 | F169: 89 | G169: 1(개별공시지가 10,000원 이하) | H169: 80 | I169: 2014 | J169: 0.847 | K169: 659
A170: 사회문화용 건물 | B170: 810000 | C170: (통나무조) | D170: 135 | E170: (2) 대형수족관 | F170: 89 | G170: 1(개별공시지가 10,000원 이하) | H170: 80 | I170: 2013 | J170: 0.83 | K170: 646
A171: 사회문화용 건물 | B171: 810000 | C171: (통나무조) | D171: 135 | E171: (2) 대형수족관 | F171: 89 | G171: 1(개별공시지가 10,000원 이하) | H171: 80 | I171: 2012 | J171: 0.813 | K171: 632
A172: 사회문화용 건물 | B172: 810000 | C172: (통나무조) | D172: 135 | E172: (2) 대형수족관 | F172: 89 | G172: 1(개별공시지가 10,000원 이하) | H172: 80 | I172: 2011 | J172: 0.796 | K172: 619
A173: 사회문화용 건물 | B173: 810000 | C173: (통나무조) | D173: 135 | E173: (2) 대형수족관 | F173: 89 | G173: 1(개별공시지가 10,000원 이하) | H173: 80 | I173: 2010 | J173: =1-(0.017*(2023-$I173)) -> 0.779 | K173: 606
A174: 사회문화용 건물 | B174: 810000 | C174: (통나무조) | D174: 135 | E174: (2) 대형수족관 | F174: 89 | G174: 1(개별공시지가 10,000원 이하) | H174: 80 | I174: 2009 | J174: 0.762 | K174: 593
A175: 사회문화용 건물 | B175: 810000 | C175: (통나무조) | D175: 135 | E175: (2) 대형수족관 | F175: 89 | G175: 1(개별공시지가 10,000원 이하) | H175: 80 | I175: 2008 | J175: 0.745 | K175: 580
A176: 사회문화용 건물 | B176: 810000 | C176: (통나무조) | D176: 135 | E176: (2) 대형수족관 | F176: 89 | G176: 1(개별공시지가 10,000원 이하) | H176: 80 | I176: 2007 | J176: 0.728 | K176: 566
A177: 사회문화용 건물 | B177: 810000 | C177: (통나무조) | D177: 135 | E177: (2) 대형수족관 | F177: 89 | G177: 1(개별공시지가 10,000원 이하) | H177: 80 | I177: 2006 | J177: 0.711 | K177: 553
A178: 사회문화용 건물 | B178: 810000 | C178: (통나무조) | D178: 135 | E178: (2) 대형수족관 | F178: 89 | G178: 1(개별공시지가 10,000원 이하) | H178: 80 | I178: 2005 | J178: 0.694 | K178: 540
A179: 사회문화용 건물 | B179: 810000 | C179: (통나무조) | D179: 135 | E179: (2) 대형수족관 | F179: 89 | G179: 1(개별공시지가 10,000원 이하) | H179: 80 | I179: 2004 | J179: 0.677 | K179: 527
A180: 사회문화용 건물 | B180: 810000 | C180: (통나무조) | D180: 135 | E180: (2) 대형수족관 | F180: 89 | G180: 1(개별공시지가 10,000원 이하) | H180: 80 | I180: 2003 | J180: 0.66 | K180: 513
A181: 사회문화용 건물 | B181: 810000 | C181: (통나무조) | D181: 135 | E181: (2) 대형수족관 | F181: 89 | G181: 1(개별공시지가 10,000원 이하) | H181: 80 | I181: 2002 | J181: 0.643 | K181: 500
A182: 사회문화용 건물 | B182: 810000 | C182: (통나무조) | D182: 135 | E182: (2) 대형수족관 | F182: 89 | G182: 1(개별공시지가 10,000원 이하) | H182: 80 | I182: 2001 | J182: 0.626 | K182: 487
A183: 사회문화용 건물 | B183: 810000 | C183: (통나무조) | D183: 135 | E183: (2) 대형수족관 | F183: 89 | G183: 1(개별공시지가 10,000원 이하) | H183: 80 | I183: 2000 | J183: 0.609 | K183: 474
A184: 사회문화용 건물 | B184: 810000 | C184: (통나무조) | D184: 135 | E184: (2) 대형수족관 | F184: 89 | G184: 1(개별공시지가 10,000원 이하) | H184: 80 | I184: 1999 | J184: 0.592 | K184: 460
A185: 사회문화용 건물 | B185: 810000 | C185: (통나무조) | D185: 135 | E185: (2) 대형수족관 | F185: 89 | G185: 1(개별공시지가 10,000원 이하) | H185: 80 | I185: 1998 | J185: 0.575 | K185: 447
A186: 사회문화용 건물 | B186: 810000 | C186: (통나무조) | D186: 135 | E186: (2) 대형수족관 | F186: 89 | G186: 1(개별공시지가 10,000원 이하) | H186: 80 | I186: 1997 | J186: 0.558 | K186: 434
A187: 사회문화용 건물 | B187: 810000 | C187: (통나무조) | D187: 135 | E187: (2) 대형수족관 | F187: 89 | G187: 1(개별공시지가 10,000원 이하) | H187: 80 | I187: 1996 | J187: 0.541 | K187: 421
A188: 사회문화용 건물 | B188: 810000 | C188: (통나무조) | D188: 135 | E188: (2) 대형수족관 | F188: 89 | G188: 1(개별공시지가 10,000원 이하) | H188: 80 | I188: 1995 | J188: 0.524 | K188: 407
A189: 사회문화용 건물 | B189: 810000 | C189: (통나무조) | D189: 135 | E189: (2) 대형수족관 | F189: 89 | G189: 1(개별공시지가 10,000원 이하) | H189: 80 | I189: 1994 | J189: 0.507 | K189: 394
A190: 사회문화용 건물 | B190: 810000 | C190: (통나무조) | D190: 135 | E190: (2) 대형수족관 | F190: 89 | G190: 1(개별공시지가 10,000원 이하) | H190: 80 | I190: 1993 | J190: 0.49 | K190: 381
A191: 사회문화용 건물 | B191: 810000 | C191: (통나무조) | D191: 135 | E191: (2) 대형수족관 | F191: 89 | G191: 1(개별공시지가 10,000원 이하) | H191: 80 | I191: 1992 | J191: 0.473 | K191: 368
A192: 사회문화용 건물 | B192: 810000 | C192: (통나무조) | D192: 135 | E192: (2) 대형수족관 | F192: 89 | G192: 1(개별공시지가 10,000원 이하) | H192: 80 | I192: 1991 | J192: 0.456 | K192: 355
A193: 사회문화용 건물 | B193: 810000 | C193: (통나무조) | D193: 135 | E193: (2) 대형수족관 | F193: 89 | G193: 1(개별공시지가 10,000원 이하) | H193: 80 | I193: 1990 | J193: 0.439 | K193: 341
A194: 사회문화용 건물 | B194: 810000 | C194: (통나무조) | D194: 135 | E194: (2) 대형수족관 | F194: 89 | G194: 1(개별공시지가 10,000원 이하) | H194: 80 | I194: 1989 | J194: 0.422 | K194: 328
A195: 사회문화용 건물 | B195: 810000 | C195: (통나무조) | D195: 135 | E195: (2) 대형수족관 | F195: 89 | G195: 1(개별공시지가 10,000원 이하) | H195: 80 | I195: 1988 | J195: 0.405 | K195: 315
A196: 사회문화용 건물 | B196: 810000 | C196: (통나무조) | D196: 135 | E196: (2) 대형수족관 | F196: 89 | G196: 1(개별공시지가 10,000원 이하) | H196: 80 | I196: 1987 | J196: 0.388 | K196: 302
A197: 사회문화용 건물 | B197: 810000 | C197: (통나무조) | D197: 135 | E197: (2) 대형수족관 | F197: 89 | G197: 1(개별공시지가 10,000원 이하) | H197: 80 | I197: 1986 | J197: 0.371 | K197: 288
A198: 사회문화용 건물 | B198: 810000 | C198: (통나무조) | D198: 135 | E198: (2) 대형수족관 | F198: 89 | G198: 1(개별공시지가 10,000원 이하) | H198: 80 | I198: 1985 | J198: 0.354 | K198: 275
A199: 사회문화용 건물 | B199: 810000 | C199: (통나무조) | D199: 135 | E199: (2) 대형수족관 | F199: 89 | G199: 1(개별공시지가 10,000원 이하) | H199: 80 | I199: 1984 | J199: 0.337 | K199: 262
A200: 사회문화용 건물 | B200: 810000 | C200: (통나무조) | D200: 135 | E200: (2) 대형수족관 | F200: 89 | G200: 1(개별공시지가 10,000원 이하) | H200: 80 | I200: 1983 | J200: 0.32 | K200: =ROUNDDOWN(B200*D200/100*F200/100*H200/100*J200/1000,0) -> 249
... 4292 more rows

Sheet 공공용 건물
A1: 건축물 시가표준액 일람표 본 일람표는 가감산특례 적용 전 건축물 시가표준액을 계산한 표로, 단위는 단위 면적당(㎡) 천원(1000원)이며 천원 이하의 숫자는 버림하였습니다. 문의사항: 한국지방세연구원, 최은철 주임, 02-2071-2716, ecchoi@kilf.re.kr
A2: 건물신축가격기준액구분 | B2: 구조구분 | C2: 용도구분 | D2: 위치구분 | E2: 경과연수구분 | F2: 선택번호 | G2: 2 | H2: 16 | I2: 5 | J2: 5 | K2: 1
F3: 검색 | G3: 건물신축가격기준액구분 | H3: 구조구분 | I3: 용도구분 | J3: 위치구분 | K3: 경과연수구분
A4: ※ "전부" 버튼은 2개 이상 사용하면 동작시간이 길어져 사용을 자제해주시기 바랍니다 (매크로 작동 도중 중단을 원하시면 esc 키를 눌러주시기 바랍니다) | F4: 찾기 | G4: =IF(G2=1,"",INDEX(건물신축가격기준액구분,G2)) -> 공공용 건물 | H4: =IF(H2=1,"",INDEX(구조구분,H2)) -> (철파이프조) | I4: =IF(I2=1,"",INDEX(용도구분,I2)) -> (4) 발전시설(용도번호Ⅵ-3에 해당되는 것 제외), 변전소 | J4: =IF(J2=1,"",INDEX(위치구분,J2)) -> 4(개별공시지가 50,000원 초과 100,000원 이하) | K4: =IF(K2=1,"",INDEX(경과연수구분,K2)) -> 
A5: ※ 10년 이상 오래된 건물이 검색이 안될 경우 '경과연수구분'에 '10년 이상', '20년 이상', '30년 이상', '40년 이상', '50년 이상'을 눌러주시기 바랍니다
A6: 건물신축가격기준액구분 | B6: 건물신축가격기준액 | C6: 구조구분 | D6: 구조지수 | E6: 용도구분 | F6: 용도지수 | G6: 위치구분 | H6: 위치지수 | I6: 경과연수구분 | J6: 경과연수별잔가율 | K6: 시가표준액
A7: 공공용 건물 | B7: 800000 | C7: (통나무조) | D7: 135 | E7: (7) 무선기지국, 간이 TV 중계소 | F7: 73 | G7: 1(개별공시지가 10,000원 이하) | H7: 80 | I7: 2023 | J7: 1 | K7: 630
A8: 공공용 건물 | B8: 800000 | C8: (통나무조) | D8: 135 | E8: (7) 무선기지국, 간이 TV 중계소 | F8: 73 | G8: 1(개별공시지가 10,000원 이하) | H8: 80 | I8: 2022 | J8: 0.983 | K8: 619
A9: 공공용 건물 | B9: 800000 | C9: (통나무조) | D9: 135 | E9: (7) 무선기지국, 간이 TV 중계소 | F9: 73 | G9: 1(개별공시지가 10,000원 이하) | H9: 80 | I9: 2021 | J9: 0.966 | K9: 609
A10: 공공용 건물 | B10: 800000 | C10: (통나무조) | D10: 135 | E10: (7) 무선기지국, 간이 TV 중계소 | F10: 73 | G10: 1(개별공시지가 10,000원 이하) | H10: 80 | I10: 2020 | J10: 0.949 | K10: 598
A11: 공공용 건물 | B11: 800000 | C11: (통나무조) | D11: 135 | E11: (7) 무선기지국, 간이 TV 중계소 | F11: 73 | G11: 1(개별공시지가 10,000원 이하) | H11: 80 | I11: 2019 | J11: 0.932 | K11: 587
A12: 공공용 건물 | B12: 800000 | C12: (통나무조) | D12: 135 | E12: (7) 무선기지국, 간이 TV 중계소 | F12: 73 | G12: 1(개별공시지가 10,000원 이하) | H12: 80 | I12: 2018 | J12: 0.915 | K12: 577
A13: 공공용 건물 | B13: 800000 | C13: (통나무조) | D13: 135 | E13: (7) 무선기지국, 간이 TV 중계소 | F13: 73 | G13: 1(개별공시지가 10,000원 이하) | H13: 80 | I13: 2017 | J13: 0.898 | K13: 566
A14: 공공용 건물 | B14: 800000 | C14: (통나무조) | D14: 135 | E14: (7) 무선기지국, 간이 TV 중계소 | F14: 73 | G14: 1(개별공시지가 10,000원 이하) | H14: 80 | I14: 2016 | J14: 0.881 | K14: 555
A15: 공공용 건물 | B15: 800000 | C15: (통나무조) | D15: 135 | E15: (7) 무선기지국, 간이 TV 중계소 | F15: 73 | G15: 1(개별공시지가 10,000원 이하) | H15: 80 | I15: 2015 | J15: 0.864 | K15: 544
A16: 공공용 건물 | B16: 800000 | C16: (통나무조) | D16: 135 | E16: (7) 무선기지국, 간이 TV 중계소 | F16: 73 | G16: 1(개별공시지가 10,000원 이하) | H16: 80 | I16: 2014 | J16: 0.847 | K16: 534
A17: 공공용 건물 | B17: 800000 | C17: (통나무조) | D17: 135 | E17: (7) 무선기지국, 간이 TV 중계소 | F17: 73 | G17: 1(개별공시지가 10,000원 이하) | H17: 80 | I17: 2013 | J17: 0.83 | K17: 523
A18: 공공용 건물 | B18: 800000 | C18: (통나무조) | D18: 135 | E18: (7) 무선기지국, 간이 TV 중계소 | F18: 73 | G18: 1(개별공시지가 10,000원 이하) | H18: 80 | I18: 2012 | J18: 0.813 | K18: 512
A19: 공공용 건물 | B19: 800000 | C19: (통나무조) | D19: 135 | E19: (7) 무선기지국, 간이 TV 중계소 | F19: 73 | G19: 1(개별공시지가 10,000원 이하) | H19: 80 | I19: 2011 | J19: 0.796 | K19: 502
A20: 공공용 건물 | B20: 800000 | C20: (통나무조) | D20: 135 | E20: (7) 무선기지국, 간이 TV 중계소 | F20: 73 | G20: 1(개별공시지가 10,000원 이하) | H20: 80 | I20: 2010 | J20: 0.779 | K20: 491
A21: 공공용 건물 | B21: 800000 | C21: (통나무조) | D21: 135 | E21: (7) 무선기지국, 간이 TV 중계소 | F21: 73 | G21: 1(개별공시지가 10,000원 이하) | H21: 80 | I21: 2009 | J21: 0.762 | K21: 480
A22: 공공용 건물 | B22: 800000 | C22: (통나무조) | D22: 135 | E22: (7) 무선기지국, 간이 TV 중계소 | F22: 73 | G22: 1(개별공시지가 10,000원 이하) | H22: 80 | I22: 2008 | J22: 0.745 | K22: 469
A23: 공공용 건물 | B23: 800000 | C23: (통나무조) | D23: 135 | E23: (7) 무선기지국, 간이 TV 중계소 | F23: 73 | G23: 1(개별공시지가 10,000원 이하) | H23: 80 | I23: 2007 | J23: 0.728 | K23: 459
A24: 공공용 건물 | B24: 800000 | C24: (통나무조) | D24: 135 | E24: (7) 무선기지국, 간이 TV 중계소 | F24: 73 | G24: 1(개별공시지가 10,000원 이하) | H24: 80 | I24: 2006 | J24: 0.711 | K24: 448
A25: 공공용 건물 | B25: 800000 | C25: (통나무조) | D25: 135 | E25: (7) 무선기지국, 간이 TV 중계소 | F25: 73 | G25: 1(개별공시지가 10,000원 이하) | H25: 80 | I25: 2005 | J25: 0.694 | K25: 437
A26: 공공용 건물 | B26: 800000 | C26: (통나무조) | D26: 135 | E26: (7) 무선기지국, 간이 TV 중계소 | F26: 73 | G26: 1(개별공시지가 10,000원 이하) | H26: 80 | I26: 2004 | J26: 0.677 | K26: 426
A27: 공공용 건물 | B27: 800000 | C27: (통나무조) | D27: 135 | E27: (7) 무선기지국, 간이 TV 중계소 | F27: 73 | G27: 1(개별공시지가 10,000원 이하) | H27: 80 | I27: 2003 | J27: 0.66 | K27: 416
A28: 공공용 건물 | B28: 800000 | C28: (통나무조) | D28: 135 | E28: (7) 무선기지국, 간이 TV 중계소 | F28: 73 | G28: 1(개별공시지가 10,000원 이하) | H28: 80 | I28: 2002 | J28: 0.643 | K28: 405
A29: 공공용 건물 | B29: 800000 | C29: (통나무조) | D29: 135 | E29: (7) 무선기지국, 간이 TV 중계소 | F29: 73 | G29: 1(개별공시지가 10,000원 이하) | H29: 80 | I29: 2001 | J29: 0.626 | K29: 394
A30: 공공용 건물 | B30: 800000 | C30: (통나무조) | D30: 135 | E30: (7) 무선기지국, 간이 TV 중계소 | F30: 73 | G30: 1(개별공시지가 10,000원 이하) | H30: 80 | I30: 2000 | J30: 0.609 | K30: 384
A31: 공공용 건물 | B31: 800000 | C31: (통나무조) | D31: 135 | E31: (7) 무선기지국, 간이 TV 중계소 | F31: 73 | G31: 1(개별공시지가 10,000원 이하) | H31: 80 | I31: 1999 | J31: 0.592 | K31: 373
A32: 공공용 건물 | B32: 800000 | C32: (통나무조) | D32: 135 | E32: (7) 무선기지국, 간이 TV 중계소 | F32: 73 | G32: 1(개별공시지가 10,000원 이하) | H32: 80 | I32: 1998 | J32: 0.575 | K32: 362
A33: 공공용 건물 | B33: 800000 | C33: (통나무조) | D33: 135 | E33: (7) 무선기지국, 간이 TV 중계소 | F33: 73 | G33: 1(개별공시지가 10,000원 이하) | H33: 80 | I33: 1997 | J33: 0.558 | K33: 351
A34: 공공용 건물 | B34: 800000 | C34: (통나무조) | D34: 135 | E34: (7) 무선기지국, 간이 TV 중계소 | F34: 73 | G34: 1(개별공시지가 10,000원 이하) | H34: 80 | I34: 1996 | J34: 0.541 | K34: 341
A35: 공공용 건물 | B35: 800000 | C35: (통나무조) | D35: 135 | E35: (7) 무선기지국, 간이 TV 중계소 | F35: 73 | G35: 1(개별공시지가 10,000원 이하) | H35: 80 | I35: 1995 | J35: 0.524 | K35: 330
A36: 공공용 건물 | B36: 800000 | C36: (통나무조) | D36: 135 | E36: (7) 무선기지국, 간이 TV 중계소 | F36: 73 | G36: 1(개별공시지가 10,000원 이하) | H36: 80 | I36: 1994 | J36: 0.507 | K36: 319
A37: 공공용 건물 | B37: 800000 | C37: (통나무조) | D37: 135 | E37: (7) 무선기지국, 간이 TV 중계소 | F37: 73 | G37: 1(개별공시지가 10,000원 이하) | H37: 80 | I37: 1993 | J37: 0.49 | K37: 309
A38: 공공용 건물 | B38: 800000 | C38: (통나무조) | D38: 135 | E38: (7) 무선기지국, 간이 TV 중계소 | F38: 73 | G38: 1(개별공시지가 10,000원 이하) | H38: 80 | I38: 1992 | J38: 0.473 | K38: 298
A39: 공공용 건물 | B39: 800000 | C39: (통나무조) | D39: 135 | E39: (7) 무선기지국, 간이 TV 중계소 | F39: 73 | G39: 1(개별공시지가 10,000원 이하) | H39: 80 | I39: 1991 | J39: 0.456 | K39: 287
A40: 공공용 건물 | B40: 800000 | C40: (통나무조) | D40: 135 | E40: (7) 무선기지국, 간이 TV 중계소 | F40: 73 | G40: 1(개별공시지가 10,000원 이하) | H40: 80 | I40: 1990 | J40: 0.439 | K40: 276
A41: 공공용 건물 | B41: 800000 | C41: (통나무조) | D41: 135 | E41: (7) 무선기지국, 간이 TV 중계소 | F41: 73 | G41: 1(개별공시지가 10,000원 이하) | H41: 80 | I41: 1989 | J41: 0.422 | K41: 266
A42: 공공용 건물 | B42: 800000 | C42: (통나무조) | D42: 135 | E42: (7) 무선기지국, 간이 TV 중계소 | F42: 73 | G42: 1(개별공시지가 10,000원 이하) | H42: 80 | I42: 1988 | J42: 0.405 | K42: 255
A43: 공공용 건물 | B43: 800000 | C43: (통나무조) | D43: 135 | E43: (7) 무선기지국, 간이 TV 중계소 | F43: 73 | G43: 1(개별공시지가 10,000원 이하) | H43: 80 | I43: 1987 | J43: 0.388 | K43: 244
A44: 공공용 건물 | B44: 800000 | C44: (통나무조) | D44: 135 | E44: (7) 무선기지국, 간이 TV 중계소 | F44: 73 | G44: 1(개별공시지가 10,000원 이하) | H44: 80 | I44: 1986 | J44: 0.371 | K44: 233
A45: 공공용 건물 | B45: 800000 | C45: (통나무조) | D45: 135 | E45: (7) 무선기지국, 간이 TV 중계소 | F45: 73 | G45: 1(개별공시지가 10,000원 이하) | H45: 80 | I45: 1985 | J45: 0.354 | K45: 223
A46: 공공용 건물 | B46: 800000 | C46: (통나무조) | D46: 135 | E46: (7) 무선기지국, 간이 TV 중계소 | F46: 73 | G46: 1(개별공시지가 10,000원 이하) | H46: 80 | I46: 1984 | J46: 0.337 | K46: 212
A47: 공공용 건물 | B47: 800000 | C47: (통나무조) | D47: 135 | E47: (7) 무선기지국, 간이 TV 중계소 | F47: 73 | G47: 1(개별공시지가 10,000원 이하) | H47: 80 | I47: 1983 | J47: 0.32 | K47: 201
A48: 공공용 건물 | B48: 800000 | C48: (통나무조) | D48: 135 | E48: (7) 무선기지국, 간이 TV 중계소 | F48: 73 | G48: 1(개별공시지가 10,000원 이하) | H48: 80 | I48: 1982 | J48: 0.303 | K48: 191
A49: 공공용 건물 | B49: 800000 | C49: (통나무조) | D49: 135 | E49: (7) 무선기지국, 간이 TV 중계소 | F49: 73 | G49: 1(개별공시지가 10,000원 이하) | H49: 80 | I49: 1981 | J49: 0.286 | K49: 180
A50: 공공용 건물 | B50: 800000 | C50: (통나무조) | D50: 135 | E50: (7) 무선기지국, 간이 TV 중계소 | F50: 73 | G50: 1(개별공시지가 10,000원 이하) | H50: 80 | I50: 1980 | J50: 0.269 | K50: 169
A51: 공공용 건물 | B51: 800000 | C51: (통나무조) | D51: 135 | E51: (7) 무선기지국, 간이 TV 중계소 | F51: 73 | G51: 1(개별공시지가 10,000원 이하) | H51: 80 | I51: 1979 | J51: 0.252 | K51: 158
A52: 공공용 건물 | B52: 800000 | C52: (통나무조) | D52: 135 | E52: (7) 무선기지국, 간이 TV 중계소 | F52: 73 | G52: 1(개별공시지가 10,000원 이하) | H52: 80 | I52: 1978 | J52: 0.235 | K52: 148
A53: 공공용 건물 | B53: 800000 | C53: (통나무조) | D53: 135 | E53: (7) 무선기지국, 간이 TV 중계소 | F53: 73 | G53: 1(개별공시지가 10,000원 이하) | H53: 80 | I53: 1977 | J53: 0.218 | K53: 137
A54: 공공용 건물 | B54: 800000 | C54: (통나무조) | D54: 135 | E54: (7) 무선기지국, 간이 TV 중계소 | F54: 73 | G54: 1(개별공시지가 10,000원 이하) | H54: 80 | I54: 1976 | J54: 0.201 | K54: 126
A55: 공공용 건물 | B55: 800000 | C55: (통나무조) | D55: 135 | E55: (7) 무선기지국, 간이 TV 중계소 | F55: 73 | G55: 1(개별공시지가 10,000원 이하) | H55: 80 | I55: 1975 | J55: 0.184 | K55: 116
A56: 공공용 건물 | B56: 800000 | C56: (통나무조) | D56: 135 | E56: (7) 무선기지국, 간이 TV 중계소 | F56: 73 | G56: 1(개별공시지가 10,000원 이하) | H56: 80 | I56: 1974 | J56: 0.167 | K56: 105
A57: 공공용 건물 | B57: 800000 | C57: (통나무조) | D57: 135 | E57: (7) 무선기지국, 간이 TV 중계소 | F57: 73 | G57: 1(개별공시지가 10,000원 이하) | H57: 80 | I57: 50년이상 | J57: 0.15 | K57: 94
A58: 공공용 건물 | B58: 800000 | C58: (통나무조) | D58: 135 | E58: (1) 국가 및 지방자치단체, 외국공관의 건축물 | F58: 91 | G58: 1(개별공시지가 10,000원 이하) | H58: 80 | I58: 2023 | J58: 1 | K58: 786
A59: 공공용 건물 | B59: 800000 | C59: (통나무조) | D59: 135 | E59: (1) 국가 및 지방자치단체, 외국공관의 건축물 | F59: 91 | G59: 1(개별공시지가 10,000원 이하) | H59: 80 | I59: 2022 | J59: 0.983 | K59: 772
A60: 공공용 건물 | B60: 800000 | C60: (통나무조) | D60: 135 | E60: (1) 국가 및 지방자치단체, 외국공관의 건축물 | F60: 91 | G60: 1(개별공시지가 10,000원 이하) | H60: 80 | I60: 2021 | J60: 0.966 | K60: 759
A61: 공공용 건물 | B61: 800000 | C61: (통나무조) | D61: 135 | E61: (1) 국가 및 지방자치단체, 외국공관의 건축물 | F61: 91 | G61: 1(개별공시지가 10,000원 이하) | H61: 80 | I61: 2020 | J61: 0.949 | K61: 746
A62: 공공용 건물 | B62: 800000 | C62: (통나무조) | D62: 135 | E62: (1) 국가 및 지방자치단체, 외국공관의 건축물 | F62: 91 | G62: 1(개별공시지가 10,000원 이하) | H62: 80 | I62: 2019 | J62: 0.932 | K62: 732
A63: 공공용 건물 | B63: 800000 | C63: (통나무조) | D63: 135 | E63: (1) 국가 및 지방자치단체, 외국공관의 건축물 | F63: 91 | G63: 1(개별공시지가 10,000원 이하) | H63: 80 | I63: 2018 | J63: 0.915 | K63: 719
A64: 공공용 건물 | B64: 800000 | C64: (통나무조) | D64: 135 | E64: (1) 국가 및 지방자치단체, 외국공관의 건축물 | F64: 91 | G64: 1(개별공시지가 10,000원 이하) | H64: 80 | I64: 2017 | J64: 0.898 | K64: 706
A65: 공공용 건물 | B65: 800000 | C65: (통나무조) | D65: 135 | E65: (1) 국가 및 지방자치단체, 외국공관의 건축물 | F65: 91 | G65: 1(개별공시지가 10,000원 이하) | H65: 80 | I65: 2016 | J65: 0.881 | K65: 692
A66: 공공용 건물 | B66: 800000 | C66: (통나무조) | D66: 135 | E66: (1) 국가 및 지방자치단체, 외국공관의 건축물 | F66: 91 | G66: 1(개별공시지가 10,000원 이하) | H66: 80 | I66: 2015 | J66: 0.864 | K66: 679
A67: 공공용 건물 | B67: 800000 | C67: (통나무조) | D67: 135 | E67: (1) 국가 및 지방자치단체, 외국공관의 건축물 | F67: 91 | G67: 1(개별공시지가 10,000원 이하) | H67: 80 | I67: 2014 | J67: 0.847 | K67: 665
A68: 공공용 건물 | B68: 800000 | C68: (통나무조) | D68: 135 | E68: (1) 국가 및 지방자치단체, 외국공관의 건축물 | F68: 91 | G68: 1(개별공시지가 10,000원 이하) | H68: 80 | I68: 2013 | J68: 0.83 | K68: 652
A69: 공공용 건물 | B69: 800000 | C69: (통나무조) | D69: 135 | E69: (1) 국가 및 지방자치단체, 외국공관의 건축물 | F69: 91 | G69: 1(개별공시지가 10,000원 이하) | H69: 80 | I69: 2012 | J69: 0.813 | K69: 639
A70: 공공용 건물 | B70: 800000 | C70: (통나무조) | D70: 135 | E70: (1) 국가 및 지방자치단체, 외국공관의 건축물 | F70: 91 | G70: 1(개별공시지가 10,000원 이하) | H70: 80 | I70: 2011 | J70: 0.796 | K70: 625
A71: 공공용 건물 | B71: 800000 | C71: (통나무조) | D71: 135 | E71: (1) 국가 및 지방자치단체, 외국공관의 건축물 | F71: 91 | G71: 1(개별공시지가 10,000원 이하) | H71: 80 | I71: 2010 | J71: 0.779 | K71: 612
A72: 공공용 건물 | B72: 800000 | C72: (통나무조) | D72: 135 | E72: (1) 국가 및 지방자치단체, 외국공관의 건축물 | F72: 91 | G72: 1(개별공시지가 10,000원 이하) | H72: 80 | I72: 2009 | J72: 0.762 | K72: 599
A73: 공공용 건물 | B73: 800000 | C73: (통나무조) | D73: 135 | E73: (1) 국가 및 지방자치단체, 외국공관의 건축물 | F73: 91 | G73: 1(개별공시지가 10,000원 이하) | H73: 80 | I73: 2008 | J73: 0.745 | K73: 585
A74: 공공용 건물 | B74: 800000 | C74: (통나무조) | D74: 135 | E74: (1) 국가 및 지방자치단체, 외국공관의 건축물 | F74: 91 | G74: 1(개별공시지가 10,000원 이하) | H74: 80 | I74: 2007 | J74: 0.728 | K74: 572
A75: 공공용 건물 | B75: 800000 | C75: (통나무조) | D75: 135 | E75: (1) 국가 및 지방자치단체, 외국공관의 건축물 | F75: 91 | G75: 1(개별공시지가 10,000원 이하) | H75: 80 | I75: 2006 | J75: 0.711 | K75: 559
A76: 공공용 건물 | B76: 800000 | C76: (통나무조) | D76: 135 | E76: (1) 국가 및 지방자치단체, 외국공관의 건축물 | F76: 91 | G76: 1(개별공시지가 10,000원 이하) | H76: 80 | I76: 2005 | J76: 0.694 | K76: 545
A77: 공공용 건물 | B77: 800000 | C77: (통나무조) | D77: 135 | E77: (1) 국가 및 지방자치단체, 외국공관의 건축물 | F77: 91 | G77: 1(개별공시지가 10,000원 이하) | H77: 80 | I77: 2004 | J77: 0.677 | K77: 532
A78: 공공용 건물 | B78: 800000 | C78: (통나무조) | D78: 135 | E78: (1) 국가 및 지방자치단체, 외국공관의 건축물 | F78: 91 | G78: 1(개별공시지가 10,000원 이하) | H78: 80 | I78: 2003 | J78: 0.66 | K78: 518
A79: 공공용 건물 | B79: 800000 | C79: (통나무조) | D79: 135 | E79: (1) 국가 및 지방자치단체, 외국공관의 건축물 | F79: 91 | G79: 1(개별공시지가 10,000원 이하) | H79: 80 | I79: 2002 | J79: 0.643 | K79: 505
A80: 공공용 건물 | B80: 800000 | C80: (통나무조) | D80: 135 | E80: (1) 국가 및 지방자치단체, 외국공관의 건축물 | F80: 91 | G80: 1(개별공시지가 10,000원 이하) | H80: 80 | I80: 2001 | J80: 0.626 | K80: 492
A81: 공공용 건물 | B81: 800000 | C81: (통나무조) | D81: 135 | E81: (1) 국가 및 지방자치단체, 외국공관의 건축물 | F81: 91 | G81: 1(개별공시지가 10,000원 이하) | H81: 80 | I81: 2000 | J81: 0.609 | K81: 478
A82: 공공용 건물 | B82: 800000 | C82: (통나무조) | D82: 135 | E82: (1) 국가 및 지방자치단체, 외국공관의 건축물 | F82: 91 | G82: 1(개별공시지가 10,000원 이하) | H82: 80 | I82: 1999 | J82: 0.592 | K82: 465
A83: 공공용 건물 | B83: 800000 | C83: (통나무조) | D83: 135 | E83: (1) 국가 및 지방자치단체, 외국공관의 건축물 | F83: 91 | G83: 1(개별공시지가 10,000원 이하) | H83: 80 | I83: 1998 | J83: 0.575 | K83: 452
A84: 공공용 건물 | B84: 800000 | C84: (통나무조) | D84: 135 | E84: (1) 국가 및 지방자치단체, 외국공관의 건축물 | F84: 91 | G84: 1(개별공시지가 10,000원 이하) | H84: 80 | I84: 1997 | J84: 0.558 | K84: 438
A85: 공공용 건물 | B85: 800000 | C85: (통나무조) | D85: 135 | E85: (1) 국가 및 지방자치단체, 외국공관의 건축물 | F85: 91 | G85: 1(개별공시지가 10,000원 이하) | H85: 80 | I85: 1996 | J85: 0.541 | K85: 425
A86: 공공용 건물 | B86: 800000 | C86: (통나무조) | D86: 135 | E86: (1) 국가 및 지방자치단체, 외국공관의 건축물 | F86: 91 | G86: 1(개별공시지가 10,000원 이하) | H86: 80 | I86: 1995 | J86: 0.524 | K86: 411
A87: 공공용 건물 | B87: 800000 | C87: (통나무조) | D87: 135 | E87: (1) 국가 및 지방자치단체, 외국공관의 건축물 | F87: 91 | G87: 1(개별공시지가 10,000원 이하) | H87: 80 | I87: 1994 | J87: 0.507 | K87: 398
A88: 공공용 건물 | B88: 800000 | C88: (통나무조) | D88: 135 | E88: (1) 국가 및 지방자치단체, 외국공관의 건축물 | F88: 91 | G88: 1(개별공시지가 10,000원 이하) | H88: 80 | I88: 1993 | J88: 0.49 | K88: 385
A89: 공공용 건물 | B89: 800000 | C89: (통나무조) | D89: 135 | E89: (1) 국가 및 지방자치단체, 외국공관의 건축물 | F89: 91 | G89: 1(개별공시지가 10,000원 이하) | H89: 80 | I89: 1992 | J89: 0.473 | K89: 371
A90: 공공용 건물 | B90: 800000 | C90: (통나무조) | D90: 135 | E90: (1) 국가 및 지방자치단체, 외국공관의 건축물 | F90: 91 | G90: 1(개별공시지가 10,000원 이하) | H90: 80 | I90: 1991 | J90: 0.456 | K90: 358
A91: 공공용 건물 | B91: 800000 | C91: (통나무조) | D91: 135 | E91: (1) 국가 및 지방자치단체, 외국공관의 건축물 | F91: 91 | G91: 1(개별공시지가 10,000원 이하) | H91: 80 | I91: 1990 | J91: 0.439 | K91: 345
A92: 공공용 건물 | B92: 800000 | C92: (통나무조) | D92: 135 | E92: (1) 국가 및 지방자치단체, 외국공관의 건축물 | F92: 91 | G92: 1(개별공시지가 10,000원 이하) | H92: 80 | I92: 1989 | J92: 0.422 | K92: 331
A93: 공공용 건물 | B93: 800000 | C93: (통나무조) | D93: 135 | E93: (1) 국가 및 지방자치단체, 외국공관의 건축물 | F93: 91 | G93: 1(개별공시지가 10,000원 이하) | H93: 80 | I93: 1988 | J93: 0.405 | K93: 318
A94: 공공용 건물 | B94: 800000 | C94: (통나무조) | D94: 135 | E94: (1) 국가 및 지방자치단체, 외국공관의 건축물 | F94: 91 | G94: 1(개별공시지가 10,000원 이하) | H94: 80 | I94: 1987 | J94: 0.388 | K94: 305
A95: 공공용 건물 | B95: 800000 | C95: (통나무조) | D95: 135 | E95: (1) 국가 및 지방자치단체, 외국공관의 건축물 | F95: 91 | G95: 1(개별공시지가 10,000원 이하) | H95: 80 | I95: 1986 | J95: 0.371 | K95: 291
A96: 공공용 건물 | B96: 800000 | C96: (통나무조) | D96: 135 | E96: (1) 국가 및 지방자치단체, 외국공관의 건축물 | F96: 91 | G96: 1(개별공시지가 10,000원 이하) | H96: 80 | I96: 1985 | J96: 0.354 | K96: 278
A97: 공공용 건물 | B97: 800000 | C97: (통나무조) | D97: 135 | E97: (1) 국가 및 지방자치단체, 외국공관의 건축물 | F97: 91 | G97: 1(개별공시지가 10,000원 이하) | H97: 80 | I97: 1984 | J97: 0.337 | K97: 264
A98: 공공용 건물 | B98: 800000 | C98: (통나무조) | D98: 135 | E98: (1) 국가 및 지방자치단체, 외국공관의 건축물 | F98: 91 | G98: 1(개별공시지가 10,000원 이하) | H98: 80 | I98: 1983 | J98: 0.32 | K98: 251
A99: 공공용 건물 | B99: 800000 | C99: (통나무조) | D99: 135 | E99: (1) 국가 및 지방자치단체, 외국공관의 건축물 | F99: 91 | G99: 1(개별공시지가 10,000원 이하) | H99: 80 | I99: 1982 | J99: 0.303 | K99: 238
A100: 공공용 건물 | B100: 800000 | C100: (통나무조) | D100: 135 | E100: (1) 국가 및 지방자치단체, 외국공관의 건축물 | F100: 91 | G100: 1(개별공시지가 10,000원 이하) | H100: 80 | I100: 1981 | J100: 0.286 | K100: 224
A101: 공공용 건물 | B101: 800000 | C101: (통나무조) | D101: 135 | E101: (1) 국가 및 지방자치단체, 외국공관의 건축물 | F101: 91 | G101: 1(개별공시지가 10,000원 이하) | H101: 80 | I101: 1980 | J101: 0.269 | K101: 211
A102: 공공용 건물 | B102: 800000 | C102: (통나무조) | D102: 135 | E102: (1) 국가 및 지방자치단체, 외국공관의 건축물 | F102: 91 | G102: 1(개별공시지가 10,000원 이하) | H102: 80 | I102: 1979 | J102: 0.252 | K102: 198
A103: 공공용 건물 | B103: 800000 | C103: (통나무조) | D103: 135 | E103: (1) 국가 및 지방자치단체, 외국공관의 건축물 | F103: 91 | G103: 1(개별공시지가 10,000원 이하) | H103: 80 | I103: 1978 | J103: 0.235 | K103: 184
A104: 공공용 건물 | B104: 800000 | C104: (통나무조) | D104: 135 | E104: (1) 국가 및 지방자치단체, 외국공관의 건축물 | F104: 91 | G104: 1(개별공시지가 10,000원 이하) | H104: 80 | I104: 1977 | J104: 0.218 | K104: 171
A105: 공공용 건물 | B105: 800000 | C105: (통나무조) | D105: 135 | E105: (1) 국가 및 지방자치단체, 외국공관의 건축물 | F105: 91 | G105: 1(개별공시지가 10,000원 이하) | H105: 80 | I105: 1976 | J105: 0.201 | K105: 158
A106: 공공용 건물 | B106: 800000 | C106: (통나무조) | D106: 135 | E106: (1) 국가 및 지방자치단체, 외국공관의 건축물 | F106: 91 | G106: 1(개별공시지가 10,000원 이하) | H106: 80 | I106: 1975 | J106: 0.184 | K106: 144
A107: 공공용 건물 | B107: 800000 | C107: (통나무조) | D107: 135 | E107: (1) 국가 및 지방자치단체, 외국공관의 건축물 | F107: 91 | G107: 1(개별공시지가 10,000원 이하) | H107: 80 | I107: 1974 | J107: 0.167 | K107: 131
A108: 공공용 건물 | B108: 800000 | C108: (통나무조) | D108: 135 | E108: (1) 국가 및 지방자치단체, 외국공관의 건축물 | F108: 91 | G108: 1(개별공시지가 10,000원 이하) | H108: 80 | I108: 50년이상 | J108: 0.15 | K108: 117
A109: 공공용 건물 | B109: 800000 | C109: (통나무조) | D109: 135 | E109: (2) 교정시설(보호감호소, 구치소 및 교도소를 말함), 갱생보호시설, 그 밖에 범죄자의 갱생·보육·교육·보건 등의 용도로 쓰이는 시설, 소년원 및 소년분류심사원, 국방·군사시설 | F109: 91 | G109: 1(개별공시지가 10,000원 이하) | H109: 80 | I109: 2023 | J109: 1 | K109: 786
A110: 공공용 건물 | B110: 800000 | C110: (통나무조) | D110: 135 | E110: (2) 교정시설(보호감호소, 구치소 및 교도소를 말함), 갱생보호시설, 그 밖에 범죄자의 갱생·보육·교육·보건 등의 용도로 쓰이는 시설, 소년원 및 소년분류심사원, 국방·군사시설 | F110: 91 | G110: 1(개별공시지가 10,000원 이하) | H110: 80 | I110: 2022 | J110: 0.983 | K110: 772
A111: 공공용 건물 | B111: 800000 | C111: (통나무조) | D111: 135 | E111: (2) 교정시설(보호감호소, 구치소 및 교도소를 말함), 갱생보호시설, 그 밖에 범죄자의 갱생·보육·교육·보건 등의 용도로 쓰이는 시설, 소년원 및 소년분류심사원, 국방·군사시설 | F111: 91 | G111: 1(개별공시지가 10,000원 이하) | H111: 80 | I111: 2021 | J111: 0.966 | K111: 759
A112: 공공용 건물 | B112: 800000 | C112: (통나무조) | D112: 135 | E112: (2) 교정시설(보호감호소, 구치소 및 교도소를 말함), 갱생보호시설, 그 밖에 범죄자의 갱생·보육·교육·보건 등의 용도로 쓰이는 시설, 소년원 및 소년분류심사원, 국방·군사시설 | F112: 91 | G112: 1(개별공시지가 10,000원 이하) | H112: 80 | I112: 2020 | J112: 0.949 | K112: 746
A113: 공공용 건물 | B113: 800000 | C113: (통나무조) | D113: 135 | E113: (2) 교정시설(보호감호소, 구치소 및 교도소를 말함), 갱생보호시설, 그 밖에 범죄자의 갱생·보육·교육·보건 등의 용도로 쓰이는 시설, 소년원 및 소년분류심사원, 국방·군사시설 | F113: 91 | G113: 1(개별공시지가 10,000원 이하) | H113: 80 | I113: 2019 | J113: 0.932 | K113: 732
A114: 공공용 건물 | B114: 800000 | C114: (통나무조) | D114: 135 | E114: (2) 교정시설(보호감호소, 구치소 및 교도소를 말함), 갱생보호시설, 그 밖에 범죄자의 갱생·보육·교육·보건 등의 용도로 쓰이는 시설, 소년원 및 소년분류심사원, 국방·군사시설 | F114: 91 | G114: 1(개별공시지가 10,000원 이하) | H114: 80 | I114: 2018 | J114: 0.915 | K114: 719
A115: 공공용 건물 | B115: 800000 | C115: (통나무조) | D115: 135 | E115: (2) 교정시설(보호감호소, 구치소 및 교도소를 말함), 갱생보호시설, 그 밖에 범죄자의 갱생·보육·교육·보건 등의 용도로 쓰이는 시설, 소년원 및 소년분류심사원, 국방·군사시설 | F115: 91 | G115: 1(개별공시지가 10,000원 이하) | H115: 80 | I115: 2017 | J115: 0.898 | K115: 706
A116: 공공용 건물 | B116: 800000 | C116: (통나무조) | D116: 135 | E116: (2) 교정시설(보호감호소, 구치소 및 교도소를 말함), 갱생보호시설, 그 밖에 범죄자의 갱생·보육·교육·보건 등의 용도로 쓰이는 시설, 소년원 및 소년분류심사원, 국방·군사시설 | F116: 91 | G116: 1(개별공시지가 10,000원 이하) | H116: 80 | I116: 2016 | J116: 0.881 | K116: 692
A117: 공공용 건물 | B117: 800000 | C117: (통나무조) | D117: 135 | E117: (2) 교정시설(보호감호소, 구치소 및 교도소를 말함), 갱생보호시설, 그 밖에 범죄자의 갱생·보육·교육·보건 등의 용도로 쓰이는 시설, 소년원 및 소년분류심사원, 국방·군사시설 | F117: 91 | G117: 1(개별공시지가 10,000원 이하) | H117: 80 | I117: 2015 | J117: 0.864 | K117: 679
A118: 공공용 건물 | B118: 800000 | C118: (통나무조) | D118: 135 | E118: (2) 교정시설(보호감호소, 구치소 및 교도소를 말함), 갱생보호시설, 그 밖에 범죄자의 갱생·보육·교육·보건 등의 용도로 쓰이는 시설, 소년원 및 소년분류심사원, 국방·군사시설 | F118: 91 | G118: 1(개별공시지가 10,000원 이하) | H118: 80 | I118: 2014 | J118: 0.847 | K118: 665
A119: 공공용 건물 | B119: 800000 | C119: (통나무조) | D119: 135 | E119: (2) 교정시설(보호감호소, 구치소 및 교도소를 말함), 갱생보호시설, 그 밖에 범죄자의 갱생·보육·교육·보건 등의 용도로 쓰이는 시설, 소년원 및 소년분류심사원, 국방·군사시설 | F119: 91 | G119: 1(개별공시지가 10,000원 이하) | H119: 80 | I119: 2013 | J119: 0.83 | K119: 652
A120: 공공용 건물 | B120: 800000 | C120: (통나무조) | D120: 135 | E120: (2) 교정시설(보호감호소, 구치소 및 교도소를 말함), 갱생보호시설, 그 밖에 범죄자의 갱생·보육·교육·보건 등의 용도로 쓰이는 시설, 소년원 및 소년분류심사원, 국방·군사시설 | F120: 91 | G120: 1(개별공시지가 10,000원 이하) | H120: 80 | I120: 2012 | J120: 0.813 | K120: 639
A121: 공공용 건물 | B121: 800000 | C121: (통나무조) | D121: 135 | E121: (2) 교정시설(보호감호소, 구치소 및 교도소를 말함), 갱생보호시설, 그 밖에 범죄자의 갱생·보육·교육·보건 등의 용도로 쓰이는 시설, 소년원 및 소년분류심사원, 국방·군사시설 | F121: 91 | G121: 1(개별공시지가 10,000원 이하) | H121: 80 | I121: 2011 | J121: 0.796 | K121: 625
A122: 공공용 건물 | B122: 800000 | C122: (통나무조) | D122: 135 | E122: (2) 교정시설(보호감호소, 구치소 및 교도소를 말함), 갱생보호시설, 그 밖에 범죄자의 갱생·보육·교육·보건 등의 용도로 쓰이는 시설, 소년원 및 소년분류심사원, 국방·군사시설 | F122: 91 | G122: 1(개별공시지가 10,000원 이하) | H122: 80 | I122: 2010 | J122: 0.779 | K122: 612
A123: 공공용 건물 | B123: 800000 | C123: (통나무조) | D123: 135 | E123: (2) 교정시설(보호감호소, 구치소 및 교도소를 말함), 갱생보호시설, 그 밖에 범죄자의 갱생·보육·교육·보건 등의 용도로 쓰이는 시설, 소년원 및 소년분류심사원, 국방·군사시설 | F123: 91 | G123: 1(개별공시지가 10,000원 이하) | H123: 80 | I123: 2009 | J123: 0.762 | K123: 599
A124: 공공용 건물 | B124: 800000 | C124: (통나무조) | D124: 135 | E124: (2) 교정시설(보호감호소, 구치소 및 교도소를 말함), 갱생보호시설, 그 밖에 범죄자의 갱생·보육·교육·보건 등의 용도로 쓰이는 시설, 소년원 및 소년분류심사원, 국방·군사시설 | F124: 91 | G124: 1(개별공시지가 10,000원 이하) | H124: 80 | I124: 2008 | J124: 0.745 | K124: 585
A125: 공공용 건물 | B125: 800000 | C125: (통나무조) | D125: 135 | E125: (2) 교정시설(보호감호소, 구치소 및 교도소를 말함), 갱생보호시설, 그 밖에 범죄자의 갱생·보육·교육·보건 등의 용도로 쓰이는 시설, 소년원 및 소년분류심사원, 국방·군사시설 | F125: 91 | G125: 1(개별공시지가 10,000원 이하) | H125: 80 | I125: 2007 | J125: 0.728 | K125: 572
A126: 공공용 건물 | B126: 800000 | C126: (통나무조) | D126: 135 | E126: (2) 교정시설(보호감호소, 구치소 및 교도소를 말함), 갱생보호시설, 그 밖에 범죄자의 갱생·보육·교육·보건 등의 용도로 쓰이는 시설, 소년원 및 소년분류심사원, 국방·군사시설 | F126: 91 | G126: 1(개별공시지가 10,000원 이하) | H126: 80 | I126: 2006 | J126: 0.711 | K126: 559
A127: 공공용 건물 | B127: 800000 | C127: (통나무조) | D127: 135 | E127: (2) 교정시설(보호감호소, 구치소 및 교도소를 말함), 갱생보호시설, 그 밖에 범죄자의 갱생·보육·교육·보건 등의 용도로 쓰이는 시설, 소년원 및 소년분류심사원, 국방·군사시설 | F127: 91 | G127: 1(개별공시지가 10,000원 이하) | H127: 80 | I127: 2005 | J127: 0.694 | K127: 545
A128: 공공용 건물 | B128: 800000 | C128: (통나무조) | D128: 135 | E128: (2) 교정시설(보호감호소, 구치소 및 교도소를 말함), 갱생보호시설, 그 밖에 범죄자의 갱생·보육·교육·보건 등의 용도로 쓰이는 시설, 소년원 및 소년분류심사원, 국방·군사시설 | F128: 91 | G128: 1(개별공시지가 10,000원 이하) | H128: 80 | I128: 2004 | J128: 0.677 | K128: 532
A129: 공공용 건물 | B129: 800000 | C129: (통나무조) | D129: 135 | E129: (2) 교정시설(보호감호소, 구치소 및 교도소를 말함), 갱생보호시설, 그 밖에 범죄자의 갱생·보육·교육·보건 등의 용도로 쓰이는 시설, 소년원 및 소년분류심사원, 국방·군사시설 | F129: 91 | G129: 1(개별공시지가 10,000원 이하) | H129: 80 | I129: 2003 | J129: 0.66 | K129: 518
A130: 공공용 건물 | B130: 800000 | C130: (통나무조) | D130: 135 | E130: (2) 교정시설(보호감호소, 구치소 및 교도소를 말함), 갱생보호시설, 그 밖에 범죄자의 갱생·보육·교육·보건 등의 용도로 쓰이는 시설, 소년원 및 소년분류심사원, 국방·군사시설 | F130: 91 | G130: 1(개별공시지가 10,000원 이하) | H130: 80 | I130: 2002 | J130: 0.643 | K130: 505
A131: 공공용 건물 | B131: 800000 | C131: (통나무조) | D131: 135 | E131: (2) 교정시설(보호감호소, 구치소 및 교도소를 말함), 갱생보호시설, 그 밖에 범죄자의 갱생·보육·교육·보건 등의 용도로 쓰이는 시설, 소년원 및 소년분류심사원, 국방·군사시설 | F131: 91 | G131: 1(개별공시지가 10,000원 이하) | H131: 80 | I131: 2001 | J131: 0.626 | K131: 492
A132: 공공용 건물 | B132: 800000 | C132: (통나무조) | D132: 135 | E132: (2) 교정시설(보호감호소, 구치소 및 교도소를 말함), 갱생보호시설, 그 밖에 범죄자의 갱생·보육·교육·보건 등의 용도로 쓰이는 시설, 소년원 및 소년분류심사원, 국방·군사시설 | F132: 91 | G132: 1(개별공시지가 10,000원 이하) | H132: 80 | I132: 2000 | J132: 0.609 | K132: 478
A133: 공공용 건물 | B133: 800000 | C133: (통나무조) | D133: 135 | E133: (2) 교정시설(보호감호소, 구치소 및 교도소를 말함), 갱생보호시설, 그 밖에 범죄자의 갱생·보육·교육·보건 등의 용도로 쓰이는 시설, 소년원 및 소년분류심사원, 국방·군사시설 | F133: 91 | G133: 1(개별공시지가 10,000원 이하) | H133: 80 | I133: 1999 | J133: 0.592 | K133: 465
A134: 공공용 건물 | B134: 800000 | C134: (통나무조) | D134: 135 | E134: (2) 교정시설(보호감호소, 구치소 및 교도소를 말함), 갱생보호시설, 그 밖에 범죄자의 갱생·보육·교육·보건 등의 용도로 쓰이는 시설, 소년원 및 소년분류심사원, 국방·군사시설 | F134: 91 | G134: 1(개별공시지가 10,000원 이하) | H134: 80 | I134: 1998 | J134: 0.575 | K134: 452
A135: 공공용 건물 | B135: 800000 | C135: (통나무조) | D135: 135 | E135: (2) 교정시설(보호감호소, 구치소 및 교도소를 말함), 갱생보호시설, 그 밖에 범죄자의 갱생·보육·교육·보건 등의 용도로 쓰이는 시설, 소년원 및 소년분류심사원, 국방·군사시설 | F135: 91 | G135: 1(개별공시지가 10,000원 이하) | H135: 80 | I135: 1997 | J135: 0.558 | K135: 438
A136: 공공용 건물 | B136: 800000 | C136: (통나무조) | D136: 135 | E136: (2) 교정시설(보호감호소, 구치소 및 교도소를 말함), 갱생보호시설, 그 밖에 범죄자의 갱생·보육·교육·보건 등의 용도로 쓰이는 시설, 소년원 및 소년분류심사원, 국방·군사시설 | F136: 91 | G136: 1(개별공시지가 10,000원 이하) | H136: 80 | I136: 1996 | J136: 0.541 | K136: 425
A137: 공공용 건물 | B137: 800000 | C137: (통나무조) | D137: 135 | E137: (2) 교정시설(보호감호소, 구치소 및 교도소를 말함), 갱생보호시설, 그 밖에 범죄자의 갱생·보육·교육·보건 등의 용도로 쓰이는 시설, 소년원 및 소년분류심사원, 국방·군사시설 | F137: 91 | G137: 1(개별공시지가 10,000원 이하) | H137: 80 | I137: 1995 | J137: 0.524 | K137: 411
A138: 공공용 건물 | B138: 800000 | C138: (통나무조) | D138: 135 | E138: (2) 교정시설(보호감호소, 구치소 및 교도소를 말함), 갱생보호시설, 그 밖에 범죄자의 갱생·보육·교육·보건 등의 용도로 쓰이는 시설, 소년원 및 소년분류심사원, 국방·군사시설 | F138: 91 | G138: 1(개별공시지가 10,000원 이하) | H138: 80 | I138: 1994 | J138: 0.507 | K138: 398
A139: 공공용 건물 | B139: 800000 | C139: (통나무조) | D139: 135 | E139: (2) 교정시설(보호감호소, 구치소 및 교도소를 말함), 갱생보호시설, 그 밖에 범죄자의 갱생·보육·교육·보건 등의 용도로 쓰이는 시설, 소년원 및 소년분류심사원, 국방·군사시설 | F139: 91 | G139: 1(개별공시지가 10,000원 이하) | H139: 80 | I139: 1993 | J139: 0.49 | K139: 385
A140: 공공용 건물 | B140: 800000 | C140: (통나무조) | D140: 135 | E140: (2) 교정시설(보호감호소, 구치소 및 교도소를 말함), 갱생보호시설, 그 밖에 범죄자의 갱생·보육·교육·보건 등의 용도로 쓰이는 시설, 소년원 및 소년분류심사원, 국방·군사시설 | F140: 91 | G140: 1(개별공시지가 10,000원 이하) | H140: 80 | I140: 1992 | J140: 0.473 | K140: 371
A141: 공공용 건물 | B141: 800000 | C141: (통나무조) | D141: 135 | E141: (2) 교정시설(보호감호소, 구치소 및 교도소를 말함), 갱생보호시설, 그 밖에 범죄자의 갱생·보육·교육·보건 등의 용도로 쓰이는 시설, 소년원 및 소년분류심사원, 국방·군사시설 | F141: 91 | G141: 1(개별공시지가 10,000원 이하) | H141: 80 | I141: 1991 | J141: 0.456 | K141: 358
A142: 공공용 건물 | B142: 800000 | C142: (통나무조) | D142: 135 | E142: (2) 교정시설(보호감호소, 구치소 및 교도소를 말함), 갱생보호시설, 그 밖에 범죄자의 갱생·보육·교육·보건 등의 용도로 쓰이는 시설, 소년원 및 소년분류심사원, 국방·군사시설 | F142: 91 | G142: 1(개별공시지가 10,000원 이하) | H142: 80 | I142: 1990 | J142: 0.439 | K142: 345
A143: 공공용 건물 | B143: 800000 | C143: (통나무조) | D143: 135 | E143: (2) 교정시설(보호감호소, 구치소 및 교도소를 말함), 갱생보호시설, 그 밖에 범죄자의 갱생·보육·교육·보건 등의 용도로 쓰이는 시설, 소년원 및 소년분류심사원, 국방·군사시설 | F143: 91 | G143: 1(개별공시지가 10,000원 이하) | H143: 80 | I143: 1989 | J143: 0.422 | K143: 331
A144: 공공용 건물 | B144: 800000 | C144: (통나무조) | D144: 135 | E144: (2) 교정시설(보호감호소, 구치소 및 교도소를 말함), 갱생보호시설, 그 밖에 범죄자의 갱생·보육·교육·보건 등의 용도로 쓰이는 시설, 소년원 및 소년분류심사원, 국방·군사시설 | F144: 91 | G144: 1(개별공시지가 10,000원 이하) | H144: 80 | I144: 1988 | J144: 0.405 | K144: 318
A145: 공공용 건물 | B145: 800000 | C145: (통나무조) | D145: 135 | E145: (2) 교정시설(보호감호소, 구치소 및 교도소를 말함), 갱생보호시설, 그 밖에 범죄자의 갱생·보육·교육·보건 등의 용도로 쓰이는 시설, 소년원 및 소년분류심사원, 국방·군사시설 | F145: 91 | G145: 1(개별공시지가 10,000원 이하) | H145: 80 | I145: 1987 | J145: 0.388 | K145: 305
A146: 공공용 건물 | B146: 800000 | C146: (통나무조) | D146: 135 | E146: (2) 교정시설(보호감호소, 구치소 및 교도소를 말함), 갱생보호시설, 그 밖에 범죄자의 갱생·보육·교육·보건 등의 용도로 쓰이는 시설, 소년원 및 소년분류심사원, 국방·군사시설 | F146: 91 | G146: 1(개별공시지가 10,000원 이하) | H146: 80 | I146: 1986 | J146: 0.371 | K146: 291
A147: 공공용 건물 | B147: 800000 | C147: (통나무조) | D147: 135 | E147: (2) 교정시설(보호감호소, 구치소 및 교도소를 말함), 갱생보호시설, 그 밖에 범죄자의 갱생·보육·교육·보건 등의 용도로 쓰이는 시설, 소년원 및 소년분류심사원, 국방·군사시설 | F147: 91 | G147: 1(개별공시지가 10,000원 이하) | H147: 80 | I147: 1985 | J147: 0.354 | K147: 278
A148: 공공용 건물 | B148: 800000 | C148: (통나무조) | D148: 135 | E148: (2) 교정시설(보호감호소, 구치소 및 교도소를 말함), 갱생보호시설, 그 밖에 범죄자의 갱생·보육·교육·보건 등의 용도로 쓰이는 시설, 소년원 및 소년분류심사원, 국방·군사시설 | F148: 91 | G148: 1(개별공시지가 10,000원 이하) | H148: 80 | I148: 1984 | J148: 0.337 | K148: 264
A149: 공공용 건물 | B149: 800000 | C149: (통나무조) | D149: 135 | E149: (2) 교정시설(보호감호소, 구치소 및 교도소를 말함), 갱생보호시설, 그 밖에 범죄자의 갱생·보육·교육·보건 등의 용도로 쓰이는 시설, 소년원 및 소년분류심사원, 국방·군사시설 | F149: 91 | G149: 1(개별공시지가 10,000원 이하) | H149: 80 | I149: 1983 | J149: 0.32 | K149: 251
A150: 공공용 건물 | B150: 800000 | C150: (통나무조) | D150: 135 | E150: (2) 교정시설(보호감호소, 구치소 및 교도소를 말함), 갱생보호시설, 그 밖에 범죄자의 갱생·보육·교육·보건 등의 용도로 쓰이는 시설, 소년원 및 소년분류심사원, 국방·군사시설 | F150: 91 | G150: 1(개별공시지가 10,000원 이하) | H150: 80 | I150: 1982 | J150: 0.303 | K150: 238
A151: 공공용 건물 | B151: 800000 | C151: (통나무조) | D151: 135 | E151: (2) 교정시설(보호감호소, 구치소 및 교도소를 말함), 갱생보호시설, 그 밖에 범죄자의 갱생·보육·교육·보건 등의 용도로 쓰이는 시설, 소년원 및 소년분류심사원, 국방·군사시설 | F151: 91 | G151: 1(개별공시지가 10,000원 이하) | H151: 80 | I151: 1981 | J151: 0.286 | K151: 224
A152: 공공용 건물 | B152: 800000 | C152: (통나무조) | D152: 135 | E152: (2) 교정시설(보호감호소, 구치소 및 교도소를 말함), 갱생보호시설, 그 밖에 범죄자의 갱생·보육·교육·보건 등의 용도로 쓰이는 시설, 소년원 및 소년분류심사원, 국방·군사시설 | F152: 91 | G152: 1(개별공시지가 10,000원 이하) | H152: 80 | I152: 1980 | J152: 0.269 | K152: 211
A153: 공공용 건물 | B153: 800000 | C153: (통나무조) | D153: 135 | E153: (2) 교정시설(보호감호소, 구치소 및 교도소를 말함), 갱생보호시설, 그 밖에 범죄자의 갱생·보육·교육·보건 등의 용도로 쓰이는 시설, 소년원 및 소년분류심사원, 국방·군사시설 | F153: 91 | G153: 1(개별공시지가 10,000원 이하) | H153: 80 | I153: 1979 | J153: 0.252 | K153: 198
A154: 공공용 건물 | B154: 800000 | C154: (통나무조) | D154: 135 | E154: (2) 교정시설(보호감호소, 구치소 및 교도소를 말함), 갱생보호시설, 그 밖에 범죄자의 갱생·보육·교육·보건 등의 용도로 쓰이는 시설, 소년원 및 소년분류심사원, 국방·군사시설 | F154: 91 | G154: 1(개별공시지가 10,000원 이하) | H154: 80 | I154: 1978 | J154: 0.235 | K154: 184
A155: 공공용 건물 | B155: 800000 | C155: (통나무조) | D155: 135 | E155: (2) 교정시설(보호감호소, 구치소 및 교도소를 말함), 갱생보호시설, 그 밖에 범죄자의 갱생·보육·교육·보건 등의 용도로 쓰이는 시설, 소년원 및 소년분류심사원, 국방·군사시설 | F155: 91 | G155: 1(개별공시지가 10,000원 이하) | H155: 80 | I155: 1977 | J155: 0.218 | K155: 171
A156: 공공용 건물 | B156: 800000 | C156: (통나무조) | D156: 135 | E156: (2) 교정시설(보호감호소, 구치소 및 교도소를 말함), 갱생보호시설, 그 밖에 범죄자의 갱생·보육·교육·보건 등의 용도로 쓰이는 시설, 소년원 및 소년분류심사원, 국방·군사시설 | F156: 91 | G156: 1(개별공시지가 10,000원 이하) | H156: 80 | I156: 1976 | J156: 0.201 | K156: 158
A157: 공공용 건물 | B157: 800000 | C157: (통나무조) | D157: 135 | E157: (2) 교정시설(보호감호소, 구치소 및 교도소를 말함), 갱생보호시설, 그 밖에 범죄자의 갱생·보육·교육·보건 등의 용도로 쓰이는 시설, 소년원 및 소년분류심사원, 국방·군사시설 | F157: 91 | G157: 1(개별공시지가 10,000원 이하) | H157: 80 | I157: 1975 | J157: 0.184 | K157: 144
A158: 공공용 건물 | B158: 800000 | C158: (통나무조) | D158: 135 | E158: (2) 교정시설(보호감호소, 구치소 및 교도소를 말함), 갱생보호시설, 그 밖에 범죄자의 갱생·보육·교육·보건 등의 용도로 쓰이는 시설, 소년원 및 소년분류심사원, 국방·군사시설 | F158: 91 | G158: 1(개별공시지가 10,000원 이하) | H158: 80 | I158: 1974 | J158: 0.167 | K158: 131
A159: 공공용 건물 | B159: 800000 | C159: (통나무조) | D159: 135 | E159: (2) 교정시설(보호감호소, 구치소 및 교도소를 말함), 갱생보호시설, 그 밖에 범죄자의 갱생·보육·교육·보건 등의 용도로 쓰이는 시설, 소년원 및 소년분류심사원, 국방·군사시설 | F159: 91 | G159: 1(개별공시지가 10,000원 이하) | H159: 80 | I159: 50년이상 | J159: 0.15 | K159: 117
A160: 공공용 건물 | B160: 800000 | C160: (통나무조) | D160: 135 | E160: (5) 여객자동차터미널, 철도시설, 공항시설, 항만시설 | F160: 91 | G160: 1(개별공시지가 10,000원 이하) | H160: 80 | I160: 2023 | J160: 1 | K160: 786
A161: 공공용 건물 | B161: 800000 | C161: (통나무조) | D161: 135 | E161: (5) 여객자동차터미널, 철도시설, 공항시설, 항만시설 | F161: 91 | G161: 1(개별공시지가 10,000원 이하) | H161: 80 | I161: 2022 | J161: 0.983 | K161: 772
A162: 공공용 건물 | B162: 800000 | C162: (통나무조) | D162: 135 | E162: (5) 여객자동차터미널, 철도시설, 공항시설, 항만시설 | F162: 91 | G162: 1(개별공시지가 10,000원 이하) | H162: 80 | I162: 2021 | J162: 0.966 | K162: 759
A163: 공공용 건물 | B163: 800000 | C163: (통나무조) | D163: 135 | E163: (5) 여객자동차터미널, 철도시설, 공항시설, 항만시설 | F163: 91 | G163: 1(개별공시지가 10,000원 이하) | H163: 80 | I163: 2020 | J163: 0.949 | K163: 746
A164: 공공용 건물 | B164: 800000 | C164: (통나무조) | D164: 135 | E164: (5) 여객자동차터미널, 철도시설, 공항시설, 항만시설 | F164: 91 | G164: 1(개별공시지가 10,000원 이하) | H164: 80 | I164: 2019 | J164: 0.932 | K164: 732
A165: 공공용 건물 | B165: 800000 | C165: (통나무조) | D165: 135 | E165: (5) 여객자동차터미널, 철도시설, 공항시설, 항만시설 | F165: 91 | G165: 1(개별공시지가 10,000원 이하) | H165: 80 | I165: 2018 | J165: 0.915 | K165: 719
A166: 공공용 건물 | B166: 800000 | C166: (통나무조) | D166: 135 | E166: (5) 여객자동차터미널, 철도시설, 공항시설, 항만시설 | F166: 91 | G166: 1(개별공시지가 10,000원 이하) | H166: 80 | I166: 2017 | J166: 0.898 | K166: 706
A167: 공공용 건물 | B167: 800000 | C167: (통나무조) | D167: 135 | E167: (5) 여객자동차터미널, 철도시설, 공항시설, 항만시설 | F167: 91 | G167: 1(개별공시지가 10,000원 이하) | H167: 80 | I167: 2016 | J167: 0.881 | K167: 692
A168: 공공용 건물 | B168: 800000 | C168: (통나무조) | D168: 135 | E168: (5) 여객자동차터미널, 철도시설, 공항시설, 항만시설 | F168: 91 | G168: 1(개별공시지가 10,000원 이하) | H168: 80 | I168: 2015 | J168: 0.864 | K168: 679
A169: 공공용 건물 | B169: 800000 | C169: (통나무조) | D169: 135 | E169: (5) 여객자동차터미널, 철도시설, 공항시설, 항만시설 | F169: 91 | G169: 1(개별공시지가 10,000원 이하) | H169: 80 | I169: 2014 | J169: 0.847 | K169: 665
A170: 공공용 건물 | B170: 800000 | C170: (통나무조) | D170: 135 | E170: (5) 여객자동차터미널, 철도시설, 공항시설, 항만시설 | F170: 91 | G170: 1(개별공시지가 10,000원 이하) | H170: 80 | I170: 2013 | J170: 0.83 | K170: 652
A171: 공공용 건물 | B171: 800000 | C171: (통나무조) | D171: 135 | E171: (5) 여객자동차터미널, 철도시설, 공항시설, 항만시설 | F171: 91 | G171: 1(개별공시지가 10,000원 이하) | H171: 80 | I171: 2012 | J171: 0.813 | K171: 639
A172: 공공용 건물 | B172: 800000 | C172: (통나무조) | D172: 135 | E172: (5) 여객자동차터미널, 철도시설, 공항시설, 항만시설 | F172: 91 | G172: 1(개별공시지가 10,000원 이하) | H172: 80 | I172: 2011 | J172: 0.796 | K172: 625
A173: 공공용 건물 | B173: 800000 | C173: (통나무조) | D173: 135 | E173: (5) 여객자동차터미널, 철도시설, 공항시설, 항만시설 | F173: 91 | G173: 1(개별공시지가 10,000원 이하) | H173: 80 | I173: 2010 | J173: 0.779 | K173: 612
A174: 공공용 건물 | B174: 800000 | C174: (통나무조) | D174: 135 | E174: (5) 여객자동차터미널, 철도시설, 공항시설, 항만시설 | F174: 91 | G174: 1(개별공시지가 10,000원 이하) | H174: 80 | I174: 2009 | J174: 0.762 | K174: 599
A175: 공공용 건물 | B175: 800000 | C175: (통나무조) | D175: 135 | E175: (5) 여객자동차터미널, 철도시설, 공항시설, 항만시설 | F175: 91 | G175: 1(개별공시지가 10,000원 이하) | H175: 80 | I175: 2008 | J175: 0.745 | K175: 585
A176: 공공용 건물 | B176: 800000 | C176: (통나무조) | D176: 135 | E176: (5) 여객자동차터미널, 철도시설, 공항시설, 항만시설 | F176: 91 | G176: 1(개별공시지가 10,000원 이하) | H176: 80 | I176: 2007 | J176: 0.728 | K176: 572
A177: 공공용 건물 | B177: 800000 | C177: (통나무조) | D177: 135 | E177: (5) 여객자동차터미널, 철도시설, 공항시설, 항만시설 | F177: 91 | G177: 1(개별공시지가 10,000원 이하) | H177: 80 | I177: 2006 | J177: 0.711 | K177: 559
A178: 공공용 건물 | B178: 800000 | C178: (통나무조) | D178: 135 | E178: (5) 여객자동차터미널, 철도시설, 공항시설, 항만시설 | F178: 91 | G178: 1(개별공시지가 10,000원 이하) | H178: 80 | I178: 2005 | J178: 0.694 | K178: 545
A179: 공공용 건물 | B179: 800000 | C179: (통나무조) | D179: 135 | E179: (5) 여객자동차터미널, 철도시설, 공항시설, 항만시설 | F179: 91 | G179: 1(개별공시지가 10,000원 이하) | H179: 80 | I179: 2004 | J179: 0.677 | K179: 532
A180: 공공용 건물 | B180: 800000 | C180: (통나무조) | D180: 135 | E180: (5) 여객자동차터미널, 철도시설, 공항시설, 항만시설 | F180: 91 | G180: 1(개별공시지가 10,000원 이하) | H180: 80 | I180: 2003 | J180: 0.66 | K180: 518
A181: 공공용 건물 | B181: 800000 | C181: (통나무조) | D181: 135 | E181: (5) 여객자동차터미널, 철도시설, 공항시설, 항만시설 | F181: 91 | G181: 1(개별공시지가 10,000원 이하) | H181: 80 | I181: 2002 | J181: 0.643 | K181: 505
A182: 공공용 건물 | B182: 800000 | C182: (통나무조) | D182: 135 | E182: (5) 여객자동차터미널, 철도시설, 공항시설, 항만시설 | F182: 91 | G182: 1(개별공시지가 10,000원 이하) | H182: 80 | I182: 2001 | J182: 0.626 | K182: 492
A183: 공공용 건물 | B183: 800000 | C183: (통나무조) | D183: 135 | E183: (5) 여객자동차터미널, 철도시설, 공항시설, 항만시설 | F183: 91 | G183: 1(개별공시지가 10,000원 이하) | H183: 80 | I183: 2000 | J183: 0.609 | K183: 478
A184: 공공용 건물 | B184: 800000 | C184: (통나무조) | D184: 135 | E184: (5) 여객자동차터미널, 철도시설, 공항시설, 항만시설 | F184: 91 | G184: 1(개별공시지가 10,000원 이하) | H184: 80 | I184: 1999 | J184: 0.592 | K184: 465
A185: 공공용 건물 | B185: 800000 | C185: (통나무조) | D185: 135 | E185: (5) 여객자동차터미널, 철도시설, 공항시설, 항만시설 | F185: 91 | G185: 1(개별공시지가 10,000원 이하) | H185: 80 | I185: 1998 | J185: 0.575 | K185: 452
A186: 공공용 건물 | B186: 800000 | C186: (통나무조) | D186: 135 | E186: (5) 여객자동차터미널, 철도시설, 공항시설, 항만시설 | F186: 91 | G186: 1(개별공시지가 10,000원 이하) | H186: 80 | I186: 1997 | J186: 0.558 | K186: 438
A187: 공공용 건물 | B187: 800000 | C187: (통나무조) | D187: 135 | E187: (5) 여객자동차터미널, 철도시설, 공항시설, 항만시설 | F187: 91 | G187: 1(개별공시지가 10,000원 이하) | H187: 80 | I187: 1996 | J187: 0.541 | K187: 425
A188: 공공용 건물 | B188: 800000 | C188: (통나무조) | D188: 135 | E188: (5) 여객자동차터미널, 철도시설, 공항시설, 항만시설 | F188: 91 | G188: 1(개별공시지가 10,000원 이하) | H188: 80 | I188: 1995 | J188: 0.524 | K188: 411
A189: 공공용 건물 | B189: 800000 | C189: (통나무조) | D189: 135 | E189: (5) 여객자동차터미널, 철도시설, 공항시설, 항만시설 | F189: 91 | G189: 1(개별공시지가 10,000원 이하) | H189: 80 | I189: 1994 | J189: 0.507 | K189: 398
A190: 공공용 건물 | B190: 800000 | C190: (통나무조) | D190: 135 | E190: (5) 여객자동차터미널, 철도시설, 공항시설, 항만시설 | F190: 91 | G190: 1(개별공시지가 10,000원 이하) | H190: 80 | I190: 1993 | J190: 0.49 | K190: 385
A191: 공공용 건물 | B191: 800000 | C191: (통나무조) | D191: 135 | E191: (5) 여객자동차터미널, 철도시설, 공항시설, 항만시설 | F191: 91 | G191: 1(개별공시지가 10,000원 이하) | H191: 80 | I191: 1992 | J191: 0.473 | K191: 371
A192: 공공용 건물 | B192: 800000 | C192: (통나무조) | D192: 135 | E192: (5) 여객자동차터미널, 철도시설, 공항시설, 항만시설 | F192: 91 | G192: 1(개별공시지가 10,000원 이하) | H192: 80 | I192: 1991 | J192: 0.456 | K192: 358
A193: 공공용 건물 | B193: 800000 | C193: (통나무조) | D193: 135 | E193: (5) 여객자동차터미널, 철도시설, 공항시설, 항만시설 | F193: 91 | G193: 1(개별공시지가 10,000원 이하) | H193: 80 | I193: 1990 | J193: 0.439 | K193: 345
A194: 공공용 건물 | B194: 800000 | C194: (통나무조) | D194: 135 | E194: (5) 여객자동차터미널, 철도시설, 공항시설, 항만시설 | F194: 91 | G194: 1(개별공시지가 10,000원 이하) | H194: 80 | I194: 1989 | J194: 0.422 | K194: 331
A195: 공공용 건물 | B195: 800000 | C195: (통나무조) | D195: 135 | E195: (5) 여객자동차터미널, 철도시설, 공항시설, 항만시설 | F195: 91 | G195: 1(개별공시지가 10,000원 이하) | H195: 80 | I195: 1988 | J195: 0.405 | K195: 318
A196: 공공용 건물 | B196: 800000 | C196: (통나무조) | D196: 135 | E196: (5) 여객자동차터미널, 철도시설, 공항시설, 항만시설 | F196: 91 | G196: 1(개별공시지가 10,000원 이하) | H196: 80 | I196: 1987 | J196: 0.388 | K196: 305
A197: 공공용 건물 | B197: 800000 | C197: (통나무조) | D197: 135 | E197: (5) 여객자동차터미널, 철도시설, 공항시설, 항만시설 | F197: 91 | G197: 1(개별공시지가 10,000원 이하) | H197: 80 | I197: 1986 | J197: 0.371 | K197: 291
A198: 공공용 건물 | B198: 800000 | C198: (통나무조) | D198: 135 | E198: (5) 여객자동차터미널, 철도시설, 공항시설, 항만시설 | F198: 91 | G198: 1(개별공시지가 10,000원 이하) | H198: 80 | I198: 1985 | J198: 0.354 | K198: 278
A199: 공공용 건물 | B199: 800000 | C199: (통나무조) | D199: 135 | E199: (5) 여객자동차터미널, 철도시설, 공항시설, 항만시설 | F199: 91 | G199: 1(개별공시지가 10,000원 이하) | H199: 80 | I199: 1984 | J199: 0.337 | K199: 264
A200: 공공용 건물 | B200: 800000 | C200: (통나무조) | D200: 135 | E200: (5) 여객자동차터미널, 철도시설, 공항시설, 항만시설 | F200: 91 | G200: 1(개별공시지가 10,000원 이하) | H200: 80 | I200: 1983 | J200: 0.32 | K200: 251
... 4292 more rows

Sheet 그 외 건물
A1: 건축물 시가표준액 일람표 본 일람표는 가감산특례 적용 전 건축물 시가표준액을 계산한 표로, 단위는 단위 면적당(㎡) 천원(1000원)이며 천원 이하의 숫자는 버림하였습니다. 문의사항: 한국지방세연구원, 최은철 주임, 02-2071-2716, ecchoi@kilf.re.kr
A2: 건물신축가격기준액구분 | B2: 구조구분 | C2: 용도구분 | D2: 위치구분 | E2: 경과연수구분 | F2: 선택번호 | G2: 2 | H2: 2 | I2: 3 | J2: 1 | K2: 1
F3: 검색 | G3: 건물신축가격기준액구분 | H3: 구조구분 | I3: 용도구분 | J3: 위치구분 | K3: 경과연수구분
A4: ※ "전부" 버튼은 2개 이상 사용하면 동작시간이 길어져 사용을 자제해주시기 바랍니다 (매크로 작동 도중 중단을 원하시면 esc 키를 눌러주시기 바랍니다) | F4: 찾기 | G4: =IF(G2=1,"",INDEX(건물신축가격기준액구분,G2)) -> 그 외 건물 | H4: =IF(H2=1,"",INDEX(구조구분,H2)) -> (통나무조) | I4: =IF(I2=1,"",INDEX(용도구분,I2)) -> (2) 장례식장(종합병원부속장례식장 제외) | J4: =IF(J2=1,"",INDEX(위치구분,J2)) ->  | K4: =IF(K2=1,"",INDEX(경과연수구분,K2)) -> 
A5: ※ 10년 이상 오래된 건물이 검색이 안될 경우 '경과연수구분'에 '10년 이상', '20년 이상', '30년 이상', '40년 이상', '50년 이상'을 눌러주시기 바랍니다
A6: 건물신축가격기준액구분 | B6: 건물신축가격기준액 | C6: 구조구분 | D6: 구조지수 | E6: 용도구분 | F6: 용도지수 | G6: 위치구분 | H6: 위치지수 | I6: 경과연수구분 | J6: 경과연수별잔가율 | K6: 시가표준액
A7: 그 외 건물 | B7: 790000 | C7: (통나무조) | D7: 135 | E7: (1) 화장시설, 봉안당(종교시설에 해당하는 것 제외), 묘지와 자연장지에 부수되는 건축물 | F7: 78 | G7: 1(개별공시지가 10,000원 이하) | H7: 80 | I7: 2023 | J7: 1 | K7: =ROUNDDOWN(B7*D7/100*F7/100*H7/100*J7/1000,0) -> 665
A8: 그 외 건물 | B8: 790000 | C8: (통나무조) | D8: 135 | E8: (1) 화장시설, 봉안당(종교시설에 해당하는 것 제외), 묘지와 자연장지에 부수되는 건축물 | F8: 78 | G8: 1(개별공시지가 10,000원 이하) | H8: 80 | I8: 2022 | J8: 0.983 | K8: 654
A9: 그 외 건물 | B9: 790000 | C9: (통나무조) | D9: 135 | E9: (1) 화장시설, 봉안당(종교시설에 해당하는 것 제외), 묘지와 자연장지에 부수되는 건축물 | F9: 78 | G9: 1(개별공시지가 10,000원 이하) | H9: 80 | I9: 2021 | J9: 0.966 | K9: 642
A10: 그 외 건물 | B10: 790000 | C10: (통나무조) | D10: 135 | E10: (1) 화장시설, 봉안당(종교시설에 해당하는 것 제외), 묘지와 자연장지에 부수되는 건축물 | F10: 78 | G10: 1(개별공시지가 10,000원 이하) | H10: 80 | I10: 2020 | J10: 0.949 | K10: 631
A11: 그 외 건물 | B11: 790000 | C11: (통나무조) | D11: 135 | E11: (1) 화장시설, 봉안당(종교시설에 해당하는 것 제외), 묘지와 자연장지에 부수되는 건축물 | F11: 78 | G11: 1(개별공시지가 10,000원 이하) | H11: 80 | I11: 2019 | J11: 0.932 | K11: 620
A12: 그 외 건물 | B12: 790000 | C12: (통나무조) | D12: 135 | E12: (1) 화장시설, 봉안당(종교시설에 해당하는 것 제외), 묘지와 자연장지에 부수되는 건축물 | F12: 78 | G12: 1(개별공시지가 10,000원 이하) | H12: 80 | I12: 2018 | J12: 0.915 | K12: 608
A13: 그 외 건물 | B13: 790000 | C13: (통나무조) | D13: 135 | E13: (1) 화장시설, 봉안당(종교시설에 해당하는 것 제외), 묘지와 자연장지에 부수되는 건축물 | F13: 78 | G13: 1(개별공시지가 10,000원 이하) | H13: 80 | I13: 2017 | J13: 0.898 | K13: 597
A14: 그 외 건물 | B14: 790000 | C14: (통나무조) | D14: 135 | E14: (1) 화장시설, 봉안당(종교시설에 해당하는 것 제외), 묘지와 자연장지에 부수되는 건축물 | F14: 78 | G14: 1(개별공시지가 10,000원 이하) | H14: 80 | I14: 2016 | J14: 0.881 | K14: 586
A15: 그 외 건물 | B15: 790000 | C15: (통나무조) | D15: 135 | E15: (1) 화장시설, 봉안당(종교시설에 해당하는 것 제외), 묘지와 자연장지에 부수되는 건축물 | F15: 78 | G15: 1(개별공시지가 10,000원 이하) | H15: 80 | I15: 2015 | J15: 0.864 | K15: 574
A16: 그 외 건물 | B16: 790000 | C16: (통나무조) | D16: 135 | E16: (1) 화장시설, 봉안당(종교시설에 해당하는 것 제외), 묘지와 자연장지에 부수되는 건축물 | F16: 78 | G16: 1(개별공시지가 10,000원 이하) | H16: 80 | I16: 2014 | J16: 0.847 | K16: 563
A17: 그 외 건물 | B17: 790000 | C17: (통나무조) | D17: 135 | E17: (1) 화장시설, 봉안당(종교시설에 해당하는 것 제외), 묘지와 자연장지에 부수되는 건축물 | F17: 78 | G17: 1(개별공시지가 10,000원 이하) | H17: 80 | I17: 2013 | J17: 0.83 | K17: 552
A18: 그 외 건물 | B18: 790000 | C18: (통나무조) | D18: 135 | E18: (1) 화장시설, 봉안당(종교시설에 해당하는 것 제외), 묘지와 자연장지에 부수되는 건축물 | F18: 78 | G18: 1(개별공시지가 10,000원 이하) | H18: 80 | I18: 2012 | J18: 0.813 | K18: 541
A19: 그 외 건물 | B19: 790000 | C19: (통나무조) | D19: 135 | E19: (1) 화장시설, 봉안당(종교시설에 해당하는 것 제외), 묘지와 자연장지에 부수되는 건축물 | F19: 78 | G19: 1(개별공시지가 10,000원 이하) | H19: 80 | I19: 2011 | J19: 0.796 | K19: 529
A20: 그 외 건물 | B20: 790000 | C20: (통나무조) | D20: 135 | E20: (1) 화장시설, 봉안당(종교시설에 해당하는 것 제외), 묘지와 자연장지에 부수되는 건축물 | F20: 78 | G20: 1(개별공시지가 10,000원 이하) | H20: 80 | I20: 2010 | J20: 0.779 | K20: 518
A21: 그 외 건물 | B21: 790000 | C21: (통나무조) | D21: 135 | E21: (1) 화장시설, 봉안당(종교시설에 해당하는 것 제외), 묘지와 자연장지에 부수되는 건축물 | F21: 78 | G21: 1(개별공시지가 10,000원 이하) | H21: 80 | I21: 2009 | J21: 0.762 | K21: 507
A22: 그 외 건물 | B22: 790000 | C22: (통나무조) | D22: 135 | E22: (1) 화장시설, 봉안당(종교시설에 해당하는 것 제외), 묘지와 자연장지에 부수되는 건축물 | F22: 78 | G22: 1(개별공시지가 10,000원 이하) | H22: 80 | I22: 2008 | J22: 0.745 | K22: 495
A23: 그 외 건물 | B23: 790000 | C23: (통나무조) | D23: 135 | E23: (1) 화장시설, 봉안당(종교시설에 해당하는 것 제외), 묘지와 자연장지에 부수되는 건축물 | F23: 78 | G23: 1(개별공시지가 10,000원 이하) | H23: 80 | I23: 2007 | J23: 0.728 | K23: 484
A24: 그 외 건물 | B24: 790000 | C24: (통나무조) | D24: 135 | E24: (1) 화장시설, 봉안당(종교시설에 해당하는 것 제외), 묘지와 자연장지에 부수되는 건축물 | F24: 78 | G24: 1(개별공시지가 10,000원 이하) | H24: 80 | I24: 2006 | J24: 0.711 | K24: 473
A25: 그 외 건물 | B25: 790000 | C25: (통나무조) | D25: 135 | E25: (1) 화장시설, 봉안당(종교시설에 해당하는 것 제외), 묘지와 자연장지에 부수되는 건축물 | F25: 78 | G25: 1(개별공시지가 10,000원 이하) | H25: 80 | I25: 2005 | J25: 0.694 | K25: 461
A26: 그 외 건물 | B26: 790000 | C26: (통나무조) | D26: 135 | E26: (1) 화장시설, 봉안당(종교시설에 해당하는 것 제외), 묘지와 자연장지에 부수되는 건축물 | F26: 78 | G26: 1(개별공시지가 10,000원 이하) | H26: 80 | I26: 2004 | J26: 0.677 | K26: 450
A27: 그 외 건물 | B27: 790000 | C27: (통나무조) | D27: 135 | E27: (1) 화장시설, 봉안당(종교시설에 해당하는 것 제외), 묘지와 자연장지에 부수되는 건축물 | F27: 78 | G27: 1(개별공시지가 10,000원 이하) | H27: 80 | I27: 2003 | J27: 0.66 | K27: 439
A28: 그 외 건물 | B28: 790000 | C28: (통나무조) | D28: 135 | E28: (1) 화장시설, 봉안당(종교시설에 해당하는 것 제외), 묘지와 자연장지에 부수되는 건축물 | F28: 78 | G28: 1(개별공시지가 10,000원 이하) | H28: 80 | I28: 2002 | J28: 0.643 | K28: 427
A29: 그 외 건물 | B29: 790000 | C29: (통나무조) | D29: 135 | E29: (1) 화장시설, 봉안당(종교시설에 해당하는 것 제외), 묘지와 자연장지에 부수되는 건축물 | F29: 78 | G29: 1(개별공시지가 10,000원 이하) | H29: 80 | I29: 2001 | J29: 0.626 | K29: 416
A30: 그 외 건물 | B30: 790000 | C30: (통나무조) | D30: 135 | E30: (1) 화장시설, 봉안당(종교시설에 해당하는 것 제외), 묘지와 자연장지에 부수되는 건축물 | F30: 78 | G30: 1(개별공시지가 10,000원 이하) | H30: 80 | I30: 2000 | J30: 0.609 | K30: 405
A31: 그 외 건물 | B31: 790000 | C31: (통나무조) | D31: 135 | E31: (1) 화장시설, 봉안당(종교시설에 해당하는 것 제외), 묘지와 자연장지에 부수되는 건축물 | F31: 78 | G31: 1(개별공시지가 10,000원 이하) | H31: 80 | I31: 1999 | J31: 0.592 | K31: 393
A32: 그 외 건물 | B32: 790000 | C32: (통나무조) | D32: 135 | E32: (1) 화장시설, 봉안당(종교시설에 해당하는 것 제외), 묘지와 자연장지에 부수되는 건축물 | F32: 78 | G32: 1(개별공시지가 10,000원 이하) | H32: 80 | I32: 1998 | J32: 0.575 | K32: 382
A33: 그 외 건물 | B33: 790000 | C33: (통나무조) | D33: 135 | E33: (1) 화장시설, 봉안당(종교시설에 해당하는 것 제외), 묘지와 자연장지에 부수되는 건축물 | F33: 78 | G33: 1(개별공시지가 10,000원 이하) | H33: 80 | I33: 1997 | J33: 0.558 | K33: 371
A34: 그 외 건물 | B34: 790000 | C34: (통나무조) | D34: 135 | E34: (1) 화장시설, 봉안당(종교시설에 해당하는 것 제외), 묘지와 자연장지에 부수되는 건축물 | F34: 78 | G34: 1(개별공시지가 10,000원 이하) | H34: 80 | I34: 1996 | J34: 0.541 | K34: 360
A35: 그 외 건물 | B35: 790000 | C35: (통나무조) | D35: 135 | E35: (1) 화장시설, 봉안당(종교시설에 해당하는 것 제외), 묘지와 자연장지에 부수되는 건축물 | F35: 78 | G35: 1(개별공시지가 10,000원 이하) | H35: 80 | I35: 1995 | J35: 0.524 | K35: 348
A36: 그 외 건물 | B36: 790000 | C36: (통나무조) | D36: 135 | E36: (1) 화장시설, 봉안당(종교시설에 해당하는 것 제외), 묘지와 자연장지에 부수되는 건축물 | F36: 78 | G36: 1(개별공시지가 10,000원 이하) | H36: 80 | I36: 1994 | J36: 0.507 | K36: 337
A37: 그 외 건물 | B37: 790000 | C37: (통나무조) | D37: 135 | E37: (1) 화장시설, 봉안당(종교시설에 해당하는 것 제외), 묘지와 자연장지에 부수되는 건축물 | F37: 78 | G37: 1(개별공시지가 10,000원 이하) | H37: 80 | I37: 1993 | J37: 0.49 | K37: 326
A38: 그 외 건물 | B38: 790000 | C38: (통나무조) | D38: 135 | E38: (1) 화장시설, 봉안당(종교시설에 해당하는 것 제외), 묘지와 자연장지에 부수되는 건축물 | F38: 78 | G38: 1(개별공시지가 10,000원 이하) | H38: 80 | I38: 1992 | J38: 0.473 | K38: 314
A39: 그 외 건물 | B39: 790000 | C39: (통나무조) | D39: 135 | E39: (1) 화장시설, 봉안당(종교시설에 해당하는 것 제외), 묘지와 자연장지에 부수되는 건축물 | F39: 78 | G39: 1(개별공시지가 10,000원 이하) | H39: 80 | I39: 1991 | J39: 0.456 | K39: 303
A40: 그 외 건물 | B40: 790000 | C40: (통나무조) | D40: 135 | E40: (1) 화장시설, 봉안당(종교시설에 해당하는 것 제외), 묘지와 자연장지에 부수되는 건축물 | F40: 78 | G40: 1(개별공시지가 10,000원 이하) | H40: 80 | I40: 1990 | J40: 0.439 | K40: 292
A41: 그 외 건물 | B41: 790000 | C41: (통나무조) | D41: 135 | E41: (1) 화장시설, 봉안당(종교시설에 해당하는 것 제외), 묘지와 자연장지에 부수되는 건축물 | F41: 78 | G41: 1(개별공시지가 10,000원 이하) | H41: 80 | I41: 1989 | J41: 0.422 | K41: 280
A42: 그 외 건물 | B42: 790000 | C42: (통나무조) | D42: 135 | E42: (1) 화장시설, 봉안당(종교시설에 해당하는 것 제외), 묘지와 자연장지에 부수되는 건축물 | F42: 78 | G42: 1(개별공시지가 10,000원 이하) | H42: 80 | I42: 1988 | J42: 0.405 | K42: 269
A43: 그 외 건물 | B43: 790000 | C43: (통나무조) | D43: 135 | E43: (1) 화장시설, 봉안당(종교시설에 해당하는 것 제외), 묘지와 자연장지에 부수되는 건축물 | F43: 78 | G43: 1(개별공시지가 10,000원 이하) | H43: 80 | I43: 1987 | J43: 0.388 | K43: 258
A44: 그 외 건물 | B44: 790000 | C44: (통나무조) | D44: 135 | E44: (1) 화장시설, 봉안당(종교시설에 해당하는 것 제외), 묘지와 자연장지에 부수되는 건축물 | F44: 78 | G44: 1(개별공시지가 10,000원 이하) | H44: 80 | I44: 1986 | J44: 0.371 | K44: 246
A45: 그 외 건물 | B45: 790000 | C45: (통나무조) | D45: 135 | E45: (1) 화장시설, 봉안당(종교시설에 해당하는 것 제외), 묘지와 자연장지에 부수되는 건축물 | F45: 78 | G45: 1(개별공시지가 10,000원 이하) | H45: 80 | I45: 1985 | J45: 0.354 | K45: 235
A46: 그 외 건물 | B46: 790000 | C46: (통나무조) | D46: 135 | E46: (1) 화장시설, 봉안당(종교시설에 해당하는 것 제외), 묘지와 자연장지에 부수되는 건축물 | F46: 78 | G46: 1(개별공시지가 10,000원 이하) | H46: 80 | I46: 1984 | J46: 0.337 | K46: 224
A47: 그 외 건물 | B47: 790000 | C47: (통나무조) | D47: 135 | E47: (1) 화장시설, 봉안당(종교시설에 해당하는 것 제외), 묘지와 자연장지에 부수되는 건축물 | F47: 78 | G47: 1(개별공시지가 10,000원 이하) | H47: 80 | I47: 1983 | J47: 0.32 | K47: 212
A48: 그 외 건물 | B48: 790000 | C48: (통나무조) | D48: 135 | E48: (1) 화장시설, 봉안당(종교시설에 해당하는 것 제외), 묘지와 자연장지에 부수되는 건축물 | F48: 78 | G48: 1(개별공시지가 10,000원 이하) | H48: 80 | I48: 1982 | J48: 0.303 | K48: 201
A49: 그 외 건물 | B49: 790000 | C49: (통나무조) | D49: 135 | E49: (1) 화장시설, 봉안당(종교시설에 해당하는 것 제외), 묘지와 자연장지에 부수되는 건축물 | F49: 78 | G49: 1(개별공시지가 10,000원 이하) | H49: 80 | I49: 1981 | J49: 0.286 | K49: 190
A50: 그 외 건물 | B50: 790000 | C50: (통나무조) | D50: 135 | E50: (1) 화장시설, 봉안당(종교시설에 해당하는 것 제외), 묘지와 자연장지에 부수되는 건축물 | F50: 78 | G50: 1(개별공시지가 10,000원 이하) | H50: 80 | I50: 1980 | J50: 0.269 | K50: 179
A51: 그 외 건물 | B51: 790000 | C51: (통나무조) | D51: 135 | E51: (1) 화장시설, 봉안당(종교시설에 해당하는 것 제외), 묘지와 자연장지에 부수되는 건축물 | F51: 78 | G51: 1(개별공시지가 10,000원 이하) | H51: 80 | I51: 1979 | J51: 0.252 | K51: 167
A52: 그 외 건물 | B52: 790000 | C52: (통나무조) | D52: 135 | E52: (1) 화장시설, 봉안당(종교시설에 해당하는 것 제외), 묘지와 자연장지에 부수되는 건축물 | F52: 78 | G52: 1(개별공시지가 10,000원 이하) | H52: 80 | I52: 1978 | J52: 0.235 | K52: 156
A53: 그 외 건물 | B53: 790000 | C53: (통나무조) | D53: 135 | E53: (1) 화장시설, 봉안당(종교시설에 해당하는 것 제외), 묘지와 자연장지에 부수되는 건축물 | F53: 78 | G53: 1(개별공시지가 10,000원 이하) | H53: 80 | I53: 1977 | J53: 0.218 | K53: 145
A54: 그 외 건물 | B54: 790000 | C54: (통나무조) | D54: 135 | E54: (1) 화장시설, 봉안당(종교시설에 해당하는 것 제외), 묘지와 자연장지에 부수되는 건축물 | F54: 78 | G54: 1(개별공시지가 10,000원 이하) | H54: 80 | I54: 1976 | J54: 0.201 | K54: 133
A55: 그 외 건물 | B55: 790000 | C55: (통나무조) | D55: 135 | E55: (1) 화장시설, 봉안당(종교시설에 해당하는 것 제외), 묘지와 자연장지에 부수되는 건축물 | F55: 78 | G55: 1(개별공시지가 10,000원 이하) | H55: 80 | I55: 1975 | J55: 0.184 | K55: 122
A56: 그 외 건물 | B56: 790000 | C56: (통나무조) | D56: 135 | E56: (1) 화장시설, 봉안당(종교시설에 해당하는 것 제외), 묘지와 자연장지에 부수되는 건축물 | F56: 78 | G56: 1(개별공시지가 10,000원 이하) | H56: 80 | I56: 1974 | J56: 0.167 | K56: 111
A57: 그 외 건물 | B57: 790000 | C57: (통나무조) | D57: 135 | E57: (1) 화장시설, 봉안당(종교시설에 해당하는 것 제외), 묘지와 자연장지에 부수되는 건축물 | F57: 78 | G57: 1(개별공시지가 10,000원 이하) | H57: 80 | I57: 50년이상 | J57: 0.15 | K57: 99
A58: 그 외 건물 | B58: 790000 | C58: (통나무조) | D58: 135 | E58: (2) 장례식장(종합병원부속장례식장 제외) | F58: 115 | G58: 1(개별공시지가 10,000원 이하) | H58: 80 | I58: 2023 | J58: 1 | K58: 981
A59: 그 외 건물 | B59: 790000 | C59: (통나무조) | D59: 135 | E59: (2) 장례식장(종합병원부속장례식장 제외) | F59: 115 | G59: 1(개별공시지가 10,000원 이하) | H59: 80 | I59: 2022 | J59: 0.983 | K59: 964
A60: 그 외 건물 | B60: 790000 | C60: (통나무조) | D60: 135 | E60: (2) 장례식장(종합병원부속장례식장 제외) | F60: 115 | G60: 1(개별공시지가 10,000원 이하) | H60: 80 | I60: 2021 | J60: 0.966 | K60: 947
A61: 그 외 건물 | B61: 790000 | C61: (통나무조) | D61: 135 | E61: (2) 장례식장(종합병원부속장례식장 제외) | F61: 115 | G61: 1(개별공시지가 10,000원 이하) | H61: 80 | I61: 2020 | J61: 0.949 | K61: 931
A62: 그 외 건물 | B62: 790000 | C62: (통나무조) | D62: 135 | E62: (2) 장례식장(종합병원부속장례식장 제외) | F62: 115 | G62: 1(개별공시지가 10,000원 이하) | H62: 80 | I62: 2019 | J62: 0.932 | K62: 914
A63: 그 외 건물 | B63: 790000 | C63: (통나무조) | D63: 135 | E63: (2) 장례식장(종합병원부속장례식장 제외) | F63: 115 | G63: 1(개별공시지가 10,000원 이하) | H63: 80 | I63: 2018 | J63: 0.915 | K63: 897
A64: 그 외 건물 | B64: 790000 | C64: (통나무조) | D64: 135 | E64: (2) 장례식장(종합병원부속장례식장 제외) | F64: 115 | G64: 1(개별공시지가 10,000원 이하) | H64: 80 | I64: 2017 | J64: 0.898 | K64: 881
A65: 그 외 건물 | B65: 790000 | C65: (통나무조) | D65: 135 | E65: (2) 장례식장(종합병원부속장례식장 제외) | F65: 115 | G65: 1(개별공시지가 10,000원 이하) | H65: 80 | I65: 2016 | J65: 0.881 | K65: 864
A66: 그 외 건물 | B66: 790000 | C66: (통나무조) | D66: 135 | E66: (2) 장례식장(종합병원부속장례식장 제외) | F66: 115 | G66: 1(개별공시지가 10,000원 이하) | H66: 80 | I66: 2015 | J66: 0.864 | K66: 847
A67: 그 외 건물 | B67: 790000 | C67: (통나무조) | D67: 135 | E67: (2) 장례식장(종합병원부속장례식장 제외) | F67: 115 | G67: 1(개별공시지가 10,000원 이하) | H67: 80 | I67: 2014 | J67: 0.847 | K67: 831
A68: 그 외 건물 | B68: 790000 | C68: (통나무조) | D68: 135 | E68: (2) 장례식장(종합병원부속장례식장 제외) | F68: 115 | G68: 1(개별공시지가 10,000원 이하) | H68: 80 | I68: 2013 | J68: 0.83 | K68: 814
A69: 그 외 건물 | B69: 790000 | C69: (통나무조) | D69: 135 | E69: (2) 장례식장(종합병원부속장례식장 제외) | F69: 115 | G69: 1(개별공시지가 10,000원 이하) | H69: 80 | I69: 2012 | J69: 0.813 | K69: 797
A70: 그 외 건물 | B70: 790000 | C70: (통나무조) | D70: 135 | E70: (2) 장례식장(종합병원부속장례식장 제외) | F70: 115 | G70: 1(개별공시지가 10,000원 이하) | H70: 80 | I70: 2011 | J70: 0.796 | K70: 781
A71: 그 외 건물 | B71: 790000 | C71: (통나무조) | D71: 135 | E71: (2) 장례식장(종합병원부속장례식장 제외) | F71: 115 | G71: 1(개별공시지가 10,000원 이하) | H71: 80 | I71: 2010 | J71: 0.779 | K71: =ROUNDDOWN(B71*D71/100*F71/100*H71/100*J71/1000,0) -> 764
A72: 그 외 건물 | B72: 790000 | C72: (통나무조) | D72: 135 | E72: (2) 장례식장(종합병원부속장례식장 제외) | F72: 115 | G72: 1(개별공시지가 10,000원 이하) | H72: 80 | I72: 2009 | J72: 0.762 | K72: 747
A73: 그 외 건물 | B73: 790000 | C73: (통나무조) | D73: 135 | E73: (2) 장례식장(종합병원부속장례식장 제외) | F73: 115 | G73: 1(개별공시지가 10,000원 이하) | H73: 80 | I73: 2008 | J73: 0.745 | K73: 730
A74: 그 외 건물 | B74: 790000 | C74: (통나무조) | D74: 135 | E74: (2) 장례식장(종합병원부속장례식장 제외) | F74: 115 | G74: 1(개별공시지가 10,000원 이하) | H74: 80 | I74: 2007 | J74: 0.728 | K74: 714
A75: 그 외 건물 | B75: 790000 | C75: (통나무조) | D75: 135 | E75: (2) 장례식장(종합병원부속장례식장 제외) | F75: 115 | G75: 1(개별공시지가 10,000원 이하) | H75: 80 | I75: 2006 | J75: 0.711 | K75: 697
A76: 그 외 건물 | B76: 790000 | C76: (통나무조) | D76: 135 | E76: (2) 장례식장(종합병원부속장례식장 제외) | F76: 115 | G76: 1(개별공시지가 10,000원 이하) | H76: 80 | I76: 2005 | J76: 0.694 | K76: 680
A77: 그 외 건물 | B77: 790000 | C77: (통나무조) | D77: 135 | E77: (2) 장례식장(종합병원부속장례식장 제외) | F77: 115 | G77: 1(개별공시지가 10,000원 이하) | H77: 80 | I77: 2004 | J77: 0.677 | K77: 664
A78: 그 외 건물 | B78: 790000 | C78: (통나무조) | D78: 135 | E78: (2) 장례식장(종합병원부속장례식장 제외) | F78: 115 | G78: 1(개별공시지가 10,000원 이하) | H78: 80 | I78: 2003 | J78: 0.66 | K78: 647
A79: 그 외 건물 | B79: 790000 | C79: (통나무조) | D79: 135 | E79: (2) 장례식장(종합병원부속장례식장 제외) | F79: 115 | G79: 1(개별공시지가 10,000원 이하) | H79: 80 | I79: 2002 | J79: 0.643 | K79: 630
A80: 그 외 건물 | B80: 790000 | C80: (통나무조) | D80: 135 | E80: (2) 장례식장(종합병원부속장례식장 제외) | F80: 115 | G80: 1(개별공시지가 10,000원 이하) | H80: 80 | I80: 2001 | J80: 0.626 | K80: 614
A81: 그 외 건물 | B81: 790000 | C81: (통나무조) | D81: 135 | E81: (2) 장례식장(종합병원부속장례식장 제외) | F81: 115 | G81: 1(개별공시지가 10,000원 이하) | H81: 80 | I81: 2000 | J81: 0.609 | K81: 597
A82: 그 외 건물 | B82: 790000 | C82: (통나무조) | D82: 135 | E82: (2) 장례식장(종합병원부속장례식장 제외) | F82: 115 | G82: 1(개별공시지가 10,000원 이하) | H82: 80 | I82: 1999 | J82: 0.592 | K82: 580
A83: 그 외 건물 | B83: 790000 | C83: (통나무조) | D83: 135 | E83: (2) 장례식장(종합병원부속장례식장 제외) | F83: 115 | G83: 1(개별공시지가 10,000원 이하) | H83: 80 | I83: 1998 | J83: 0.575 | K83: 564
A84: 그 외 건물 | B84: 790000 | C84: (통나무조) | D84: 135 | E84: (2) 장례식장(종합병원부속장례식장 제외) | F84: 115 | G84: 1(개별공시지가 10,000원 이하) | H84: 80 | I84: 1997 | J84: 0.558 | K84: 547
A85: 그 외 건물 | B85: 790000 | C85: (통나무조) | D85: 135 | E85: (2) 장례식장(종합병원부속장례식장 제외) | F85: 115 | G85: 1(개별공시지가 10,000원 이하) | H85: 80 | I85: 1996 | J85: 0.541 | K85: 530
A86: 그 외 건물 | B86: 790000 | C86: (통나무조) | D86: 135 | E86: (2) 장례식장(종합병원부속장례식장 제외) | F86: 115 | G86: 1(개별공시지가 10,000원 이하) | H86: 80 | I86: 1995 | J86: 0.524 | K86: 514
A87: 그 외 건물 | B87: 790000 | C87: (통나무조) | D87: 135 | E87: (2) 장례식장(종합병원부속장례식장 제외) | F87: 115 | G87: 1(개별공시지가 10,000원 이하) | H87: 80 | I87: 1994 | J87: 0.507 | K87: 497
A88: 그 외 건물 | B88: 790000 | C88: (통나무조) | D88: 135 | E88: (2) 장례식장(종합병원부속장례식장 제외) | F88: 115 | G88: 1(개별공시지가 10,000원 이하) | H88: 80 | I88: 1993 | J88: 0.49 | K88: 480
A89: 그 외 건물 | B89: 790000 | C89: (통나무조) | D89: 135 | E89: (2) 장례식장(종합병원부속장례식장 제외) | F89: 115 | G89: 1(개별공시지가 10,000원 이하) | H89: 80 | I89: 1992 | J89: 0.473 | K89: 464
A90: 그 외 건물 | B90: 790000 | C90: (통나무조) | D90: 135 | E90: (2) 장례식장(종합병원부속장례식장 제외) | F90: 115 | G90: 1(개별공시지가 10,000원 이하) | H90: 80 | I90: 1991 | J90: 0.456 | K90: 447
A91: 그 외 건물 | B91: 790000 | C91: (통나무조) | D91: 135 | E91: (2) 장례식장(종합병원부속장례식장 제외) | F91: 115 | G91: 1(개별공시지가 10,000원 이하) | H91: 80 | I91: 1990 | J91: 0.439 | K91: 430
A92: 그 외 건물 | B92: 790000 | C92: (통나무조) | D92: 135 | E92: (2) 장례식장(종합병원부속장례식장 제외) | F92: 115 | G92: 1(개별공시지가 10,000원 이하) | H92: 80 | I92: 1989 | J92: 0.422 | K92: 414
A93: 그 외 건물 | B93: 790000 | C93: (통나무조) | D93: 135 | E93: (2) 장례식장(종합병원부속장례식장 제외) | F93: 115 | G93: 1(개별공시지가 10,000원 이하) | H93: 80 | I93: 1988 | J93: 0.405 | K93: 397
A94: 그 외 건물 | B94: 790000 | C94: (통나무조) | D94: 135 | E94: (2) 장례식장(종합병원부속장례식장 제외) | F94: 115 | G94: 1(개별공시지가 10,000원 이하) | H94: 80 | I94: 1987 | J94: 0.388 | K94: 380
A95: 그 외 건물 | B95: 790000 | C95: (통나무조) | D95: 135 | E95: (2) 장례식장(종합병원부속장례식장 제외) | F95: 115 | G95: 1(개별공시지가 10,000원 이하) | H95: 80 | I95: 1986 | J95: 0.371 | K95: 364
A96: 그 외 건물 | B96: 790000 | C96: (통나무조) | D96: 135 | E96: (2) 장례식장(종합병원부속장례식장 제외) | F96: 115 | G96: 1(개별공시지가 10,000원 이하) | H96: 80 | I96: 1985 | J96: 0.354 | K96: 347
A97: 그 외 건물 | B97: 790000 | C97: (통나무조) | D97: 135 | E97: (2) 장례식장(종합병원부속장례식장 제외) | F97: 115 | G97: 1(개별공시지가 10,000원 이하) | H97: 80 | I97: 1984 | J97: 0.337 | K97: 330
A98: 그 외 건물 | B98: 790000 | C98: (통나무조) | D98: 135 | E98: (2) 장례식장(종합병원부속장례식장 제외) | F98: 115 | G98: 1(개별공시지가 10,000원 이하) | H98: 80 | I98: 1983 | J98: 0.32 | K98: 313
A99: 그 외 건물 | B99: 790000 | C99: (통나무조) | D99: 135 | E99: (2) 장례식장(종합병원부속장례식장 제외) | F99: 115 | G99: 1(개별공시지가 10,000원 이하) | H99: 80 | I99: 1982 | J99: 0.303 | K99: 297
A100: 그 외 건물 | B100: 790000 | C100: (통나무조) | D100: 135 | E100: (2) 장례식장(종합병원부속장례식장 제외) | F100: 115 | G100: 1(개별공시지가 10,000원 이하) | H100: 80 | I100: 1981 | J100: 0.286 | K100: 280
A101: 그 외 건물 | B101: 790000 | C101: (통나무조) | D101: 135 | E101: (2) 장례식장(종합병원부속장례식장 제외) | F101: 115 | G101: 1(개별공시지가 10,000원 이하) | H101: 80 | I101: 1980 | J101: 0.269 | K101: 263
A102: 그 외 건물 | B102: 790000 | C102: (통나무조) | D102: 135 | E102: (2) 장례식장(종합병원부속장례식장 제외) | F102: 115 | G102: 1(개별공시지가 10,000원 이하) | H102: 80 | I102: 1979 | J102: 0.252 | K102: 247
A103: 그 외 건물 | B103: 790000 | C103: (통나무조) | D103: 135 | E103: (2) 장례식장(종합병원부속장례식장 제외) | F103: 115 | G103: 1(개별공시지가 10,000원 이하) | H103: 80 | I103: 1978 | J103: 0.235 | K103: 230
A104: 그 외 건물 | B104: 790000 | C104: (통나무조) | D104: 135 | E104: (2) 장례식장(종합병원부속장례식장 제외) | F104: 115 | G104: 1(개별공시지가 10,000원 이하) | H104: 80 | I104: 1977 | J104: 0.218 | K104: 213
A105: 그 외 건물 | B105: 790000 | C105: (통나무조) | D105: 135 | E105: (2) 장례식장(종합병원부속장례식장 제외) | F105: 115 | G105: 1(개별공시지가 10,000원 이하) | H105: 80 | I105: 1976 | J105: 0.201 | K105: 197
A106: 그 외 건물 | B106: 790000 | C106: (통나무조) | D106: 135 | E106: (2) 장례식장(종합병원부속장례식장 제외) | F106: 115 | G106: 1(개별공시지가 10,000원 이하) | H106: 80 | I106: 1975 | J106: 0.184 | K106: 180
A107: 그 외 건물 | B107: 790000 | C107: (통나무조) | D107: 135 | E107: (2) 장례식장(종합병원부속장례식장 제외) | F107: 115 | G107: 1(개별공시지가 10,000원 이하) | H107: 80 | I107: 1974 | J107: 0.167 | K107: 163
A108: 그 외 건물 | B108: 790000 | C108: (통나무조) | D108: 135 | E108: (2) 장례식장(종합병원부속장례식장 제외) | F108: 115 | G108: 1(개별공시지가 10,000원 이하) | H108: 80 | I108: 50년이상 | J108: 0.15 | K108: 147
A109: 그 외 건물 | B109: 790000 | C109: (통나무조) | D109: 135 | E109: (3) 동물전용의 장례식장 | F109: 78 | G109: 1(개별공시지가 10,000원 이하) | H109: 80 | I109: 2023 | J109: 1 | K109: 665
A110: 그 외 건물 | B110: 790000 | C110: (통나무조) | D110: 135 | E110: (3) 동물전용의 장례식장 | F110: 78 | G110: 1(개별공시지가 10,000원 이하) | H110: 80 | I110: 2022 | J110: 0.983 | K110: 654
A111: 그 외 건물 | B111: 790000 | C111: (통나무조) | D111: 135 | E111: (3) 동물전용의 장례식장 | F111: 78 | G111: 1(개별공시지가 10,000원 이하) | H111: 80 | I111: 2021 | J111: 0.966 | K111: 642
A112: 그 외 건물 | B112: 790000 | C112: (통나무조) | D112: 135 | E112: (3) 동물전용의 장례식장 | F112: 78 | G112: 1(개별공시지가 10,000원 이하) | H112: 80 | I112: 2020 | J112: 0.949 | K112: 631
A113: 그 외 건물 | B113: 790000 | C113: (통나무조) | D113: 135 | E113: (3) 동물전용의 장례식장 | F113: 78 | G113: 1(개별공시지가 10,000원 이하) | H113: 80 | I113: 2019 | J113: 0.932 | K113: 620
A114: 그 외 건물 | B114: 790000 | C114: (통나무조) | D114: 135 | E114: (3) 동물전용의 장례식장 | F114: 78 | G114: 1(개별공시지가 10,000원 이하) | H114: 80 | I114: 2018 | J114: 0.915 | K114: 608
A115: 그 외 건물 | B115: 790000 | C115: (통나무조) | D115: 135 | E115: (3) 동물전용의 장례식장 | F115: 78 | G115: 1(개별공시지가 10,000원 이하) | H115: 80 | I115: 2017 | J115: 0.898 | K115: 597
A116: 그 외 건물 | B116: 790000 | C116: (통나무조) | D116: 135 | E116: (3) 동물전용의 장례식장 | F116: 78 | G116: 1(개별공시지가 10,000원 이하) | H116: 80 | I116: 2016 | J116: 0.881 | K116: 586
A117: 그 외 건물 | B117: 790000 | C117: (통나무조) | D117: 135 | E117: (3) 동물전용의 장례식장 | F117: 78 | G117: 1(개별공시지가 10,000원 이하) | H117: 80 | I117: 2015 | J117: 0.864 | K117: 574
A118: 그 외 건물 | B118: 790000 | C118: (통나무조) | D118: 135 | E118: (3) 동물전용의 장례식장 | F118: 78 | G118: 1(개별공시지가 10,000원 이하) | H118: 80 | I118: 2014 | J118: 0.847 | K118: 563
A119: 그 외 건물 | B119: 790000 | C119: (통나무조) | D119: 135 | E119: (3) 동물전용의 장례식장 | F119: 78 | G119: 1(개별공시지가 10,000원 이하) | H119: 80 | I119: 2013 | J119: 0.83 | K119: 552
A120: 그 외 건물 | B120: 790000 | C120: (통나무조) | D120: 135 | E120: (3) 동물전용의 장례식장 | F120: 78 | G120: 1(개별공시지가 10,000원 이하) | H120: 80 | I120: 2012 | J120: 0.813 | K120: 541
A121: 그 외 건물 | B121: 790000 | C121: (통나무조) | D121: 135 | E121: (3) 동물전용의 장례식장 | F121: 78 | G121: 1(개별공시지가 10,000원 이하) | H121: 80 | I121: 2011 | J121: 0.796 | K121: 529
A122: 그 외 건물 | B122: 790000 | C122: (통나무조) | D122: 135 | E122: (3) 동물전용의 장례식장 | F122: 78 | G122: 1(개별공시지가 10,000원 이하) | H122: 80 | I122: 2010 | J122: 0.779 | K122: 518
A123: 그 외 건물 | B123: 790000 | C123: (통나무조) | D123: 135 | E123: (3) 동물전용의 장례식장 | F123: 78 | G123: 1(개별공시지가 10,000원 이하) | H123: 80 | I123: 2009 | J123: 0.762 | K123: 507
A124: 그 외 건물 | B124: 790000 | C124: (통나무조) | D124: 135 | E124: (3) 동물전용의 장례식장 | F124: 78 | G124: 1(개별공시지가 10,000원 이하) | H124: 80 | I124: 2008 | J124: 0.745 | K124: 495
A125: 그 외 건물 | B125: 790000 | C125: (통나무조) | D125: 135 | E125: (3) 동물전용의 장례식장 | F125: 78 | G125: 1(개별공시지가 10,000원 이하) | H125: 80 | I125: 2007 | J125: 0.728 | K125: 484
A126: 그 외 건물 | B126: 790000 | C126: (통나무조) | D126: 135 | E126: (3) 동물전용의 장례식장 | F126: 78 | G126: 1(개별공시지가 10,000원 이하) | H126: 80 | I126: 2006 | J126: 0.711 | K126: 473
A127: 그 외 건물 | B127: 790000 | C127: (통나무조) | D127: 135 | E127: (3) 동물전용의 장례식장 | F127: 78 | G127: 1(개별공시지가 10,000원 이하) | H127: 80 | I127: 2005 | J127: 0.694 | K127: 461
A128: 그 외 건물 | B128: 790000 | C128: (통나무조) | D128: 135 | E128: (3) 동물전용의 장례식장 | F128: 78 | G128: 1(개별공시지가 10,000원 이하) | H128: 80 | I128: 2004 | J128: 0.677 | K128: 450
A129: 그 외 건물 | B129: 790000 | C129: (통나무조) | D129: 135 | E129: (3) 동물전용의 장례식장 | F129: 78 | G129: 1(개별공시지가 10,000원 이하) | H129: 80 | I129: 2003 | J129: 0.66 | K129: 439
A130: 그 외 건물 | B130: 790000 | C130: (통나무조) | D130: 135 | E130: (3) 동물전용의 장례식장 | F130: 78 | G130: 1(개별공시지가 10,000원 이하) | H130: 80 | I130: 2002 | J130: 0.643 | K130: 427
A131: 그 외 건물 | B131: 790000 | C131: (통나무조) | D131: 135 | E131: (3) 동물전용의 장례식장 | F131: 78 | G131: 1(개별공시지가 10,000원 이하) | H131: 80 | I131: 2001 | J131: 0.626 | K131: 416
A132: 그 외 건물 | B132: 790000 | C132: (통나무조) | D132: 135 | E132: (3) 동물전용의 장례식장 | F132: 78 | G132: 1(개별공시지가 10,000원 이하) | H132: 80 | I132: 2000 | J132: 0.609 | K132: 405
A133: 그 외 건물 | B133: 790000 | C133: (통나무조) | D133: 135 | E133: (3) 동물전용의 장례식장 | F133: 78 | G133: 1(개별공시지가 10,000원 이하) | H133: 80 | I133: 1999 | J133: 0.592 | K133: 393
A134: 그 외 건물 | B134: 790000 | C134: (통나무조) | D134: 135 | E134: (3) 동물전용의 장례식장 | F134: 78 | G134: 1(개별공시지가 10,000원 이하) | H134: 80 | I134: 1998 | J134: 0.575 | K134: 382
A135: 그 외 건물 | B135: 790000 | C135: (통나무조) | D135: 135 | E135: (3) 동물전용의 장례식장 | F135: 78 | G135: 1(개별공시지가 10,000원 이하) | H135: 80 | I135: 1997 | J135: 0.558 | K135: =ROUNDDOWN(B135*D135/100*F135/100*H135/100*J135/1000,0) -> 371
A136: 그 외 건물 | B136: 790000 | C136: (통나무조) | D136: 135 | E136: (3) 동물전용의 장례식장 | F136: 78 | G136: 1(개별공시지가 10,000원 이하) | H136: 80 | I136: 1996 | J136: 0.541 | K136: 360
A137: 그 외 건물 | B137: 790000 | C137: (통나무조) | D137: 135 | E137: (3) 동물전용의 장례식장 | F137: 78 | G137: 1(개별공시지가 10,000원 이하) | H137: 80 | I137: 1995 | J137: 0.524 | K137: 348
A138: 그 외 건물 | B138: 790000 | C138: (통나무조) | D138: 135 | E138: (3) 동물전용의 장례식장 | F138: 78 | G138: 1(개별공시지가 10,000원 이하) | H138: 80 | I138: 1994 | J138: 0.507 | K138: 337
A139: 그 외 건물 | B139: 790000 | C139: (통나무조) | D139: 135 | E139: (3) 동물전용의 장례식장 | F139: 78 | G139: 1(개별공시지가 10,000원 이하) | H139: 80 | I139: 1993 | J139: 0.49 | K139: 326
A140: 그 외 건물 | B140: 790000 | C140: (통나무조) | D140: 135 | E140: (3) 동물전용의 장례식장 | F140: 78 | G140: 1(개별공시지가 10,000원 이하) | H140: 80 | I140: 1992 | J140: 0.473 | K140: 314
A141: 그 외 건물 | B141: 790000 | C141: (통나무조) | D141: 135 | E141: (3) 동물전용의 장례식장 | F141: 78 | G141: 1(개별공시지가 10,000원 이하) | H141: 80 | I141: 1991 | J141: 0.456 | K141: 303
A142: 그 외 건물 | B142: 790000 | C142: (통나무조) | D142: 135 | E142: (3) 동물전용의 장례식장 | F142: 78 | G142: 1(개별공시지가 10,000원 이하) | H142: 80 | I142: 1990 | J142: 0.439 | K142: 292
A143: 그 외 건물 | B143: 790000 | C143: (통나무조) | D143: 135 | E143: (3) 동물전용의 장례식장 | F143: 78 | G143: 1(개별공시지가 10,000원 이하) | H143: 80 | I143: 1989 | J143: 0.422 | K143: 280
A144: 그 외 건물 | B144: 790000 | C144: (통나무조) | D144: 135 | E144: (3) 동물전용의 장례식장 | F144: 78 | G144: 1(개별공시지가 10,000원 이하) | H144: 80 | I144: 1988 | J144: 0.405 | K144: 269
A145: 그 외 건물 | B145: 790000 | C145: (통나무조) | D145: 135 | E145: (3) 동물전용의 장례식장 | F145: 78 | G145: 1(개별공시지가 10,000원 이하) | H145: 80 | I145: 1987 | J145: 0.388 | K145: 258
A146: 그 외 건물 | B146: 790000 | C146: (통나무조) | D146: 135 | E146: (3) 동물전용의 장례식장 | F146: 78 | G146: 1(개별공시지가 10,000원 이하) | H146: 80 | I146: 1986 | J146: 0.371 | K146: 246
A147: 그 외 건물 | B147: 790000 | C147: (통나무조) | D147: 135 | E147: (3) 동물전용의 장례식장 | F147: 78 | G147: 1(개별공시지가 10,000원 이하) | H147: 80 | I147: 1985 | J147: 0.354 | K147: 235
A148: 그 외 건물 | B148: 790000 | C148: (통나무조) | D148: 135 | E148: (3) 동물전용의 장례식장 | F148: 78 | G148: 1(개별공시지가 10,000원 이하) | H148: 80 | I148: 1984 | J148: 0.337 | K148: 224
A149: 그 외 건물 | B149: 790000 | C149: (통나무조) | D149: 135 | E149: (3) 동물전용의 장례식장 | F149: 78 | G149: 1(개별공시지가 10,000원 이하) | H149: 80 | I149: 1983 | J149: 0.32 | K149: 212
A150: 그 외 건물 | B150: 790000 | C150: (통나무조) | D150: 135 | E150: (3) 동물전용의 장례식장 | F150: 78 | G150: 1(개별공시지가 10,000원 이하) | H150: 80 | I150: 1982 | J150: 0.303 | K150: 201
A151: 그 외 건물 | B151: 790000 | C151: (통나무조) | D151: 135 | E151: (3) 동물전용의 장례식장 | F151: 78 | G151: 1(개별공시지가 10,000원 이하) | H151: 80 | I151: 1981 | J151: 0.286 | K151: 190
A152: 그 외 건물 | B152: 790000 | C152: (통나무조) | D152: 135 | E152: (3) 동물전용의 장례식장 | F152: 78 | G152: 1(개별공시지가 10,000원 이하) | H152: 80 | I152: 1980 | J152: 0.269 | K152: 179
A153: 그 외 건물 | B153: 790000 | C153: (통나무조) | D153: 135 | E153: (3) 동물전용의 장례식장 | F153: 78 | G153: 1(개별공시지가 10,000원 이하) | H153: 80 | I153: 1979 | J153: 0.252 | K153: 167
A154: 그 외 건물 | B154: 790000 | C154: (통나무조) | D154: 135 | E154: (3) 동물전용의 장례식장 | F154: 78 | G154: 1(개별공시지가 10,000원 이하) | H154: 80 | I154: 1978 | J154: 0.235 | K154: 156
A155: 그 외 건물 | B155: 790000 | C155: (통나무조) | D155: 135 | E155: (3) 동물전용의 장례식장 | F155: 78 | G155: 1(개별공시지가 10,000원 이하) | H155: 80 | I155: 1977 | J155: 0.218 | K155: 145
A156: 그 외 건물 | B156: 790000 | C156: (통나무조) | D156: 135 | E156: (3) 동물전용의 장례식장 | F156: 78 | G156: 1(개별공시지가 10,000원 이하) | H156: 80 | I156: 1976 | J156: 0.201 | K156: 133
A157: 그 외 건물 | B157: 790000 | C157: (통나무조) | D157: 135 | E157: (3) 동물전용의 장례식장 | F157: 78 | G157: 1(개별공시지가 10,000원 이하) | H157: 80 | I157: 1975 | J157: 0.184 | K157: 122
A158: 그 외 건물 | B158: 790000 | C158: (통나무조) | D158: 135 | E158: (3) 동물전용의 장례식장 | F158: 78 | G158: 1(개별공시지가 10,000원 이하) | H158: 80 | I158: 1974 | J158: 0.167 | K158: 111
A159: 그 외 건물 | B159: 790000 | C159: (통나무조) | D159: 135 | E159: (3) 동물전용의 장례식장 | F159: 78 | G159: 1(개별공시지가 10,000원 이하) | H159: 80 | I159: 50년이상 | J159: 0.15 | K159: 99
A160: 그 외 건물 | B160: 790000 | C160: (통나무조) | D160: 135 | E160: (4) 야외음악당, 야외극장, 어린이회관, 관망탑, 휴게소, 공원, 유원지 또는 관광지에 부수되는 시설 | F160: 78 | G160: 1(개별공시지가 10,000원 이하) | H160: 80 | I160: 2023 | J160: 1 | K160: 665
A161: 그 외 건물 | B161: 790000 | C161: (통나무조) | D161: 135 | E161: (4) 야외음악당, 야외극장, 어린이회관, 관망탑, 휴게소, 공원, 유원지 또는 관광지에 부수되는 시설 | F161: 78 | G161: 1(개별공시지가 10,000원 이하) | H161: 80 | I161: 2022 | J161: 0.983 | K161: 654
A162: 그 외 건물 | B162: 790000 | C162: (통나무조) | D162: 135 | E162: (4) 야외음악당, 야외극장, 어린이회관, 관망탑, 휴게소, 공원, 유원지 또는 관광지에 부수되는 시설 | F162: 78 | G162: 1(개별공시지가 10,000원 이하) | H162: 80 | I162: 2021 | J162: 0.966 | K162: 642
A163: 그 외 건물 | B163: 790000 | C163: (통나무조) | D163: 135 | E163: (4) 야외음악당, 야외극장, 어린이회관, 관망탑, 휴게소, 공원, 유원지 또는 관광지에 부수되는 시설 | F163: 78 | G163: 1(개별공시지가 10,000원 이하) | H163: 80 | I163: 2020 | J163: 0.949 | K163: 631
A164: 그 외 건물 | B164: 790000 | C164: (통나무조) | D164: 135 | E164: (4) 야외음악당, 야외극장, 어린이회관, 관망탑, 휴게소, 공원, 유원지 또는 관광지에 부수되는 시설 | F164: 78 | G164: 1(개별공시지가 10,000원 이하) | H164: 80 | I164: 2019 | J164: 0.932 | K164: 620
A165: 그 외 건물 | B165: 790000 | C165: (통나무조) | D165: 135 | E165: (4) 야외음악당, 야외극장, 어린이회관, 관망탑, 휴게소, 공원, 유원지 또는 관광지에 부수되는 시설 | F165: 78 | G165: 1(개별공시지가 10,000원 이하) | H165: 80 | I165: 2018 | J165: 0.915 | K165: 608
A166: 그 외 건물 | B166: 790000 | C166: (통나무조) | D166: 135 | E166: (4) 야외음악당, 야외극장, 어린이회관, 관망탑, 휴게소, 공원, 유원지 또는 관광지에 부수되는 시설 | F166: 78 | G166: 1(개별공시지가 10,000원 이하) | H166: 80 | I166: 2017 | J166: 0.898 | K166: 597
A167: 그 외 건물 | B167: 790000 | C167: (통나무조) | D167: 135 | E167: (4) 야외음악당, 야외극장, 어린이회관, 관망탑, 휴게소, 공원, 유원지 또는 관광지에 부수되는 시설 | F167: 78 | G167: 1(개별공시지가 10,000원 이하) | H167: 80 | I167: 2016 | J167: 0.881 | K167: 586
A168: 그 외 건물 | B168: 790000 | C168: (통나무조) | D168: 135 | E168: (4) 야외음악당, 야외극장, 어린이회관, 관망탑, 휴게소, 공원, 유원지 또는 관광지에 부수되는 시설 | F168: 78 | G168: 1(개별공시지가 10,000원 이하) | H168: 80 | I168: 2015 | J168: 0.864 | K168: 574
A169: 그 외 건물 | B169: 790000 | C169: (통나무조) | D169: 135 | E169: (4) 야외음악당, 야외극장, 어린이회관, 관망탑, 휴게소, 공원, 유원지 또는 관광지에 부수되는 시설 | F169: 78 | G169: 1(개별공시지가 10,000원 이하) | H169: 80 | I169: 2014 | J169: 0.847 | K169: 563
A170: 그 외 건물 | B170: 790000 | C170: (통나무조) | D170: 135 | E170: (4) 야외음악당, 야외극장, 어린이회관, 관망탑, 휴게소, 공원, 유원지 또는 관광지에 부수되는 시설 | F170: 78 | G170: 1(개별공시지가 10,000원 이하) | H170: 80 | I170: 2013 | J170: 0.83 | K170: 552
A171: 그 외 건물 | B171: 790000 | C171: (통나무조) | D171: 135 | E171: (4) 야외음악당, 야외극장, 어린이회관, 관망탑, 휴게소, 공원, 유원지 또는 관광지에 부수되는 시설 | F171: 78 | G171: 1(개별공시지가 10,000원 이하) | H171: 80 | I171: 2012 | J171: 0.813 | K171: 541
A172: 그 외 건물 | B172: 790000 | C172: (통나무조) | D172: 135 | E172: (4) 야외음악당, 야외극장, 어린이회관, 관망탑, 휴게소, 공원, 유원지 또는 관광지에 부수되는 시설 | F172: 78 | G172: 1(개별공시지가 10,000원 이하) | H172: 80 | I172: 2011 | J172: 0.796 | K172: 529
A173: 그 외 건물 | B173: 790000 | C173: (통나무조) | D173: 135 | E173: (4) 야외음악당, 야외극장, 어린이회관, 관망탑, 휴게소, 공원, 유원지 또는 관광지에 부수되는 시설 | F173: 78 | G173: 1(개별공시지가 10,000원 이하) | H173: 80 | I173: 2010 | J173: 0.779 | K173: 518
A174: 그 외 건물 | B174: 790000 | C174: (통나무조) | D174: 135 | E174: (4) 야외음악당, 야외극장, 어린이회관, 관망탑, 휴게소, 공원, 유원지 또는 관광지에 부수되는 시설 | F174: 78 | G174: 1(개별공시지가 10,000원 이하) | H174: 80 | I174: 2009 | J174: 0.762 | K174: 507
A175: 그 외 건물 | B175: 790000 | C175: (통나무조) | D175: 135 | E175: (4) 야외음악당, 야외극장, 어린이회관, 관망탑, 휴게소, 공원, 유원지 또는 관광지에 부수되는 시설 | F175: 78 | G175: 1(개별공시지가 10,000원 이하) | H175: 80 | I175: 2008 | J175: 0.745 | K175: 495
A176: 그 외 건물 | B176: 790000 | C176: (통나무조) | D176: 135 | E176: (4) 야외음악당, 야외극장, 어린이회관, 관망탑, 휴게소, 공원, 유원지 또는 관광지에 부수되는 시설 | F176: 78 | G176: 1(개별공시지가 10,000원 이하) | H176: 80 | I176: 2007 | J176: 0.728 | K176: 484
A177: 그 외 건물 | B177: 790000 | C177: (통나무조) | D177: 135 | E177: (4) 야외음악당, 야외극장, 어린이회관, 관망탑, 휴게소, 공원, 유원지 또는 관광지에 부수되는 시설 | F177: 78 | G177: 1(개별공시지가 10,000원 이하) | H177: 80 | I177: 2006 | J177: 0.711 | K177: 473
A178: 그 외 건물 | B178: 790000 | C178: (통나무조) | D178: 135 | E178: (4) 야외음악당, 야외극장, 어린이회관, 관망탑, 휴게소, 공원, 유원지 또는 관광지에 부수되는 시설 | F178: 78 | G178: 1(개별공시지가 10,000원 이하) | H178: 80 | I178: 2005 | J178: 0.694 | K178: 461
A179: 그 외 건물 | B179: 790000 | C179: (통나무조) | D179: 135 | E179: (4) 야외음악당, 야외극장, 어린이회관, 관망탑, 휴게소, 공원, 유원지 또는 관광지에 부수되는 시설 | F179: 78 | G179: 1(개별공시지가 10,000원 이하) | H179: 80 | I179: 2004 | J179: 0.677 | K179: 450
A180: 그 외 건물 | B180: 790000 | C180: (통나무조) | D180: 135 | E180: (4) 야외음악당, 야외극장, 어린이회관, 관망탑, 휴게소, 공원, 유원지 또는 관광지에 부수되는 시설 | F180: 78 | G180: 1(개별공시지가 10,000원 이하) | H180: 80 | I180: 2003 | J180: 0.66 | K180: 439
A181: 그 외 건물 | B181: 790000 | C181: (통나무조) | D181: 135 | E181: (4) 야외음악당, 야외극장, 어린이회관, 관망탑, 휴게소, 공원, 유원지 또는 관광지에 부수되는 시설 | F181: 78 | G181: 1(개별공시지가 10,000원 이하) | H181: 80 | I181: 2002 | J181: 0.643 | K181: 427
A182: 그 외 건물 | B182: 790000 | C182: (통나무조) | D182: 135 | E182: (4) 야외음악당, 야외극장, 어린이회관, 관망탑, 휴게소, 공원, 유원지 또는 관광지에 부수되는 시설 | F182: 78 | G182: 1(개별공시지가 10,000원 이하) | H182: 80 | I182: 2001 | J182: 0.626 | K182: 416
A183: 그 외 건물 | B183: 790000 | C183: (통나무조) | D183: 135 | E183: (4) 야외음악당, 야외극장, 어린이회관, 관망탑, 휴게소, 공원, 유원지 또는 관광지에 부수되는 시설 | F183: 78 | G183: 1(개별공시지가 10,000원 이하) | H183: 80 | I183: 2000 | J183: 0.609 | K183: 405
A184: 그 외 건물 | B184: 790000 | C184: (통나무조) | D184: 135 | E184: (4) 야외음악당, 야외극장, 어린이회관, 관망탑, 휴게소, 공원, 유원지 또는 관광지에 부수되는 시설 | F184: 78 | G184: 1(개별공시지가 10,000원 이하) | H184: 80 | I184: 1999 | J184: 0.592 | K184: 393
A185: 그 외 건물 | B185: 790000 | C185: (통나무조) | D185: 135 | E185: (4) 야외음악당, 야외극장, 어린이회관, 관망탑, 휴게소, 공원, 유원지 또는 관광지에 부수되는 시설 | F185: 78 | G185: 1(개별공시지가 10,000원 이하) | H185: 80 | I185: 1998 | J185: 0.575 | K185: 382
A186: 그 외 건물 | B186: 790000 | C186: (통나무조) | D186: 135 | E186: (4) 야외음악당, 야외극장, 어린이회관, 관망탑, 휴게소, 공원, 유원지 또는 관광지에 부수되는 시설 | F186: 78 | G186: 1(개별공시지가 10,000원 이하) | H186: 80 | I186: 1997 | J186: 0.558 | K186: 371
A187: 그 외 건물 | B187: 790000 | C187: (통나무조) | D187: 135 | E187: (4) 야외음악당, 야외극장, 어린이회관, 관망탑, 휴게소, 공원, 유원지 또는 관광지에 부수되는 시설 | F187: 78 | G187: 1(개별공시지가 10,000원 이하) | H187: 80 | I187: 1996 | J187: 0.541 | K187: 360
A188: 그 외 건물 | B188: 790000 | C188: (통나무조) | D188: 135 | E188: (4) 야외음악당, 야외극장, 어린이회관, 관망탑, 휴게소, 공원, 유원지 또는 관광지에 부수되는 시설 | F188: 78 | G188: 1(개별공시지가 10,000원 이하) | H188: 80 | I188: 1995 | J188: 0.524 | K188: 348
A189: 그 외 건물 | B189: 790000 | C189: (통나무조) | D189: 135 | E189: (4) 야외음악당, 야외극장, 어린이회관, 관망탑, 휴게소, 공원, 유원지 또는 관광지에 부수되는 시설 | F189: 78 | G189: 1(개별공시지가 10,000원 이하) | H189: 80 | I189: 1994 | J189: 0.507 | K189: 337
A190: 그 외 건물 | B190: 790000 | C190: (통나무조) | D190: 135 | E190: (4) 야외음악당, 야외극장, 어린이회관, 관망탑, 휴게소, 공원, 유원지 또는 관광지에 부수되는 시설 | F190: 78 | G190: 1(개별공시지가 10,000원 이하) | H190: 80 | I190: 1993 | J190: 0.49 | K190: 326
A191: 그 외 건물 | B191: 790000 | C191: (통나무조) | D191: 135 | E191: (4) 야외음악당, 야외극장, 어린이회관, 관망탑, 휴게소, 공원, 유원지 또는 관광지에 부수되는 시설 | F191: 78 | G191: 1(개별공시지가 10,000원 이하) | H191: 80 | I191: 1992 | J191: 0.473 | K191: 314
A192: 그 외 건물 | B192: 790000 | C192: (통나무조) | D192: 135 | E192: (4) 야외음악당, 야외극장, 어린이회관, 관망탑, 휴게소, 공원, 유원지 또는 관광지에 부수되는 시설 | F192: 78 | G192: 1(개별공시지가 10,000원 이하) | H192: 80 | I192: 1991 | J192: 0.456 | K192: 303
A193: 그 외 건물 | B193: 790000 | C193: (통나무조) | D193: 135 | E193: (4) 야외음악당, 야외극장, 어린이회관, 관망탑, 휴게소, 공원, 유원지 또는 관광지에 부수되는 시설 | F193: 78 | G193: 1(개별공시지가 10,000원 이하) | H193: 80 | I193: 1990 | J193: 0.439 | K193: 292
A194: 그 외 건물 | B194: 790000 | C194: (통나무조) | D194: 135 | E194: (4) 야외음악당, 야외극장, 어린이회관, 관망탑, 휴게소, 공원, 유원지 또는 관광지에 부수되는 시설 | F194: 78 | G194: 1(개별공시지가 10,000원 이하) | H194: 80 | I194: 1989 | J194: 0.422 | K194: 280
A195: 그 외 건물 | B195: 790000 | C195: (통나무조) | D195: 135 | E195: (4) 야외음악당, 야외극장, 어린이회관, 관망탑, 휴게소, 공원, 유원지 또는 관광지에 부수되는 시설 | F195: 78 | G195: 1(개별공시지가 10,000원 이하) | H195: 80 | I195: 1988 | J195: 0.405 | K195: 269
A196: 그 외 건물 | B196: 790000 | C196: (통나무조) | D196: 135 | E196: (4) 야외음악당, 야외극장, 어린이회관, 관망탑, 휴게소, 공원, 유원지 또는 관광지에 부수되는 시설 | F196: 78 | G196: 1(개별공시지가 10,000원 이하) | H196: 80 | I196: 1987 | J196: 0.388 | K196: 258
A197: 그 외 건물 | B197: 790000 | C197: (통나무조) | D197: 135 | E197: (4) 야외음악당, 야외극장, 어린이회관, 관망탑, 휴게소, 공원, 유원지 또는 관광지에 부수되는 시설 | F197: 78 | G197: 1(개별공시지가 10,000원 이하) | H197: 80 | I197: 1986 | J197: 0.371 | K197: 246
A198: 그 외 건물 | B198: 790000 | C198: (통나무조) | D198: 135 | E198: (4) 야외음악당, 야외극장, 어린이회관, 관망탑, 휴게소, 공원, 유원지 또는 관광지에 부수되는 시설 | F198: 78 | G198: 1(개별공시지가 10,000원 이하) | H198: 80 | I198: 1985 | J198: 0.354 | K198: 235
A199: 그 외 건물 | B199: 790000 | C199: (통나무조) | D199: 135 | E199: (4) 야외음악당, 야외극장, 어린이회관, 관망탑, 휴게소, 공원, 유원지 또는 관광지에 부수되는 시설 | F199: 78 | G199: 1(개별공시지가 10,000원 이하) | H199: 80 | I199: 1984 | J199: 0.337 | K199: =ROUNDDOWN(B199*D199/100*F199/100*H199/100*J199/1000,0) -> 224
A200: 그 외 건물 | B200: 790000 | C200: (통나무조) | D200: 135 | E200: (4) 야외음악당, 야외극장, 어린이회관, 관망탑, 휴게소, 공원, 유원지 또는 관광지에 부수되는 시설 | F200: 78 | G200: 1(개별공시지가 10,000원 이하) | H200: 80 | I200: 1983 | J200: 0.32 | K200: 212
... 4292 more rows
